Workbook

Sheet Accueil
J9: ='Langue Makro'!A3 -> PROGRAMME D'AIDE AU CHOIX DES CONDUITES
J11: ='Langue Makro'!A4 -> CALCULS ET DIMENSIONNEMENT STATIQUES
J12: ='Langue Makro'!A5 -> calculs selon la base normative SIA 190:2017
L15: ='Langue Makro'!A8 -> Projet: | P15: VSA 2026 | AD15: ='Langue Makro'!A11 -> Ingénieur/e: | AV15: ='Langue Makro'!A15 -> Langue: | AZ15: Français | BI15: : | BJ15: ='Langue Makro'!A16 -> Cases à remplir
L17: N°: | AD17: ='Langue Makro'!A12 -> Responsable:
L19: ='Langue Makro'!A9 -> Date: | AD19: ='Langue Makro'!A13 -> Maître d'ouvrage:
L21: ='Langue Makro'!A10 -> Lieu: | AD21: ='Langue Makro'!A14 -> Remarques:

Sheet Langue Makro (hidden)
A1: Accueil | B1: Données | C1: Béton | D1: PP | E1: PVC | F1: PE | G1: Grès | H1: GF-UP | I1: Fonte | J1: Explications (D) | K1: Explications (F) | L1: Impression
A2: Titre | B2: Titre
A3: =IF(Accueil!AZ15="Français","PROGRAMME D'AIDE AU CHOIX DES CONDUITES",IF(Accueil!AZ15="Deutsch","PROGRAMM ZUR AUSWAHL VON KANALISATIONSROHREN",IF(Accueil!AZ15="Italiano",""))) -> PROGRAMME D'AIDE AU CHOIX DES CONDUITES | B3: =IF(Accueil!AZ15="Français","PROGRAMME D'AIDE AU CHOIX DES CONDUITES",IF(Accueil!AZ15="Deutsch","PROGRAMM ZUR AUSWAHL VON KANALISATIONSROHREN",IF(Accueil!AZ15="Italiano",""))) -> PROGRAMME D'AIDE AU CHOIX DES CONDUITES
A4: =IF(Accueil!AZ15="Français","CALCULS ET DIMENSIONNEMENT STATIQUES",IF(Accueil!AZ15="Deutsch","STATISCHE BERECHNUNGEN UND DIMENSIONIERUNG",IF(Accueil!AZ15AZ15="Italiano",""))) -> CALCULS ET DIMENSIONNEMENT STATIQUES
A5: =IF(Accueil!AZ15="Français","calculs selon la base normative SIA 190:2017", IF(Accueil!AZ15="Deutsch","Berechnungen nach der Norm SIA 190:2017",IF(Accueil!AZ15="Italiano",""))) -> calculs selon la base normative SIA 190:2017
A7: Cases à remplir | B7: Untertitel
A8: =IF(Accueil!AZ15="Français","Projet:",IF(Accueil!AZ15="Deutsch","Projekt:",IF(Accueil!AZ15="Italiano",""))) -> Projet: | B8: =IF(Accueil!AZ15="Français","Tuyau:",IF(Accueil!AZ15="Deutsch","Rohr:",IF(Accueil!AZ15="Italiano",""))) -> Tuyau:
A9: =IF(Accueil!AZ15="Français","Date:",IF(Accueil!AZ15="Deutsch","Datum:",IF(Accueil!AZ15="Italiano",""))) -> Date: | B9: =IF(Accueil!AZ15="Français","Actions:",IF(Accueil!AZ15="Deutsch","Einwirkungen:",IF(Accueil!AZ15="Italiano",""))) -> Actions:
A10: =IF(Accueil!AZ15="Français","Lieu:",IF(Accueil!AZ15="Deutsch","Ort:",IF(Accueil!AZ15="Italiano",""))) -> Lieu: | B10: =IF(Accueil!AZ15="Français","Terrain:",IF(Accueil!AZ15="Deutsch","Terrain:",IF(Accueil!AZ15="Italiano",""))) -> Terrain:
A11: =IF(Accueil!AZ15="Français","Ingénieur/e:",IF(Accueil!AZ15="Deutsch","Ingenieur/in:",IF(Accueil!AZ15="Italiano","Ingegnere"))) -> Ingénieur/e: | B11: =IF(Accueil!AZ15="Français","Fouille:",IF(Accueil!AZ15="Deutsch","Graben:",IF(Accueil!AZ15="Italiano",""))) -> Fouille:
A12: =IF(Accueil!AZ15="Français","Responsable:",IF(Accueil!AZ15="Deutsch","Verantwortlicher:",IF(Accueil!AZ15="Italiano",""))) -> Responsable: | B12: =IF(Accueil!AZ15="Français","Eau:",IF(Accueil!AZ15="Deutsch","Wasser:",IF(Accueil!AZ15="Italiano",""))) -> Eau:
A13: =IF(Accueil!AZ15="Français","Maître d'ouvrage:",IF(Accueil!AZ15="Deutsch","Bauherr:",IF(Accueil!AZ15="Italiano",""))) -> Maître d'ouvrage:
A14: =IF(Accueil!AZ15="Français","Remarques:",IF(Accueil!AZ15="Deutsch","Bemerkungen:",IF(Accueil!AZ15="Italiano",""))) -> Remarques: | B14: Déscriptions
A15: =IF(Accueil!AZ15="Français","Langue:",IF(Accueil!AZ15="Deutsch","Sprache:",IF(Accueil!AZ15="Italiano",""))) -> Langue: | B15: =IF(Accueil!AZ15="Français","1.Diamètre intérieur",IF(Accueil!AZ15="Deutsch","1.Innendurchmesser",IF(Accueil!AZ15="Italiano","1."))) -> 1.Diamètre intérieur
A16: =IF(Accueil!AZ15="Français","Cases à remplir",IF(Accueil!AZ15="Deutsch","Zellen zum ausfüllen",IF(Accueil!AZ15="Italiano",""))) -> Cases à remplir | B16: =IF(Accueil!AZ15="Français","2.Charge surfacique",IF(Accueil!AZ15="Deutsch","2.Flächenlast",IF(Accueil!AZ15="Italiano","2."))) -> 2.Charge surfacique
B17: =IF(Accueil!AZ15="Français","charge surfacique",IF(Accueil!AZ15="Deutsch","Flächenlast",IF(Accueil!AZ15="Italiano",""))) -> charge surfacique
A18: Makro | B18: =IF(Accueil!AZ15="Français","Largeur de la charge",IF(Accueil!AZ15="Deutsch","Breite der Last",IF(Accueil!AZ15="Italiano",""))) -> Largeur de la charge | C18: Makro | D18: Makro | E18: Makro | F18: Makro | G18: Makro | H18: Makro | I18: Makro | L18: Makro
A19: =IF(Accueil!AZ15="Français","Sprachwechsel",IF(Accueil!AZ15="Deutsch","Changement de langue",IF(Accueil!AZ15="Italiano",""))) -> Sprachwechsel | B19: =IF(Accueil!AZ15="Français","Longueur de la charge",IF(Accueil!AZ15="Deutsch","Länge der Last",IF(Accueil!AZ15="Italiano",""))) -> Longueur de la charge | C19: =IF(Accueil!$AZ$15="Français","Données",IF(Accueil!$AZ$15="Deutsch","Daten",IF(Accueil!$AZ$15="Italiano",""))) -> Données | D19: =IF(Accueil!$AZ$15="Français","Données",IF(Accueil!$AZ$15="Deutsch","Daten",IF(Accueil!$AZ$15="Italiano",""))) -> Données | E19: =IF(Accueil!$AZ$15="Français","Données",IF(Accueil!$AZ$15="Deutsch","Daten",IF(Accueil!$AZ$15="Italiano",""))) -> Données | F19: =IF(Accueil!$AZ$15="Français","Données",IF(Accueil!$AZ$15="Deutsch","Daten",IF(Accueil!$AZ$15="Italiano",""))) -> Données | G19: =IF(Accueil!$AZ$15="Français","Données",IF(Accueil!$AZ$15="Deutsch","Daten",IF(Accueil!$AZ$15="Italiano",""))) -> Données | H19: =IF(Accueil!$AZ$15="Français","Données",IF(Accueil!$AZ$15="Deutsch","Daten",IF(Accueil!$AZ$15="Italiano",""))) -> Données | I19: =IF(Accueil!$AZ$15="Français","Données",IF(Accueil!$AZ$15="Deutsch","Daten",IF(Accueil!$AZ$15="Italiano",""))) -> Données | L19: =IF(Accueil!AZ15="Français","Données",IF(Accueil!AZ15="Deutsch","Daten",IF(Accueil!AZ15="Italiano",""))) -> Données
A20: =IF(Accueil!AZ15="Français","Commencer",IF(Accueil!AZ15="Deutsch","Beginnen",IF(Accueil!AZ15="Italiano",""))) -> Commencer | B20: =IF(Accueil!AZ15="Français","Distance entre point P et centre de la charge",IF(Accueil!AZ15="Deutsch","Distanz zwischen P und Zentrum der Last",IF(Accueil!AZ15="Italiano",""))) -> Distance entre point P et centre de la charge | C20: =IF(Accueil!$AZ$15="Français","Accueil",IF(Accueil!$AZ$15="Deutsch","Start",IF(Accueil!$AZ$15="Italiano",""))) -> Accueil | D20: =IF(Accueil!$AZ$15="Français","Accueil",IF(Accueil!$AZ$15="Deutsch","Start",IF(Accueil!$AZ$15="Italiano",""))) -> Accueil | E20: =IF(Accueil!$AZ$15="Français","Accueil",IF(Accueil!$AZ$15="Deutsch","Start",IF(Accueil!$AZ$15="Italiano",""))) -> Accueil | F20: =IF(Accueil!$AZ$15="Français","Accueil",IF(Accueil!$AZ$15="Deutsch","Start",IF(Accueil!$AZ$15="Italiano",""))) -> Accueil | G20: =IF(Accueil!$AZ$15="Français","Accueil",IF(Accueil!$AZ$15="Deutsch","Start",IF(Accueil!$AZ$15="Italiano",""))) -> Accueil | H20: =IF(Accueil!$AZ$15="Français","Accueil",IF(Accueil!$AZ$15="Deutsch","Start",IF(Accueil!$AZ$15="Italiano",""))) -> Accueil | I20: =IF(Accueil!$AZ$15="Français","Accueil",IF(Accueil!$AZ$15="Deutsch","Start",IF(Accueil!$AZ$15="Italiano",""))) -> Accueil | L20: =IF(Accueil!AZ15="Français","Accueil",IF(Accueil!AZ15="Deutsch","Start",IF(Accueil!AZ15="Italiano",""))) -> Accueil
A21: =IF(Accueil!AZ15="Français","Explications",IF(Accueil!AZ15="Deutsch","Erklärungen",IF(Accueil!AZ15="Italiano",""))) -> Explications | B21: =IF(Accueil!AZ15="Français","Distance entre point P et centre de la charge",IF(Accueil!AZ15="Deutsch","Distanz zwischen P und Zentrum der Last",IF(Accueil!AZ15="Italiano",""))) -> Distance entre point P et centre de la charge | C21: =IF(Accueil!$AZ$15="Français","Retour",IF(Accueil!$AZ$15="Deutsch","Zurück",IF(Accueil!$AZ$15="Italiano",""))) -> Retour | D21: =IF(Accueil!$AZ$15="Français","Retour",IF(Accueil!$AZ$15="Deutsch","Zurück",IF(Accueil!$AZ$15="Italiano",""))) -> Retour | E21: =IF(Accueil!$AZ$15="Français","Retour",IF(Accueil!$AZ$15="Deutsch","Zurück",IF(Accueil!$AZ$15="Italiano",""))) -> Retour | F21: =IF(Accueil!$AZ$15="Français","Retour",IF(Accueil!$AZ$15="Deutsch","Zurück",IF(Accueil!$AZ$15="Italiano",""))) -> Retour | G21: =IF(Accueil!$AZ$15="Français","Retour",IF(Accueil!$AZ$15="Deutsch","Zurück",IF(Accueil!$AZ$15="Italiano",""))) -> Retour | H21: =IF(Accueil!$AZ$15="Français","Retour",IF(Accueil!$AZ$15="Deutsch","Zurück",IF(Accueil!$AZ$15="Italiano",""))) -> Retour | I21: =IF(Accueil!$AZ$15="Français","Retour",IF(Accueil!$AZ$15="Deutsch","Zurück",IF(Accueil!$AZ$15="Italiano",""))) -> Retour | L21: =IF(Accueil!AZ15="Français","Explications",IF(Accueil!AZ15="Deutsch","Erklärungen",IF(Accueil!AZ15="Italiano",""))) -> Explications
B22: =IF(Accueil!AZ15="Français","Profondeur par rapport au terrain",IF(Accueil!AZ15="Deutsch","Tiefe unter OK Terrain",IF(Accueil!AZ15="Italiano",""))) -> Profondeur par rapport au terrain | L22: =IF(Accueil!$AZ$15="Français","Détails béton",IF(Accueil!$AZ$15="Deutsch","Details Beton",IF(Accueil!$AZ$15="Italiano",""))) -> Détails béton
B23: =IF(Accueil!AZ15="Français","3. Trafic routier/ferroviaire",IF(Accueil!AZ15="Deutsch","3. Strassen-/Bahnverkehr",IF(Accueil!AZ15="Italiano","3."))) -> 3. Trafic routier/ferroviaire | L23: =IF(Accueil!$AZ$15="Français","Détails grès vitrifié (charge normale)",IF(Accueil!$AZ$15="Deutsch","Details Steinzeug (Normallast)",IF(Accueil!$AZ$15="Italiano",""))) -> Détails grès vitrifié (charge normale)
B24: =IF(Accueil!$AZ$15="Français","Facteur de charge routier",IF(Accueil!$AZ$15="Deutsch","Beiwert Strassenverkehr","")) -> Facteur de charge routier | L24: =IF(Accueil!$AZ$15="Français","Détails grès vitrifié (charge supérieure)",IF(Accueil!$AZ$15="Deutsch","Details Steinzeug (Hochlast)",IF(Accueil!$AZ$15="Italiano",""))) -> Détails grès vitrifié (charge supérieure)
B25: =IF(Accueil!$AZ$15="Français","Coefficient dynamique pour trafic routier",IF(Accueil!$AZ$15="Deutsch","Stosszuschlag","")) -> Coefficient dynamique pour trafic routier | L25: =IF(Accueil!$AZ$15="Français","Détails fonte ductile",IF(Accueil!$AZ$15="Deutsch","Details Gusseisen",IF(Accueil!$AZ$15="Italiano",""))) -> Détails fonte ductile
B26: =IF(Accueil!AZ15="Français","Facteur de charge ferroviaire",IF(Accueil!AZ15="Deutsch","Bahnverkehr Faktor",IF(Accueil!AZ15="Italiano",""))) -> Facteur de charge ferroviaire | L26: =IF(Accueil!$AZ$15="Français","Détails PP SN4",IF(Accueil!$AZ$15="Deutsch","Details PP SN4",IF(Accueil!$AZ$15="Italiano",""))) -> Détails PP SN4
B27: =IF(Accueil!AZ15="Français","4. Qualité du sol",IF(Accueil!AZ15="Deutsch","4. Bodenqualität",IF(Accueil!AZ15="Italiano","4."))) -> 4. Qualité du sol | L27: =IF(Accueil!$AZ$15="Français","Détails PP SN8",IF(Accueil!$AZ$15="Deutsch","Details PP SN8",IF(Accueil!$AZ$15="Italiano",""))) -> Détails PP SN8
B28: =IF(Accueil!AZ15="Français","5. Poids volumique apparent humide",IF(Accueil!AZ15="Deutsch","5. Feuchtraumgewicht des Baugrundes",IF(Accueil!AZ15="Italiano","5."))) -> 5. Poids volumique apparent humide | L28: =IF(Accueil!$AZ$15="Français","Détails PP SN12",IF(Accueil!$AZ$15="Deutsch","Details PP SN12",IF(Accueil!$AZ$15="Italiano",""))) -> Détails PP SN12
B29: =IF(Accueil!AZ15="Français","6. Poids volumique déjaugé",IF(Accueil!AZ15="Deutsch","6. Raumgewicht unter Auftrieb",IF(Accueil!AZ15="Italiano","6"))) -> 6. Poids volumique déjaugé | L29: =IF(Accueil!$AZ$15="Français","Détails PP SN16",IF(Accueil!$AZ$15="Deutsch","Details PP SN16",IF(Accueil!$AZ$15="Italiano",""))) -> Détails PP SN16
B30: =IF(Accueil!AZ15="Français","7. Angle de frottement interne",IF(Accueil!AZ15="Deutsch","7. Winkel der inneren Reibung",IF(Accueil!AZ15="Italiano","7."))) -> 7. Angle de frottement interne | L30: =IF(Accueil!$AZ$15="Français","Détails PVC SN2",IF(Accueil!$AZ$15="Deutsch","Details PVC SN2",IF(Accueil!$AZ$15="Italiano",""))) -> Détails PVC SN2
B31: =IF(Accueil!AZ15="Français","8. Module de déformation vertical du sol",IF(Accueil!AZ15="Deutsch","8. Vertikales Verformungsmodul des Bodens",IF(Accueil!AZ15="Italiano","8."))) -> 8. Module de déformation vertical du sol | L31: =IF(Accueil!$AZ$15="Français","Détails PVC SN4",IF(Accueil!$AZ$15="Deutsch","Details PVC SN4",IF(Accueil!$AZ$15="Italiano",""))) -> Détails PVC SN4
B32: =IF(Accueil!AZ15="Français","9. Coefficient de pression du terrain",IF(Accueil!AZ15="Deutsch","9. Erddruckbeiwert",IF(Accueil!AZ15="Italiano","9."))) -> 9. Coefficient de pression du terrain | L32: =IF(Accueil!$AZ$15="Français","Détails PVC SN8",IF(Accueil!$AZ$15="Deutsch","Details PVC SN8",IF(Accueil!$AZ$15="Italiano",""))) -> Détails PVC SN8
B33: =IF(Accueil!AZ15="Français","10. Coefficient de flexion au tassement",IF(Accueil!AZ15="Deutsch","10. Setzungs-Durchbiegungsziffer",IF(Accueil!AZ15="Italiano","10."))) -> 10. Coefficient de flexion au tassement | L33: =IF(Accueil!$AZ$15="Français","Détails PE SN2",IF(Accueil!$AZ$15="Deutsch","Details PE SN2",IF(Accueil!$AZ$15="Italiano",""))) -> Détails PE SN2
B34: =IF(Accueil!AZ15="Français","11. Facteur de réduction de charges ",IF(Accueil!AZ15="Deutsch","11. Lastminderungsfaktor",IF(Accueil!AZ15="Italiano","11."))) -> 11. Facteur de réduction de charges | L34: =IF(Accueil!$AZ$15="Français","Détails PE SN4",IF(Accueil!$AZ$15="Deutsch","Details PE SN4",IF(Accueil!$AZ$15="Italiano",""))) -> Détails PE SN4
B35: =IF(Accueil!AZ15="Français","Théorie du silo (K1 et δ)",IF(Accueil!AZ15="Deutsch","Silotheorie (K1 und δ)")) -> Théorie du silo (K1 et δ) | L35: =IF(Accueil!$AZ$15="Français","Détails PE SN8",IF(Accueil!$AZ$15="Deutsch","Details PE SN8",IF(Accueil!$AZ$15="Italiano",""))) -> Détails PE SN8
B36: =IF(Accueil!AZ15="Français","12. Type de béton d'enrobage",IF(Accueil!AZ15="Deutsch","12. Hüllbeton",IF(Accueil!AZ15="Italiano","12."))) -> 12. Type de béton d'enrobage | L36: =IF(Accueil!$AZ$15="Français","Détails GF-UP SN2500",IF(Accueil!$AZ$15="Deutsch","Details GF-UP SN2500",IF(Accueil!$AZ$15="Italiano",""))) -> Détails GF-UP SN2500
B37: =IF(Accueil!AZ15="Français","13. Hauteur de couverture",IF(Accueil!AZ15="Deutsch","13. Höhe Erdamterial über Rohrscheitel",IF(Accueil!AZ15="Italiano","13."))) -> 13. Hauteur de couverture | L37: =IF(Accueil!$AZ$15="Français","Détails GF-UP SN5000",IF(Accueil!$AZ$15="Deutsch","Details GF-UP SN5000",IF(Accueil!$AZ$15="Italiano",""))) -> Détails GF-UP SN5000
B38: =IF(Accueil!AZ15="Français","14. Largeur de fouille",IF(Accueil!AZ15="Deutsch","14. Grabenbreite",IF(Accueil!AZ15="Italiano","14."))) -> 14. Largeur de fouille | L38: =IF(Accueil!$AZ$15="Français","Détails GF-UP SN10000",IF(Accueil!$AZ$15="Deutsch","Details GF-UP SN10000",IF(Accueil!$AZ$15="Italiano",""))) -> Détails GF-UP SN10000
B39: =IF(Accueil!AZ15="Français","15. Type de fouille",IF(Accueil!AZ15="Deutsch","15. Grabentyp",IF(Accueil!AZ15="Italiano","15."))) -> 15. Type de fouille | L39: =IF(Accueil!$AZ$15="Français","Détails GF-UP SN15000",IF(Accueil!$AZ$15="Deutsch","Details GF-UP SN15000",IF(Accueil!$AZ$15="Italiano",""))) -> Détails GF-UP SN15000
B40: =IF(Accueil!AZ15="Français","16. Eau souterraine",IF(Accueil!AZ15="Deutsch","16. Grundwasser",IF(Accueil!AZ15="Italiano","16."))) -> 16. Eau souterraine | L40: =IF(Accueil!$AZ$15="Français","Détails GF-UP SN16000",IF(Accueil!$AZ$15="Deutsch","Details GF-UP SN16000",IF(Accueil!$AZ$15="Italiano",""))) -> Détails GF-UP SN16000
B41: =IF(Accueil!AZ15="Français","Niveau d'eau souterraine",IF(Accueil!AZ15="Deutsch","Grundwasserspiegel",IF(Accueil!AZ15="Italiano",""))) -> Niveau d'eau souterraine | L41: =IF(Accueil!$AZ$15="Français","Détails GF-UP SN20000",IF(Accueil!$AZ$15="Deutsch","Details GF-UP SN20000",IF(Accueil!$AZ$15="Italiano",""))) -> Détails GF-UP SN20000
B42: =IF(Accueil!AZ15="Français","17. Eau à l'intérieur du tuyau",IF(Accueil!AZ15="Deutsch","17. Wasser im Rohr",IF(Accueil!AZ15="Italiano","17."))) -> 17. Eau à l'intérieur du tuyau
B43: =IF(Accueil!AZ15="Français","Pression ",IF(Accueil!AZ15="Deutsch","Druck",IF(Accueil!AZ15="Italiano",""))) -> Pression
B45: Dropdown
B46: =IF(Accueil!$AZ$15="Français","Pas de charge",IF(Accueil!$AZ$15="Deutsch","Keine Flächenlast",IF(Accueil!$AZ$15="Italiano",""))) -> Pas de charge
A47: αStrasse | B47: =IF(Accueil!$AZ$15="Français","charge surfacique",IF(Accueil!$AZ$15="Deutsch","Flächenlast",IF(Accueil!$AZ$15="Italiano",""))) -> charge surfacique
A49: hab | B49: =IF(Accueil!$AZ$15="Français","Pas de trafic",IF(Accueil!$AZ$15="Deutsch","Kein Verkehr",IF(Accueil!$AZ$15="Italiano",""))) -> Pas de trafic
B50: =IF(Accueil!$AZ$15="Français","Trafic routier",IF(Accueil!$AZ$15="Deutsch","Strassenverkehr",IF(Accueil!$AZ$15="Italiano",""))) -> Trafic routier
B51: =IF(Accueil!$AZ$15="Français","Bord de route",IF(Accueil!$AZ$15="Deutsch","Strassenrand",IF(Accueil!$AZ$15="Italiano",""))) -> Bord de route
B52: =IF(Accueil!$AZ$15="Français","Route d'importance secondaire",IF(Accueil!$AZ$15="Deutsch","Untergeordnete Strasse",IF(Accueil!$AZ$15="Italiano",""))) -> Route d'importance secondaire
B53: =IF(Accueil!$AZ$15="Français","Voie unique (ferroviaire)",IF(Accueil!$AZ$15="Deutsch","Eingleisig (Bahnverkehr)",IF(Accueil!$AZ$15="Italiano",""))) -> Voie unique (ferroviaire)
B54: =IF(Accueil!$AZ$15="Français","Voies multiples (ferroviaire)",IF(Accueil!$AZ$15="Deutsch","Mehrgleisig (Bahnverkehr)",IF(Accueil!$AZ$15="Italiano",""))) -> Voies multiples (ferroviaire)
B55: =IF(Accueil!$AZ$15="Français","Voie étroite (ferroviaire)",IF(Accueil!$AZ$15="Deutsch","Schmalspur (Bahnverkehr)",IF(Accueil!$AZ$15="Italiano",""))) -> Voie étroite (ferroviaire)
B57: =IF(Accueil!$AZ$15="Français","Avec",IF(Accueil!$AZ$15="Deutsch","Mit","")) -> Avec
B58: =IF(Accueil!$AZ$15="Français","Sans",IF(Accueil!$AZ$15="Deutsch","Ohne","")) -> Sans
B60: =IF(Accueil!$AZ$15="Français","Sol stable",IF(Accueil!$AZ$15="Deutsch","Normal standfest",IF(Accueil!$AZ$15="Italiano",""))) -> Sol stable
B61: =IF(Accueil!$AZ$15="Français","Roche/sol à consistance ferme",IF(Accueil!$AZ$15="Deutsch","Dicht gelagert bis fest",IF(Accueil!$AZ$15="Italiano",""))) -> Roche/sol à consistance ferme
B63: =IF(Accueil!$AZ$15="Français","OUI",IF(Accueil!$AZ$15="Deutsch","JA",IF(Accueil!$AZ$15="Italiano","SI"))) -> OUI
B64: =IF(Accueil!$AZ$15="Français","NON",IF(Accueil!$AZ$15="Deutsch","NEIN",IF(Accueil!$AZ$15="Italiano","NO"))) -> NON
B66: =IF(Accueil!$AZ$15="Français","Compactage par couches sans vérifications",IF(Accueil!$AZ$15="Deutsch","Verdichtung gegen Boden ohne Nachweis",IF(Accueil!$AZ$15="Italiano",""))) -> Compactage par couches sans vérifications
B67: =IF(Accueil!$AZ$15="Français","Bon compactage par couches avec vérifications",IF(Accueil!$AZ$15="Deutsch","Verdichtung gegen Boden mit Nachweis",IF(Accueil!$AZ$15="Italiano",""))) -> Bon compactage par couches avec vérifications
B68: =IF(Accueil!$AZ$15="Français","Compactage faible ou inexistant",IF(Accueil!$AZ$15="Deutsch","Geringe bis keine Verdichtung",IF(Accueil!$AZ$15="Italiano",""))) -> Compactage faible ou inexistant
B70: =IF(Accueil!$AZ$15="Français","Verticale (U)",IF(Accueil!$AZ$15="Deutsch","Vertikal (U)",IF(Accueil!$AZ$15="Italiano",""))) -> Verticale (U)
B71: =IF(Accueil!$AZ$15="Français","Talutée (V)",IF(Accueil!$AZ$15="Deutsch","Abgeböscht (V)",IF(Accueil!$AZ$15="Italiano",""))) -> Talutée (V)
B73: =IF(Accueil!$AZ$15="Français","Avec eau souterraine",IF(Accueil!$AZ$15="Deutsch","Mit Grundwasser",IF(Accueil!$AZ$15="Italiano",""))) -> Avec eau souterraine
B74: =IF(Accueil!$AZ$15="Français","Sans eau souterraine",IF(Accueil!$AZ$15="Deutsch","Ohne Grundwasser",IF(Accueil!$AZ$15="Italiano",""))) -> Sans eau souterraine
B76: =IF(Accueil!$AZ$15="Français","Tuyau vide",IF(Accueil!$AZ$15="Deutsch","Leeres Rohr",IF(Accueil!$AZ$15="Italiano",""))) -> Tuyau vide
B77: =IF(Accueil!$AZ$15="Français","Tuyau plein",IF(Accueil!$AZ$15="Deutsch","Volles Rohr",IF(Accueil!$AZ$15="Italiano",""))) -> Tuyau plein
B78: =IF(Accueil!$AZ$15="Français","Tuyau sous pression",IF(Accueil!$AZ$15="Deutsch","Überdruck über Scheitel",IF(Accueil!$AZ$15="Italiano",""))) -> Tuyau sous pression
B80: Makro
B81: =IF(Accueil!AZ15="Français","Retour",IF(Accueil!AZ15="Deutsch","Zurück",IF(Accueil!AZ15="Italiano",""))) -> Retour
B82: =IF(Accueil!AZ15="Français","Modifications",IF(Accueil!AZ15="Deutsch","Einstellungen",IF(Accueil!AZ15="Italiano",""))) -> Modifications
B83: =IF(Accueil!AZ15="Français","Aide",IF(Accueil!AZ15="Deutsch","Hilfe",IF(Accueil!AZ15="Italiano",""))) -> Aide
B84: =IF(Accueil!AZ15="Français","Calculs",IF(Accueil!AZ15="Deutsch","Berechnungen",IF(Accueil!AZ15="Italiano",""))) -> Calculs
B86: Kommentare
B87: =IF(Accueil!AZ15="Français","Pour les routes d'importances secondaires, une valeur de 0.65 est programmée",IF(Accueil!AZ15="Deutsch","Für die untergeordneten Strassen ist ein Wert von 0.65 programmiert",IF(Accueil!AZ15="Italiano",""))) -> Pour les routes d'importances secondaires, une valeur de 0.65 est programmée
B88: =IF(Accueil!AZ15="Français","Pour les voies étroites, une valeur de 1.0 est programmée",IF(Accueil!AZ15="Deutsch","Für die Schmalspur ist ein Wert von 1.0 programmiert",IF(Accueil!AZ15="Italiano",""))) -> Pour les voies étroites, une valeur de 1.0 est programmée
B90: Legende
B91: =IF(Accueil!AZ15="Français","Hypertexte vers la feuille d'aide",IF(Accueil!AZ15="Deutsch","Hypertext zum Hilfeblatt",IF(Accueil!AZ15="Italiano",""))) -> Hypertexte vers la feuille d'aide
B92: =IF(Accueil!AZ15="Français","Cases à remplir",IF(Accueil!AZ15="Deutsch","Zellen zum ausfüllen",IF(Accueil!AZ15="Italiano",""))) -> Cases à remplir
B94: Hypertexte
B95: =CELL("filename",Données!P6) -> https://hessoit-my.sharepoint.com/personal/renaud_joliat_hes-so_ch/Documents/Bureau/2026 VSA/[aideauchoixdesconduites_vf_2_rev260125.xlsm]Données | C95: =LEN(B95) -> 145
B96: =MID(CELL("filename",Données!P6),SEARCH("]",CELL("filename",Données!P6))+1,31) -> Données | C96: =LEN(B96) -> 7
B97: =LEFT(B95,C95-C96) -> https://hessoit-my.sharepoint.com/personal/renaud_joliat_hes-so_ch/Documents/Bureau/2026 VSA/[aideauchoixdesconduites_vf_2_rev260125.xlsm] | C97: =LEN(B97) -> 138
B98: =RIGHT(B97,LEN(B97)-LEN(LEFT(B97,FIND("[",B97)))+1) -> [aideauchoixdesconduites_vf_2_rev260125.xlsm]
A100: 'Aide (F)'!Tuyau | B100: =_xlfn.CONCAT($B$98,A100) -> [aideauchoixdesconduites_vf_2_rev260125.xlsm]'Aide (F)'!Tuyau
A101: 'Aide (D)'!Rohr | B101: [aideauchoixdesconduites_vf_2_rev260125.xlsm]'Aide (D)'!Rohr
A102: 'Aide (F)'!Charge | B102: [aideauchoixdesconduites_vf_2_rev260125.xlsm]'Aide (F)'!Charge
A103: 'Aide (D)'!Flächenlast | B103: [aideauchoixdesconduites_vf_2_rev260125.xlsm]'Aide (D)'!Flächenlast
A104: 'Aide (F)'!Trafic | B104: [aideauchoixdesconduites_vf_2_rev260125.xlsm]'Aide (F)'!Trafic
A105: 'Aide (D)'!Verkehr | B105: [aideauchoixdesconduites_vf_2_rev260125.xlsm]'Aide (D)'!Verkehr
A106: 'Aide (F)'!Qualité | B106: [aideauchoixdesconduites_vf_2_rev260125.xlsm]'Aide (F)'!Qualité
A107: 'Aide (D)'!Boden | B107: [aideauchoixdesconduites_vf_2_rev260125.xlsm]'Aide (D)'!Boden
A108: 'Aide (F)'!Caractéristiques | B108: [aideauchoixdesconduites_vf_2_rev260125.xlsm]'Aide (F)'!Caractéristiques
A109: 'Aide (D)'!Untergrundscharakteristiken | B109: [aideauchoixdesconduites_vf_2_rev260125.xlsm]'Aide (D)'!Untergrundscharakteristiken
A110: 'Aide (F)'!Pression | B110: [aideauchoixdesconduites_vf_2_rev260125.xlsm]'Aide (F)'!Pression
A111: 'Aide (D)'!Erddruckbeiwert | B111: [aideauchoixdesconduites_vf_2_rev260125.xlsm]'Aide (D)'!Erddruckbeiwert
A112: 'Aide (F)'!Tassement | B112: [aideauchoixdesconduites_vf_2_rev260125.xlsm]'Aide (F)'!Tassement
A113: 'Aide (D)'!Setzung | B113: [aideauchoixdesconduites_vf_2_rev260125.xlsm]'Aide (D)'!Setzung
A114: 'Aide (F)'!Réduction | B114: [aideauchoixdesconduites_vf_2_rev260125.xlsm]'Aide (F)'!Réduction
A115: 'Aide (D)'!Lastminderung | B115: [aideauchoixdesconduites_vf_2_rev260125.xlsm]'Aide (D)'!Lastminderung
A116: 'Aide (F)'!Largeur | B116: [aideauchoixdesconduites_vf_2_rev260125.xlsm]'Aide (F)'!Largeur
A117: 'Aide (D)'!Grabenbreite | B117: [aideauchoixdesconduites_vf_2_rev260125.xlsm]'Aide (D)'!Grabenbreite
A118: 'Aide (F)'!Enrobage | B118: [aideauchoixdesconduites_vf_2_rev260125.xlsm]'Aide (F)'!Enrobage
A119: 'Aide (D)'!Hüllbeton | B119: [aideauchoixdesconduites_vf_2_rev260125.xlsm]'Aide (D)'!Hüllbeton
A120: 'Aide (F)'!Souterraine | B120: [aideauchoixdesconduites_vf_2_rev260125.xlsm]'Aide (F)'!Souterraine
A121: 'Aide (D)'!Grundwasser | B121: [aideauchoixdesconduites_vf_2_rev260125.xlsm]'Aide (D)'!Grundwasser
A122: 'Aide (F)'!Eau | B122: [aideauchoixdesconduites_vf_2_rev260125.xlsm]'Aide (F)'!Eau
A123: 'Aide (D)'!Wasser | B123: [aideauchoixdesconduites_vf_2_rev260125.xlsm]'Aide (D)'!Wasser

Sheet Limitations (D)
I4: PROGRAMM ZUR AUSWAHL VON KANALISATIONSROHREN
I6: Nutzungsbedingungen
I9: Das Programm ist nur für die statische Bemessungen der Rohren bestimmt. Die hydraulischen Berechnungen werden nicht berücksichtigt.
I10: Insofern nicht spezifisch erwàhnt, gelten die Grenzen der SIA190:2017.
I11: Der Entwickler dieses Statikprogrammes, übernimmt keine Verantwortung für die erhaltenen Resultate. | AX11: =IF(Accueil!AQ134="Français","Retour",IF(Accueil!AQ134="Deutsch","Zurück",IF(Accueil!AQ134="Italiano",""))) -> FALSE
I14: Einschränkungen des Programms
I18: Die behandelten Materialien sind: Beton (B), Polypropylen (PP), PolyvinylchloridPVC), Duktiles Gusseisen (GGG), Steinzeug (STZ), Ungesättigte Polyester (glasfaserverstärkt) (GF-UP) und
I19: Polyethylen (PE).
I21: Stahlbeton (STB) wird nicht behandelt.
I23: Das Programm berechnet nur kreisförmige Rohre.
I25: Das Programm kontrolliert nicht das Tragverhalten der Rohre in Längsrichtung.
I27: Das Programm kontrolliert nicht die Tragfähigkeit und Setzungsverhalten des Untergrundes.
I29: Das Programm kontrolliert nicht die Böschungsstabilität.
I31: Das Programm beachtet die Bauphase nicht, welche auch ausschlaggebend sein kann.
I33: Die Wanddicke des fiktiven Rohres für die weichen Rohre im Normalverlegeprofil 4 ist limitiert von 150mm bis 500mm.
I34: Die Iteration in diesem Programm werden in 5mm Schritten durchgeführt.
I36: Die Beton- (B) und Steinzeugrohre (STZ) können in allen Verlegeprofile verlegt werden, die Kunststoff- und GF-UP Rohre hingegen können nur in den Verlegeprofile 1 und 4 verlegt werden.
I37: Die duktilen Gussrohre (GGG) können nur im Verlegeprofil 1, mit einem Auflagewinkel von αu = 30°, verlegt werden.
I39: Um zu verhindern, dass die Kunstoff- und die glasfaserverstärkten Rohre (GF-UP) ein steifes Verhalten aufweisen (Nachweise nicht mehr machbar -> Bruchlastversuche),
I40: müssen die Rohre in nicht bindige oder schwach bindige Böden verlegt werden (siehe Tabelle 1 der Norm SIA190:2017).
I43: Das Programm rechnet mit den Formeln des Dokumentes "Rohrstatik".
I45: Die Formeln für die Tragsicherheit und die Überprüfung der Verformungen sind für die steifen Kunststoffrohre nicht mehr anwendbar (SFkurz > 0.1).
I46: Es müssen Versuche durchgeführt werden um Resultate zu erhalten.
I48: Die Berechnungen stützen sich auf die vom Markt erhältlichen Rohren ab. Wenn ein Innendurchmesser eingegeben wird, rechnet das Programm mit diesem, oder den nächst Grösseren.
I50: Die minimale Überdeckungshöhe für den Strassenverkehr ist 1m und für den Bahnverkehr 2m (OK Schiene).
I52: Der Lastminderungsfaktor λmin darf nicht angewendet werden, wenn das Rohr sich unter einer Strasse oder Eisenbahnlinie befindet.
I54: Annahmen des Programms
I57: Die Werkstoffkennwerte der Norm SIA190 :2017 werden angewendet.
W75: Tabelle 1 (Tabelle 2 SIA190 :2017 Werkstoffkennwerte)
W87: Tabelle 2 (Tabelle 3 SIA190 :2017 Werkstoffkennwerte)
I89: Die Dimensionen der Rohre wurden mit verschiedenen Lieferanten verglichen. Die Dimensionen befinden sich im Anhang 9.1 der Bedienungsanleitung und wurden programmiert.
I92: Obwohl der Artikel 2.4.6 der Norm SIA190 :2017 sagt, dass der minimale Nominaldurchmesser (DN) 250mm ist, rechnet das Programm mit Nominaldurchmetern von 200mm bis 1500mm.
I95: Folgende Betonklassen werden für den Hüllbeton in betracht gezogen: C16/20; C20/25; C25/30;C30/37
I97: Das Elastizitätsmodul des Hüllbetons wurde mit 20'000 N/mm2 programmiert.
I99: Die Mindestdicke des Hüllbetons ist auf 150mm fixiert und muss die Zugkraft für die steifen Rohre aufnehmen können.
I101: Das Lastmodell für den Strassenverkehr ist das Lastmodell 1 nach der Norm SIA261 :2014 Artikel (10.2.2).
I103: Das Lastmodell für den Bahnverkehr ist das Lastmodell 1 nach der Norm SIA261 :2014 (Artikel 11.2.1).
I105: Für die Schmalspuren (Bahnverkehr), rechnet das Programm mit der Vereinfachung der Norm SIA190 :2017 (Artikel 4.2.3.11)
I106: und reduziert um 50% die Last des Lastmodells 1.
I108: Die Lastbeiwerte α für den Verkehr sind manuel einzutragen, mit Ausnahme der Untergeordneten Strassen (0.65) und für die Schmalspuren (1.0),
I109: bei diesen beiden Fällen ist der Lastbeiwert schon programmiert.
I111: Die Verkehrslasten sind nach den Tabellen C.2, C.3 und C.4 des Anhangs der Norm SIA190 :2017 programmiert.
I112: Für die Höhen, welche in den Tabellen nicht gegeben sind, wurden die Lasten linear interpoliert.
I114: Der Auftrieb wird mit dem Höchsten Niveau des Grundwasserspiegels berechnet.
I115: Das Programm überprüft nicht die Phase des betonierens.
I117: Die Konventionen für die Anwendung der Formeln sind wie im Dokument "Rohrstatik" verwendet.
I118: Folgende Abbildung veranschaulicht die Konvention für den Winkel φ in Grad. Die Tabelle zeigt die Vorzeichen für die internen Kräfte auf.
I128: Der Stützdruckbeiwert KSt für die steifen Rohre im Verlegeprofil U4/V4 ist trotz des Artikels 4.2.9.3 der Norm SIA190 :2017 mit 0.8 programmiert.
I129: Dies aus dem Grund, dass das Profil 4 günstiger ist, als das Verlegeprofil 3.
I131: Der Stützfaktor k ist mit dem Wert 1.0 im Programm eingefügt.
I133: Die Ausladungsziffer C3 wird mit 1.0 für die weichen Rohre im Verlegprofil 4 berücksichttigt.
I135: Nur 5% der Bemessungslast wird von den weichen Rohren aufgenommen, wenn diese komplett mit Beton umhüllt sind.
I136: Der Rest wird durch das "fiktive" Rohr aus Beton aufgenommen.
I138: Wenn die weichen Rohre im Verlegeprofil der Einwirkung des Grundwassers ausgesetzt sind, wird eine initiale Deformation x/d von 0.02 angenommen.

Sheet Limitations (F)
I4: PROGRAMME D'AIDE AU CHOIX DES CONDUITES
I6: Conditions d'utilisation
I9: Le programme est seulement destiné pour le dimensionnement statique des conduites. Le calcul hydraulique n’est pas considéré.
I10: Sauf mentionner différemment, les délimitations de la norme SIA190 :2017 s’appliquent.
I11: Le créateur de ce programme n’assume aucune responsabilité sur les résultats obtenus.
I14: Limitations du logiciel
I18: Les matériaux traités sont : Béton (B), Polypropylène (PP), Polychlorure de vinyle (PVC), Fonte dutcile (GGG), Béton armé (STB), Grès (STZ), Polyester insaturé (GF-UP) et le
I19: Polyéthylène insaturé (PE).
I21: Le matériau non traité est le Béton armé (STB)
I23: Le programme calcule que les tuyaux circulaires.
I25: Le logiciel ne vérifie pas le comportement des tuyaux dans le sens longitudinal.
I27: Le logiciel ne vérifie pas la capacité portante et les tassements du sol.
I29: Le logiciel ne vérifie pas la stabilité des pentes pour les fouilles.
I31: Le logiciel ne considère pas la phase de chantier, qui peut aussi être déterminant.
I33: L’épaisseur du tuyau fictif pour les tuyaux souples posé dans le profil d’enrobage 4 est limitée de 150mm à 500mm.
I34: Les itérations dans ce logiciel sont faites part pas de 5mm.
I36: Les tuyaux en béton (B) et grès (STZ) peuvent être posés dans tous les profils d’enrobage. Les tuyaux en plastique (PP, PVC et PE) et GF-UP peuvent qu’être posés
I37: dans les profils d’enrobage 1 et 4 et les tuyaux en fonte ductile (GGG) dans le profil d'enrobage 1.
I39: Le logiciel travaille avec les formules du document technique « Rohrstatik ».
I41: Les formules pour la sécurité structurale et la vérification de la déformation ne sont plus valables pour les tuyaux en plastique et GF-UP rigide (SFcourt > 0.1).
I42: Il est nécessaire de faire des essais de rupture pour obtenir un résultat.
I44: Les calculs dépendent des tuyaux existants. Si on introduit un diamètre intérieur, le logiciel calcule avec ce diamètre, ou il prend le prochain (plus grand).
I46: La hauteur de couverture minimale pour le cas du trafic routier est de 1m et pour le trafic ferroviaire de 2m (depuis le sommet des rails).
I48: Les tuyaux en fonte ductile (GGG) peuvent être que poser dans le profil d’enrobage 1, avec un angle d’appui αu = 30°.
I50: Afin d’éviter que les tuyaux en plastique et GF-UP présentent un comportement rigide (vérification par calcul plus valable -> essais de rupture),
I51: il faut poser les tuyaux dans des sols non cohésifs ou faiblement cohésifs (voir tableau 1 de la norme SIA190 :2017).
I53: Le coefficient de réduction de charge sur le tuyau λmin n’est pas applicable quand le tuyau se trouve sous une route ou une voie ferrée.
I55: Hypothèses du logiciel
I58: Les caractéristiques des matériaux de la norme SIA190 :2017 ont été appliquées.
W76: Tableau 1 (tableau 2 SIA190 :2017 caractérisitques des tuyaux)
V88: Tableau 2 (tableau 3 SIA190 :2017 caractérisitques des tuyaux GF-UP)
I90: Les dimensions des tuyaux ont été comparées avec divers fournisseurs. Les dimensions qui se trouvent dans l’annexe 9.1
I91: du mode d'emploi ont été programmées.
I93: Malgré l’article 2.4.6 de la norme SIA190 :2017 dit que le diamètre nominal (DN) minimal pour un système séparatif est de 250mm et pour un système unitaire,
I94: le programme traite les tuyaux avec un diamètre nominal de 200mm à 1500mm (avec message d'avertissement).
I96: Les types de béton d’enrobage considéré sont : C16/20; C20/25; C25/30;C30/37
I98: Le module d’élasticité du béton d’enrobage a été programmé à 20’000N/mm2.
I100: L’épaisseur minimale de l’enrobage est fixée à 150mm et doit être capable de reprendre la force de traction pour les tuyaux rigides.
I102: Le modèle de charges pour le trafic routier est le modèle de charge 1 selon la SIA261 :2014 [2] articles (10.2.2).
I104: Le modèle de charges pour le trafic ferroviaire est le modèle de charge 1 de la norme SIA261 :2014 (article 11.2.1).
I106: Pour la charge des voies étroites, le logiciel calcule avec la simplification proposée dans la norme SIA190 :2017 (article 4.2.3.11)
I107: et réduis de 50% la charge du modèle 1.
I109: Les coefficients de charge α pour le trafic sont à introduire manuellement, sauf pour les routes d’importances secondaires (0.65)
I110: et les voies étroites (1.0). Dans ces deux cas, le coefficient est déjà programmé.
I112: Les charges de trafic sont calculées d’après les tableaux dans l’annexe C.2, C.3 et C.4 de la norme SIA190 :2017.
I113: Les charges sont interpolées linéairement pour les hauteurs qui ne sont pas indiquées dans ces annexes.
I115: La poussée d’Archimède est calculée par rapport au plus haut niveau d’eau souterraine.
I116: Le logiciel ne vérifie pas la poussée lors de la phase de bétonnage.
I118: Les conventions pour l’application des formules sont comme mentionnées dans le document technique « Rohrstatik ».
I119: L’image ci-dessous montre la convention pour l’angle φ en degré et le tableau ci-dessous montre la convention des signes pour les efforts internes.
I129: Le facteur de pression d’appui KSt pour les tuyaux rigides posés dans le profil d’enrobage U4/V4 est malgré l’article 4.2.9.3 de la norme SIA190 :2017
I130: programmé à 0.8. Ceci, car le profil 4 est plus favorable que le profil 3.
I132: Facteur de voilement k est considéré égale à 1 pour les tuyaux souples.
I134: Le Coefficient de décharge C3 est considéré égal à 1.0 pour le profil d’enrobage 4 des tuyaux souples (plastiques et GF-UP).
I136: Que 5% de la charge de dimensionnement est reprise par les tuyaux souples lors qu’ils sont complètement enrobés de béton.
I137: Le reste est repris par le tuyau en béton « fictif ».
I139: Lors que le tuyau souple dans le profil d’enrobage 4 est soumis à l’action de l’eau souterraine, une déformation initiale x/d de 0.02 est admise.

Sheet Aide (D)
K3: PROGRAMM ZUR AUSWAHL VON LEITUNGEN
K5: Hilfe zur Dateneingabe
K8: 1. Rohr
K9: Eingabe des Innendurchmessers, welcher aus den hydraulischen Berechnungen benötigt wird.
K11: 2. Einwirkungen
K13: 2.1 Flächenlast
K14: 2.1.1 Keine Last
K15: Wenn keine Flächenlast vorhanden ist, muss in der Dropdown Liste der Fall "Keine Flächenlast" ausgewählt werden.
K17: 2.1.2 Flächenlast
K18: Die Flächenlast q ist in kN/m2 einzutragen. Wenn die Flächenlast über dem Rohrscheitel liegt (Zentrum gleich Punkt P), sind x und y gleich 0. Es ist möglich
K19: eine Flächenlast zu berücksichtigen, welche sich nicht an der OK Terrain befindet. Dafür muss ein Wert in t eingegeben werden.
K35: 2.2 Verkehr (Strasse und Eisenbahn)
K36: 2.2.1 Kein Verkehr
K37: Wenn kein Verkehr vorhanden ist, muss in der Dropdown Liste der Fall "Kein Verkehr" ausgewählt werden.
K39: 2.2.2 Verkehr
K40: Um die Last auf den Rohrscheitel für alle Strassenverkehrsfälle zu bestimmen, wird das Lastmodell 1 der SIA261:2014 Norm angewendet. Die Empfehlungen
K41: der SIA190:2017 Norm [4.2.3.9] für den Koeffizienten α, ist folgender:
M43: Strassenverkehr | R43: Strassenrand | Y43: Untergeordnete Strasse
K44: α | M44: 0.9 | R44: 0.9 | Y44: 0.65 (programmiert)
K46: Wenn das Rohr sich das Rohr unterhalb einer Radachse in der Strassenmitte befindet, wird der Fall "Strassenverkehr" angewendet. Falls sich das Rohr am Strassenrand befindet,
K47: wird der Fall "Strassenrand" angewendet. Bei einer Strasse mit wenig Verkehr und einer Breite kleiner als 6m, wird der Fall "Untergeordnete Strasse" angwendet.
K48: In der Nähr von Schwellen oder Ähnlichem ist mit einem Stosszuschlag Ψ zu rechnen. Für alle Fälle wird der Faktor mit der Überdeckungshöhe kleiner, aber immer grösser als 1.
K51: Ψ | M51: 1.25 - 0.1*(H - 0.5) ≥ 1
K53: 2.2.3 Zugverkehr
K54: Um die Last auf den Rohrscheitel für alle Zugverkehrsfälle zu bestimmen, wird das Lastmodell 1 der SIA261:2014 Norm angewendet. Die Empfehlungen
K55: der SIA190:2017 Norm [4.2.3.13] für den Koeffizienten α, ist folgender:
M57: Eingleisig | R57: Mehrgleisig | Y57: Schmalspur
K58: α | M58: 1.33 | R58: 1.33 | Y58: 1.0 (programmiert)
K60: Der Fall "Schmalspur" beinhaltet auch Strassenbahnen und Agglomerationsverkehr.Das gleiche Lastmodell (1) wird verwendet, aber nach der SIA190:2017 Nrom [4.2.3.11] wird die Last
K61: auf 50% reduziert.
K63: 3. Terrain
K65: 3.1 Untergrundqualität
K66: Nach der SIA190:2017 Norm [5.3.2.3] beeinflusst die Qualität des Untergrunds die Dicke der unteren Bettungsschicht. In der Dropdown Liste muss zwischen dichten Boden oder Fels/
K67: Boden mit fester Konsistenz. Die Minimaldicke beträgt 150mm für alle Bodentypen.
K75: 3.2 Untergrundscharakteristiken
K76: Wenn die Untergrundcharakteristiken bekannt sind, sind diese Werte in die Felder 5 - 8 einzutragen.Falls die Charateristiken nicht bekannt sind, können die Werte der Tabelle 1 der
K77: SIA190:2017 Norm eingetragen werden:
K96: 3.3 Erddruckbeiwert K
K97: Der Erdruck für die steifen Rohre wird mit dem Koeffizienten K berechnet. Dieser Koeffizient wird durch die Proctordichte definiert und ist in der SIA190:2017 Norm
K98: [4.2.9.3] tabelle 9 beschrieben.
K105: 3.4 Setzungs-Durchbiegungsziffer C2
K106: Die Setzungsdurchbiegungsziffer C2 hängt von der Art des Baugrundes ab und kann von 0-1 variieren. Die tabelle 6 der SIA190:2017 Norm schreibt folgende Werte vor:
K116: 3.5 Lastminderungsfaktor λmin
K117: Dank Reibungskräften im Boden bzw. an vorhandenen Grabenwänden, können die permanenten Lasten für die weichen Rohre reduziert werden. Diese Lastreduktion kann nur in betracht
K118: gezogen werden, wenn die Schubübertragung auf die Dauer gewährleistet werden kann. Nach der SIA190:2017 [4.2.6.2.1 und 4.2.6.2.2] müssen folgende Bedingungen erfüllt werden,
K119: um die Lastreduktion anzuwenden:
K121: 1. Genügend mineralische Überdeckung
K122: 2. E1 ≤ EBh
K123: 3. Verdichtungsgrad der Grabenverfüllung DPr > 90%
K124: 4. Die Schubübertragung seitlich neben und oberhalb des Rohrs muss auf die volle Höhe gewährleistet sein.
K125: 5. Rohr befindet sich nicht unter einer Strasse oder Eisenbahnlinie
K127: Normalerweise ist λmin nicht zu berücksichtigen und der Wert ist im Programm mit 1 zu berücksichtigen. Dafür muss in
K128: der Dropdown Liste "NEIN" gewählt werden.
K129: Falls "JA" gewählt wird, sind folgende Felder auszufüllenr: 1. Bodenverdichtung, 2. Erddruckbeiwert K1
K130: und 3. Grabenbreite B.
K132: Bodenverdichtung und K1
K133: Die Tabelle 8 der SIA190:2017 Norm schreibt den Wert K1 in Funktion der Bodenverdichtung vor.
K142: Grabenbreite
K143: Die Tabelle 11 der SIA190:2017 Norm schreibt die Minimalgrabenbreite B in Funktion der Grabentiefe vor. Achtung, die Grabentiefe ist nicht die Überdeckungshöhe!
K151: 3.6 Hüllbeton
K152: Im Hüllbeton entsteht eine Zugkraft, welche durch diesen aufgenommen werden muss. Es stehen mehrere Betonsorten zur Verfügung, die in der Dropdown Liste ausgewählt werden können.
K153: Folgende Tabelle zeigt auf, welche Zugspannung pro Betonsorte aufgenommen werden kann.
M155: C16/20 | Q155: C20/25 | U155: C25/30 | Y155: C30/37
K156: σZug | M156: -0.3 | Q156: -0.35 | U156: -0.4 | Y156: -0.45 | AC156: N/mm2
K158: 4. Graben
K160: 4.1 Höhe Erdmaterial über Rohrscheitel
K161: Die Überdeckungshöhe H ist die Distanz in Meter zwischen OK Terrain und dem Rohrscheitel (aussen).
K163: 4.2 Grabenbreite
K164: *Siehe Punkt 3.5 für die Minimalbreiten nach der SIA190:2107 Norm.
K166: 4.3 Grabentyp
K167: Es ist möglich zwischen vertikalen (U) und abgeböschten (V) Graben zu unterscheiden. Wenn λmin in Betracht gezogen wird, ist es nötig den Unterschied zu machen. Wenn die Last-
K168: minderung nicht berücksichtigt wird, hat dieses Feld keinen Einfluss auf die Berechnung. Wenn die abgeböschte Variante gewählt wirtd, muss der Winkel β bezüglich der
K169: Horizontalen eingegeben werden,
K171: 5. Wasser
K173: 5.1 Grundwasserspiegel
K174: Beim Grundwasser bestehen 3 Möglichkeiten:
K175: 1. Kein Grundwaser-> In der Dropdown Liste "Ohne Grundwasser" auswählen.
K176: Sonst "Mit Grundwasser" auswählen.
K177: 2. Wasser höher als OK Terrain -> Negativwert eintragen.
K178: 3. Wasser tiefer als OK Terrain -> Positiver Wert eintragen.
K180: 5.2 Wasser im Rohr
K181: Beim Wasser im Rohr bestehen auch 3 Möglichkeiten:
K182: 1. Pas d'eau à l'intérieur -> Leeres Rohr
K183: 2. Volles Rohr -> Bei Grundwasservorkommen, wird der Auftrieb annuliert
K184: 3. Überdruck über Scheitel -> Überdruck pEI von der Rohrwandachse im Rohrscheitel ist einzutragen. (Positiver Wert)

Sheet Aide (F)
K3: PROGRAMME D'AIDE AU CHOIX DES CONDUITES
K5: Aide pour l'introduction des données
K8: 1. Tuyau
K9: Introduire le diamètre intérieur qui découle du calcul hydraulique en mm
K11: 2. Actions
K13: 2.1 Charge surfacique
K14: 2.1.1 Pas de charge
K15: Quand il y a pas de charge, il faut choisir dans le menu déroulant: Pas de charge.
K17: 2.1.2 Charge surfacique
K18: La charge surfacique q est à introduire en kN/m2. Si la charge surfacique est parfaitement centrée sur le tuyau (centre confondue avec P), x et y sont égal à 0. Il est possible.
K19: de considérer une charge de fondation, qui ne se trouve pas en surface. Cette valeur est à introduire pour t.
K35: 2.2 Trafic (routier et ferroviaire)
K36: 2.2.1 Pas de trafic
K37: Quand il y a pas de trafic, il faut choisir dans le menu déroulant: Pas de trafic.
K39: 2.2.2 Trafic routier
K40: Le modèle de charge 1 selon la norme SIA261:2014 est utilisé pour tous les cas de trafic routier, afin de déterminer la charge sur le sommet du tuyau. Les recommandations
K41: selon la norme SIA190:2017 [4.2.3.9] pour le coefficient de charge α, sont les suivants:
M43: Trafic routier | R43: Bord de route | Y43: Route d'importance secondaire
K44: α | M44: 0.9 | R44: 0.9 | Y44: 0.65 (programmé)
K46: Le cas "Trafic routier" représente le cas ou le tuyau se trouve sous l'axe d'une roue au milieu de la route. Le cas "bord de route" représente le cas ou le tuyau se trouve au bord
K47: de la route. Finalement, le cas "route d'importance secondaire" représente une route avec peu de trafic et une largeur de chaussée inférieure à 6m.
K48: Près de seuils ou d'autres obstacles similaires, le facteur dynamique Ψ est à activer. Pour tous les cas ce facteur diminue avec la hauteur de recouvrement du tuyau, mais est
K49: toujours plus grand que 1.
K51: Ψ | M51: 1.25 - 0.1*(H - 0.5) ≥ 1
K53: 2.2.3 Trafic ferroviaire
K54: Le modèle de charge 1 selon la norme SIA261:2014 est utilisé pour tous les cas de trafic ferroviaire, afin de déterminer la charge sur le sommet du tuyau. Les recom-
K55: mendations selon la norme SIA190:2017 [4.2.3.13] pour le coefficient de charge α, sont les suivants:
M57: Voie unique | R57: Voies multiples | Y57: Voie étroite
K58: α | M58: 1.33 | R58: 1.33 | Y58: 1.0 (programmé)
K60: Le cas "Voie étroite", couvre aussi les tramways et le trafic d'agglomération. Le même modèle de charge est utilisé (1), mais selon la SIA190:2017 [4.2.3.11] la charge est ré-
K61: duite à 50%.
K63: 3. Terrain
K65: 3.1 Qualité du sol
K66: Selon la norme SIA190:2017 [5.3.2.3], la qualité du sol influence le calcul de l'épaisseur du lit inférieur. Il faut choisir dans le menu déroulant entre sol stable ou Roche/
K67: sol à consistance ferme. L'épaisseur minimale du lit de pose inférieur est fixée à 150mm pour tous les types de sols.
K75: 3.2 Caractéristiques du terrain
K76: Si les caractéristiques du terrain sont connues, ces valeurs sont à introduire (case 5 à 8). Si les caractéristiques ne sont pas connues, voici le Tableau 1 de la norme
K77: SIA190:2017 qui donne les valeurs en fonction du type de sol:
K96: 3.3 Coefficient de pression du terrain K
K97: Pour les tuyaux rigides, la pression du terrain est calculée avec le coefficient K. Ce coefficient dépend de la densité de Proctor et est défini selon la norme SIA190:2017
K98: [4.2.9.3] Tableau9.
K105: 3.4 Coefficient de flexion au tassement C2
K106: Le coefficient de flexion au tassement C2 dépend du type de sol et peut varier de 0 à 1. Le tableau 6 de la norme SIA190:2017 donne les valeurs suivantes:
K116: 3.5 Facteur de réduction de charge λmin
K117: Grâce aux forces de frottement du sol contre les parois de tranchées ou le sol avoisinant, les charges permanentes peuvent être réduites pour les tuyaux souples.Cette réduction
K118: de charge est qu'envisageable, si ces forces de frottement sont conservées à long terme. Selon SIA190:2017 [4.2.6.2.1 et 4.2.6.2.2] les conditions suivantes doivent être remplies.
K119: pour pouvoir appliquer la réduction de charge:
K121: 1. Couverture minérale suffisante sur le tuyau
K122: 2. E1 ≤ EBh
K123: 3. Degré de compactage du remblayage DPr > 90%
K124: 4. Transfert de cisaillement autour et par-dessus le tuyau doivent être conservées à long terme sur toute la hauteur
K125: 5. Tuyau se situe pas sous une route ou une voie ferrée
K127: Généralement λmin est à pas à considérer est la valeur dans le logiciel est considérée =1. Pour ceci, choisir "NON"
K128: dans le menu déroulant.
K129: Si "OUI" est choisi, les suivantes cases sont à remplir: 1. Compactage du sol, 2. Coefficient de pression du terrain K1
K130: et 3. Largeur de fouille B.
K132: Compactage du sol et K1
K133: Le tableau 8 de la norme SIA190:2017 indique la valeur de K1 en fonction du compactage du sol.
K142: Largeur de fouille
K143: Le tableau 11 de la norme SIA190:2017 indique la largeur de fouille minimale B en fonction de la profondeur de fouille. Attention, la profondeur de fouille n'est pas la hauteur de
K144: couverture!
K151: 3.6 Type de béton d'enrobage
K152: Il résulte une force de traction dans le béton d'enrobage, qui doit être repris par ceci. Il y a plusieurs types de béton à choix pour l'enrobage. Il faut choisir un type dans le menu
K153: tableau suivant montre la contrainte de traction qui peut être repris par type de béton.
M155: C16/20 | Q155: C20/25 | U155: C25/30 | Y155: C30/37
K156: σtraction | M156: -0.3 | Q156: -0.35 | U156: -0.4 | Y156: -0.45 | AC156: N/mm2
K158: 4. Fouille
K160: 4.1 Hauteur de couverture
K161: La hauteur de couverture H est la distance en mètre entre le terrain et le sommet (extérieur) du tuyau.
K163: 4.2 Largeur de fouille
K164: *Voir points 3.5 pour les largeurs minimales selon la norme SIA190:2107.
K166: 4.3 Type de fouille
K167: Il est possible de choisir des fouilles verticales (U) ou talutées (V). Il est nécessaire de bien choisir un des deux cas, lorsqu’on considère λmin. Si la réduction n'est pas cons-
K168: idérer, cette case n'a pas d'influence sur les calculs. Lorsque la fouille talutée est choisie, il est nécessaire d'indiquer l'angle β par rapport à l'horizontale.
K171: 5. Eau
K173: 5.1 Eau souterraine
K174: Pour l'eau souterraine, il y a 3 possibilités:
K175: 1. Pas d'eau souterraine -> choisir dans le menu déroulant "Sans eau souterraine".
K176: Sinon choisir dans le menu déroulant "Avec eau souterraine".
K177: 2. Eau plus haute que le terrain -> introduction d'une valeur négative.
K178: 3. Eau plus basse que le terrain -> introduction d'une valeur positive.
K180: 5.2 Eau à l'intérieur
K181: Pour l'eau intérieure, il y a aussi 3 possibilités:
K182: 1. Pas d'eau à l'intérieur -> tuyau vide
K183: 2. Tuyau plein -> Si présence d'eau souterraine, la poussée d'Archimède est annulée
K184: 3. Tuyau sous pression -> supression pEI depuis l'axe de la paroi au sommet du tuyau est à introduire. (Valeur positive)

Sheet Données
J3: ='Langue Makro'!B3 -> PROGRAMME D'AIDE AU CHOIX DES CONDUITES
K6: ='Langue Makro'!B8 -> Tuyau: | P6: =IF(Accueil!AZ15="Français",HYPERLINK('Langue Makro'!B100,'Langue Makro'!B15),HYPERLINK('Langue Makro'!B101,'Langue Makro'!B15)) -> 1.Diamètre intérieur | AB6: di | AE6: 300 | AJ6: [mm]
K8: ='Langue Makro'!B9 -> Actions: | P8: =IF(Accueil!AZ15="Français",HYPERLINK('Langue Makro'!B102,'Langue Makro'!B16),HYPERLINK('Langue Makro'!B103,'Langue Makro'!B16)) -> 2.Charge surfacique | AE8: Pas de charge
Q10: ='Langue Makro'!B17 -> charge surfacique | AB10: q | AE10: 25 | AJ10: [kN/m2]
Q12: ='Langue Makro'!B18 -> Largeur de la charge | AB12: B | AE12: 40 | AJ12: [m]
Q14: ='Langue Makro'!B19 -> Longueur de la charge | AB14: L | AE14: 20 | AJ14: [m]
Q16: ='Langue Makro'!B20 -> Distance entre point P et centre de la charge | AB16: x | AE16: 0 | AJ16: [m]
Q18: ='Langue Makro'!B21 -> Distance entre point P et centre de la charge | AB18: y | AE18: 0 | AJ18: [m]
Q20: ='Langue Makro'!B22 -> Profondeur par rapport au terrain | AB20: t | AE20: 1 | AJ20: [m]
P22: =IF(Accueil!AZ15="Français",HYPERLINK('Langue Makro'!B104,'Langue Makro'!B23),HYPERLINK('Langue Makro'!B105,'Langue Makro'!B23)) -> 3. Trafic routier/ferroviaire | AE22: Trafic routier
Q24: ='Langue Makro'!B24 -> Facteur de charge routier | AB24: αroutier | AE24: 0.9 | AJ24: [-] | AN24: ='Langue Makro'!B87 -> Pour les routes d'importances secondaires, une valeur de 0.65 est programmée
Q26: ='Langue Makro'!B25 -> Coefficient dynamique pour trafic routier | AB26: ψ | AE26: Sans | AJ26: [-]
Q28: ='Langue Makro'!B26 -> Facteur de charge ferroviaire | AB28: αferr. | AE28: 1.33 | AJ28: [-] | AN28: ='Langue Makro'!B88 -> Pour les voies étroites, une valeur de 1.0 est programmée
K30: ='Langue Makro'!B10 -> Terrain: | P30: =IF(Accueil!AZ15="Français",HYPERLINK('Langue Makro'!B106,'Langue Makro'!B27),HYPERLINK('Langue Makro'!B107,'Langue Makro'!B27)) -> 4. Qualité du sol | AE30: Sol stable
P32: =IF(Accueil!AZ15="Français",HYPERLINK('Langue Makro'!B108,'Langue Makro'!B28),HYPERLINK('Langue Makro'!B109,'Langue Makro'!B28)) -> 5. Poids volumique apparent humide | AB32: γ | AE32: 20 | AJ32: [kN/m3] | BG32: LEGENDE
BJ33: ='Langue Makro'!B91 -> Hypertexte vers la feuille d'aide
P34: ='Langue Makro'!B29 -> 6. Poids volumique déjaugé | AB34: γ' | AE34: 11 | AJ34: [kN/m3] | BG34: abcdef:
P36: ='Langue Makro'!B30 -> 7. Angle de frottement interne | AB36: φ | AE36: 30 | AJ36: [°]
P38: ='Langue Makro'!B31 -> 8. Module de déformation vertical du sol | AB38: EB | AE38: 5 | AJ38: [N/mm2]
P40: =IF(Accueil!AZ15="Français",HYPERLINK('Langue Makro'!B110,'Langue Makro'!B32),HYPERLINK('Langue Makro'!B111,'Langue Makro'!B32)) -> 9. Coefficient de pression du terrain | AB40: K | AE40: 0.5 | AJ40: [-] | BI40: : | BJ40: ='Langue Makro'!B92 -> Cases à remplir
P42: =IF(Accueil!AZ15="Français",HYPERLINK('Langue Makro'!B112,'Langue Makro'!B33),HYPERLINK('Langue Makro'!B113,'Langue Makro'!B33)) -> 10. Coefficient de flexion au tassement | AB42: C2 | AE42: 0.5 | AJ42: [-]
P44: =IF(Accueil!AZ15="Français",HYPERLINK('Langue Makro'!B114,'Langue Makro'!B34),HYPERLINK('Langue Makro'!B115,'Langue Makro'!B34)) -> 11. Facteur de réduction de charges | AB44: λmin | AE44: NON
Q46: ='Langue Makro'!B35 -> Théorie du silo (K1 et δ) | AE46: Compactage par couches sans vérifications
AB48: K1 | AE48: 0.5
P50: =IF(Accueil!AZ15="Français",HYPERLINK('Langue Makro'!B118,'Langue Makro'!B36),HYPERLINK('Langue Makro'!B119,'Langue Makro'!B36)) -> 12. Type de béton d'enrobage | AE50: C16/20
K52: ='Langue Makro'!B11 -> Fouille: | P52: ='Langue Makro'!B37 -> 13. Hauteur de couverture | AB52: H | AE52: 3 | AJ52: [m]
P54: =IF(Accueil!AZ15="Français",HYPERLINK('Langue Makro'!B116,'Langue Makro'!B38),HYPERLINK('Langue Makro'!B117,'Langue Makro'!B38)) -> 14. Largeur de fouille | AB54: B | AE54: 1.5 | AJ54: [m]
P56: ='Langue Makro'!B39 -> 15. Type de fouille | AE56: Verticale (U)
Q58: =IF(Accueil!AZ15="Français","Angle de talus (par rapport à l'horizontale)",IF(Accueil!AZ15="Deutsch","Böschungswinkel (gegenüber Horizontalen)",IF(Accueil!AZ15="Italiano","15."))) -> Angle de talus (par rapport à l'horizontale) | AB58: β | AE58: 30 | AJ58: [°]
K60: ='Langue Makro'!B12 -> Eau: | P60: =IF(Accueil!AZ15="Français",HYPERLINK('Langue Makro'!B120,'Langue Makro'!B40),HYPERLINK('Langue Makro'!B121,'Langue Makro'!B40)) -> 16. Eau souterraine | AE60: Sans eau souterraine
Q62: ='Langue Makro'!B41 -> Niveau d'eau souterraine | AB62: hw | AE62: 1.3 | AJ62: [m]
P64: =IF(Accueil!AZ15="Français",HYPERLINK('Langue Makro'!B122,'Langue Makro'!B42),HYPERLINK('Langue Makro'!B123,'Langue Makro'!B42)) -> 17. Eau à l'intérieur du tuyau | AE64: Tuyau vide
Q66: ='Langue Makro'!B43 -> Pression | AB66: pEi | AE66: 10 | AJ66: [kN/m2]

Sheet Calculs
A1: Caractéristiques des matériaux pour tuyaux circulaires homogènes [SIA190;Tableau 2]
A2: Matériau | B2: Module d'élasticité (valeur de calcul) | D2: Coefficient de Poisson | E2: Poids volumique | F2: Contrainte admissible de tension annulaire | G2: Charge de rupture au sommet (valeur min.)
O3: 1.Béton (dimensions existantes) | AN3: 1.PP SN4(dimensions existantes) | BN3: 1.PP SN8(dimensions existantes) | CN3: 1.PP SN12(dimensions existantes) | DN3: 1.PP SN16(dimensions existantes) | EN3: 1.PVC SN2(dimensions existantes) | FN3: 1.PVC SN4(dimensions existantes) | GN3: 1.PVC SN8(dimensions existantes) | HN3: 1.PE SN2(dimensions existantes) | IN3: 1.PE SN4(dimensions existantes) | JN3: 1.PE SN8(dimensions existantes) | KM3: 1.Grès vitrifié charge normale (dimensions existantes) | LM3: 1.Grès vitrifié charge supérieure (dimensions existantes) | MN3: 1. GF-UP SN 2500 (dimensions existantes) | NN3: 1. GF-UP SN 5000 (dimensions existantes) | ON3: 1. GF-UP SN 10000 (dimensions existantes) | PN3: 1. GF-UP SN 15000 (dimensions existantes) | QN3: 1. GF-UP SN 16000 (dimensions existantes) | RN3: 1. GF-UP SN 20000 (dimensions existantes) | SN3: 1.Fonte (dimensions existantes)
O4: Diamètre intérieur [mm] | P4: Diamètre nominal [mm] | Q4: Diamètre ext-érieur [mm] | R4: épaisseur de paroi [mm] | S4: rayon moyen [mm] | T4: Classe de résistance | AN4: Diamètre intérieur [mm] | AO4: Diamètre nominal [mm] | AP4: Diamètre ext-érieur [mm] | AQ4: épaisseur de paroi [mm] | AR4: rayon moyen [mm] | BN4: Diamètre intérieur [mm] | BO4: Diamètre nominal [mm] | BP4: Diamètre ext-érieur [mm] | BQ4: épaisseur de paroi [mm] | BR4: rayon moyen [mm] | CN4: Diamètre intérieur [mm] | CO4: Diamètre nominal [mm] | CP4: Diamètre ext-érieur [mm] | CQ4: épaisseur de paroi [mm] | CR4: rayon moyen [mm] | DN4: Diamètre intérieur [mm] | DO4: Diamètre nominal [mm] | DP4: Diamètre ext-érieur [mm] | DQ4: épaisseur de paroi [mm] | DR4: rayon moyen [mm] | EN4: Diamètre intérieur [mm] | EO4: Diamètre nominal [mm] | EP4: Diamètre ext-érieur [mm] | EQ4: épaisseur de paroi [mm] | ER4: rayon moyen [mm] | FN4: Diamètre intérieur [mm] | FO4: Diamètre nominal [mm] | FP4: Diamètre ext-érieur [mm] | FQ4: épaisseur de paroi [mm] | FR4: rayon moyen [mm] | GN4: Diamètre intérieur [mm] | GO4: Diamètre nominal [mm] | GP4: Diamètre ext-érieur [mm] | GQ4: épaisseur de paroi [mm] | GR4: rayon moyen [mm] | HN4: Diamètre intérieur [mm] | HO4: Diamètre nominal [mm] | HP4: Diamètre ext-érieur [mm] | HQ4: épaisseur de paroi [mm] | HR4: rayon moyen [mm] | IN4: Diamètre intérieur [mm] | IO4: Diamètre nominal [mm] | IP4: Diamètre ext-érieur [mm] | IQ4: épaisseur de paroi [mm] | IR4: rayon moyen [mm] | JN4: Diamètre intérieur [mm] | JO4: Diamètre nominal [mm] | JP4: Diamètre ext-érieur [mm] | JQ4: épaisseur de paroi [mm] | JR4: rayon moyen [mm] | KM4: Diamètre intérieur [mm] | KN4: Diamètre nominal [mm] | KO4: Diamètre extérieur [mm] | KP4: épaisseur de paroi [mm] | KQ4: rayon moyen [mm] | KR4: Classe de résistance | LM4: Diamètre intérieur [mm] | LN4: Diamètre nominal [mm] | LO4: Diamètre extérieur [mm] | LP4: épaisseur de paroi [mm] | LQ4: rayon moyen [mm] | LR4: Classe de résistance | MN4: Diamètre intérieur [mm] | MO4: Diamètre nominal [mm] | MP4: Diamètre ext-érieur [mm] | MQ4: épaisseur de paroi [mm] | MR4: rayon moyen [mm] | NN4: Diamètre intérieur [mm] | NO4: Diamètre nominal [mm] | NP4: Diamètre ext-érieur [mm] | NQ4: épaisseur de paroi [mm] | NR4: rayon moyen [mm] | ON4: Diamètre intérieur [mm] | OO4: Diamètre nominal [mm] | OP4: Diamètre ext-érieur [mm] | OQ4: épaisseur de paroi [mm] | OR4: rayon moyen [mm] | PN4: Diamètre intérieur [mm] | PO4: Diamètre nominal [mm] | PP4: Diamètre ext-érieur [mm] | PQ4: épaisseur de paroi [mm] | PR4: rayon moyen [mm] | QN4: Diamètre intérieur [mm] | QO4: Diamètre nominal [mm] | QP4: Diamètre ext-érieur [mm] | QQ4: épaisseur de paroi [mm] | QR4: rayon moyen [mm] | RN4: Diamètre intérieur [mm] | RO4: Diamètre nominal [mm] | RP4: Diamètre ext-érieur [mm] | RQ4: épaisseur de paroi [mm] | RR4: rayon moyen [mm] | SN4: Diamètre intérieur [mm] | SO4: Diamètre nominal [mm] | SP4: Diamètre ext-érieur [mm] | SQ4: épaisseur de paroi [mm] | SR4: rayon moyen [mm]
B5: ER,court | C5: ER,long | D5: ν | E5: γR | F5: σRbz,long,adm | G5: qBr
B6: [N/mm2] | C6: [N/mm2] | D6: [-] | E6: [kN/m3] | F6: [N/mm2] | G6: [kN/m] | O6: di | P6: DN | Q6: da | R6: e | S6: rm | T6: FK | AN6: di | AO6: DN | AP6: da | AQ6: e | AR6: rm | BN6: di | BO6: DN | BP6: da | BQ6: e | BR6: rm | CN6: di | CO6: DN | CP6: da | CQ6: e | CR6: rm | DN6: di | DO6: DN | DP6: da | DQ6: e | DR6: rm | EN6: di | EO6: DN | EP6: da | EQ6: e | ER6: rm | FN6: di | FO6: DN | FP6: da | FQ6: e | FR6: rm | GN6: di | GO6: DN | GP6: da | GQ6: e | GR6: rm | HN6: di | HO6: DN | HP6: da | HQ6: e | HR6: rm | IN6: di | IO6: DN | IP6: da | IQ6: e | IR6: rm | JN6: di | JO6: DN | JP6: da | JQ6: e | JR6: rm | KM6: di | KN6: DN | KO6: da | KP6: e | KQ6: rm | KR6: FK | LM6: di | LN6: DN | LO6: da | LP6: e | LQ6: rm | LR6: FK | MN6: di | MO6: DN | MP6: da | MQ6: e | MR6: rm | NN6: di | NO6: DN | NP6: da | NQ6: e | NR6: rm | ON6: di | OO6: DN | OP6: da | OQ6: e | OR6: rm | PN6: di | PO6: DN | PP6: da | PQ6: e | PR6: rm | QN6: di | QO6: DN | QP6: da | QQ6: e | QR6: rm | RN6: di | RO6: DN | RP6: da | RQ6: e | RR6: rm | SN6: di | SO6: DN | SP6: da | SQ6: e | SR6: rm
A7: B | B7: 30000 | C7: 30000 | D7: 0.2 | E7: 24 | F7: 4 | O7: 1500 | P7: 1500 | Q7: =O7+2*R7 -> 1700 | R7: 100 | S7: =(Q7-R7)/2 -> 800 | T7: 20 | AN7: =AP7-2*AQ7 -> 375.4 | AO7: 400 | AP7: =AO7 -> 400 | AQ7: 12.3 | AR7: =(AP7-AQ7)/2 -> 193.85 | BN7: =BP7-2*BQ7 -> 465.8 | BO7: 500 | BP7: 500 | BQ7: 17.1 | BR7: =(BP7-BQ7)/2 -> 241.45 | CN7: =CP7-2*CQ7 -> 461.8 | CO7: 500 | CP7: 500 | CQ7: 19.1 | CR7: =(CP7-CQ7)/2 -> 240.45 | DN7: =DP7-2*DQ7 -> 454.4 | DO7: 500 | DP7: 500 | DQ7: 22.8 | DR7: =(DP7-DQ7)/2 -> 238.6 | EN7: =EP7-2*EQ7 -> 960.8 | EO7: 1000 | EP7: 1000 | EQ7: 19.6 | ER7: =(EP7-EQ7)/2 -> 490.2 | FN7: =FP7-2*FQ7 -> 951 | FO7: 1000 | FP7: 1000 | FQ7: 24.5 | FR7: =(FP7-FQ7)/2 -> 487.75 | GN7: =GP7-2*GQ7 -> 753.4 | GO7: 800 | GP7: 800 | GQ7: 23.3 | GR7: =(GP7-GQ7)/2 -> 388.35 | HN7: =HP7-2*HQ7 -> 591.4 | HO7: 630 | HP7: 630 | HQ7: 19.3 | HR7: =(HP7-HQ7)/2 -> 305.35 | IN7: =IP7-2*IQ7 -> 369.4 | IO7: 400 | IP7: 400 | IQ7: 15.3 | IR7: =(IP7-IQ7)/2 -> 192.35 | JN7: =JP7-2*JQ7 -> 361.8 | JO7: 400 | JP7: 400 | JQ7: 19.1 | JR7: =(JP7-JQ7)/2 -> 190.45 | KM7: 597 | KN7: 600 | KO7: =KM7+2*KP7 -> 687 | KP7: 45 | KQ7: =(KO7-KP7)/2 -> 321 | KR7: 95 | LM7: 792 | LN7: 800 | LO7: 932 | LP7: =(LO7-LM7)/2 -> 70 | LQ7: =(LO7-LP7)/2 -> 431 | LR7: 120 | MN7: =MP7-2*MQ7 -> 1457 | MO7: 1500 | MP7: 1499 | MQ7: 21 | MR7: =(MP7-MQ7)/2 -> 739 | NN7: =NP7-2*NQ7 -> 1445 | NO7: 1500 | NP7: 1499 | NQ7: 27 | NR7: =(NP7-NQ7)/2 -> 736 | ON7: =OP7-2*OQ7 -> 1433 | OO7: 1500 | OP7: 1499 | OQ7: 33 | OR7: =(OP7-OQ7)/2 -> 733 | PN7: =PP7-2*PQ7 -> 1425 | PO7: 1500 | PP7: 1499 | PQ7: 37 | PR7: =(PP7-PQ7)/2 -> 731 | QN7: =QP7-2*QQ7 -> 1423 | QO7: 1500 | QP7: 1499 | QQ7: 38 | QR7: =(QP7-QQ7)/2 -> 730.5 | RN7: =RP7-2*RQ7 -> 1417 | RO7: 1500 | RP7: 1499 | RQ7: 41 | RR7: =(RP7-RQ7)/2 -> 729 | SN7: =SP7-2*SQ7 -> 718.8 | SO7: 700 | SP7: 738 | SQ7: 9.6 | SR7: =(SP7-SQ7)/2 -> 364.2
A8: STZ | B8: 50000 | C8: 50000 | D8: 0.25 | E8: 22 | F8: 6 | O8: 1250 | P8: 1250 | Q8: 1450 | R8: 100 | S8: 675 | T8: 20 | AN8: =AP8-2*AQ8 -> 295.6 | AO8: 315 | AP8: =AO8 -> 315 | AQ8: 9.7 | AR8: =(AP8-AQ8)/2 -> 152.65 | BN8: =BP8-2*BQ8 -> 372.6 | BO8: 400 | BP8: =BO8 -> 400 | BQ8: 13.7 | BR8: =(BP8-BQ8)/2 -> 193.15 | CN8: =CP8-2*CQ8 -> 369.4 | CO8: 400 | CP8: =CO8 -> 400 | CQ8: 15.3 | CR8: =(CP8-CQ8)/2 -> 192.35 | DN8: =DP8-2*DQ8 -> 363.6 | DO8: 400 | DP8: =DO8 -> 400 | DQ8: 18.2 | DR8: =(DP8-DQ8)/2 -> 190.9 | EN8: =EP8-2*EQ8 -> 864.8 | EO8: 900 | EP8: 900 | EQ8: 17.6 | ER8: =(EP8-EQ8)/2 -> 441.2 | FN8: =FP8-2*FQ8 -> 856 | FO8: 900 | FP8: 900 | FQ8: 22 | FR8: =(FP8-FQ8)/2 -> 439 | GN8: =GP8-2*GQ8 -> 668.6 | GO8: 710 | GP8: 710 | GQ8: 20.7 | GR8: =(GP8-GQ8)/2 -> 344.65 | HN8: 469.4 | HO8: 500 | HP8: 500 | HQ8: 15.3 | HR8: 242.35 | IN8: =IP8-2*IQ8 -> 327.8 | IO8: 355 | IP8: 355 | IQ8: 13.6 | IR8: =(IP8-IQ8)/2 -> 170.7 | JN8: =JP8-2*JQ8 -> 321.2 | JO8: 355 | JP8: 355 | JQ8: 16.9 | JR8: =(JP8-JQ8)/2 -> 169.05 | KM8: 496 | KN8: 500 | KO8: 581 | KP8: 42.5 | KQ8: 269.25 | KR8: 120 | LM8: 694 | LN8: 700 | LO8: 832 | LP8: =(LO8-LM8)/2 -> 69 | LQ8: 381.5 | LR8: 120 | MN8: =MP8-2*MQ8 -> 1392 | MO8: 1400 | MP8: 1434 | MQ8: 21 | MR8: =(MP8-MQ8)/2 -> 706.5 | NN8: =NP8-2*NQ8 -> 1382 | NO8: 1400 | NP8: 1434 | NQ8: 26 | NR8: =(NP8-NQ8)/2 -> 704 | ON8: =OP8-2*OQ8 -> 1370 | OO8: 1400 | OP8: 1434 | OQ8: 32 | OR8: =(OP8-OQ8)/2 -> 701 | PN8: =PP8-2*PQ8 -> 1362 | PO8: 1400 | PP8: 1434 | PQ8: 36 | PR8: =(PP8-PQ8)/2 -> 699 | QN8: =QP8-2*QQ8 -> 1362 | QO8: 1400 | QP8: 1434 | QQ8: 36 | QR8: =(QP8-QQ8)/2 -> 699 | RN8: =RP8-2*RQ8 -> 1356 | RO8: 1400 | RP8: 1434 | RQ8: 39 | RR8: =(RP8-RQ8)/2 -> 697.5 | SN8: =SP8-2*SQ8 -> 619.6 | SO8: 600 | SP8: 635 | SQ8: 7.7 | SR8: =(SP8-SQ8)/2 -> 313.65
A9: GGG(EN-GJS) | B9: 170000 | C9: 170000 | D9: 0.3 | E9: 70.5 | F9: 330 | I9: Matériaux | O9: 1000 | P9: 1000 | Q9: 1200 | R9: 100 | S9: 550 | T9: 50 | W9: Béton | AN9: =AP9-2*AQ9 -> 234.6 | AO9: 250 | AP9: =AO9 -> 250 | AQ9: 7.7 | AR9: =(AP9-AQ9)/2 -> 121.15 | AW9: PP-SN4 | BN9: =BP9-2*BQ9 -> 293.4 | BO9: 315 | BP9: =BO9 -> 315 | BQ9: 10.8 | BR9: =(BP9-BQ9)/2 -> 152.1 | BW9: PP-SN8 | CN9: =CP9-2*CQ9 -> 290.8 | CO9: 315 | CP9: =CO9 -> 315 | CQ9: 12.1 | CR9: =(CP9-CQ9)/2 -> 151.45 | CW9: PP-SN12 | DN9: =DP9-2*DQ9 -> 286.2 | DO9: 315 | DP9: =DO9 -> 315 | DQ9: 14.4 | DR9: =(DP9-DQ9)/2 -> 150.3 | DW9: PP-SN16 | EN9: =EP9-2*EQ9 -> 768.6 | EO9: 800 | EP9: 800 | EQ9: 15.7 | ER9: =(EP9-EQ9)/2 -> 392.15 | EW9: PVC-SN2 | FN9: =FP9-2*FQ9 -> 760.8 | FO9: 800 | FP9: 800 | FQ9: 19.6 | FR9: =(FP9-FQ9)/2 -> 390.2 | FW9: PVC-SN4 | GN9: =GP9-2*GQ9 -> 593.2 | GO9: 630 | GP9: 630 | GQ9: 18.4 | GR9: =(GP9-GQ9)/2 -> 305.8 | GW9: PVC-SN8 | HN9: 422.4 | HO9: 450 | HP9: 450 | HQ9: 13.8 | HR9: 218.1 | HW9: PE-SN2 | IN9: =IP9-2*IQ9 -> 290.8 | IO9: 315 | IP9: 315 | IQ9: 12.1 | IR9: =(IP9-IQ9)/2 -> 151.45 | IW9: PE-SN4 | JN9: =JP9-2*JQ9 -> 285 | JO9: 315 | JP9: 315 | JQ9: 15 | JR9: =(JP9-JQ9)/2 -> 150 | JW9: PE-SN8 | KM9: 398 | KN9: 400 | KO9: 486 | KP9: 44 | KQ9: 221 | KR9: 160 | KU9: Grès-vitrifié (charge normale) | LM9: 597 | LN9: 600 | LO9: 725 | LP9: 64 | LQ9: 330.5 | LR9: 160 | LU9: Grès-vitrifié (charge supérieure) | MN9: 1308 | MO9: 1350 | MP9: 1348 | MQ9: 20 | MR9: 664 | MW9: GF-UP SN 2500 | NN9: 1300 | NO9: 1350 | NP9: 1348 | NQ9: 24 | NR9: 662 | NW9: GF-UP SN 5000 | ON9: 1288 | OO9: 1350 | OP9: 1348 | OQ9: 30 | OR9: 659 | OW9: GF-UP SN 10000 | PN9: 1280 | PO9: 1350 | PP9: 1348 | PQ9: 34 | PR9: 657 | PW9: GF-UP SN 15000 | QN9: 1280 | QO9: 1350 | QP9: 1348 | QQ9: 34 | QR9: 657 | QW9: GF-UP SN 16000 | RN9: 1274 | RO9: 1350 | RP9: 1348 | RQ9: 37 | RR9: 655.5 | RW9: GF-UP SN 20000 | SN9: 518 | SO9: 500 | SP9: 532 | SQ9: 7 | SR9: =(SP9-SQ9)/2 -> 262.5 | SW9: Fonte
A10: PVC-U | B10: 3000 | C10: 1500 | D10: 0.38 | E10: 14 | F10: 20 | O10: 800 | P10: 800 | Q10: 960 | R10: 80 | S10: 440 | T10: 50 | AN10: =AP10-2*AQ10 -> 187.6 | AO10: 200 | AP10: =AO10 -> 200 | AQ10: 6.2 | AR10: =(AP10-AQ10)/2 -> 96.9 | BN10: =BP10-2*BQ10 -> 232.8 | BO10: 250 | BP10: =BO10 -> 250 | BQ10: 8.6 | BR10: =(BP10-BQ10)/2 -> 120.7 | CN10: =CP10-2*CQ10 -> 230.8 | CO10: 250 | CP10: =CO10 -> 250 | CQ10: 9.6 | CR10: =(CP10-CQ10)/2 -> 120.2 | DN10: =DP10-2*DQ10 -> 227.2 | DO10: 250 | DP10: =DO10 -> 250 | DQ10: 11.4 | DR10: =(DP10-DQ10)/2 -> 119.3 | EN10: =EP10-2*EQ10 -> 682.2 | EO10: 710 | EP10: 710 | EQ10: 13.9 | ER10: =(EP10-EQ10)/2 -> 348.05 | FN10: =FP10-2*FQ10 -> 675.2 | FO10: 710 | FP10: 710 | FQ10: 17.4 | FR10: =(FP10-FQ10)/2 -> 346.3 | GN10: =GP10-2*GQ10 -> 470.8 | GO10: 500 | GP10: 500 | GQ10: 14.6 | GR10: =(GP10-GQ10)/2 -> 242.7 | HN10: 375.4 | HO10: 400 | HP10: 400 | HQ10: 12.3 | HR10: 193.85 | IN10: =IP10-2*IQ10 -> 230.8 | IO10: 250 | IP10: 250 | IQ10: 9.6 | IR10: =(IP10-IQ10)/2 -> 120.2 | JN10: =JP10-2*JQ10 -> 226.2 | JO10: 250 | JP10: 250 | JQ10: 11.9 | JR10: =(JP10-JQ10)/2 -> 119.05 | KM10: 348 | KN10: 350 | KO10: 417 | KP10: 34.5 | KQ10: 191.25 | KR10: 160 | LM10: 496 | LN10: 500 | LO10: 609 | LP10: 56.5 | LQ10: 276.25 | LR10: 160 | MN10: 1242 | MO10: 1280 | MP10: 1280 | MQ10: 19 | MR10: 630.5 | NN10: 1234 | NO10: 1280 | NP10: 1280 | NQ10: 23 | NR10: 628.5 | ON10: 1224 | OO10: 1280 | OP10: 1280 | OQ10: 28 | OR10: 626 | PN10: 1216 | PO10: 1280 | PP10: 1280 | PQ10: 32 | PR10: 624 | QN10: 1214 | QO10: 1280 | QP10: 1280 | QQ10: 33 | QR10: 623.5 | RN10: 1210 | RO10: 1280 | RP10: 1280 | RQ10: 35 | RR10: 622.5 | SN10: 416.4 | SO10: 400 | SP10: 429 | SQ10: 6.3 | SR10: =(SP10-SQ10)/2 -> 211.35
A11: PE-HD | B11: 1000 | C11: 250 | D11: 0.4 | E11: 9.5 | F11: 14 | O11: 700 | P11: 700 | Q11: 840 | R11: 70 | S11: 385 | T11: 60 | AN11: =AP11-2*AQ11 -> 0 | AO11: 0 | AP11: =AO11 -> 0 | AQ11: 0 | AR11: 0 | BN11: =BP11-2*BQ11 -> 186.2 | BO11: 200 | BP11: =BO11 -> 200 | BQ11: 6.9 | BR11: =(BP11-BQ11)/2 -> 96.55 | CN11: =CP11-2*CQ11 -> 184.6 | CO11: 200 | CP11: =CO11 -> 200 | CQ11: 7.7 | CR11: =(CP11-CQ11)/2 -> 96.15 | DN11: =DP11-2*DQ11 -> 181.8 | DO11: 200 | DP11: =DO11 -> 200 | DQ11: 9.1 | DR11: =(DP11-DQ11)/2 -> 95.45 | EN11: =EP11-2*EQ11 -> 605.4 | EO11: 630 | EP11: 630 | EQ11: 12.3 | ER11: =(EP11-EQ11)/2 -> 308.85 | FN11: =FP11-2*FQ11 -> 599.2 | FO11: 630 | FP11: 630 | FQ11: 15.4 | FR11: =(FP11-FQ11)/2 -> 307.3 | GN11: =GP11-2*GQ11 -> 423.6 | GO11: 450 | GP11: 450 | GQ11: 13.2 | GR11: =(GP11-GQ11)/2 -> 218.4 | HN11: 333.2 | HO11: 355 | HP11: 355 | HQ11: 10.9 | HR11: 172.05 | IN11: =IP11-2*IQ11 -> 184.6 | IO11: 200 | IP11: 200 | IQ11: 7.7 | IR11: =(IP11-IQ11)/2 -> 96.15 | JN11: =JP11-2*JQ11 -> 180.8 | JO11: 200 | JP11: 200 | JQ11: 9.6 | JR11: =(JP11-JQ11)/2 -> 95.2 | KM11: 300 | KN11: 300 | KO11: 355 | KP11: 27.5 | KQ11: 163.75 | KR11: 160 | LM11: 398 | LN11: 400 | LO11: 492 | LP11: 47 | LQ11: 222.5 | LR11: 200 | MN11: 1193 | MO11: 1200 | MP11: 1229 | MQ11: 18 | MR11: 605.5 | NN11: 1185 | NO11: 1200 | NP11: 1229 | NQ11: 22 | NR11: 603.5 | ON11: 1175 | OO11: 1200 | OP11: 1229 | OQ11: 27 | OR11: 601 | PN11: 1167 | PO11: 1200 | PP11: 1229 | PQ11: 31 | PR11: 599 | QN11: 1167 | QO11: 1200 | QP11: 1229 | QQ11: 31 | QR11: 599 | RN11: 1161 | RO11: 1200 | RP11: 1229 | RQ11: 34 | RR11: 597.5 | SN11: 366 | SO11: 350 | SP11: 378 | SQ11: 6 | SR11: =(SP11-SQ11)/2 -> 186
A12: PP | B12: 1250 | C12: 300 | D12: 0.4 | E12: 9 | F12: 8 | O12: 600 | P12: 600 | Q12: 730 | R12: 65 | S12: 332.5 | T12: 60 | AN12: 0 | AO12: 0 | AP12: 0 | AQ12: 0 | AR12: 0 | BN12: =BP12-2*BQ12 -> 0 | BO12: 0 | BP12: =BO12 -> 0 | BQ12: 0 | BR12: 0 | CN12: =CP12-2*CQ12 -> 0 | CO12: 0 | CP12: =CO12 -> 0 | CQ12: 0 | CR12: 0 | DN12: =DP12-2*DQ12 -> 0 | DO12: 0 | DP12: =DO12 -> 0 | DQ12: 0 | DR12: 0 | EN12: =EP12-2*EQ12 -> 480.4 | EO12: 500 | EP12: 500 | EQ12: 9.8 | ER12: =(EP12-EQ12)/2 -> 245.1 | FN12: =FP12-2*FQ12 -> 475.4 | FO12: 500 | FP12: 500 | FQ12: 12.3 | FR12: =(FP12-FQ12)/2 -> 243.85 | GN12: =GP12-2*GQ12 -> 376.6 | GO12: 400 | GP12: 400 | GQ12: 11.7 | GR12: =(GP12-GQ12)/2 -> 194.15 | HN12: 295.6 | HO12: 315 | HP12: 315 | HQ12: 9.7 | HR12: 152.65 | IN12: =IP12-2*IQ12 -> 0 | IO12: 0 | IP12: =IO12 -> 0 | IQ12: 0 | IR12: =(IP12-IQ12)/2 -> 0 | JN12: =JP12-2*JQ12 -> 0 | JO12: 0 | JP12: =JO12 -> 0 | JQ12: 0 | JR12: =(JP12-JQ12)/2 -> 0 | KM12: 250 | KN12: 250 | KO12: 299 | KP12: 24.5 | KQ12: 137.25 | KR12: 160 | LM12: 300 | LN12: 300 | LO12: 376 | LP12: 38 | LQ12: 169 | LR12: 240 | MN12: 1067 | MO12: 1100 | MP12: 1099 | MQ12: 16 | MR12: 541.5 | NN12: 1059 | NO12: 1100 | NP12: 1099 | NQ12: 20 | NR12: 539.5 | ON12: 1049 | OO12: 1100 | OP12: 1099 | OQ12: 25 | OR12: 537 | PN12: 1043 | PO12: 1100 | PP12: 1099 | PQ12: 28 | PR12: 535.5 | QN12: 1043 | QO12: 1100 | QP12: 1099 | QQ12: 28 | QR12: 535.5 | RN12: 1039 | RO12: 1100 | RP12: 1099 | RQ12: 30 | RR12: 534.5 | SN12: 314.8 | SO12: 300 | SP12: 326 | SQ12: 5.6 | SR12: =(SP12-SQ12)/2 -> 160.2
A13: PP-MD | B13: 1500 | C13: 375 | D13: 0.35 | E13: 10 | F13: 8.5 | O13: 500 | P13: 500 | Q13: 628 | R13: 64 | S13: 282 | T13: 60 | AN13: 0 | AO13: 0 | AP13: 0 | AQ13: 0 | AR13: 0 | BN13: 0 | BO13: 0 | BP13: 0 | BQ13: 0 | BR13: 0 | CN13: 0 | CO13: 0 | CP13: 0 | CQ13: 0 | CR13: 0 | DN13: 0 | DO13: 0 | DP13: 0 | DQ13: 0 | DR13: 0 | EN13: 432.4 | EO13: 450 | EP13: 450 | EQ13: 8.8 | ER13: 220.6 | FN13: 428 | FO13: 450 | FP13: 450 | FQ13: 11 | FR13: 219.5 | GN13: 334.2 | GO13: 355 | GP13: 355 | GQ13: 10.4 | GR13: 172.3 | HN13: 234.6 | HO13: 250 | HP13: 250 | HQ13: 7.7 | HR13: 121.15 | IN13: 0 | IO13: 0 | IP13: 0 | IQ13: 0 | IR13: 0 | JN13: 0 | JO13: 0 | JP13: 0 | JQ13: 0 | JR13: 0 | KM13: 200 | KN13: 200 | KO13: 242 | KP13: 21 | KQ13: 110.5 | KR13: 160 | LM13: 250 | LN13: 250 | LO13: 318 | LP13: 34 | LQ13: 142 | LR13: 240 | MN13: 996 | MO13: 1000 | MP13: 1026 | MQ13: 15 | MR13: 505.5 | NN13: 988 | NO13: 1000 | NP13: 1026 | NQ13: 19 | NR13: 503.5 | ON13: 980 | OO13: 1000 | OP13: 1026 | OQ13: 23 | OR13: 501.5 | PN13: 974 | PO13: 1000 | PP13: 1026 | PQ13: 26 | PR13: 500 | QN13: 974 | QO13: 1000 | QP13: 1026 | QQ13: 26 | QR13: 500 | RN13: 970 | RO13: 1000 | RP13: 1026 | RQ13: 28 | RR13: 499 | SN13: 263.4 | SO13: 250 | SP13: 274 | SQ13: 5.3 | SR13: 134.35
A14: PP-HM | B14: 1700 | C14: 425 | D14: 0.4 | E14: 9 | F14: 8 | O14: 400 | P14: 400 | Q14: 500 | R14: 50 | S14: 225 | T14: 90 | AN14: 0 | AO14: 0 | AP14: 0 | AQ14: 0 | AR14: 0 | BN14: 0 | BO14: 0 | BP14: 0 | BQ14: 0 | BR14: 0 | CN14: 0 | CO14: 0 | CP14: 0 | CQ14: 0 | CR14: 0 | DN14: 0 | DO14: 0 | DP14: 0 | DQ14: 0 | DR14: 0 | EN14: 384.2 | EO14: 400 | EP14: 400 | EQ14: 7.9 | ER14: 196.05 | FN14: 380.4 | FO14: 400 | FP14: 400 | FQ14: 9.8 | FR14: 195.1 | GN14: 296.6 | GO14: 315 | GP14: 315 | GQ14: 9.2 | GR14: 152.9 | HN14: 187.6 | HO14: 200 | HP14: 200 | HQ14: 6.2 | HR14: 96.9 | IN14: 0 | IO14: 0 | IP14: 0 | IQ14: 0 | IR14: 0 | JN14: 0 | JO14: 0 | JP14: 0 | JQ14: 0 | JR14: 0 | KM14: 0 | KN14: 0 | KO14: 0 | KP14: 0 | KQ14: 0 | KR14: 0 | LM14: 200 | LN14: 200 | LO14: 254 | LP14: 27 | LQ14: 113.5 | LR14: 240 | MN14: 932 | MO14: 960 | MP14: 960 | MQ14: 14 | MR14: 473 | NN14: 924 | NO14: 960 | NP14: 960 | NQ14: 18 | NR14: 471 | ON14: 916 | OO14: 960 | OP14: 960 | OQ14: 22 | OR14: 469 | PN14: 912 | PO14: 960 | PP14: 960 | PQ14: 24 | PR14: 468 | QN14: 910 | QO14: 960 | QP14: 960 | QQ14: 25 | QR14: 467.5 | RN14: 906 | RO14: 960 | RP14: 960 | RQ14: 27 | RR14: 466.5 | SN14: 212.2 | SO14: 200 | SP14: 222 | SQ14: 4.9 | SR14: 108.55
A15: PP-QD | B15: 3000 | C15: 1400 | D15: 0.35 | E15: 11.5 | F15: 8 | O15: 300 | P15: 300 | Q15: 380 | R15: 40 | S15: 170 | T15: 90 | AN15: =AP15-2*AQ15 -> 0 | AO15: 0 | AP15: =AO15 -> 0 | AQ15: 0 | AR15: 0 | BN15: 0 | BO15: 0 | BP15: 0 | BQ15: 0 | BR15: 0 | CN15: 0 | CO15: 0 | CP15: 0 | CQ15: 0 | CR15: 0 | DN15: 0 | DO15: 0 | DP15: 0 | DQ15: 0 | DR15: 0 | EN15: 341 | EO15: 355 | EP15: 355 | EQ15: 7 | ER15: 174 | FN15: 337.6 | FO15: 355 | FP15: 355 | FQ15: 8.7 | FR15: 173.15 | GN15: 235.4 | GO15: 250 | GP15: 250 | GQ15: 7.3 | GR15: 121.35 | HN15: 0 | HO15: 0 | HP15: =HO15 -> 0 | HQ15: 0 | HR15: 0 | IN15: 0 | IO15: 0 | IP15: 0 | IQ15: 0 | IR15: 0 | JN15: 0 | JO15: 0 | JP15: 0 | JQ15: 0 | JR15: 0 | KM15: 0 | KN15: 0 | KO15: 0 | KP15: 0 | KQ15: 0 | KR15: 0 | LM15: 0 | LN15: 0 | LO15: 0 | LP15: =(LO15-LM15)/2 -> 0 | LQ15: 0 | LR15: 0 | MN15: 896 | MO15: 900 | MP15: 924 | MQ15: 14 | MR15: 455 | NN15: 890 | NO15: 900 | NP15: 924 | NQ15: 17 | NR15: 453.5 | ON15: 882 | OO15: 900 | OP15: 924 | OQ15: 21 | OR15: 451.5 | PN15: 878 | PO15: 900 | PP15: 924 | PQ15: 23 | PR15: 450.5 | QN15: 876 | QO15: 900 | QP15: 924 | QQ15: 24 | QR15: 450 | RN15: 872 | RO15: 900 | RP15: 924 | RQ15: 26 | RR15: 449 | SN15: 0 | SO15: 0 | SP15: =SO15 -> 0 | SQ15: 0 | SR15: 0
O16: 250 | P16: 250 | Q16: =O16+2*R16 -> 320 | R16: 35 | S16: =(Q16-R16)/2 -> 142.5 | T16: 125 | AN16: 0 | AO16: 0 | AP16: 0 | AQ16: 0 | AR16: 0 | BN16: 0 | BO16: 0 | BP16: 0 | BQ16: 0 | BR16: 0 | CN16: 0 | CO16: 0 | CP16: 0 | CQ16: 0 | CR16: 0 | DN16: 0 | DO16: 0 | DP16: 0 | DQ16: 0 | DR16: 0 | EN16: 302.6 | EO16: 315 | EP16: 315 | EQ16: 6.2 | ER16: 154.4 | FN16: 299.6 | FO16: 315 | FP16: 315 | FQ16: 7.7 | FR16: 153.65 | GN16: 188.2 | GO16: 200 | GP16: 200 | GQ16: 5.9 | GR16: 97.05 | HN16: 0 | HO16: 0 | HP16: 0 | HQ16: 0 | HR16: 0 | IN16: 0 | IO16: 0 | IP16: 0 | IQ16: 0 | IR16: 0 | JN16: 0 | JO16: 0 | JP16: 0 | JQ16: 0 | JR16: 0 | KM16: 0 | KN16: 0 | KO16: 0 | KP16: 0 | KQ16: 0 | KR16: 0 | LM16: 0 | LN16: 0 | LO16: 0 | LP16: 0 | LQ16: 0 | LR16: 0 | MN16: 834 | MO16: 860 | MP16: 860 | MQ16: 13 | MR16: 423.5 | NN16: 828 | NO16: 860 | NP16: 860 | NQ16: 16 | NR16: 422 | ON16: 822 | OO16: 860 | OP16: 860 | OQ16: 19 | OR16: 420.5 | PN16: 816 | PO16: 860 | PP16: 860 | PQ16: 22 | PR16: 419 | QN16: 816 | QO16: 860 | QP16: 860 | QQ16: 22 | QR16: 419 | RN16: 812 | RO16: 860 | RP16: 860 | RQ16: 24 | RR16: 418 | SN16: 0 | SO16: 0 | SP16: 0 | SQ16: 0 | SR16: 0
A17: Caractéristiques des matériaux pour tuyaux circulaires GF-UP [SIA190;Tableau 3] | O17: 0 | P17: 0 | Q17: 0 | R17: 0 | S17: 0 | T17: 0 | AN17: 0 | AO17: 0 | AP17: 0 | AQ17: 0 | AR17: 0 | BN17: 0 | BO17: 0 | BP17: 0 | BQ17: 0 | BR17: 0 | CN17: 0 | CO17: 0 | CP17: 0 | CQ17: 0 | CR17: 0 | DN17: 0 | DO17: 0 | DP17: 0 | DQ17: 0 | DR17: 0 | EN17: 240.2 | EO17: 250 | EP17: 250 | EQ17: 4.9 | ER17: 122.55 | FN17: 237.6 | FO17: 250 | FP17: 250 | FQ17: 6.2 | FR17: 121.9 | GN17: 0 | GO17: 0 | GP17: =GO17 -> 0 | GQ17: 0 | GR17: 0 | HN17: 0 | HO17: 0 | HP17: 0 | HQ17: 0 | HR17: 0 | IN17: 0 | IO17: 0 | IP17: 0 | IQ17: 0 | IR17: 0 | JN17: 0 | JO17: 0 | JP17: 0 | JQ17: 0 | JR17: 0 | KM17: 0 | KN17: 0 | KO17: 0 | KP17: 0 | KQ17: 0 | KR17: 0 | LM17: 0 | LN17: 0 | LO17: 0 | LP17: 0 | LQ17: 0 | LR17: 0 | MN17: 796 | MO17: 800 | MP17: 820 | MQ17: 12 | MR17: 404 | NN17: 790 | NO17: 800 | NP17: 820 | NQ17: 15 | NR17: 402.5 | ON17: 782 | OO17: 800 | OP17: 820 | OQ17: 19 | OR17: 400.5 | PN17: 778 | PO17: 800 | PP17: 820 | PQ17: 21 | PR17: 399.5 | QN17: 778 | QO17: 800 | QP17: 820 | QQ17: 21 | QR17: 399.5 | RN17: 774 | RO17: 800 | RP17: 820 | RQ17: 23 | RR17: 398.5 | SN17: 0 | SO17: 0 | SP17: 0 | SQ17: 0 | SR17: 0
A18: Matériau | B18: Module d'élasticité (valeur de calcul) | D18: Coefficient de Poisson | E18: Poids volumique | F18: Valeur de calcul de la déformation rélative | O18: 0 | P18: 0 | Q18: 0 | R18: 0 | S18: 0 | T18: 0 | AN18: 0 | AO18: 0 | AP18: 0 | AQ18: 0 | AR18: 0 | BN18: 0 | BO18: 0 | BP18: 0 | BQ18: 0 | BR18: 0 | CN18: 0 | CO18: 0 | CP18: 0 | CQ18: 0 | CR18: 0 | DN18: 0 | DO18: 0 | DP18: 0 | DQ18: 0 | DR18: 0 | EN18: 192.2 | EO18: 200 | EP18: 200 | EQ18: 3.9 | ER18: 98.05 | FN18: 190.2 | FO18: 200 | FP18: 200 | FQ18: 4.9 | FR18: 97.55 | GN18: 0 | GO18: 0 | GP18: 0 | GQ18: 0 | GR18: 0 | HN18: 0 | HO18: 0 | HP18: 0 | HQ18: 0 | HR18: 0 | IN18: 0 | IO18: 0 | IP18: 0 | IQ18: 0 | IR18: 0 | JN18: 0 | JO18: 0 | JP18: =JO18 -> 0 | JQ18: 0 | JR18: 0 | KM18: 0 | KN18: 0 | KO18: 0 | KP18: 0 | KQ18: 0 | KR18: 0 | LM18: 0 | LN18: 0 | LO18: 0 | LP18: 0 | LQ18: 0 | LR18: 0 | MN18: 730 | MO18: 750 | MP18: 752 | MQ18: 11 | MR18: 370.5 | NN18: 724 | NO18: 750 | NP18: 752 | NQ18: 14 | NR18: 369 | ON18: 718 | OO18: 750 | OP18: 752 | OQ18: 17 | OR18: 367.5 | PN18: 714 | PO18: 750 | PP18: 752 | PQ18: 19 | PR18: 366.5 | QN18: 712 | QO18: 750 | QP18: 752 | QQ18: 20 | QR18: 366 | RN18: 710 | RO18: 750 | RP18: 752 | RQ18: 21 | RR18: 365.5 | SN18: 0 | SO18: 0 | SP18: 0 | SQ18: 0 | SR18: 0
O19: 0 | P19: 0 | Q19: 0 | R19: 0 | S19: 0 | T19: 0 | AN19: 0 | AO19: 0 | AP19: 0 | AQ19: 0 | AR19: 0 | BN19: 0 | BO19: 0 | BP19: 0 | BQ19: 0 | BR19: 0 | CN19: 0 | CO19: 0 | CP19: 0 | CQ19: 0 | CR19: 0 | DN19: 0 | DO19: 0 | DP19: 0 | DQ19: 0 | DR19: 0 | EN19: 0 | EO19: 0 | EP19: =EO19 -> 0 | EQ19: 0 | ER19: 0 | FN19: 0 | FO19: 0 | FP19: =FO19 -> 0 | FQ19: 0 | FR19: 0 | GN19: 0 | GO19: 0 | GP19: 0 | GQ19: 0 | GR19: 0 | HN19: 0 | HO19: 0 | HP19: =HO19 -> 0 | HQ19: 0 | HR19: 0 | IN19: 0 | IO19: 0 | IP19: 0 | IQ19: 0 | IR19: 0 | JN19: 0 | JO19: 0 | JP19: 0 | JQ19: 0 | JR19: 0 | KM19: 0 | KN19: 0 | KO19: 0 | KP19: 0 | KQ19: 0 | KR19: 0 | LM19: 0 | LN19: 0 | LO19: 0 | LP19: 0 | LQ19: 0 | LR19: 0 | MN19: 696 | MO19: 700 | MP19: 718 | MQ19: 11 | MR19: 353.5 | NN19: 692 | NO19: 700 | NP19: 718 | NQ19: 13 | NR19: 352.5 | ON19: 684 | OO19: 700 | OP19: 718 | OQ19: 17 | OR19: 350.5 | PN19: 680 | PO19: 700 | PP19: 718 | PQ19: 19 | PR19: 349.5 | QN19: 680 | QO19: 700 | QP19: 718 | QQ19: 19 | QR19: 349.5 | RN19: 678 | RO19: 700 | RP19: 718 | RQ19: 20 | RR19: 349 | SN19: 0 | SO19: 0 | SP19: 0 | SQ19: 0 | SR19: 0
O20: 0 | P20: 0 | Q20: 0 | R20: 0 | S20: 0 | T20: 0 | AN20: 0 | AO20: 0 | AP20: 0 | AQ20: 0 | AR20: 0 | BN20: 0 | BO20: 0 | BP20: 0 | BQ20: 0 | BR20: 0 | CN20: 0 | CO20: 0 | CP20: 0 | CQ20: 0 | CR20: 0 | DN20: 0 | DO20: 0 | DP20: 0 | DQ20: 0 | DR20: 0 | EN20: 0 | EO20: 0 | EP20: 0 | EQ20: 0 | ER20: 0 | FN20: 0 | FO20: 0 | FP20: 0 | FQ20: 0 | FR20: 0 | GN20: 0 | GO20: 0 | GP20: 0 | GQ20: 0 | GR20: 0 | HN20: 0 | HO20: 0 | HP20: 0 | HQ20: 0 | HR20: 0 | IN20: 0 | IO20: 0 | IP20: 0 | IQ20: 0 | IR20: 0 | JN20: 0 | JO20: 0 | JP20: 0 | JQ20: 0 | JR20: 0 | KM20: 0 | KN20: 0 | KO20: 0 | KP20: 0 | KQ20: 0 | KR20: 0 | LM20: 0 | LN20: 0 | LO20: 0 | LP20: 0 | LQ20: 0 | LR20: 0 | MN20: 630 | MO20: 650 | MP20: 650 | MQ20: 10 | MR20: 320 | NN20: 626 | NO20: 650 | NP20: 650 | NQ20: 12 | NR20: 319 | ON20: 620 | OO20: 650 | OP20: 650 | OQ20: 15 | OR20: 317.5 | PN20: 616 | PO20: 650 | PP20: 650 | PQ20: 17 | PR20: 316.5 | QN20: 616 | QO20: 650 | QP20: 650 | QQ20: 17 | QR20: 316.5 | RN20: 612 | RO20: 650 | RP20: 650 | RQ20: 19 | RR20: 315.5 | SN20: 0 | SO20: 0 | SP20: 0 | SQ20: 0 | SR20: 0
B21: S0,court | C21: S0,long | D21: ν | E21: γR | F21: ∆dlong/dm | O21: 0 | P21: 0 | Q21: 0 | R21: 0 | S21: 0 | T21: 0 | AN21: 0 | AO21: 0 | AP21: 0 | AQ21: 0 | AR21: 0 | BN21: 0 | BO21: 0 | BP21: 0 | BQ21: 0 | BR21: 0 | CN21: 0 | CO21: 0 | CP21: 0 | CQ21: 0 | CR21: 0 | DN21: 0 | DO21: 0 | DP21: 0 | DQ21: 0 | DR21: 0 | EN21: 0 | EO21: 0 | EP21: 0 | EQ21: 0 | ER21: 0 | FN21: 0 | FO21: 0 | FP21: 0 | FQ21: 0 | FR21: 0 | GN21: 0 | GO21: 0 | GP21: 0 | GQ21: 0 | GR21: 0 | HN21: 0 | HO21: 0 | HP21: 0 | HQ21: 0 | HR21: 0 | IN21: 0 | IO21: 0 | IP21: 0 | IQ21: 0 | IR21: 0 | JN21: 0 | JO21: 0 | JP21: 0 | JQ21: 0 | JR21: 0 | KM21: 0 | KN21: 0 | KO21: 0 | KP21: 0 | KQ21: 0 | KR21: 0 | LM21: 0 | LN21: 0 | LO21: 0 | LP21: 0 | LQ21: 0 | LR21: 0 | MN21: 596 | MO21: 600 | MP21: 616 | MQ21: 10 | MR21: 303 | NN21: 592 | NO21: 600 | NP21: 616 | NQ21: 12 | NR21: 302 | ON21: 588 | OO21: 600 | OP21: 616 | OQ21: 14 | OR21: 301 | PN21: 584 | PO21: 600 | PP21: 616 | PQ21: 16 | PR21: 300 | QN21: 582 | QO21: 600 | QP21: 616 | QQ21: 17 | QR21: 299.5 | RN21: 580 | RO21: 600 | RP21: 616 | RQ21: 18 | RR21: 299 | SN21: 0 | SO21: 0 | SP21: 0 | SQ21: 0 | SR21: 0
B22: [N/m2] | C22: [N/m2] | D22: [-] | E22: [kN/m3] | F22: [%] | O22: 0 | P22: 0 | Q22: 0 | R22: 0 | S22: 0 | T22: 0 | AN22: 0 | AO22: 0 | AP22: 0 | AQ22: 0 | AR22: 0 | BN22: 0 | BO22: 0 | BP22: 0 | BQ22: 0 | BR22: 0 | CN22: 0 | CO22: 0 | CP22: 0 | CQ22: 0 | CR22: 0 | DN22: 0 | DO22: 0 | DP22: 0 | DQ22: 0 | DR22: 0 | EN22: 0 | EO22: 0 | EP22: 0 | EQ22: 0 | ER22: 0 | FN22: 0 | FO22: 0 | FP22: 0 | FQ22: 0 | FR22: 0 | GN22: 0 | GO22: 0 | GP22: 0 | GQ22: 0 | GR22: 0 | HN22: 0 | HO22: 0 | HP22: 0 | HQ22: 0 | HR22: 0 | IN22: 0 | IO22: 0 | IP22: 0 | IQ22: 0 | IR22: 0 | JN22: 0 | JO22: 0 | JP22: 0 | JQ22: 0 | JR22: 0 | KM22: 0 | KN22: 0 | KO22: 0 | KP22: 0 | KQ22: 0 | KR22: 0 | LM22: 0 | LN22: 0 | LO22: 0 | LP22: 0 | LQ22: 0 | LR22: 0 | MN22: 532 | MO22: 550 | MP22: 550 | MQ22: 9 | MR22: 270.5 | NN22: 528 | NO22: 550 | NP22: 550 | NQ22: 11 | NR22: 269.5 | ON22: 524 | OO22: 550 | OP22: 550 | OQ22: 13 | OR22: 268.5 | PN22: 520 | PO22: 550 | PP22: 550 | PQ22: 15 | PR22: 267.5 | QN22: 520 | QO22: 550 | QP22: 550 | QQ22: 15 | QR22: 267.5 | RN22: 518 | RO22: 550 | RP22: 550 | RQ22: 16 | RR22: 267 | SN22: 0 | SO22: 0 | SP22: 0 | SQ22: 0 | SR22: 0
A23: GF-UP SN 1250 | B23: 1250 | C23: 625 | D23: 0.35 | E23: 17 | F23: 9 | O23: 0 | P23: 0 | Q23: 0 | R23: 0 | S23: 0 | T23: 0 | AN23: 0 | AO23: 0 | AP23: 0 | AQ23: 0 | AR23: 0 | BN23: 0 | BO23: 0 | BP23: 0 | BQ23: 0 | BR23: 0 | CN23: 0 | CO23: 0 | CP23: 0 | CQ23: 0 | CR23: 0 | DN23: 0 | DO23: 0 | DP23: 0 | DQ23: 0 | DR23: 0 | EN23: 0 | EO23: 0 | EP23: 0 | EQ23: 0 | ER23: 0 | FN23: 0 | FO23: 0 | FP23: 0 | FQ23: 0 | FR23: 0 | GN23: 0 | GO23: 0 | GP23: 0 | GQ23: 0 | GR23: 0 | HN23: 0 | HO23: 0 | HP23: 0 | HQ23: 0 | HR23: 0 | IN23: 0 | IO23: 0 | IP23: 0 | IQ23: 0 | IR23: 0 | JN23: 0 | JO23: 0 | JP23: 0 | JQ23: 0 | JR23: 0 | KM23: 0 | KN23: 0 | KO23: 0 | KP23: 0 | KQ23: 0 | KR23: 0 | LM23: 0 | LN23: 0 | LO23: 0 | LP23: 0 | LQ23: 0 | LR23: 0 | MN23: 514 | MO23: 500 | MP23: 530 | MQ23: 8 | MR23: 261 | NN23: 510 | NO23: 500 | NP23: 530 | NQ23: 10 | NR23: 260 | ON23: 506 | OO23: 500 | OP23: 530 | OQ23: 12 | OR23: 259 | PN23: 502 | PO23: 500 | PP23: 530 | PQ23: 14 | PR23: 258 | QN23: 502 | QO23: 500 | QP23: 530 | QQ23: 14 | QR23: 258 | RN23: 500 | RO23: 500 | RP23: 530 | RQ23: 15 | RR23: 257.5 | SN23: 0 | SO23: 0 | SP23: 0 | SQ23: 0 | SR23: 0
A24: GF-UP SN 2500 | B24: 2500 | C24: 1250 | D24: 0.35 | E24: 17 | F24: 7.5 | O24: 0 | P24: 0 | Q24: 0 | R24: 0 | S24: 0 | T24: 0 | AN24: 0 | AO24: 0 | AP24: 0 | AQ24: 0 | AR24: 0 | BN24: 0 | BO24: 0 | BP24: 0 | BQ24: 0 | BR24: 0 | CN24: 0 | CO24: 0 | CP24: 0 | CQ24: 0 | CR24: 0 | DN24: 0 | DO24: 0 | DP24: 0 | DQ24: 0 | DR24: 0 | EN24: 0 | EO24: 0 | EP24: 0 | EQ24: 0 | ER24: 0 | FN24: 0 | FO24: 0 | FP24: 0 | FQ24: 0 | FR24: 0 | GN24: 0 | GO24: 0 | GP24: 0 | GQ24: 0 | GR24: 0 | HN24: 0 | HO24: 0 | HP24: 0 | HQ24: 0 | HR24: 0 | IN24: 0 | IO24: 0 | IP24: =IO24 -> 0 | IQ24: 0 | IR24: 0 | JN24: 0 | JO24: 0 | JP24: 0 | JQ24: 0 | JR24: 0 | KM24: 0 | KN24: 0 | KO24: 0 | KP24: 0 | KQ24: 0 | KR24: 0 | LM24: 0 | LN24: 0 | LO24: 0 | LP24: 0 | LQ24: 0 | LR24: 0 | MN24: 462 | MO24: 450 | MP24: 478 | MQ24: 8 | MR24: 235 | NN24: 460 | NO24: 450 | NP24: 478 | NQ24: 9 | NR24: 234.5 | ON24: 456 | OO24: 450 | OP24: 478 | OQ24: 11 | OR24: 233.5 | PN24: 452 | PO24: 450 | PP24: 478 | PQ24: 13 | PR24: 232.5 | QN24: 452 | QO24: 450 | QP24: 478 | QQ24: 13 | QR24: 232.5 | RN24: 450 | RO24: 450 | RP24: 478 | RQ24: 14 | RR24: 232 | SN24: 0 | SO24: 0 | SP24: 0 | SQ24: 0 | SR24: 0
A25: GF-UP SN 5000 | B25: 5000 | C25: 2500 | D25: 0.35 | E25: 17 | F25: 6 | O25: 0 | P25: 0 | Q25: 0 | R25: 0 | S25: 0 | T25: 0 | AN25: 0 | AO25: 0 | AP25: 0 | AQ25: 0 | AR25: 0 | BN25: 0 | BO25: 0 | BP25: 0 | BQ25: 0 | BR25: 0 | CN25: 0 | CO25: 0 | CP25: 0 | CQ25: 0 | CR25: 0 | DN25: 0 | DO25: 0 | DP25: 0 | DQ25: 0 | DR25: 0 | EN25: 0 | EO25: 0 | EP25: 0 | EQ25: 0 | ER25: 0 | FN25: 0 | FO25: 0 | FP25: 0 | FQ25: 0 | FR25: 0 | GN25: 0 | GO25: 0 | GP25: 0 | GQ25: 0 | GR25: 0 | HN25: 0 | HO25: 0 | HP25: 0 | HQ25: 0 | HR25: 0 | IN25: 0 | IO25: 0 | IP25: 0 | IQ25: 0 | IR25: 0 | JN25: 0 | JO25: 0 | JP25: 0 | JQ25: 0 | JR25: 0 | KM25: 0 | KN25: 0 | KO25: 0 | KP25: 0 | KQ25: 0 | KR25: 0 | LM25: 0 | LN25: 0 | LO25: 0 | LP25: 0 | LQ25: 0 | LR25: 0 | MN25: 411 | MO25: 400 | MP25: 427 | MQ25: 8 | MR25: 209.5 | NN25: 409 | NO25: 400 | NP25: 427 | NQ25: 9 | NR25: 209 | ON25: 405 | OO25: 400 | OP25: 427 | OQ25: 11 | OR25: 208 | PN25: 401 | PO25: 400 | PP25: 427 | PQ25: 13 | PR25: 207 | QN25: 401 | QO25: 400 | QP25: 427 | QQ25: 13 | QR25: 207 | RN25: 399 | RO25: 400 | RP25: 427 | RQ25: 14 | RR25: 206.5 | SN25: 0 | SO25: 0 | SP25: 0 | SQ25: 0 | SR25: 0
A26: GF-UP SN 10000 | B26: 10000 | C26: 5000 | D26: 0.35 | E26: 17 | F26: 4.5 | MN26: 362 | MO26: 350 | MP26: 376 | MQ26: 7 | MR26: 184.5 | NN26: 360 | NO26: 350 | NP26: 376 | NQ26: 8 | NR26: 184 | ON26: 356 | OO26: 350 | OP26: 376 | OQ26: 10 | OR26: 183 | PN26: 354 | PO26: 350 | PP26: 376 | PQ26: 11 | PR26: 182.5 | QN26: 352 | QO26: 350 | QP26: 376 | QQ26: 12 | QR26: 182 | RN26: 352 | RO26: 350 | RP26: 376 | RQ26: 12 | RR26: 182
A27: GF-UP SN 15000 | B27: 15000 | C27: 7500 | D27: 0.35 | E27: 17 | F27: 4 | AR27: 2.PP (dimensions de calcul) U4/V4 | BR27: 2.PP (dimensions de calcul) U4/V4 | CR27: 2.PP (dimensions de calcul) U4/V4 | DR27: 2.PP (dimensions de calcul) U4/V4 | ER27: 2.PVC (dimensions de calcul) U4/V4 | FR27: 2.PVC (dimensions de calcul) U4/V4 | GR27: 2.PVC (dimensions de calcul) U4/V4 | HR27: 2.PE (dimensions de calcul) U4/V4 | IR27: 2.PE (dimensions de calcul) U4/V4 | JR27: 2.PE (dimensions de calcul) U4/V4 | MN27: 0 | MO27: 0 | MP27: 0 | MQ27: 0 | MR27: 0 | NN27: 0 | NO27: 0 | NP27: 0 | NQ27: 0 | NR27: 0 | ON27: 306 | OO27: 300 | OP27: 324 | OQ27: 9 | OR27: 157.5 | PN27: 304 | PO27: 300 | PP27: 324 | PQ27: 10 | PR27: 157 | QN27: 304 | QO27: 300 | QP27: 324 | QQ27: 10 | QR27: 157 | RN27: 302 | RO27: 300 | RP27: 324 | RQ27: 11 | RR27: 156.5
A28: GF-UP SN 16000 | B28: 16000 | C28: 8000 | D28: 0.35 | E28: 17 | F28: 3.9 | O28: 2.Béton (dimensions de calcul) | AK28: 2.PP (dimensions de calcul) U1/V1 | AR28: Diamètre intérieur [mm] | AS28: Diamètre ext-érieur [mm] | AT28: épaisseur de paroi [mm] | AU28: rayon moyen [mm] | BK28: 2.PP (dimensions de calcul) U1/V1 | BR28: Diamètre intérieur [mm] | BS28: Diamètre ext-érieur [mm] | BT28: épaisseur de paroi [mm] | BU28: rayon moyen [mm] | CK28: 2.PP (dimensions de calcul) U1/V1 | CR28: Diamètre intérieur [mm] | CS28: Diamètre ext-érieur [mm] | CT28: épaisseur de paroi [mm] | CU28: rayon moyen [mm] | DK28: 2.PP (dimensions de calcul) U1/V1 | DR28: Diamètre intérieur [mm] | DS28: Diamètre ext-érieur [mm] | DT28: épaisseur de paroi [mm] | DU28: rayon moyen [mm] | EK28: 2.PVC (dimensions de calcul) U1/V1 | ER28: Diamètre intérieur [mm] | ES28: Diamètre ext-érieur [mm] | ET28: épaisseur de paroi [mm] | EU28: rayon moyen [mm] | FK28: 2.PVC (dimensions de calcul) U1/V1 | FR28: Diamètre intérieur [mm] | FS28: Diamètre ext-érieur [mm] | FT28: épaisseur de paroi [mm] | FU28: rayon moyen [mm] | GK28: 2.PVC (dimensions de calcul) U1/V1 | GR28: Diamètre intérieur [mm] | GS28: Diamètre ext-érieur [mm] | GT28: épaisseur de paroi [mm] | GU28: rayon moyen [mm] | HK28: 2.PE (dimensions de calcul) U1/V1 | HR28: Diamètre intérieur [mm] | HS28: Diamètre ext-érieur [mm] | HT28: épaisseur de paroi [mm] | HU28: rayon moyen [mm] | IK28: 2.PE (dimensions de calcul) U1/V1 | IR28: Diamètre intérieur [mm] | IS28: Diamètre ext-érieur [mm] | IT28: épaisseur de paroi [mm] | IU28: rayon moyen [mm] | JK28: 2.PE (dimensions de calcul) U1/V1 | JR28: Diamètre intérieur [mm] | JS28: Diamètre ext-érieur [mm] | JT28: épaisseur de paroi [mm] | JU28: rayon moyen [mm] | KM28: 2.Béton (dimensions de calcul) | LM28: 2.Béton (dimensions de calcul) | MN28: 0 | MO28: 0 | MP28: 0 | MQ28: 0 | MR28: 0 | NN28: 0 | NO28: 0 | NP28: 0 | NQ28: 0 | NR28: 0 | ON28: 256 | OO28: 250 | OP28: 272 | OQ28: 8 | OR28: 132 | PN28: 254 | PO28: 250 | PP28: 272 | PQ28: 9 | PR28: 131.5 | QN28: 254 | QO28: 250 | QP28: 272 | QQ28: 9 | QR28: 131.5 | RN28: 254 | RO28: 250 | RP28: 272 | RQ28: 9 | RR28: 131.5 | SK28: 2.Fonte (dimensions de calcul) U1/V1
A29: GF-UP SN 20000 | B29: 20000 | C29: 10000 | D29: 0.35 | E29: 17 | F29: 3.6 | O29: Diamètre intérieur [mm] | P29: Diamètre nominal [mm] | Q29: Diamètre ext-érieur [mm] | R29: épaisseur de paroi [mm] | S29: rayon moyen [mm] | T29: classe de résistance | AK29: Diamètre intérieur [mm] | AL29: Diamètre nominal [mm] | AM29: Diamètre ext-érieur [mm] | AN29: épaisseur de paroi [mm] | AO29: rayon moyen [mm] | BK29: Diamètre intérieur [mm] | BL29: Diamètre nominal [mm] | BM29: Diamètre ext-érieur [mm] | BN29: épaisseur de paroi [mm] | BO29: rayon moyen [mm] | CK29: Diamètre intérieur [mm] | CL29: Diamètre nominal [mm] | CM29: Diamètre ext-érieur [mm] | CN29: épaisseur de paroi [mm] | CO29: rayon moyen [mm] | DK29: Diamètre intérieur [mm] | DL29: Diamètre nominal [mm] | DM29: Diamètre ext-érieur [mm] | DN29: épaisseur de paroi [mm] | DO29: rayon moyen [mm] | EK29: Diamètre intérieur [mm] | EL29: Diamètre nominal [mm] | EM29: Diamètre ext-érieur [mm] | EN29: épaisseur de paroi [mm] | EO29: rayon moyen [mm] | FK29: Diamètre intérieur [mm] | FL29: Diamètre nominal [mm] | FM29: Diamètre ext-érieur [mm] | FN29: épaisseur de paroi [mm] | FO29: rayon moyen [mm] | GK29: Diamètre intérieur [mm] | GL29: Diamètre nominal [mm] | GM29: Diamètre ext-érieur [mm] | GN29: épaisseur de paroi [mm] | GO29: rayon moyen [mm] | HK29: Diamètre intérieur [mm] | HL29: Diamètre nominal [mm] | HM29: Diamètre ext-érieur [mm] | HN29: épaisseur de paroi [mm] | HO29: rayon moyen [mm] | IK29: Diamètre intérieur [mm] | IL29: Diamètre nominal [mm] | IM29: Diamètre ext-érieur [mm] | IN29: épaisseur de paroi [mm] | IO29: rayon moyen [mm] | JK29: Diamètre intérieur [mm] | JL29: Diamètre nominal [mm] | JM29: Diamètre ext-érieur [mm] | JN29: épaisseur de paroi [mm] | JO29: rayon moyen [mm] | KM29: Diamètre intérieur [mm] | KN29: Diamètre nominal [mm] | KO29: Diamètre extérieur [mm] | KP29: épaisseur de paroi [mm] | KQ29: rayon moyen [mm] | KR29: classe de résistance | LM29: Diamètre intérieur [mm] | LN29: Diamètre nominal [mm] | LO29: Diamètre extérieur [mm] | LP29: épaisseur de paroi [mm] | LQ29: rayon moyen [mm] | LR29: classe de résistance | MN29: 0 | MO29: 0 | MP29: 0 | MQ29: 0 | MR29: 0 | NN29: 0 | NO29: 0 | NP29: 0 | NQ29: 0 | NR29: 0 | ON29: 206 | OO29: 200 | OP29: 220 | OQ29: 7 | OR29: 106.5 | PN29: 206 | PO29: 200 | PP29: 220 | PQ29: 7 | PR29: 106.5 | QN29: 206 | QO29: 200 | QP29: 220 | QQ29: 7 | QR29: 106.5 | RN29: 204 | RO29: 200 | RP29: 220 | RQ29: 8 | RR29: 106 | SK29: Diamètre intérieur [mm] | SL29: Diamètre nominal [mm] | SM29: Diamètre ext-érieur [mm] | SN29: épaisseur de paroi [mm] | SO29: rayon moyen [mm]
AR30: di | AS30: da | AT30: e | AU30: rm | BR30: di | BS30: da | BT30: e | BU30: rm | CR30: di | CS30: da | CT30: e | CU30: rm | DR30: di | DS30: da | DT30: e | DU30: rm | ER30: di | ES30: da | ET30: e | EU30: rm | FR30: di | FS30: da | FT30: e | FU30: rm | GR30: di | GS30: da | GT30: e | GU30: rm | HR30: di | HS30: da | HT30: e | HU30: rm | IR30: di | IS30: da | IT30: e | IU30: rm | JR30: di | JS30: da | JT30: e | JU30: rm | MR30: 2.GF-UP (dimensions de calcul) U4/V4 | NR30: 2.GF-UP (dimensions de calcul) U4/V4 | OR30: 2.GF-UP (dimensions de calcul) U4/V4 | PR30: 2.GF-UP (dimensions de calcul) U4/V4 | QR30: 2.GF-UP (dimensions de calcul) U4/V4 | RR30: 2.GF-UP (dimensions de calcul) U4/V4
A31: Facteur dynamique ψ | B31: Trafic routier [SIA 190;Tableau 14 +15] | F31: Bord de route | O31: di | P31: DN | Q31: da | R31: e | S31: rm | T31: FK | AK31: di | AL31: DN | AM31: da | AN31: e | AO31: rm | AR31: =AM32 -> 400 | AS31: =AR31+2*AT31 -> 730 | AT31: 165 | AU31: =(AS31-AT31)/2 -> 282.5 | BK31: di | BL31: DN | BM31: da | BN31: e | BO31: rm | BR31: =BM32 -> 400 | BS31: =BR31+2*BT31 -> 730 | BT31: 165 | BU31: =(BS31-BT31)/2 -> 282.5 | CK31: di | CL31: DN | CM31: da | CN31: e | CO31: rm | CR31: =CM32 -> 400 | CS31: =CR31+2*CT31 -> 730 | CT31: 165 | CU31: =(CS31-CT31)/2 -> 282.5 | DK31: di | DL31: DN | DM31: da | DN31: e | DO31: rm | DR31: =DM32 -> 400 | DS31: =DR31+2*DT31 -> 730 | DT31: 165 | DU31: =(DS31-DT31)/2 -> 282.5 | EK31: di | EL31: DN | EM31: da | EN31: e | EO31: rm | ER31: =EM32 -> 315 | ES31: =ER31+2*ET31 -> 615 | ET31: 150 | EU31: =(ES31-ET31)/2 -> 232.5 | FK31: di | FL31: DN | FM31: da | FN31: e | FO31: rm | FR31: =FM32 -> 355 | FS31: =FR31+2*FT31 -> 655 | FT31: 150 | FU31: =(FS31-FT31)/2 -> 252.5 | GK31: di | GL31: DN | GM31: da | GN31: e | GO31: rm | GR31: =GM32 -> 355 | GS31: =GR31+2*GT31 -> 655 | GT31: 150 | GU31: =(GS31-GT31)/2 -> 252.5 | HK31: di | HL31: DN | HM31: da | HN31: e | HO31: rm | HR31: =HM32 -> 355 | HS31: =HR31+2*HT31 -> 655 | HT31: 150 | HU31: =(HS31-HT31)/2 -> 252.5 | IK31: di | IL31: DN | IM31: da | IN31: e | IO31: rm | IR31: =IM32 -> 355 | IS31: =IR31+2*IT31 -> 655 | IT31: 150 | IU31: =(IS31-IT31)/2 -> 252.5 | JK31: di | JL31: DN | JM31: da | JN31: e | JO31: rm | JR31: =JM32 -> 355 | JS31: =JR31+2*JT31 -> 655 | JT31: 150 | JU31: =(JS31-JT31)/2 -> 252.5 | KM31: di | KN31: DN | KO31: da | KP31: e | KQ31: rm | KR31: FK | LM31: di | LN31: DN | LO31: da | LP31: e | LQ31: rm | LR31: FK | MJ31: 2.GF-UP (dimensions de calcul) U1/V1 | MR31: Diamètre intérieur [mm] | MS31: Diamètre ext-érieur [mm] | MT31: 500 | MU31: rayon moyen [mm] | NJ31: 2.GF-UP (dimensions de calcul) U1/V1 | NR31: Diamètre intérieur [mm] | NS31: Diamètre ext-érieur [mm] | NT31: 150 | NU31: rayon moyen [mm] | OJ31: 2.GF-UP (dimensions de calcul) U1/V1 | OR31: Diamètre intérieur [mm] | OS31: Diamètre ext-érieur [mm] | OT31: 150 | OU31: rayon moyen [mm] | PJ31: 2.GF-UP (dimensions de calcul) U1/V1 | PR31: Diamètre intérieur [mm] | PS31: Diamètre ext-érieur [mm] | PT31: 150 | PU31: rayon moyen [mm] | QJ31: 2.GF-UP (dimensions de calcul) U1/V1 | QR31: Diamètre intérieur [mm] | QS31: Diamètre ext-érieur [mm] | QT31: 150 | QU31: rayon moyen [mm] | RJ31: 2.GF-UP (dimensions de calcul) U1/V1 | RR31: Diamètre intérieur [mm] | RS31: Diamètre ext-érieur [mm] | RT31: 150 | RU31: rayon moyen [mm] | SK31: di | SL31: DN | SM31: da | SN31: e | SO31: rm
O32: =INDEX(O7:O16,MATCH(Données!AE6,Calculs!O7:O16,-1)) -> 300 | P32: =VLOOKUP(O32,O7:T16,2,FALSE) -> 300 | Q32: =VLOOKUP(O32,O7:T16,3,FALSE) -> 380 | R32: =VLOOKUP(O32,O7:T16,4,FALSE) -> 40 | S32: =VLOOKUP(O32,O7:T16,5,FALSE) -> 170 | T32: =VLOOKUP(P32,O7:T16,6,FALSE) -> 90 | AK32: =IF(Données!$AE$6>375.4,375.4,INDEX(AN7:AN10,MATCH(Données!$AE$6,Calculs!AN7:AN10,-1))) -> 375.4 | AL32: =VLOOKUP(AK32,Calculs!AN7:AR10,2,FALSE) -> 400 | AM32: =VLOOKUP(AK32,Calculs!AN7:AR10,3,FALSE) -> 400 | AN32: =VLOOKUP(AK32,Calculs!AN7:AR10,4,FALSE) -> 12.3 | AO32: =VLOOKUP(AK32,Calculs!AN7:AR10,5,FALSE) -> 193.85 | BK32: =IF(Données!$AE$6>465.8,465.8,INDEX(BN7:BN11,MATCH(Données!$AE$6,Calculs!BN7:BN11,-1))) -> 372.6 | BL32: =VLOOKUP(BK32,Calculs!BN7:BR11,2,FALSE) -> 400 | BM32: =VLOOKUP(BK32,Calculs!BN7:BR11,3,FALSE) -> 400 | BN32: =VLOOKUP(BK32,Calculs!BN7:BR11,4,FALSE) -> 13.7 | BO32: =VLOOKUP(BK32,Calculs!BN7:BR11,5,FALSE) -> 193.15 | CK32: =IF(Données!$AE$6>461.8,461.8,INDEX(CN7:CN11,MATCH(Données!$AE$6,Calculs!CN7:CN11,-1))) -> 369.4 | CL32: =VLOOKUP(CK32,Calculs!CN7:CR11,2,FALSE) -> 400 | CM32: =VLOOKUP(CK32,Calculs!CN7:CR11,3,FALSE) -> 400 | CN32: =VLOOKUP(CK32,Calculs!CN7:CR11,4,FALSE) -> 15.3 | CO32: =VLOOKUP(CK32,Calculs!CN7:CR11,5,FALSE) -> 192.35 | DK32: =IF(Données!$AE$6>454.4,454.4,INDEX(DN7:DN11,MATCH(Données!$AE$6,Calculs!DN7:DN11,-1))) -> 363.6 | DL32: =VLOOKUP(DK32,Calculs!DN7:DR11,2,FALSE) -> 400 | DM32: =VLOOKUP(DK32,Calculs!DN7:DR11,3,FALSE) -> 400 | DN32: =VLOOKUP(DK32,Calculs!DN7:DR11,4,FALSE) -> 18.2 | DO32: =VLOOKUP(DK32,Calculs!DN7:DR11,5,FALSE) -> 190.9 | EK32: =IF(Données!$AE$6>960.8,960.8,INDEX(EN7:EN18,MATCH(Données!$AE$6,Calculs!EN7:EN18,-1))) -> 302.6 | EL32: =VLOOKUP(EK32,Calculs!EN7:ER18,2,FALSE) -> 315 | EM32: =VLOOKUP(EK32,Calculs!EN7:ER18,3,FALSE) -> 315 | EN32: =VLOOKUP(EK32,Calculs!EN7:ER18,4,FALSE) -> 6.2 | EO32: =VLOOKUP(EK32,Calculs!EN7:ER18,5,FALSE) -> 154.4 | FK32: =IF(Données!$AE$6>951,951,INDEX(FN7:FN18,MATCH(Données!$AE$6,Calculs!FN7:FN18,-1))) -> 337.6 | FL32: =VLOOKUP(FK32,Calculs!FN7:FR18,2,FALSE) -> 355 | FM32: =VLOOKUP(FK32,Calculs!FN7:FR18,3,FALSE) -> 355 | FN32: =VLOOKUP(FK32,Calculs!FN7:FR18,4,FALSE) -> 8.7 | FO32: =VLOOKUP(FK32,Calculs!FN7:FR18,5,FALSE) -> 173.15 | GK32: =IF(Données!$AE$6>753.4,753.4,INDEX(GN7:GN16,MATCH(Données!$AE$6,Calculs!GN7:GN16,-1))) -> 334.2 | GL32: =VLOOKUP(GK32,Calculs!GN7:GR16,2,FALSE) -> 355 | GM32: =VLOOKUP(GK32,Calculs!GN7:GR16,3,FALSE) -> 355 | GN32: =VLOOKUP(GK32,Calculs!GN7:GR16,4,FALSE) -> 10.4 | GO32: =VLOOKUP(GK32,Calculs!GN7:GR16,5,FALSE) -> 172.3 | HK32: =IF(Données!$AE$6>591.4,591.4,INDEX(HN7:HN25,MATCH(Données!$AE$6,Calculs!HN7:HN25,-1))) -> 333.2 | HL32: =VLOOKUP(HK32,Calculs!HN7:HR25,2,FALSE) -> 355 | HM32: =VLOOKUP(HK32,Calculs!HN7:HR25,3,FALSE) -> 355 | HN32: =VLOOKUP(HK32,Calculs!HN7:HR25,4,FALSE) -> 10.9 | HO32: =VLOOKUP(HK32,Calculs!HN7:HR25,5,FALSE) -> 172.05 | IK32: =IF(Données!$AE$6>369.4,369.4,INDEX(IN7:IN18,MATCH(Données!$AE$6,Calculs!IN7:IN18,-1))) -> 327.8 | IL32: =VLOOKUP(IK32,Calculs!IN7:IR18,2,FALSE) -> 355 | IM32: =VLOOKUP(IK32,Calculs!IN7:IR18,3,FALSE) -> 355 | IN32: =VLOOKUP(IK32,Calculs!IN7:IR18,4,FALSE) -> 13.6 | IO32: =VLOOKUP(IK32,Calculs!IN7:IR18,5,FALSE) -> 170.7 | JK32: =IF(Données!$AE$6>361.8,361.8,INDEX(JN7:JN16,MATCH(Données!$AE$6,Calculs!JN7:JN16,-1))) -> 321.2 | JL32: =VLOOKUP(JK32,Calculs!JN7:JR16,2,FALSE) -> 355 | JM32: =VLOOKUP(JK32,Calculs!JN7:JR16,3,FALSE) -> 355 | JN32: =VLOOKUP(JK32,Calculs!JN7:JR16,4,FALSE) -> 16.9 | JO32: =VLOOKUP(JK32,Calculs!JN7:JR16,5,FALSE) -> 169.05 | KM32: =IF(KM7>Données!$AE$6,INDEX(KM7:KM25,MATCH(Données!$AE$6,Calculs!KM7:KM25,-1)),KM7) -> 300 | KN32: =VLOOKUP(KM32,KM7:KR25,2,FALSE) -> 300 | KO32: =VLOOKUP(KM32,KM7:KR25,3,FALSE) -> 355 | KP32: =VLOOKUP(KM32,KM7:KR25,4,FALSE) -> 27.5 | KQ32: =VLOOKUP(KM32,KM7:KR25,5,FALSE) -> 163.75 | KR32: =VLOOKUP(KN32,KN7:KR25,5,FALSE) -> 160 | LM32: =IF(LM7>Données!$AE$6,INDEX(LM7:LM25,MATCH(Données!$AE$6,Calculs!LM7:LM25,-1)),LM7) -> 300 | LN32: =VLOOKUP(LM32,LM7:LR25,2,FALSE) -> 300 | LO32: =VLOOKUP(LM32,LM7:LR25,3,FALSE) -> 376 | LP32: =VLOOKUP(LM32,LM7:LR25,4,FALSE) -> 38 | LQ32: =VLOOKUP(LM32,LM7:LR25,5,FALSE) -> 169 | LR32: =VLOOKUP(LN32,LN7:LR25,5,FALSE) -> 240 | MJ32: Diamètre intérieur [mm] | MK32: Diamètre nominal [mm] | ML32: Diamètre ext-érieur [mm] | MM32: épaisseur de paroi [mm] | MN32: rayon moyen [mm] | MO32: Valeur de calcul de la tension annulaire [N/mm2] | NJ32: Diamètre intérieur [mm] | NK32: Diamètre nominal [mm] | NL32: Diamètre ext-érieur [mm] | NM32: épaisseur de paroi [mm] | NN32: rayon moyen [mm] | NO32: Valeur de calcul de la tension annulaire [N/mm2] | OJ32: Diamètre intérieur [mm] | OK32: Diamètre nominal [mm] | OL32: Diamètre ext-érieur [mm] | OM32: épaisseur de paroi [mm] | ON32: rayon moyen [mm] | OO32: Valeur de calcul de la tension annulaire [N/mm2] | PJ32: Diamètre intérieur [mm] | PK32: Diamètre nominal [mm] | PL32: Diamètre ext-érieur [mm] | PM32: épaisseur de paroi [mm] | PN32: rayon moyen [mm] | PO32: Valeur de calcul de la tension annulaire [N/mm2] | QJ32: Diamètre intérieur [mm] | QK32: Diamètre nominal [mm] | QL32: Diamètre ext-érieur [mm] | QM32: épaisseur de paroi [mm] | QN32: rayon moyen [mm] | QO32: Valeur de calcul de la tension annulaire [N/mm2] | RJ32: Diamètre intérieur [mm] | RK32: Diamètre nominal [mm] | RL32: Diamètre ext-érieur [mm] | RM32: épaisseur de paroi [mm] | RN32: rayon moyen [mm] | RO32: Valeur de calcul de la tension annulaire [N/mm2] | SK32: =IF(Données!$AE$6>718.8,718.8,INDEX(SN7:SN16,MATCH(Données!$AE$6,Calculs!SN7:SN16,-1))) -> 314.8 | SL32: =VLOOKUP(SK32,Calculs!SN7:SR16,2,FALSE) -> 300 | SM32: =VLOOKUP(SK32,Calculs!SN7:SR16,3,FALSE) -> 326 | SN32: =VLOOKUP(SK32,Calculs!SN7:SR16,4,FALSE) -> 5.6 | SO32: =VLOOKUP(SK32,Calculs!SN7:SR16,5,FALSE) -> 160.2
A33: =IF(OR(Données!AE26="Avec",Données!AE26="Mit"),1.25-0.1*(Données!AE52-0.5),1) -> 1 | B33: Totale | C33: Charge de roue | D33: Totale - charge de roue | F33: Totale | G33: Charge de roue | H33: Totale - charge de roue | AR33: EEnrobage | AS33: 20000 | AT33: N/mm2 | BR33: EEnrobage | BS33: 20000 | BT33: N/mm2 | CR33: EEnrobage | CS33: 20000 | CT33: N/mm2 | DR33: EEnrobage | DS33: 20000 | DT33: N/mm2 | ER33: EEnrobage | ES33: 20000 | ET33: N/mm2 | FR33: EEnrobage | FS33: 20000 | FT33: N/mm2 | GR33: EEnrobage | GS33: 20000 | GT33: N/mm2 | HR33: EEnrobage | HS33: 20000 | HT33: N/mm2 | IR33: EEnrobage | IS33: 20000 | IT33: N/mm2 | JR33: EEnrobage | JS33: 20000 | JT33: N/mm2 | MR33: di | MS33: da | MT33: e | MU33: rm | NR33: di | NS33: da | NT33: e | NU33: rm | OR33: di | OS33: da | OT33: e | OU33: rm | PR33: di | PS33: da | PT33: e | PU33: rm | QR33: di | QS33: da | QT33: e | QU33: rm | RR33: di | RS33: da | RT33: e | RU33: rm
MJ34: di | MK34: DN | ML34: da | MM34: e | MN34: rm | MO34: S0,court | MP34: S0,long | MR34: =ML35 -> 376 | MS34: =MR34+2*MT34 -> 686 | MT34: 155 | MU34: =(MS34-MT34)/2 -> 265.5 | NJ34: di | NK34: DN | NL34: da | NM34: e | NN34: rm | NO34: S0,court | NP34: S0,long | NR34: =NL35 -> 376 | NS34: =NR34+2*NT34 -> 686 | NT34: 155 | NU34: =(NS34-NT34)/2 -> 265.5 | OJ34: di | OK34: DN | OL34: da | OM34: e | ON34: rm | OO34: S0,court | OP34: S0,long | OR34: =OL35 -> 324 | OS34: =OR34+2*OT34 -> 624 | OT34: 150 | OU34: =(OS34-OT34)/2 -> 237 | PJ34: di | PK34: DN | PL34: da | PM34: e | PN34: rm | PO34: S0,court | PP34: S0,long | PR34: =PL35 -> 324 | PS34: =PR34+2*PT34 -> 624 | PT34: 150 | PU34: =(PS34-PT34)/2 -> 237 | QJ34: di | QK34: DN | QL34: da | QM34: e | QN34: rm | QO34: S0,court | QP34: S0,long | QR34: =QL35 -> 324 | QS34: =QR34+2*QT34 -> 624 | QT34: 150 | QU34: =(QS34-QT34)/2 -> 237 | RJ34: di | RK34: DN | RL34: da | RM34: e | RN34: rm | RO34: S0,court | RP34: S0,long | RR34: =RL35 -> 324 | RS34: =RR34+2*RT34 -> 624 | RT34: 150 | RU34: =(RS34-RT34)/2 -> 237
A35: H [m] | B35: pv [kN/m2] | C35: proue [kN/m2] | D35: p [kN/m2] | E35: H [m] | F35: pv [kN/m2] | G35: proue [kN/m2] | H35: p [kN/m2] | O35: 3. Rigidité | AK35: 3. Rigidité U1/V1 | AR35: 3. Rigidité U4/V4 | BK35: 3. Rigidité U1/V1 | BR35: 3. Rigidité U4/V4 | CK35: 3. Rigidité U1/V1 | CR35: 3. Rigidité U4/V4 | DK35: 3. Rigidité U1/V1 | DR35: 3. Rigidité U4/V4 | EK35: 3. Rigidité U1/V1 | ER35: 3. Rigidité U4/V4 | FK35: 3. Rigidité U1/V1 | FR35: 3. Rigidité U4/V4 | GK35: 3. Rigidité U1/V1 | GR35: 3. Rigidité U4/V4 | HK35: 3. Rigidité U1/V1 | HR35: 3. Rigidité U4/V4 | IK35: 3. Rigidité U1/V1 | IR35: 3. Rigidité U4/V4 | JK35: 3. Rigidité U1/V1 | JR35: 3. Rigidité U4/V4 | KM35: 3. Rigidité | LM35: 3. Rigidité | MJ35: =IF(Données!$AE$6>1457,1457,INDEX(MN7:MN29,MATCH(Données!$AE$6,Calculs!MN7:MN29,-1))) -> 362 | MK35: =VLOOKUP(MJ35,Calculs!MN7:MR29,2,FALSE) -> 350 | ML35: =VLOOKUP(MJ35,Calculs!MN7:MR29,3,FALSE) -> 376 | MM35: =VLOOKUP(MJ35,Calculs!MN7:MR29,4,FALSE) -> 7 | MN35: =VLOOKUP(MJ35,Calculs!MN7:MR29,5,FALSE) -> 184.5 | MO35: =B24 -> 2500 | MP35: =C24 -> 1250 | NJ35: =IF(Données!$AE$6>1445,1445,INDEX(NN7:NN29,MATCH(Données!$AE$6,Calculs!NN7:NN29,-1))) -> 360 | NK35: =VLOOKUP(NJ35,Calculs!NN7:NR29,2,FALSE) -> 350 | NL35: =VLOOKUP(NJ35,Calculs!NN7:NR29,3,FALSE) -> 376 | NM35: =VLOOKUP(NJ35,Calculs!NN7:NR29,4,FALSE) -> 8 | NN35: =VLOOKUP(NJ35,Calculs!NN7:NR29,5,FALSE) -> 184 | NO35: =B25 -> 5000 | NP35: =C25 -> 2500 | OJ35: =IF(Données!$AE$6>1433,1433,INDEX(ON7:ON29,MATCH(Données!$AE$6,Calculs!ON7:ON29,-1))) -> 306 | OK35: =VLOOKUP(OJ35,Calculs!ON7:OR29,2,FALSE) -> 300 | OL35: =VLOOKUP(OJ35,Calculs!ON7:OR29,3,FALSE) -> 324 | OM35: =VLOOKUP(OJ35,Calculs!ON7:OR29,4,FALSE) -> 9 | ON35: =VLOOKUP(OJ35,Calculs!ON7:OR29,5,FALSE) -> 157.5 | OO35: =B26 -> 10000 | OP35: =C26 -> 5000 | PJ35: =IF(Données!$AE$6>1425,1425,INDEX(PN7:PN29,MATCH(Données!$AE$6,Calculs!PN7:PN29,-1))) -> 304 | PK35: =VLOOKUP(PJ35,Calculs!PN7:PR29,2,FALSE) -> 300 | PL35: =VLOOKUP(PJ35,Calculs!PN7:PR29,3,FALSE) -> 324 | PM35: =VLOOKUP(PJ35,Calculs!PN7:PR29,4,FALSE) -> 10 | PN35: =VLOOKUP(PJ35,Calculs!PN7:PR29,5,FALSE) -> 157 | PO35: =B27 -> 15000 | PP35: =C27 -> 7500 | QJ35: =IF(Données!$AE$6>1423,1423,INDEX(QN7:QN29,MATCH(Données!$AE$6,Calculs!QN7:QN29,-1))) -> 304 | QK35: =VLOOKUP(QJ35,Calculs!QN7:QR29,2,FALSE) -> 300 | QL35: =VLOOKUP(QJ35,Calculs!QN7:QR29,3,FALSE) -> 324 | QM35: =VLOOKUP(QJ35,Calculs!QN7:QR29,4,FALSE) -> 10 | QN35: =VLOOKUP(QJ35,Calculs!QN7:QR29,5,FALSE) -> 157 | QO35: =B28 -> 16000 | QP35: =C28 -> 8000 | RJ35: =IF(Données!$AE$6>1417,1417,INDEX(RN7:RN29,MATCH(Données!$AE$6,Calculs!RN7:RN29,-1))) -> 302 | RK35: =VLOOKUP(RJ35,Calculs!RN7:RR29,2,FALSE) -> 300 | RL35: =VLOOKUP(RJ35,Calculs!RN7:RR29,3,FALSE) -> 324 | RM35: =VLOOKUP(RJ35,Calculs!RN7:RR29,4,FALSE) -> 11 | RN35: =VLOOKUP(RJ35,Calculs!RN7:RR29,5,FALSE) -> 156.5 | RO35: =B29 -> 20000 | RP35: =C29 -> 10000 | SK35: 3. Rigidité U1/V1
A36: 0.5 | B36: 203.9063 | C36: 155.2873 | D36: =B36-C36 -> 48.619 | E36: 0.5 | F36: 168.3565 | G36: 155.2873 | H36: =F36-G36 -> 13.0692 | O36: SFcourt | Q36: SFlong | AK36: SFcourt | AM36: SFlong | AR36: SFcourt | AT36: SFlong | BK36: SFcourt | BM36: SFlong | BR36: SFcourt | BT36: SFlong | CK36: SFcourt | CM36: SFlong | CR36: SFcourt | CT36: SFlong | DK36: SFcourt | DM36: SFlong | DR36: SFcourt | DT36: SFlong | EK36: SFcourt | EM36: SFlong | ER36: SFcourt | ET36: SFlong | FK36: SFcourt | FM36: SFlong | FR36: SFcourt | FT36: SFlong | GK36: SFcourt | GM36: SFlong | GR36: SFcourt | GT36: SFlong | HK36: SFcourt | HM36: SFlong | HR36: SFcourt | HT36: SFlong | IK36: SFcourt | IM36: SFlong | IR36: SFcourt | IT36: SFlong | JK36: SFcourt | JM36: SFlong | JR36: SFcourt | JT36: SFlong | KM36: SFcourt | KO36: SFlong | LM36: SFcourt | LO36: SFlong | MR36: EEnrobage | MS36: 20000 | MT36: N/mm2 | NR36: EEnrobage | NS36: 20000 | NT36: N/mm2 | OR36: EEnrobage | OS36: 20000 | OT36: N/mm2 | PR36: EEnrobage | PS36: 20000 | PT36: N/mm2 | QR36: EEnrobage | QS36: 20000 | QT36: N/mm2 | RR36: EEnrobage | RS36: 20000 | RT36: N/mm2 | SK36: SFcourt | SM36: SFlong
A37: 0.625 | B37: 156.6532 | C37: 108.3114 | D37: =B37-C37 -> 48.3418 | E37: 0.625 | F37: 123.1211 | G37: 108.3114 | H37: =F37-G37 -> 14.8097 | O37: =2/3*(B7/(Données!$AE$38*0.6))*(Calculs!$R$32/(2*Calculs!$S$32))^3 -> 10.85555329 | P37: =IF(AND(O37>=0.1,Accueil!$AZ$15="Français"),"rigide",IF(AND(O37<0.1,Accueil!$AZ$15="Français"),"souple",IF(AND(O37>=0.1,Accueil!$AZ$15="Deutsch"),"steif",IF(AND(O37<0.1,Accueil!$AZ$15="Deutsch"),"weich")))) -> rigide | Q37: =2/3*(C7/(Données!$AE$38*0.6))*(Calculs!$R$32/(2*Calculs!$S$32))^3 -> 10.85555329 | R37: =IF(AND(Q37>=0.1,Accueil!$AZ$15="Français"),"rigide",IF(AND(Q37<0.1,Accueil!$AZ$15="Français"),"souple",IF(AND(Q37>=0.1,Accueil!$AZ$15="Deutsch"),"steif",IF(AND(Q37<0.1,Accueil!$AZ$15="Deutsch"),"weich")))) -> rigide | AK37: =2/3*(B12/(Données!$AE$38*0.6))*(Calculs!AN32/(2*Calculs!AO32))^3 -> 0.008870036982 | AL37: =IF(AND(AK37>=0.1,Accueil!$AZ$15="Français"),"rigide",IF(AND(AK37<0.1,Accueil!$AZ$15="Français"),"souple",IF(AND(AK37>=0.1,Accueil!$AZ$15="Deutsch"),"steif",IF(AND(AK37<0.1,Accueil!$AZ$15="Deutsch"),"weich")))) -> souple | AM37: =2/3*(C12/(Données!$AE$38*0.6))*(Calculs!$AN$32/(2*Calculs!$AO$32))^3 -> 0.002128808876 | AN37: =IF(AND(AM37>=0.1,Accueil!$AZ$15="Français"),"rigide",IF(AND(AM37<0.1,Accueil!$AZ$15="Français"),"souple",IF(AND(AM37>=0.1,Accueil!$AZ$15="Deutsch"),"steif",IF(AND(AM37<0.1,Accueil!$AZ$15="Deutsch"),"weich")))) -> souple | AR37: =2/3*(AS33/(Données!$AE$38*0.6))*(Calculs!AT31/(2*Calculs!AU31))^3 -> 110.6939719 | AS37: =IF(AND(AR37>=0.1,Accueil!$AZ$15="Français"),"rigide",IF(AND(AR37<0.1,Accueil!$AZ$15="Français"),"souple",IF(AND(AR37>=0.1,Accueil!$AZ$15="Deutsch"),"steif",IF(AND(AR37<0.1,Accueil!$AZ$15="Deutsch"),"weich")))) -> rigide | AT37: =2/3*(AS33/(Données!$AE$38*0.6))*(Calculs!$AT$31/(2*Calculs!$AU$31))^3 -> 110.6939719 | AU37: =IF(AND(AT37>=0.1,Accueil!$AZ$15="Français"),"rigide",IF(AND(AT37<0.1,Accueil!$AZ$15="Français"),"souple",IF(AND(AT37>=0.1,Accueil!$AZ$15="Deutsch"),"steif",IF(AND(AT37<0.1,Accueil!$AZ$15="Deutsch"),"weich")))) -> rigide | BK37: =2/3*($B$12/(Données!$AE$38*0.6))*(Calculs!BN32/(2*Calculs!BO32))^3 -> 0.01239039285 | BL37: =IF(AND(BK37>=0.1,Accueil!$AZ$15="Français"),"rigide",IF(AND(BK37<0.1,Accueil!$AZ$15="Français"),"souple",IF(AND(BK37>=0.1,Accueil!$AZ$15="Deutsch"),"steif",IF(AND(BK37<0.1,Accueil!$AZ$15="Deutsch"),"weich")))) -> souple | BM37: =2/3*($C$12/(Données!$AE$38*0.6))*(BN32/(2*BO32))^3 -> 0.002973694283 | BN37: =IF(AND(BM37>=0.1,Accueil!$AZ$15="Français"),"rigide",IF(AND(BM37<0.1,Accueil!$AZ$15="Français"),"souple",IF(AND(BM37>=0.1,Accueil!$AZ$15="Deutsch"),"steif",IF(AND(BM37<0.1,Accueil!$AZ$15="Deutsch"),"weich")))) -> souple | BR37: =2/3*(BS33/(Données!$AE$38*0.6))*(Calculs!BT31/(2*Calculs!BU31))^3 -> 110.6939719 | BS37: =IF(AND(BR37>=0.1,Accueil!$AZ$15="Français"),"rigide",IF(AND(BR37<0.1,Accueil!$AZ$15="Français"),"souple",IF(AND(BR37>=0.1,Accueil!$AZ$15="Deutsch"),"steif",IF(AND(BR37<0.1,Accueil!$AZ$15="Deutsch"),"weich")))) -> rigide | BT37: =2/3*(BS33/(Données!$AE$38*0.6))*(Calculs!$BT$31/(2*Calculs!$BU$31))^3 -> 110.6939719 | BU37: =IF(AND(BT37>=0.1,Accueil!$AZ$15="Français"),"rigide",IF(AND(BT37<0.1,Accueil!$AZ$15="Français"),"souple",IF(AND(BT37>=0.1,Accueil!$AZ$15="Deutsch"),"steif",IF(AND(BT37<0.1,Accueil!$AZ$15="Deutsch"),"weich")))) -> rigide | CK37: =2/3*($B$12/(Données!$AE$38*0.6))*(Calculs!CN32/(2*Calculs!CO32))^3 -> 0.0174745191 | CL37: =IF(AND(CK37>=0.1,Accueil!$AZ$15="Français"),"rigide",IF(AND(CK37<0.1,Accueil!$AZ$15="Français"),"souple",IF(AND(CK37>=0.1,Accueil!$AZ$15="Deutsch"),"steif",IF(AND(CK37<0.1,Accueil!$AZ$15="Deutsch"),"weich")))) -> souple | CM37: =2/3*($C$12/(Données!$AE$38*0.6))*(CN32/(2*CO32))^3 -> 0.004193884584 | CN37: =IF(AND(CM37>=0.1,Accueil!$AZ$15="Français"),"rigide",IF(AND(CM37<0.1,Accueil!$AZ$15="Français"),"souple",IF(AND(CM37>=0.1,Accueil!$AZ$15="Deutsch"),"steif",IF(AND(CM37<0.1,Accueil!$AZ$15="Deutsch"),"weich")))) -> souple | CR37: =2/3*(CS33/(Données!$AE$38*0.6))*(Calculs!CT31/(2*Calculs!CU31))^3 -> 110.6939719 | CS37: =IF(AND(CR37>=0.1,Accueil!$AZ$15="Français"),"rigide",IF(AND(CR37<0.1,Accueil!$AZ$15="Français"),"souple",IF(AND(CR37>=0.1,Accueil!$AZ$15="Deutsch"),"steif",IF(AND(CR37<0.1,Accueil!$AZ$15="Deutsch"),"weich")))) -> rigide | CT37: =2/3*(CS33/(Données!$AE$38*0.6))*(Calculs!$CT$31/(2*Calculs!$CU$31))^3 -> 110.6939719 | CU37: =IF(AND(CT37>=0.1,Accueil!$AZ$15="Français"),"rigide",IF(AND(CT37<0.1,Accueil!$AZ$15="Français"),"souple",IF(AND(CT37>=0.1,Accueil!$AZ$15="Deutsch"),"steif",IF(AND(CT37<0.1,Accueil!$AZ$15="Deutsch"),"weich")))) -> rigide | DK37: =2/3*($B$12/(Données!$AE$38*0.6))*(Calculs!DN32/(2*Calculs!DO32))^3 -> 0.03008873234 | DL37: =IF(AND(DK37>=0.1,Accueil!$AZ$15="Français"),"rigide",IF(AND(DK37<0.1,Accueil!$AZ$15="Français"),"souple",IF(AND(DK37>=0.1,Accueil!$AZ$15="Deutsch"),"steif",IF(AND(DK37<0.1,Accueil!$AZ$15="Deutsch"),"weich")))) -> souple | DM37: =2/3*($C$12/(Données!$AE$38*0.6))*(DN32/(2*DO32))^3 -> 0.007221295762 | DN37: =IF(AND(DM37>=0.1,Accueil!$AZ$15="Français"),"rigide",IF(AND(DM37<0.1,Accueil!$AZ$15="Français"),"souple",IF(AND(DM37>=0.1,Accueil!$AZ$15="Deutsch"),"steif",IF(AND(DM37<0.1,Accueil!$AZ$15="Deutsch"),"weich")))) -> souple | DR37: =2/3*(DS33/(Données!$AE$38*0.6))*(Calculs!DT31/(2*Calculs!DU31))^3 -> 110.6939719 | DS37: =IF(AND(DR37>=0.1,Accueil!$AZ$15="Français"),"rigide",IF(AND(DR37<0.1,Accueil!$AZ$15="Français"),"souple",IF(AND(DR37>=0.1,Accueil!$AZ$15="Deutsch"),"steif",IF(AND(DR37<0.1,Accueil!$AZ$15="Deutsch"),"weich")))) -> rigide | DT37: =2/3*(DS33/(Données!$AE$38*0.6))*(Calculs!$DT$31/(2*Calculs!$DU$31))^3 -> 110.6939719 | DU37: =IF(AND(DT37>=0.1,Accueil!$AZ$15="Français"),"rigide",IF(AND(DT37<0.1,Accueil!$AZ$15="Français"),"souple",IF(AND(DT37>=0.1,Accueil!$AZ$15="Deutsch"),"steif",IF(AND(DT37<0.1,Accueil!$AZ$15="Deutsch"),"weich")))) -> rigide | EK37: =2/3*($B$10/(Données!$AE$38*0.6))*(Calculs!EN32/(2*Calculs!EO32))^3 -> 0.005395751429 | EL37: =IF(AND(EK37>=0.1,Accueil!$AZ$15="Français"),"rigide",IF(AND(EK37<0.1,Accueil!$AZ$15="Français"),"souple",IF(AND(EK37>=0.1,Accueil!$AZ$15="Deutsch"),"steif",IF(AND(EK37<0.1,Accueil!$AZ$15="Deutsch"),"weich")))) -> souple | EM37: =2/3*($C$10/(Données!$AE$38*0.6))*(EN32/(2*EO32))^3 -> 0.002697875715 | EN37: =IF(AND(EM37>=0.1,Accueil!$AZ$15="Français"),"rigide",IF(AND(EM37<0.1,Accueil!$AZ$15="Français"),"souple",IF(AND(EM37>=0.1,Accueil!$AZ$15="Deutsch"),"steif",IF(AND(EM37<0.1,Accueil!$AZ$15="Deutsch"),"weich")))) -> souple | ER37: =2/3*(ES33/(Données!$AE$38*0.6))*(Calculs!ET31/(2*Calculs!EU31))^3 -> 149.1874876 | ES37: =IF(AND(ER37>=0.1,Accueil!$AZ$15="Français"),"rigide",IF(AND(ER37<0.1,Accueil!$AZ$15="Français"),"souple",IF(AND(ER37>=0.1,Accueil!$AZ$15="Deutsch"),"steif",IF(AND(ER37<0.1,Accueil!$AZ$15="Deutsch"),"weich")))) -> rigide | ET37: =2/3*(ES33/(Données!$AE$38*0.6))*(Calculs!$ET$31/(2*Calculs!$EU$31))^3 -> 149.1874876 | EU37: =IF(AND(ET37>=0.1,Accueil!$AZ$15="Français"),"rigide",IF(AND(ET37<0.1,Accueil!$AZ$15="Français"),"souple",IF(AND(ET37>=0.1,Accueil!$AZ$15="Deutsch"),"steif",IF(AND(ET37<0.1,Accueil!$AZ$15="Deutsch"),"weich")))) -> rigide | FK37: =2/3*($B$10/(Données!$AE$38*0.6))*(Calculs!FN32/(2*Calculs!FO32))^3 -> 0.01057082843 | FL37: =IF(AND(FK37>=0.1,Accueil!$AZ$15="Français"),"rigide",IF(AND(FK37<0.1,Accueil!$AZ$15="Français"),"souple",IF(AND(FK37>=0.1,Accueil!$AZ$15="Deutsch"),"steif",IF(AND(FK37<0.1,Accueil!$AZ$15="Deutsch"),"weich")))) -> souple | FM37: =2/3*($C$10/(Données!$AE$38*0.6))*(FN32/(2*FO32))^3 -> 0.005285414216 | FN37: =IF(AND(FM37>=0.1,Accueil!$AZ$15="Français"),"rigide",IF(AND(FM37<0.1,Accueil!$AZ$15="Français"),"souple",IF(AND(FM37>=0.1,Accueil!$AZ$15="Deutsch"),"steif",IF(AND(FM37<0.1,Accueil!$AZ$15="Deutsch"),"weich")))) -> souple | FR37: =2/3*(FS33/(Données!$AE$38*0.6))*(Calculs!FT31/(2*Calculs!FU31))^3 -> 116.4708178 | FS37: =IF(AND(FR37>=0.1,Accueil!$AZ$15="Français"),"rigide",IF(AND(FR37<0.1,Accueil!$AZ$15="Français"),"souple",IF(AND(FR37>=0.1,Accueil!$AZ$15="Deutsch"),"steif",IF(AND(FR37<0.1,Accueil!$AZ$15="Deutsch"),"weich")))) -> rigide | FT37: =2/3*(FS33/(Données!$AE$38*0.6))*(Calculs!$FT$31/(2*Calculs!$FU$31))^3 -> 116.4708178 | FU37: =IF(AND(FT37>=0.1,Accueil!$AZ$15="Français"),"rigide",IF(AND(FT37<0.1,Accueil!$AZ$15="Français"),"souple",IF(AND(FT37>=0.1,Accueil!$AZ$15="Deutsch"),"steif",IF(AND(FT37<0.1,Accueil!$AZ$15="Deutsch"),"weich")))) -> rigide | GK37: =2/3*($B$10/(Données!$AE$38*0.6))*(Calculs!GN32/(2*Calculs!GO32))^3 -> 0.01832579987 | GL37: =IF(AND(GK37>=0.1,Accueil!$AZ$15="Français"),"rigide",IF(AND(GK37<0.1,Accueil!$AZ$15="Français"),"souple",IF(AND(GK37>=0.1,Accueil!$AZ$15="Deutsch"),"steif",IF(AND(GK37<0.1,Accueil!$AZ$15="Deutsch"),"weich")))) -> souple | GM37: =2/3*($C$10/(Données!$AE$38*0.6))*(GN32/(2*GO32))^3 -> 0.009162899936 | GN37: =IF(AND(GM37>=0.1,Accueil!$AZ$15="Français"),"rigide",IF(AND(GM37<0.1,Accueil!$AZ$15="Français"),"souple",IF(AND(GM37>=0.1,Accueil!$AZ$15="Deutsch"),"steif",IF(AND(GM37<0.1,Accueil!$AZ$15="Deutsch"),"weich")))) -> souple | GR37: =2/3*(GS33/(Données!$AE$38*0.6))*(Calculs!GT31/(2*Calculs!GU31))^3 -> 116.4708178 | GS37: =IF(AND(GR37>=0.1,Accueil!$AZ$15="Français"),"rigide",IF(AND(GR37<0.1,Accueil!$AZ$15="Français"),"souple",IF(AND(GR37>=0.1,Accueil!$AZ$15="Deutsch"),"steif",IF(AND(GR37<0.1,Accueil!$AZ$15="Deutsch"),"weich")))) -> rigide | GT37: =2/3*(GS33/(Données!$AE$38*0.6))*(Calculs!$GT$31/(2*Calculs!$GU$31))^3 -> 116.4708178 | GU37: =IF(AND(GT37>=0.1,Accueil!$AZ$15="Français"),"rigide",IF(AND(GT37<0.1,Accueil!$AZ$15="Français"),"souple",IF(AND(GT37>=0.1,Accueil!$AZ$15="Deutsch"),"steif",IF(AND(GT37<0.1,Accueil!$AZ$15="Deutsch"),"weich")))) -> rigide | HK37: =2/3*($B$11/(Données!$AE$38*0.6))*(Calculs!HN32/(2*Calculs!HO32))^3 -> 0.007063386357 | HL37: =IF(AND(HK37>=0.1,Accueil!$AZ$15="Français"),"rigide",IF(AND(HK37<0.1,Accueil!$AZ$15="Français"),"souple",IF(AND(HK37>=0.1,Accueil!$AZ$15="Deutsch"),"steif",IF(AND(HK37<0.1,Accueil!$AZ$15="Deutsch"),"weich")))) -> souple | HM37: =2/3*($C$11/(Données!$AE$38*0.6))*(HN32/(2*HO32))^3 -> 0.001765846589 | HN37: =IF(AND(HM37>=0.1,Accueil!$AZ$15="Français"),"rigide",IF(AND(HM37<0.1,Accueil!$AZ$15="Français"),"souple",IF(AND(HM37>=0.1,Accueil!$AZ$15="Deutsch"),"steif",IF(AND(HM37<0.1,Accueil!$AZ$15="Deutsch"),"weich")))) -> souple | HR37: =2/3*(HS33/(Données!$AE$38*0.6))*(Calculs!HT31/(2*Calculs!HU31))^3 -> 116.4708178 | HS37: =IF(AND(HR37>=0.1,Accueil!$AZ$15="Français"),"rigide",IF(AND(HR37<0.1,Accueil!$AZ$15="Français"),"souple",IF(AND(HR37>=0.1,Accueil!$AZ$15="Deutsch"),"steif",IF(AND(HR37<0.1,Accueil!$AZ$15="Deutsch"),"weich")))) -> rigide | HT37: =2/3*(HS33/(Données!$AE$38*0.6))*(Calculs!$HT$31/(2*Calculs!$HU$31))^3 -> 116.4708178 | HU37: =IF(AND(HT37>=0.1,Accueil!$AZ$15="Français"),"rigide",IF(AND(HT37<0.1,Accueil!$AZ$15="Français"),"souple",IF(AND(HT37>=0.1,Accueil!$AZ$15="Deutsch"),"steif",IF(AND(HT37<0.1,Accueil!$AZ$15="Deutsch"),"weich")))) -> rigide | IK37: =2/3*($B$11/(Données!$AE$38*0.6))*(Calculs!IN32/(2*Calculs!IO32))^3 -> 0.01404797291 | IL37: =IF(AND(IK37>=0.1,Accueil!$AZ$15="Français"),"rigide",IF(AND(IK37<0.1,Accueil!$AZ$15="Français"),"souple",IF(AND(IK37>=0.1,Accueil!$AZ$15="Deutsch"),"steif",IF(AND(IK37<0.1,Accueil!$AZ$15="Deutsch"),"weich")))) -> souple | IM37: =2/3*($C$11/(Données!$AE$38*0.6))*(IN32/(2*IO32))^3 -> 0.003511993227 | IN37: =IF(AND(IM37>=0.1,Accueil!$AZ$15="Français"),"rigide",IF(AND(IM37<0.1,Accueil!$AZ$15="Français"),"souple",IF(AND(IM37>=0.1,Accueil!$AZ$15="Deutsch"),"steif",IF(AND(IM37<0.1,Accueil!$AZ$15="Deutsch"),"weich")))) -> souple | IR37: =2/3*(IS33/(Données!$AE$38*0.6))*(Calculs!IT31/(2*Calculs!IU31))^3 -> 116.4708178 | IS37: =IF(AND(IR37>=0.1,Accueil!$AZ$15="Français"),"rigide",IF(AND(IR37<0.1,Accueil!$AZ$15="Français"),"souple",IF(AND(IR37>=0.1,Accueil!$AZ$15="Deutsch"),"steif",IF(AND(IR37<0.1,Accueil!$AZ$15="Deutsch"),"weich")))) -> rigide | IT37: =2/3*(IS33/(Données!$AE$38*0.6))*(Calculs!$IT$31/(2*Calculs!$IU$31))^3 -> 116.4708178 | IU37: =IF(AND(IT37>=0.1,Accueil!$AZ$15="Français"),"rigide",IF(AND(IT37<0.1,Accueil!$AZ$15="Français"),"souple",IF(AND(IT37>=0.1,Accueil!$AZ$15="Deutsch"),"steif",IF(AND(IT37<0.1,Accueil!$AZ$15="Deutsch"),"weich")))) -> rigide | JK37: =2/3*($B$11/(Données!$AE$38*0.6))*(Calculs!JN32/(2*Calculs!JO32))^3 -> 0.02775313753 | JL37: =IF(AND(JK37>=0.1,Accueil!$AZ$15="Français"),"rigide",IF(AND(JK37<0.1,Accueil!$AZ$15="Français"),"souple",IF(AND(JK37>=0.1,Accueil!$AZ$15="Deutsch"),"steif",IF(AND(JK37<0.1,Accueil!$AZ$15="Deutsch"),"weich")))) -> souple | JM37: =2/3*($C$11/(Données!$AE$38*0.6))*(JN32/(2*JO32))^3 -> 0.006938284382 | JN37: =IF(AND(JM37>=0.1,Accueil!$AZ$15="Français"),"rigide",IF(AND(JM37<0.1,Accueil!$AZ$15="Français"),"souple",IF(AND(JM37>=0.1,Accueil!$AZ$15="Deutsch"),"steif",IF(AND(JM37<0.1,Accueil!$AZ$15="Deutsch"),"weich")))) -> souple | JR37: =2/3*(JS33/(Données!$AE$38*0.6))*(Calculs!JT31/(2*Calculs!JU31))^3 -> 116.4708178 | JS37: =IF(AND(JR37>=0.1,Accueil!$AZ$15="Français"),"rigide",IF(AND(JR37<0.1,Accueil!$AZ$15="Français"),"souple",IF(AND(JR37>=0.1,Accueil!$AZ$15="Deutsch"),"steif",IF(AND(JR37<0.1,Accueil!$AZ$15="Deutsch"),"weich")))) -> rigide | JT37: =2/3*(JS33/(Données!$AE$38*0.6))*(Calculs!JT31/(2*Calculs!JU31))^3 -> 116.4708178 | JU37: =IF(AND(JT37>=0.1,Accueil!$AZ$15="Français"),"rigide",IF(AND(JT37<0.1,Accueil!$AZ$15="Français"),"souple",IF(AND(JT37>=0.1,Accueil!$AZ$15="Deutsch"),"steif",IF(AND(JT37<0.1,Accueil!$AZ$15="Deutsch"),"weich")))) -> rigide | KM37: =2/3*($B$8/(Données!$AE$38*0.6))*(Calculs!KP32/(2*Calculs!KQ32))^3 -> 6.578420931 | KN37: =IF(AND(KM37>=0.1,Accueil!$AZ$15="Français"),"rigide",IF(AND(KM37<0.1,Accueil!$AZ$15="Français"),"souple",IF(AND(KM37>=0.1,Accueil!$AZ$15="Deutsch"),"steif",IF(AND(KM37<0.1,Accueil!$AZ$15="Deutsch"),"weich")))) -> rigide | KO37: =2/3*($C$8/(Données!$AE$38*0.6))*(Calculs!$KP$32/(2*Calculs!$KQ$32))^3 -> 6.578420931 | KP37: =IF(AND(KO37>=0.1,Accueil!$AZ$15="Français"),"rigide",IF(AND(KO37<0.1,Accueil!$AZ$15="Français"),"souple",IF(AND(KO37>=0.1,Accueil!$AZ$15="Deutsch"),"steif",IF(AND(KO37<0.1,Accueil!$AZ$15="Deutsch"),"weich")))) -> rigide | LM37: =2/3*($B$8/(Données!$AE$38*0.6))*(Calculs!LP32/(2*Calculs!LQ32))^3 -> 15.78912924 | LN37: =IF(AND(LM37>=0.1,Accueil!$AZ$15="Français"),"rigide",IF(AND(LM37<0.1,Accueil!$AZ$15="Français"),"souple",IF(AND(LM37>=0.1,Accueil!$AZ$15="Deutsch"),"steif",IF(AND(LM37<0.1,Accueil!$AZ$15="Deutsch"),"weich")))) -> rigide | LO37: =2/3*($C$8/(Données!$AE$38*0.6))*(Calculs!$KP$32/(2*Calculs!$KQ$32))^3 -> 6.578420931 | LP37: =IF(AND(LO37>=0.1,Accueil!$AZ$15="Français"),"rigide",IF(AND(LO37<0.1,Accueil!$AZ$15="Français"),"souple",IF(AND(LO37>=0.1,Accueil!$AZ$15="Deutsch"),"steif",IF(AND(LO37<0.1,Accueil!$AZ$15="Deutsch"),"weich")))) -> rigide | SK37: =2/3*($B$9/(Données!$AE$38*0.6))*(Calculs!SN32/(2*Calculs!SO32))^3 -> 0.2017079272 | SL37: =IF(AND(SK37>=0.1,Accueil!$AZ$15="Français"),"rigide",IF(AND(SK37<0.1,Accueil!$AZ$15="Français"),"souple",IF(AND(SK37>=0.1,Accueil!$AZ$15="Deutsch"),"steif",IF(AND(SK37<0.1,Accueil!$AZ$15="Deutsch"),"weich")))) -> rigide | SM37: =2/3*($C$9/(Données!$AE$38*0.6))*(SN32/(2*SO32))^3 -> 0.2017079272 | SN37: =IF(AND(SM37>=0.1,Accueil!$AZ$15="Français"),"rigide",IF(AND(SM37<0.1,Accueil!$AZ$15="Français"),"souple",IF(AND(SM37>=0.1,Accueil!$AZ$15="Deutsch"),"steif",IF(AND(SM37<0.1,Accueil!$AZ$15="Deutsch"),"weich")))) -> rigide
A38: 0.75 | B38: 124.9966 | C38: 78.3442 | D38: 46.6524 | E38: 0.75 | F38: 94.6745 | G38: 78.3442 | H38: 16.3303
A39: 0.875 | B39: 103.2701 | C39: 58.6916 | D39: 44.5785 | E39: 0.875 | F39: 76.224 | G39: 58.6916 | H39: 17.5324 | MK39: 3. Module d'élasticité U1/V1 | NK39: 3. Module d'élasticité U1/V1 | OK39: 3. Module d'élasticité U1/V1 | PK39: 3. Module d'élasticité U1/V1 | QK39: 3. Module d'élasticité U1/V1 | RK39: 3. Module d'élasticité U1/V1
A40: 1 | B40: 87.798 | C40: 45.3374 | D40: =B40-C40 -> 42.4606 | E40: 1 | F40: 63.7353 | G40: 45.3374 | H40: =F40-G40 -> 18.3979 | O40: 4. Facteur de majoration de charges f | AK40: 4. Facteur de majoration de charges f | AR40: 4. Facteur de majoration de charges f | BK40: 4. Facteur de majoration de charges f | BR40: 4. Facteur de majoration de charges f | CK40: 4. Facteur de majoration de charges f | CR40: 4. Facteur de majoration de charges f | DK40: 4. Facteur de majoration de charges f | DR40: 4. Facteur de majoration de charges f | EK40: 4. Facteur de majoration de charges f | ER40: 4. Facteur de majoration de charges f | FK40: 4. Facteur de majoration de charges f | FR40: 4. Facteur de majoration de charges f | GK40: 4. Facteur de majoration de charges f | GR40: 4. Facteur de majoration de charges f | HK40: 4. Facteur de majoration de charges f | HR40: 4. Facteur de majoration de charges f | IK40: 4. Facteur de majoration de charges f | IR40: 4. Facteur de majoration de charges f | JK40: 4. Facteur de majoration de charges f | JR40: 4. Facteur de majoration de charges f | KM40: 4. Facteur de majoration de charges f | LM40: 4. Facteur de majoration de charges f | MK40: ERcourt [N/mm2] | MM40: Erlong [N/mm2] | NK40: ERcourt [N/mm2] | NM40: Erlong [N/mm2] | OK40: ERcourt [N/mm2] | OM40: Erlong [N/mm2] | PK40: ERcourt [N/mm2] | PM40: Erlong [N/mm2] | QK40: ERcourt [N/mm2] | QM40: Erlong [N/mm2] | RK40: ERcourt [N/mm2] | RM40: Erlong [N/mm2] | SK40: 4. Facteur de majoration de charges f
A41: 1.125 | B41: 76.3474 | C41: 35.9435 | D41: 40.4039 | E41: 1.125 | F41: 54.8989 | G41: 35.9435 | H41: 18.9554 | O41: f | P41: =Q32/(2*S32) -> 1.117647059 | Q41: =IF(P41>=1.025,P41,1) -> 1.117647059 | R41: [-] | AK41: f | AL41: =AM32/(2*AO32) -> 1.031725561 | AM41: =IF(AL41>=1.025,AL41,1) -> 1.031725561 | AN41: [-] | AR41: f | AS41: =AS31/(2*AU31) -> 1.292035398 | AT41: =IF(AS41>=1.025,AS41,1) -> 1.292035398 | AU41: [-] | BK41: f | BL41: =BM32/(2*BO32) -> 1.035464665 | BM41: =IF(BL41>=1.025,BL41,1) -> 1.035464665 | BN41: [-] | BR41: f | BS41: =BS31/(2*BU31) -> 1.292035398 | BT41: =IF(BS41>=1.025,BS41,1) -> 1.292035398 | BU41: [-] | CK41: f | CL41: =CM32/(2*CO32) -> 1.03977125 | CM41: =IF(CL41>=1.025,CL41,1) -> 1.03977125 | CN41: [-] | CR41: f | CS41: =CS31/(2*CU31) -> 1.292035398 | CT41: =IF(CS41>=1.025,CS41,1) -> 1.292035398 | CU41: [-] | DK41: f | DL41: =DM32/(2*DO32) -> 1.047668937 | DM41: =IF(DL41>=1.025,DL41,1) -> 1.047668937 | DN41: [-] | DR41: f | DS41: =DS31/(2*DU31) -> 1.292035398 | DT41: =IF(DS41>=1.025,DS41,1) -> 1.292035398 | DU41: [-] | EK41: f | EL41: =EM32/(2*EO32) -> 1.02007772 | EM41: =IF(EL41>=1.025,EL41,1) -> 1 | EN41: [-] | ER41: f | ES41: =ES31/(2*EU31) -> 1.322580645 | ET41: =IF(ES41>=1.025,ES41,1) -> 1.322580645 | EU41: [-] | FK41: f | FL41: =FM32/(2*FO32) -> 1.025122726 | FM41: =IF(FL41>=1.025,FL41,1) -> 1.025122726 | FN41: [-] | FR41: f | FS41: =FS31/(2*FU31) -> 1.297029703 | FT41: =IF(FS41>=1.025,FS41,1) -> 1.297029703 | FU41: [-] | GK41: f | GL41: =GM32/(2*GO32) -> 1.030179919 | GM41: =IF(GL41>=1.025,GL41,1) -> 1.030179919 | GN41: [-] | GR41: f | GS41: =GS31/(2*GU31) -> 1.297029703 | GT41: =IF(GS41>=1.025,GS41,1) -> 1.297029703 | GU41: [-] | HK41: f | HL41: =HM32/(2*HO32) -> 1.031676838 | HM41: =IF(HL41>=1.025,HL41,1) -> 1.031676838 | HN41: [-] | HR41: f | HS41: =HS31/(2*HU31) -> 1.297029703 | HT41: =IF(HS41>=1.025,HS41,1) -> 1.297029703 | HU41: [-] | IK41: f | IL41: =IM32/(2*IO32) -> 1.03983597 | IM41: =IF(IL41>=1.025,IL41,1) -> 1.03983597 | IN41: [-] | IR41: f | IS41: =IS31/(2*IU31) -> 1.297029703 | IT41: =IF(IS41>=1.025,IS41,1) -> 1.297029703 | IU41: [-] | JK41: f | JL41: =JM32/(2*JO32) -> 1.049985211 | JM41: =IF(JL41>=1.025,JL41,1) -> 1.049985211 | JN41: [-] | JR41: f | JS41: =JS31/(2*JU31) -> 1.297029703 | JT41: =IF(JS41>=1.025,JS41,1) -> 1.297029703 | JU41: [-] | KM41: f | KN41: =KO32/(2*KQ32) -> 1.083969466 | KO41: =IF(KN41>=1.025,KN41,1) -> 1.083969466 | KP41: [-] | LM41: f | LN41: =LO32/(2*LQ32) -> 1.112426036 | LO41: =IF(LN41>=1.025,LN41,1) -> 1.112426036 | LP41: [-] | MK41: =MO35/(1000)^2*12*(2*MN35/MM35)^3 -> 4394.467259 | MM41: =MP35/(1000)^2*12*(2*MN35/MM35)^3 -> 2197.23363 | NK41: =NO35/(1000)^2*12*(2*NN35/NM35)^3 -> 5840.16 | NM41: =NP35/(1000)^2*12*(2*NN35/NM35)^3 -> 2920.08 | OK41: =OO35/(1000)^2*12*(2*ON35/OM35)^3 -> 5145 | OM41: =OP35/(1000)^2*12*(2*ON35/OM35)^3 -> 2572.5 | PK41: =PO35/(1000)^2*12*(2*PN35/PM35)^3 -> 5572.64592 | PM41: =PP35/(1000)^2*12*(2*PN35/PM35)^3 -> 2786.32296 | QK41: =QO35/(1000)^2*12*(2*QN35/QM35)^3 -> 5944.155648 | QM41: =QP35/(1000)^2*12*(2*QN35/QM35)^3 -> 2972.077824 | RK41: =RO35/(1000)^2*12*(2*RN35/RM35)^3 -> 5529.249647 | RM41: =RP35/(1000)^2*12*(2*RN35/RM35)^3 -> 2764.624823 | SK41: f | SL41: =SM32/(2*SO32) -> 1.017478152 | SM41: =IF(SL41>=1.025,SL41,1) -> 1 | SN41: [-]
A42: 1.25 | B42: 67.5639 | C42: 29.12677778 | D42: 38.43712222 | E42: 1.25 | F42: 48.3792 | G42: 29.12677778 | H42: 19.25242222
A43: 1.375 | B43: 60.6094 | C43: 24.0437 | D43: 36.5657 | E43: 1.375 | F43: 43.3835 | G43: 24.0437 | H43: 19.3398
A44: 1.5 | B44: 54.9515 | C44: 20.16266667 | D44: 34.78883333 | E44: 1.5 | F44: 39.4267 | G44: 20.16266667 | H44: 19.26403333 | O44: 5. Profil d'enrobage (seulement rigide) | AO44: 5. Profil d'enrobages | BO44: 5. Profil d'enrobages | CO44: 5. Profil d'enrobages | DO44: 5. Profil d'enrobages | EO44: 5. Profil d'enrobages | FO44: 5. Profil d'enrobages | GO44: 5. Profil d'enrobages | HO44: 5. Profil d'enrobages | IO44: 5. Profil d'enrobages | JO44: 5. Profil d'enrobages | KM44: 5. Profil d'enrobage (seulement rigide) | LM44: 5. Profil d'enrobage (seulement rigide) | MK44: 3. Rigidité du système U1/V1 | MR44: 3. Rigidité U4/V4 | NK44: 3. Rigidité du système U1/V1 | NR44: 3. Rigidité U4/V4 | OK44: 3. Rigidité du système U1/V1 | OR44: 3. Rigidité U4/V4 | PK44: 3. Rigidité du système U1/V1 | PR44: 3. Rigidité U4/V4 | QK44: 3. Rigidité du système U1/V1 | QR44: 3. Rigidité U4/V4 | RK44: 3. Rigidité du système U1/V1 | RR44: 3. Rigidité U4/V4 | SO44: 5. Profil d'enrobages
A45: 1.625 | B45: 50.2418 | C45: 17.138 | D45: 33.1038 | E45: 1.625 | F45: 36.2023 | G45: 17.138 | H45: 19.0643 | P45: 1 | Q45: 2 | R45: 2A | S45: 3 | T45: 4 | AP45: 1 | AR45: 4 | BP45: 1 | BR45: 4 | CP45: 1 | CR45: 4 | DP45: 1 | DR45: 4 | EP45: 1 | ER45: 4 | FP45: 1 | FR45: 4 | GP45: 1 | GR45: 4 | HP45: 1 | HR45: 4 | IP45: 1 | IR45: 4 | JP45: 1 | JR45: 4 | KN45: 1 | KO45: 2 | KP45: 2A | KQ45: 3 | KR45: 4 | LN45: 1 | LO45: 2 | LP45: 2A | LQ45: 3 | LR45: 4 | MK45: SFcourt | MM45: SFlong | MR45: SFcourt | MT45: SFlong | NK45: SFcourt | NM45: SFlong | NR45: SFcourt | NT45: SFlong | OK45: SFcourt | OM45: SFlong | OR45: SFcourt | OT45: SFlong | PK45: SFcourt | PM45: SFlong | PR45: SFcourt | PT45: SFlong | QK45: SFcourt | QM45: SFlong | QR45: SFcourt | QT45: SFlong | RK45: SFcourt | RM45: SFlong | RR45: SFcourt | RT45: SFlong | SP45: 1a | SR45: 1
A46: 1.75 | B46: 46.2458 | C46: 14.7382 | D46: 31.5076 | E46: 1.75 | F46: 33.5106 | G46: 14.7382 | H46: 18.7724 | O46: ZE | P46: 1.5 | Q46: 2.5 | R46: 3 | S46: 6 | T46: 7 | AO46: K1 | AP46: =Données!$AE$48 -> 0.5 | AQ46: ZE | AR46: 7 | BO46: K1 | BP46: =Données!$AE$48 -> 0.5 | BQ46: ZE | BR46: 7 | CO46: K1 | CP46: =Données!$AE$48 -> 0.5 | CQ46: ZE | CR46: 7 | DO46: K1 | DP46: =Données!$AE$48 -> 0.5 | DQ46: ZE | DR46: 7 | EO46: K1 | EP46: =Données!$AE$48 -> 0.5 | EQ46: ZE | ER46: 7 | FO46: K1 | FP46: =Données!$AE$48 -> 0.5 | FQ46: ZE | FR46: 7 | GO46: K1 | GP46: =Données!$AE$48 -> 0.5 | GQ46: ZE | GR46: 7 | HO46: K1 | HP46: =Données!$AE$48 -> 0.5 | HQ46: ZE | HR46: 7 | IO46: K1 | IP46: =Données!$AE$48 -> 0.5 | IQ46: ZE | IR46: 7 | JO46: K1 | JP46: =Données!$AE$48 -> 0.5 | JQ46: ZE | JR46: 7 | KM46: ZE | KN46: 1.5 | KO46: 2.5 | KP46: 3 | KQ46: 6 | KR46: 7 | LM46: ZE | LN46: 1.5 | LO46: 2.5 | LP46: 3 | LQ46: 6 | LR46: 7 | MK46: =2/3*(MK41/(Données!$AE$38*0.6))*(Calculs!MM35/(2*Calculs!MN35))^3 -> 0.006666666667 | ML46: =IF(AND(MK46>=0.1,Accueil!$AZ$15="Français"),"rigide",IF(AND(MK46<0.1,Accueil!$AZ$15="Français"),"souple",IF(AND(MK46>=0.1,Accueil!$AZ$15="Deutsch"),"steif",IF(AND(MK46<0.1,Accueil!$AZ$15="Deutsch"),"weich")))) -> souple | MM46: =2/3*(MM41/(Données!$AE$38*0.6))*(MM35/(2*MN35))^3 -> 0.003333333333 | MN46: =IF(AND(MM46>=0.1,Accueil!$AZ$15="Français"),"rigide",IF(AND(MM46<0.1,Accueil!$AZ$15="Français"),"souple",IF(AND(MM46>=0.1,Accueil!$AZ$15="Deutsch"),"steif",IF(AND(MM46<0.1,Accueil!$AZ$15="Deutsch"),"weich")))) -> souple | MR46: =2/3*(MS36/(Données!$AE$38*0.6))*(Calculs!MT34/(2*Calculs!MU34))^3 -> 110.5424315 | MS46: =IF(AND(MR46>=0.1,Accueil!$AZ$15="Français"),"rigide",IF(AND(MR46<0.1,Accueil!$AZ$15="Français"),"souple",IF(AND(MR46>=0.1,Accueil!$AZ$15="Deutsch"),"steif",IF(AND(MR46<0.1,Accueil!$AZ$15="Deutsch"),"weich")))) -> rigide | MT46: =2/3*(MS36/(Données!$AE$38*0.6))*(Calculs!MT34/(2*Calculs!MU34))^3 -> 110.5424315 | MU46: =IF(AND(MT46>=0.1,Accueil!$AZ$15="Français"),"rigide",IF(AND(MT46<0.1,Accueil!$AZ$15="Français"),"souple",IF(AND(MT46>=0.1,Accueil!$AZ$15="Deutsch"),"steif",IF(AND(MT46<0.1,Accueil!$AZ$15="Deutsch"),"weich")))) -> rigide | NK46: =2/3*(NK41/(Données!$AE$38*0.6))*(Calculs!NM35/(2*Calculs!NN35))^3 -> 0.01333333333 | NL46: =IF(AND(NK46>=0.1,Accueil!$AZ$15="Français"),"rigide",IF(AND(NK46<0.1,Accueil!$AZ$15="Français"),"souple",IF(AND(NK46>=0.1,Accueil!$AZ$15="Deutsch"),"steif",IF(AND(NK46<0.1,Accueil!$AZ$15="Deutsch"),"weich")))) -> souple | NM46: =2/3*(NM41/(Données!$AE$38*0.6))*(NM35/(2*NN35))^3 -> 0.006666666667 | NN46: =IF(AND(NM46>=0.1,Accueil!$AZ$15="Français"),"rigide",IF(AND(NM46<0.1,Accueil!$AZ$15="Français"),"souple",IF(AND(NM46>=0.1,Accueil!$AZ$15="Deutsch"),"steif",IF(AND(NM46<0.1,Accueil!$AZ$15="Deutsch"),"weich")))) -> souple | NR46: =2/3*(NS36/(Données!$AE$38*0.6))*(Calculs!NT34/(2*Calculs!NU34))^3 -> 110.5424315 | NS46: =IF(AND(NR46>=0.1,Accueil!$AZ$15="Français"),"rigide",IF(AND(NR46<0.1,Accueil!$AZ$15="Français"),"souple",IF(AND(NR46>=0.1,Accueil!$AZ$15="Deutsch"),"steif",IF(AND(NR46<0.1,Accueil!$AZ$15="Deutsch"),"weich")))) -> rigide | NT46: =2/3*(NS36/(Données!$AE$38*0.6))*(Calculs!NT34/(2*Calculs!NU34))^3 -> 110.5424315 | NU46: =IF(AND(NT46>=0.1,Accueil!$AZ$15="Français"),"rigide",IF(AND(NT46<0.1,Accueil!$AZ$15="Français"),"souple",IF(AND(NT46>=0.1,Accueil!$AZ$15="Deutsch"),"steif",IF(AND(NT46<0.1,Accueil!$AZ$15="Deutsch"),"weich")))) -> rigide | OK46: =2/3*(OK41/(Données!$AE$38*0.6))*(Calculs!OM35/(2*Calculs!ON35))^3 -> 0.02666666667 | OL46: =IF(AND(OK46>=0.1,Accueil!$AZ$15="Français"),"rigide",IF(AND(OK46<0.1,Accueil!$AZ$15="Français"),"souple",IF(AND(OK46>=0.1,Accueil!$AZ$15="Deutsch"),"steif",IF(AND(OK46<0.1,Accueil!$AZ$15="Deutsch"),"weich")))) -> souple | OM46: =2/3*(OM41/(Données!$AE$38*0.6))*(OM35/(2*ON35))^3 -> 0.01333333333 | ON46: =IF(AND(OM46>=0.1,Accueil!$AZ$15="Français"),"rigide",IF(AND(OM46<0.1,Accueil!$AZ$15="Français"),"souple",IF(AND(OM46>=0.1,Accueil!$AZ$15="Deutsch"),"steif",IF(AND(OM46<0.1,Accueil!$AZ$15="Deutsch"),"weich")))) -> souple | OR46: =2/3*(OS36/(Données!$AE$38*0.6))*(Calculs!OT34/(2*Calculs!OU34))^3 -> 140.8497998 | OS46: =IF(AND(OR46>=0.1,Accueil!$AZ$15="Français"),"rigide",IF(AND(OR46<0.1,Accueil!$AZ$15="Français"),"souple",IF(AND(OR46>=0.1,Accueil!$AZ$15="Deutsch"),"steif",IF(AND(OR46<0.1,Accueil!$AZ$15="Deutsch"),"weich")))) -> rigide | OT46: =2/3*(OS36/(Données!$AE$38*0.6))*(Calculs!OT34/(2*Calculs!OU34))^3 -> 140.8497998 | OU46: =IF(AND(OT46>=0.1,Accueil!$AZ$15="Français"),"rigide",IF(AND(OT46<0.1,Accueil!$AZ$15="Français"),"souple",IF(AND(OT46>=0.1,Accueil!$AZ$15="Deutsch"),"steif",IF(AND(OT46<0.1,Accueil!$AZ$15="Deutsch"),"weich")))) -> rigide | PK46: =2/3*(PK41/(Données!$AE$38*0.6))*(Calculs!PM35/(2*Calculs!PN35))^3 -> 0.04 | PL46: =IF(AND(PK46>=0.1,Accueil!$AZ$15="Français"),"rigide",IF(AND(PK46<0.1,Accueil!$AZ$15="Français"),"souple",IF(AND(PK46>=0.1,Accueil!$AZ$15="Deutsch"),"steif",IF(AND(PK46<0.1,Accueil!$AZ$15="Deutsch"),"weich")))) -> souple | PM46: =2/3*(PM41/(Données!$AE$38*0.6))*(PM35/(2*PN35))^3 -> 0.02 | PN46: =IF(AND(PM46>=0.1,Accueil!$AZ$15="Français"),"rigide",IF(AND(PM46<0.1,Accueil!$AZ$15="Français"),"souple",IF(AND(PM46>=0.1,Accueil!$AZ$15="Deutsch"),"steif",IF(AND(PM46<0.1,Accueil!$AZ$15="Deutsch"),"weich")))) -> souple | PR46: =2/3*(PS36/(Données!$AE$38*0.6))*(Calculs!PT34/(2*Calculs!PU34))^3 -> 140.8497998 | PS46: =IF(AND(PR46>=0.1,Accueil!$AZ$15="Français"),"rigide",IF(AND(PR46<0.1,Accueil!$AZ$15="Français"),"souple",IF(AND(PR46>=0.1,Accueil!$AZ$15="Deutsch"),"steif",IF(AND(PR46<0.1,Accueil!$AZ$15="Deutsch"),"weich")))) -> rigide | PT46: =2/3*(PS36/(Données!$AE$38*0.6))*(Calculs!PT34/(2*Calculs!PU34))^3 -> 140.8497998 | PU46: =IF(AND(PT46>=0.1,Accueil!$AZ$15="Français"),"rigide",IF(AND(PT46<0.1,Accueil!$AZ$15="Français"),"souple",IF(AND(PT46>=0.1,Accueil!$AZ$15="Deutsch"),"steif",IF(AND(PT46<0.1,Accueil!$AZ$15="Deutsch"),"weich")))) -> rigide | QK46: =2/3*(QK41/(Données!$AE$38*0.6))*(Calculs!QM35/(2*Calculs!QN35))^3 -> 0.04266666667 | QL46: =IF(AND(QK46>=0.1,Accueil!$AZ$15="Français"),"rigide",IF(AND(QK46<0.1,Accueil!$AZ$15="Français"),"souple",IF(AND(QK46>=0.1,Accueil!$AZ$15="Deutsch"),"steif",IF(AND(QK46<0.1,Accueil!$AZ$15="Deutsch"),"weich")))) -> souple | QM46: =2/3*(QM41/(Données!$AE$38*0.6))*(QM35/(2*QN35))^3 -> 0.02133333333 | QN46: =IF(AND(QM46>=0.1,Accueil!$AZ$15="Français"),"rigide",IF(AND(QM46<0.1,Accueil!$AZ$15="Français"),"souple",IF(AND(QM46>=0.1,Accueil!$AZ$15="Deutsch"),"steif",IF(AND(QM46<0.1,Accueil!$AZ$15="Deutsch"),"weich")))) -> souple | QR46: =2/3*(QS36/(Données!$AE$38*0.6))*(Calculs!QT34/(2*Calculs!QU34))^3 -> 140.8497998 | QS46: =IF(AND(QR46>=0.1,Accueil!$AZ$15="Français"),"rigide",IF(AND(QR46<0.1,Accueil!$AZ$15="Français"),"souple",IF(AND(QR46>=0.1,Accueil!$AZ$15="Deutsch"),"steif",IF(AND(QR46<0.1,Accueil!$AZ$15="Deutsch"),"weich")))) -> rigide | QT46: =2/3*(QS36/(Données!$AE$38*0.6))*(Calculs!QT34/(2*Calculs!QU34))^3 -> 140.8497998 | QU46: =IF(AND(QT46>=0.1,Accueil!$AZ$15="Français"),"rigide",IF(AND(QT46<0.1,Accueil!$AZ$15="Français"),"souple",IF(AND(QT46>=0.1,Accueil!$AZ$15="Deutsch"),"steif",IF(AND(QT46<0.1,Accueil!$AZ$15="Deutsch"),"weich")))) -> rigide | RK46: =2/3*(RK41/(Données!$AE$38*0.6))*(Calculs!RM35/(2*Calculs!RN35))^3 -> 0.05333333333 | RL46: =IF(AND(RK46>=0.1,Accueil!$AZ$15="Français"),"rigide",IF(AND(RK46<0.1,Accueil!$AZ$15="Français"),"souple",IF(AND(RK46>=0.1,Accueil!$AZ$15="Deutsch"),"steif",IF(AND(RK46<0.1,Accueil!$AZ$15="Deutsch"),"weich")))) -> souple | RM46: =2/3*(RM41/(Données!$AE$38*0.6))*(RM35/(2*RN35))^3 -> 0.02666666667 | RN46: =IF(AND(RM46>=0.1,Accueil!$AZ$15="Français"),"rigide",IF(AND(RM46<0.1,Accueil!$AZ$15="Français"),"souple",IF(AND(RM46>=0.1,Accueil!$AZ$15="Deutsch"),"steif",IF(AND(RM46<0.1,Accueil!$AZ$15="Deutsch"),"weich")))) -> souple | RR46: =2/3*(RS36/(Données!$AE$38*0.6))*(Calculs!RT34/(2*Calculs!RU34))^3 -> 140.8497998 | RS46: =IF(AND(RR46>=0.1,Accueil!$AZ$15="Français"),"rigide",IF(AND(RR46<0.1,Accueil!$AZ$15="Français"),"souple",IF(AND(RR46>=0.1,Accueil!$AZ$15="Deutsch"),"steif",IF(AND(RR46<0.1,Accueil!$AZ$15="Deutsch"),"weich")))) -> rigide | RT46: =2/3*(RS36/(Données!$AE$38*0.6))*(Calculs!RT34/(2*Calculs!RU34))^3 -> 140.8497998 | RU46: =IF(AND(RT46>=0.1,Accueil!$AZ$15="Français"),"rigide",IF(AND(RT46<0.1,Accueil!$AZ$15="Français"),"souple",IF(AND(RT46>=0.1,Accueil!$AZ$15="Deutsch"),"steif",IF(AND(RT46<0.1,Accueil!$AZ$15="Deutsch"),"weich")))) -> rigide | SO46: K1 | SP46: =Données!$AE$48 -> 0.5 | SQ46: ZE | SR46: 1.5
A47: 1.875 | B47: 42.8009 | C47: 12.8042 | D47: 29.9967 | E47: 1.875 | F47: 31.2177 | G47: 12.8042 | H47: 18.4135 | O47: KSt | P47: =Données!AE40/2 -> 0.25 | Q47: 0.3 | R47: 0.5 | S47: 0.75 | T47: 0.8 | AO47: B | AP47: =Données!$AE$54 -> 1.5 | AQ47: KSt | AR47: 0 | BO47: B | BP47: =Données!$AE$54 -> 1.5 | BQ47: KSt | BR47: 0 | CO47: B | CP47: =Données!$AE$54 -> 1.5 | CQ47: KSt | CR47: 0 | DO47: B | DP47: =Données!$AE$54 -> 1.5 | DQ47: KSt | DR47: 0 | EO47: B | EP47: =Données!$AE$54 -> 1.5 | EQ47: KSt | ER47: 0 | FO47: B | FP47: =Données!$AE$54 -> 1.5 | FQ47: KSt | FR47: 0 | GO47: B | GP47: =Données!$AE$54 -> 1.5 | GQ47: KSt | GR47: 0 | HO47: B | HP47: =Données!$AE$54 -> 1.5 | HQ47: KSt | HR47: 0 | IO47: B | IP47: =Données!$AE$54 -> 1.5 | IQ47: KSt | IR47: 0 | JO47: B | JP47: =Données!$AE$54 -> 1.5 | JQ47: KSt | JR47: 0 | KM47: KSt | KN47: =Données!AE40/2 -> 0.25 | KO47: 0.3 | KP47: 0.5 | KQ47: 0.75 | KR47: 0.8 | LM47: KSt | LN47: =Données!AE40/2 -> 0.25 | LO47: 0.3 | LP47: 0.5 | LQ47: 0.75 | LR47: 0.8 | SO47: B | SP47: =Données!$AE$54 -> 1.5 | SQ47: KSt | SR47: 0
A48: 2 | B48: 39.7916 | C48: 11.2239 | D48: 28.5677 | E48: 2 | F48: 29.231 | G48: 11.2239 | H48: 18.0071 | O48: C3 | P48: 1 | Q48: 0.75 | R48: 0.5 | S48: 0.25 | T48: 0.25 | AO48: δ | AP48: =IF(OR(Données!$AE$46="Compactage par couches sans vérifications",Données!$AE$46="Verdichtung gegen Boden ohne Nachweis"),2/3*Données!$AE$36*PI()/180,IF(OR(Données!$AE$46="Bon compactage par couches avec vérifications",Données!$AE$46="Verdichtung gegen Boden mit Nachweis"),Données!$AE$36*PI()/180,IF(OR(Données!$AE$46="Compactage faible ou inexistant",Données!$AE$46="Geringe bis keine Verdichtung"),0))) -> 0.3490658504 | AQ48: C3 | AR48: 1 | BO48: δ | BP48: =IF(OR(Données!$AE$46="Compactage par couches sans vérifications",Données!$AE$46="Verdichtung gegen Boden ohne Nachweis"),2/3*Données!$AE$36*PI()/180,IF(OR(Données!$AE$46="Bon compactage par couches avec vérifications",Données!$AE$46="Verdichtung gegen Boden mit Nachweis"),Données!$AE$36*PI()/180,IF(OR(Données!$AE$46="Compactage faible ou inexistant",Données!$AE$46="Geringe bis keine Verdichtung"),0))) -> 0.3490658504 | BQ48: C3 | BR48: 1 | CO48: δ | CP48: =IF(OR(Données!$AE$46="Compactage par couches sans vérifications",Données!$AE$46="Verdichtung gegen Boden ohne Nachweis"),2/3*Données!$AE$36*PI()/180,IF(OR(Données!$AE$46="Bon compactage par couches avec vérifications",Données!$AE$46="Verdichtung gegen Boden mit Nachweis"),Données!$AE$36*PI()/180,IF(OR(Données!$AE$46="Compactage faible ou inexistant",Données!$AE$46="Geringe bis keine Verdichtung"),0))) -> 0.3490658504 | CQ48: C3 | CR48: 1 | DO48: δ | DP48: =IF(OR(Données!$AE$46="Compactage par couches sans vérifications",Données!$AE$46="Verdichtung gegen Boden ohne Nachweis"),2/3*Données!$AE$36*PI()/180,IF(OR(Données!$AE$46="Bon compactage par couches avec vérifications",Données!$AE$46="Verdichtung gegen Boden mit Nachweis"),Données!$AE$36*PI()/180,IF(OR(Données!$AE$46="Compactage faible ou inexistant",Données!$AE$46="Geringe bis keine Verdichtung"),0))) -> 0.3490658504 | DQ48: C3 | DR48: 1 | EO48: δ | EP48: =IF(OR(Données!$AE$46="Compactage par couches sans vérifications",Données!$AE$46="Verdichtung gegen Boden ohne Nachweis"),2/3*Données!$AE$36*PI()/180,IF(OR(Données!$AE$46="Bon compactage par couches avec vérifications",Données!$AE$46="Verdichtung gegen Boden mit Nachweis"),Données!$AE$36*PI()/180,IF(OR(Données!$AE$46="Compactage faible ou inexistant",Données!$AE$46="Geringe bis keine Verdichtung"),0))) -> 0.3490658504 | EQ48: C3 | ER48: 1 | FO48: δ | FP48: =IF(OR(Données!$AE$46="Compactage par couches sans vérifications",Données!$AE$46="Verdichtung gegen Boden ohne Nachweis"),2/3*Données!$AE$36*PI()/180,IF(OR(Données!$AE$46="Bon compactage par couches avec vérifications",Données!$AE$46="Verdichtung gegen Boden mit Nachweis"),Données!$AE$36*PI()/180,IF(OR(Données!$AE$46="Compactage faible ou inexistant",Données!$AE$46="Geringe bis keine Verdichtung"),0))) -> 0.3490658504 | FQ48: C3 | FR48: 1 | GO48: δ | GP48: =IF(OR(Données!$AE$46="Compactage par couches sans vérifications",Données!$AE$46="Verdichtung gegen Boden ohne Nachweis"),2/3*Données!$AE$36*PI()/180,IF(OR(Données!$AE$46="Bon compactage par couches avec vérifications",Données!$AE$46="Verdichtung gegen Boden mit Nachweis"),Données!$AE$36*PI()/180,IF(OR(Données!$AE$46="Compactage faible ou inexistant",Données!$AE$46="Geringe bis keine Verdichtung"),0))) -> 0.3490658504 | GQ48: C3 | GR48: 1 | HO48: δ | HP48: =IF(OR(Données!$AE$46="Compactage par couches sans vérifications",Données!$AE$46="Verdichtung gegen Boden ohne Nachweis"),2/3*Données!$AE$36*PI()/180,IF(OR(Données!$AE$46="Bon compactage par couches avec vérifications",Données!$AE$46="Verdichtung gegen Boden mit Nachweis"),Données!$AE$36*PI()/180,IF(OR(Données!$AE$46="Compactage faible ou inexistant",Données!$AE$46="Geringe bis keine Verdichtung"),0))) -> 0.3490658504 | HQ48: C3 | HR48: 1 | IO48: δ | IP48: =IF(OR(Données!$AE$46="Compactage par couches sans vérifications",Données!$AE$46="Verdichtung gegen Boden ohne Nachweis"),2/3*Données!$AE$36*PI()/180,IF(OR(Données!$AE$46="Bon compactage par couches avec vérifications",Données!$AE$46="Verdichtung gegen Boden mit Nachweis"),Données!$AE$36*PI()/180,IF(OR(Données!$AE$46="Compactage faible ou inexistant",Données!$AE$46="Geringe bis keine Verdichtung"),0))) -> 0.3490658504 | IQ48: C3 | IR48: 1 | JO48: δ | JP48: =IF(OR(Données!$AE$46="Compactage par couches sans vérifications",Données!$AE$46="Verdichtung gegen Boden ohne Nachweis"),2/3*Données!$AE$36*PI()/180,IF(OR(Données!$AE$46="Bon compactage par couches avec vérifications",Données!$AE$46="Verdichtung gegen Boden mit Nachweis"),Données!$AE$36*PI()/180,IF(OR(Données!$AE$46="Compactage faible ou inexistant",Données!$AE$46="Geringe bis keine Verdichtung"),0))) -> 0.3490658504 | JQ48: C3 | JR48: 1 | KM48: C3 | KN48: 1 | KO48: 0.75 | KP48: 0.5 | KQ48: 0.25 | KR48: 0.25 | LM48: C3 | LN48: 1 | LO48: 0.75 | LP48: 0.5 | LQ48: 0.25 | LR48: 0.25 | SO48: δ | SP48: =IF(OR(Données!$AE$46="Compactage par couches sans vérifications",Données!$AE$46="Verdichtung gegen Boden ohne Nachweis"),2/3*Données!$AE$36*PI()/180,IF(OR(Données!$AE$46="Bon compactage par couches avec vérifications",Données!$AE$46="Verdichtung gegen Boden mit Nachweis"),Données!$AE$36*PI()/180,IF(OR(Données!$AE$46="Compactage faible ou inexistant",Données!$AE$46="Geringe bis keine Verdichtung"),0))) -> 0.3490658504 | SQ48: C3 | SR48: 1
A49: 2.125 | B49: 37.1339 | C49: 9.9167 | D49: 27.2172 | E49: 2.125 | F49: 27.4853 | G49: 9.9167 | H49: 17.5686 | O49: C1 | P49: =Données!$AE$42*Calculs!P48 -> 0.5 | Q49: =Données!$AE$42*Calculs!Q48 -> 0.375 | R49: =Données!$AE$42*Calculs!R48 -> 0.25 | S49: =Données!$AE$42*Calculs!S48 -> 0.125 | T49: =Données!$AE$42*Calculs!T48 -> 0.125 | AO49: λmax | AP49: =AR50 -> 1.554760151 | AQ49: C1 | AR49: =Données!$AE$42*Calculs!AR48 -> 0.5 | BO49: λmax | BP49: =BR50 -> 1.554760151 | BQ49: C1 | BR49: =Données!$AE$42*Calculs!BR48 -> 0.5 | CO49: λmax | CP49: =CR50 -> 1.554760151 | CQ49: C1 | CR49: =Données!$AE$42*Calculs!CR48 -> 0.5 | DO49: λmax | DP49: =DR50 -> 1.554760151 | DQ49: C1 | DR49: =Données!$AE$42*Calculs!DR48 -> 0.5 | EO49: λmax | EP49: =ER50 -> 1.554760151 | EQ49: C1 | ER49: =Données!$AE$42*Calculs!ER48 -> 0.5 | FO49: λmax | FP49: =FR50 -> 1.554760151 | FQ49: C1 | FR49: =Données!$AE$42*Calculs!FR48 -> 0.5 | GO49: λmax | GP49: =GR50 -> 1.554760151 | GQ49: C1 | GR49: =Données!$AE$42*Calculs!GR48 -> 0.5 | HO49: λmax | HP49: =HR50 -> 1.554760151 | HQ49: C1 | HR49: =Données!$AE$42*Calculs!HR48 -> 0.5 | IO49: λmax | IP49: =IR50 -> 1.554760151 | IQ49: C1 | IR49: =Données!$AE$42*Calculs!IR48 -> 0.5 | JO49: λmax | JP49: =JR50 -> 1.554760151 | JQ49: C1 | JR49: =Données!$AE$42*Calculs!JR48 -> 0.5 | KM49: C1 | KN49: =Données!$AE$42*Calculs!KN48 -> 0.5 | KO49: =Données!$AE$42*Calculs!KO48 -> 0.375 | KP49: =Données!$AE$42*Calculs!KP48 -> 0.25 | KQ49: =Données!$AE$42*Calculs!KQ48 -> 0.125 | KR49: =Données!$AE$42*Calculs!KR48 -> 0.125 | LM49: C1 | LN49: =Données!$AE$42*Calculs!LN48 -> 0.5 | LO49: =Données!$AE$42*Calculs!LO48 -> 0.375 | LP49: =Données!$AE$42*Calculs!LP48 -> 0.25 | LQ49: =Données!$AE$42*Calculs!LQ48 -> 0.125 | LR49: =Données!$AE$42*Calculs!LR48 -> 0.125 | MK49: 4. Facteur de majoration de charges f | MR49: 4. Facteur de majoration de charges f | NK49: 4. Facteur de majoration de charges f | NR49: 4. Facteur de majoration de charges f | OK49: 4. Facteur de majoration de charges f | OR49: 4. Facteur de majoration de charges f | PK49: 4. Facteur de majoration de charges f | PR49: 4. Facteur de majoration de charges f | QK49: 4. Facteur de majoration de charges f | QR49: 4. Facteur de majoration de charges f | RK49: 4. Facteur de majoration de charges f | RR49: 4. Facteur de majoration de charges f | SO49: λmax | SP49: =SR50 -> 1.554760151 | SQ49: C1 | SR49: =Données!$AE$42*Calculs!SR48 -> 0.5
A50: 2.25 | B50: 34.7651 | C50: 8.8236 | D50: 25.9415 | E50: 2.25 | F50: 25.9333 | G50: 8.8236 | H50: 17.1097 | O50: λmax | P50: =IF(0.4025*P49^3-1.0202*P49^2+0.8401*P49+0.4809*(P49)^(1/2)+0.9994>=1.025,0.4025*P49^3-1.0202*P49^2+0.8401*P49+0.4809*(P49)^(1/2)+0.9994,1) -> 1.554760151 | Q50: =IF(0.4025*Q49^3-1.0202*Q49^2+0.8401*Q49+0.4809*(Q49)^(1/2)+0.9994>=1.025,0.4025*Q49^3-1.0202*Q49^2+0.8401*Q49+0.4809*(Q49)^(1/2)+0.9994,1) -> 1.486687365 | R50: =IF(0.4025*R49^3-1.0202*R49^2+0.8401*R49+0.4809*(R49)^(1/2)+0.9994>=1.025,0.4025*R49^3-1.0202*R49^2+0.8401*R49+0.4809*(R49)^(1/2)+0.9994,1) -> 1.392401562 | S50: =IF(0.4025*S49^3-1.0202*S49^2+0.8401*S49+0.4809*(S49)^(1/2)+0.9994>=1.025,0.4025*S49^3-1.0202*S49^2+0.8401*S49+0.4809*(S49)^(1/2)+0.9994,1) -> 1.259281833 | T50: =IF(0.4025*T49^3-1.0202*T49^2+0.8401*T49+0.4809*(T49)^(1/2)+0.9994>=1.025,0.4025*T49^3-1.0202*T49^2+0.8401*T49+0.4809*(T49)^(1/2)+0.9994,1) -> 1.259281833 | AO50: λmin | AP50: =IF(OR(Données!$AE$44="NON",Données!$AE$44="NEIN"),1,IF(AP48=0,1,IF(OR(Données!$AE$56="Verticale (U)",Données!$AE$56="Vertikal (U)"),(1-EXP(-2*Données!$AE$52/Calculs!AP47*Calculs!AP46*TAN(Calculs!AP48)))/(2*Données!$AE$52/Calculs!AP47*Calculs!AP46*TAN(Calculs!AP48)),IF(OR(Données!$AE$56="Talutée (V)",Données!$AE$56="Abgeböscht (V)"),1-Données!$AE$58/90+Données!$AE$58/90*(1-EXP(-2*Données!$AE$52/Calculs!AP47*Calculs!AP46*TAN(Calculs!AP48)))/(2*Données!$AE$52/Calculs!AP47*Calculs!AP46*TAN(Calculs!AP48)))))) -> 1 | AQ50: λmax | AR50: =IF(0.4025*AR49^3-1.0202*AR49^2+0.8401*AR49+0.4809*(AR49)^(1/2)+0.9994>=1.025,0.4025*AR49^3-1.0202*AR49^2+0.8401*AR49+0.4809*(AR49)^(1/2)+0.9994,1) -> 1.554760151 | BO50: λmin | BP50: =IF(OR(Données!$AE$44="NON",Données!$AE$44="NEIN"),1,IF(BP48=0,1,IF(OR(Données!$AE$56="Verticale (U)",Données!$AE$56="Vertikal (U)"),(1-EXP(-2*Données!$AE$52/Calculs!BP47*Calculs!BP46*TAN(Calculs!BP48)))/(2*Données!$AE$52/Calculs!BP47*Calculs!BP46*TAN(Calculs!BP48)),IF(OR(Données!$AE$56="Talutée (V)",Données!$AE$56="Abgeböscht (V)"),1-Données!$AE$58/90+Données!$AE$58/90*(1-EXP(-2*Données!$AE$52/Calculs!BP47*Calculs!BP46*TAN(Calculs!BP48)))/(2*Données!$AE$52/Calculs!BP47*Calculs!BP46*TAN(Calculs!BP48)))))) -> 1 | BQ50: λmax | BR50: =IF(0.4025*BR49^3-1.0202*BR49^2+0.8401*BR49+0.4809*(BR49)^(1/2)+0.9994>=1.025,0.4025*BR49^3-1.0202*BR49^2+0.8401*BR49+0.4809*(BR49)^(1/2)+0.9994,1) -> 1.554760151 | CO50: λmin | CP50: =IF(OR(Données!$AE$44="NON",Données!$AE$44="NEIN"),1,IF(CP48=0,1,IF(OR(Données!$AE$56="Verticale (U)",Données!$AE$56="Vertikal (U)"),(1-EXP(-2*Données!$AE$52/Calculs!CP47*Calculs!CP46*TAN(Calculs!CP48)))/(2*Données!$AE$52/Calculs!CP47*Calculs!CP46*TAN(Calculs!CP48)),IF(OR(Données!$AE$56="Talutée (V)",Données!$AE$56="Abgeböscht (V)"),1-Données!$AE$58/90+Données!$AE$58/90*(1-EXP(-2*Données!$AE$52/Calculs!CP47*Calculs!CP46*TAN(Calculs!CP48)))/(2*Données!$AE$52/Calculs!CP47*Calculs!CP46*TAN(Calculs!CP48)))))) -> 1 | CQ50: λmax | CR50: =IF(0.4025*$CR$49^3-1.0202*$CR$49^2+0.8401*$CR$49+0.4809*($CR$49)^(1/2)+0.9994>=1.025,0.4025*$CR$49^3-1.0202*$CR$49^2+0.8401*$CR$49+0.4809*($CR$49)^(1/2)+0.9994,1) -> 1.554760151 | DO50: λmin | DP50: =IF(OR(Données!$AE$44="NON",Données!$AE$44="NEIN"),1,IF(DP48=0,1,IF(OR(Données!$AE$56="Verticale (U)",Données!$AE$56="Vertikal (U)"),(1-EXP(-2*Données!$AE$52/Calculs!DP47*Calculs!DP46*TAN(Calculs!DP48)))/(2*Données!$AE$52/Calculs!DP47*Calculs!DP46*TAN(Calculs!DP48)),IF(OR(Données!$AE$56="Talutée (V)",Données!$AE$56="Abgeböscht (V)"),1-Données!$AE$58/90+Données!$AE$58/90*(1-EXP(-2*Données!$AE$52/Calculs!DP47*Calculs!DP46*TAN(Calculs!DP48)))/(2*Données!$AE$52/Calculs!DP47*Calculs!DP46*TAN(Calculs!DP48)))))) -> 1 | DQ50: λmax | DR50: =IF(0.4025*DR49^3-1.0202*DR49^2+0.8401*DR49+0.4809*(DR49)^(1/2)+0.9994>=1.025,0.4025*DR49^3-1.0202*DR49^2+0.8401*DR49+0.4809*(DR49)^(1/2)+0.9994,1) -> 1.554760151 | EO50: λmin | EP50: =IF(OR(Données!$AE$44="NON",Données!$AE$44="NEIN"),1,IF(EP48=0,1,IF(OR(Données!$AE$56="Verticale (U)",Données!$AE$56="Vertikal (U)"),(1-EXP(-2*Données!$AE$52/Calculs!EP47*Calculs!EP46*TAN(Calculs!EP48)))/(2*Données!$AE$52/Calculs!EP47*Calculs!EP46*TAN(Calculs!EP48)),IF(OR(Données!$AE$56="Talutée (V)",Données!$AE$56="Abgeböscht (V)"),1-Données!$AE$58/90+Données!$AE$58/90*(1-EXP(-2*Données!$AE$52/Calculs!EP47*Calculs!EP46*TAN(Calculs!EP48)))/(2*Données!$AE$52/Calculs!EP47*Calculs!EP46*TAN(Calculs!EP48)))))) -> 1 | EQ50: λmax | ER50: =IF(0.4025*ER49^3-1.0202*ER49^2+0.8401*ER49+0.4809*(ER49)^(1/2)+0.9994>=1.025,0.4025*ER49^3-1.0202*ER49^2+0.8401*ER49+0.4809*(ER49)^(1/2)+0.9994,1) -> 1.554760151 | FO50: λmin | FP50: =IF(OR(Données!$AE$44="NON",Données!$AE$44="NEIN"),1,IF(FP48=0,1,IF(OR(Données!$AE$56="Verticale (U)",Données!$AE$56="Vertikal (U)"),(1-EXP(-2*Données!$AE$52/Calculs!FP47*Calculs!FP46*TAN(Calculs!FP48)))/(2*Données!$AE$52/Calculs!FP47*Calculs!FP46*TAN(Calculs!FP48)),IF(OR(Données!$AE$56="Talutée (V)",Données!$AE$56="Abgeböscht (V)"),1-Données!$AE$58/90+Données!$AE$58/90*(1-EXP(-2*Données!$AE$52/Calculs!FP47*Calculs!FP46*TAN(Calculs!FP48)))/(2*Données!$AE$52/Calculs!FP47*Calculs!FP46*TAN(Calculs!FP48)))))) -> 1 | FQ50: λmax | FR50: =IF(0.4025*FR49^3-1.0202*FR49^2+0.8401*FR49+0.4809*(FR49)^(1/2)+0.9994>=1.025,0.4025*FR49^3-1.0202*FR49^2+0.8401*FR49+0.4809*(FR49)^(1/2)+0.9994,1) -> 1.554760151 | GO50: λmin | GP50: =IF(OR(Données!$AE$44="NON",Données!$AE$44="NEIN"),1,IF(GP48=0,1,IF(OR(Données!$AE$56="Verticale (U)",Données!$AE$56="Vertikal (U)"),(1-EXP(-2*Données!$AE$52/Calculs!GP47*Calculs!GP46*TAN(Calculs!GP48)))/(2*Données!$AE$52/Calculs!GP47*Calculs!GP46*TAN(Calculs!GP48)),IF(OR(Données!$AE$56="Talutée (V)",Données!$AE$56="Abgeböscht (V)"),1-Données!$AE$58/90+Données!$AE$58/90*(1-EXP(-2*Données!$AE$52/Calculs!GP47*Calculs!GP46*TAN(Calculs!GP48)))/(2*Données!$AE$52/Calculs!GP47*Calculs!GP46*TAN(Calculs!GP48)))))) -> 1 | GQ50: λmax | GR50: =IF(0.4025*GR49^3-1.0202*GR49^2+0.8401*GR49+0.4809*(GR49)^(1/2)+0.9994>=1.025,0.4025*GR49^3-1.0202*GR49^2+0.8401*GR49+0.4809*(GR49)^(1/2)+0.9994,1) -> 1.554760151 | HO50: λmin | HP50: =IF(OR(Données!$AE$44="NON",Données!$AE$44="NEIN"),1,IF(HP48=0,1,IF(OR(Données!$AE$56="Verticale (U)",Données!$AE$56="Vertikal (U)"),(1-EXP(-2*Données!$AE$52/Calculs!HP47*Calculs!HP46*TAN(Calculs!HP48)))/(2*Données!$AE$52/Calculs!HP47*Calculs!HP46*TAN(Calculs!HP48)),IF(OR(Données!$AE$56="Talutée (V)",Données!$AE$56="Abgeböscht (V)"),1-Données!$AE$58/90+Données!$AE$58/90*(1-EXP(-2*Données!$AE$52/Calculs!HP47*Calculs!HP46*TAN(Calculs!HP48)))/(2*Données!$AE$52/Calculs!HP47*Calculs!HP46*TAN(Calculs!HP48)))))) -> 1 | HQ50: λmax | HR50: =IF(0.4025*HR49^3-1.0202*HR49^2+0.8401*HR49+0.4809*(HR49)^(1/2)+0.9994>=1.025,0.4025*HR49^3-1.0202*HR49^2+0.8401*HR49+0.4809*(HR49)^(1/2)+0.9994,1) -> 1.554760151 | IO50: λmin | IP50: =IF(OR(Données!$AE$44="NON",Données!$AE$44="NEIN"),1,IF(IP48=0,1,IF(OR(Données!$AE$56="Verticale (U)",Données!$AE$56="Vertikal (U)"),(1-EXP(-2*Données!$AE$52/Calculs!IP47*Calculs!IP46*TAN(Calculs!IP48)))/(2*Données!$AE$52/Calculs!IP47*Calculs!IP46*TAN(Calculs!IP48)),IF(OR(Données!$AE$56="Talutée (V)",Données!$AE$56="Abgeböscht (V)"),1-Données!$AE$58/90+Données!$AE$58/90*(1-EXP(-2*Données!$AE$52/Calculs!IP47*Calculs!IP46*TAN(Calculs!IP48)))/(2*Données!$AE$52/Calculs!IP47*Calculs!IP46*TAN(Calculs!IP48)))))) -> 1 | IQ50: λmax | IR50: =IF(0.4025*IR49^3-1.0202*IR49^2+0.8401*IR49+0.4809*(IR49)^(1/2)+0.9994>=1.025,0.4025*IR49^3-1.0202*IR49^2+0.8401*IR49+0.4809*(IR49)^(1/2)+0.9994,1) -> 1.554760151 | JO50: λmin | JP50: =IF(OR(Données!$AE$44="NON",Données!$AE$44="NEIN"),1,IF(JP48=0,1,IF(OR(Données!$AE$56="Verticale (U)",Données!$AE$56="Vertikal (U)"),(1-EXP(-2*Données!$AE$52/Calculs!JP47*Calculs!JP46*TAN(Calculs!JP48)))/(2*Données!$AE$52/Calculs!JP47*Calculs!JP46*TAN(Calculs!JP48)),IF(OR(Données!$AE$56="Talutée (V)",Données!$AE$56="Abgeböscht (V)"),1-Données!$AE$58/90+Données!$AE$58/90*(1-EXP(-2*Données!$AE$52/Calculs!JP47*Calculs!JP46*TAN(Calculs!JP48)))/(2*Données!$AE$52/Calculs!JP47*Calculs!JP46*TAN(Calculs!JP48)))))) -> 1 | JQ50: λmax | JR50: =IF(0.4025*JR49^3-1.0202*JR49^2+0.8401*JR49+0.4809*(JR49)^(1/2)+0.9994>=1.025,0.4025*JR49^3-1.0202*JR49^2+0.8401*JR49+0.4809*(JR49)^(1/2)+0.9994,1) -> 1.554760151 | KM50: λmax | KN50: =IF(0.4025*KN49^3-1.0202*KN49^2+0.8401*KN49+0.4809*(KN49)^(1/2)+0.9994>=1.025,0.4025*KN49^3-1.0202*KN49^2+0.8401*KN49+0.4809*(KN49)^(1/2)+0.9994,1) -> 1.554760151 | KO50: =IF(0.4025*KO49^3-1.0202*KO49^2+0.8401*KO49+0.4809*(KO49)^(1/2)+0.9994>=1.025,0.4025*KO49^3-1.0202*KO49^2+0.8401*KO49+0.4809*(KO49)^(1/2)+0.9994,1) -> 1.486687365 | KP50: =IF(0.4025*KP49^3-1.0202*KP49^2+0.8401*KP49+0.4809*(KP49)^(1/2)+0.9994>=1.025,0.4025*KP49^3-1.0202*KP49^2+0.8401*KP49+0.4809*(KP49)^(1/2)+0.9994,1) -> 1.392401562 | KQ50: =IF(0.4025*KQ49^3-1.0202*KQ49^2+0.8401*KQ49+0.4809*(KQ49)^(1/2)+0.9994>=1.025,0.4025*KQ49^3-1.0202*KQ49^2+0.8401*KQ49+0.4809*(KQ49)^(1/2)+0.9994,1) -> 1.259281833 | KR50: =IF(0.4025*KR49^3-1.0202*KR49^2+0.8401*KR49+0.4809*(KR49)^(1/2)+0.9994>=1.025,0.4025*KR49^3-1.0202*KR49^2+0.8401*KR49+0.4809*(KR49)^(1/2)+0.9994,1) -> 1.259281833 | LM50: λmax | LN50: =IF(0.4025*LN49^3-1.0202*LN49^2+0.8401*LN49+0.4809*(LN49)^(1/2)+0.9994>=1.025,0.4025*LN49^3-1.0202*LN49^2+0.8401*LN49+0.4809*(LN49)^(1/2)+0.9994,1) -> 1.554760151 | LO50: =IF(0.4025*LO49^3-1.0202*LO49^2+0.8401*LO49+0.4809*(LO49)^(1/2)+0.9994>=1.025,0.4025*LO49^3-1.0202*LO49^2+0.8401*LO49+0.4809*(LO49)^(1/2)+0.9994,1) -> 1.486687365 | LP50: =IF(0.4025*LP49^3-1.0202*LP49^2+0.8401*LP49+0.4809*(LP49)^(1/2)+0.9994>=1.025,0.4025*LP49^3-1.0202*LP49^2+0.8401*LP49+0.4809*(LP49)^(1/2)+0.9994,1) -> 1.392401562 | LQ50: =IF(0.4025*LQ49^3-1.0202*LQ49^2+0.8401*LQ49+0.4809*(LQ49)^(1/2)+0.9994>=1.025,0.4025*LQ49^3-1.0202*LQ49^2+0.8401*LQ49+0.4809*(LQ49)^(1/2)+0.9994,1) -> 1.259281833 | LR50: =IF(0.4025*LR49^3-1.0202*LR49^2+0.8401*LR49+0.4809*(LR49)^(1/2)+0.9994>=1.025,0.4025*LR49^3-1.0202*LR49^2+0.8401*LR49+0.4809*(LR49)^(1/2)+0.9994,1) -> 1.259281833 | MK50: f | ML50: =ML35/(2*MN35) -> 1.01897019 | MM50: =IF(ML50>=1.025,ML50,1) -> 1 | MN50: [-] | MR50: f | MS50: =MS34/(2*MU34) -> 1.291902072 | MT50: =IF(MS50>=1.025,MS50,1) -> 1.291902072 | MU50: [-] | NK50: f | NL50: =NL35/(2*NN35) -> 1.02173913 | NM50: =IF(NL50>=1.025,NL50,1) -> 1 | NN50: [-] | NR50: f | NS50: =NS34/(2*NU34) -> 1.291902072 | NT50: =IF(NS50>=1.025,NS50,1) -> 1.291902072 | NU50: [-] | OK50: f | OL50: =OL35/(2*ON35) -> 1.028571429 | OM50: =IF(OL50>=1.025,OL50,1) -> 1.028571429 | ON50: [-] | OR50: f | OS50: =OS34/(2*OU34) -> 1.316455696 | OT50: =IF(OS50>=1.025,OS50,1) -> 1.316455696 | OU50: [-] | PK50: f | PL50: =PL35/(2*PN35) -> 1.031847134 | PM50: =IF(PL50>=1.025,PL50,1) -> 1.031847134 | PN50: [-] | PR50: f | PS50: =PS34/(2*PU34) -> 1.316455696 | PT50: =IF(PS50>=1.025,PS50,1) -> 1.316455696 | PU50: [-] | QK50: f | QL50: =QL35/(2*QN35) -> 1.031847134 | QM50: =IF(QL50>=1.025,QL50,1) -> 1.031847134 | QN50: [-] | QR50: f | QS50: =QS34/(2*QU34) -> 1.316455696 | QT50: =IF(QS50>=1.025,QS50,1) -> 1.316455696 | QU50: [-] | RK50: f | RL50: =RL35/(2*RN35) -> 1.03514377 | RM50: =IF(RL50>=1.025,RL50,1) -> 1.03514377 | RN50: [-] | RR50: f | RS50: =RS34/(2*RU34) -> 1.316455696 | RT50: =IF(RS50>=1.025,RS50,1) -> 1.316455696 | RU50: [-] | SO50: λmin | SP50: =IF(OR(Données!$AE$44="NON",Données!$AE$44="NEIN"),1,IF(SP48=0,1,IF(OR(Données!$AE$56="Verticale (U)",Données!$AE$56="Vertikal (U)"),(1-EXP(-2*Données!$AE$52/Calculs!SP47*Calculs!SP46*TAN(Calculs!SP48)))/(2*Données!$AE$52/Calculs!SP47*Calculs!SP46*TAN(Calculs!SP48)),IF(OR(Données!$AE$56="Talutée (V)",Données!$AE$56="Abgeböscht (V)"),1-Données!$AE$58/90+Données!$AE$58/90*(1-EXP(-2*Données!$AE$52/Calculs!SP47*Calculs!SP46*TAN(Calculs!SP48)))/(2*Données!$AE$52/Calculs!SP47*Calculs!SP46*TAN(Calculs!SP48)))))) -> 1 | SQ50: λmax | SR50: =IF(0.4025*SR49^3-1.0202*SR49^2+0.8401*SR49+0.4809*(SR49)^(1/2)+0.9994>=1.025,0.4025*SR49^3-1.0202*SR49^2+0.8401*SR49+0.4809*(SR49)^(1/2)+0.9994,1) -> 1.554760151
A51: 2.375 | B51: 32.6376 | C51: 7.9006 | D51: 24.737 | E51: 2.375 | F51: 24.5401 | G51: 7.9006 | H51: 16.6395 | O51: αo [rad] | P51: =90*2*PI()/360 -> 1.570796327 | Q51: =90*2*PI()/360 -> 1.570796327 | R51: =90*2*PI()/360 -> 1.570796327 | S51: =60*2*PI()/360 -> 1.047197551 | T51: =90*2*PI()/360 -> 1.570796327 | AO51: λmin,0 | AP51: =IF(OR(Données!$AE$44="NON",Données!$AE$44="NEIN"),1,IF(AP48=0,1,IF(OR(Données!$AE$56="Verticale (U)",Données!$AE$56="Vertikal (U)"),EXP(-2*Données!$AE$52/Calculs!AP47*Calculs!AP46*TAN(Calculs!AP48)),IF(OR(Données!$AE$56="Talutée (V)",Données!$AE$56="Abgeböscht (V)"),1-Données!$AE$58/90+Données!$AE$58/90*EXP(-2*Données!$AE$52/Calculs!AP47*Calculs!AP46*TAN(Calculs!AP48)))))) -> 1 | AQ51: αo [rad] | AR51: =90*2*PI()/360 -> 1.570796327 | BO51: λmin,0 | BP51: =IF(OR(Données!$AE$44="NON",Données!$AE$44="NEIN"),1,IF(BP48=0,1,IF(OR(Données!$AE$56="Verticale (U)",Données!$AE$56="Vertikal (U)"),EXP(-2*Données!$AE$52/Calculs!BP47*Calculs!BP46*TAN(Calculs!BP48)),IF(OR(Données!$AE$56="Talutée (V)",Données!$AE$56="Abgeböscht (V)"),1-Données!$AE$58/90+Données!$AE$58/90*EXP(-2*Données!$AE$52/Calculs!BP47*Calculs!BP46*TAN(Calculs!BP48)))))) -> 1 | BQ51: αo [rad] | BR51: =90*2*PI()/360 -> 1.570796327 | CO51: λmin,0 | CP51: =IF(OR(Données!$AE$44="NON",Données!$AE$44="NEIN"),1,IF(CP48=0,1,IF(OR(Données!$AE$56="Verticale (U)",Données!$AE$56="Vertikal (U)"),EXP(-2*Données!$AE$52/Calculs!CP47*Calculs!CP46*TAN(Calculs!CP48)),IF(OR(Données!$AE$56="Talutée (V)",Données!$AE$56="Abgeböscht (V)"),1-Données!$AE$58/90+Données!$AE$58/90*EXP(-2*Données!$AE$52/Calculs!CP47*Calculs!CP46*TAN(Calculs!CP48)))))) -> 1 | CQ51: αo [rad] | CR51: =90*2*PI()/360 -> 1.570796327 | DO51: λmin,0 | DP51: =IF(OR(Données!$AE$44="NON",Données!$AE$44="NEIN"),1,IF(DP48=0,1,IF(OR(Données!$AE$56="Verticale (U)",Données!$AE$56="Vertikal (U)"),EXP(-2*Données!$AE$52/Calculs!DP47*Calculs!DP46*TAN(Calculs!DP48)),IF(OR(Données!$AE$56="Talutée (V)",Données!$AE$56="Abgeböscht (V)"),1-Données!$AE$58/90+Données!$AE$58/90*EXP(-2*Données!$AE$52/Calculs!DP47*Calculs!DP46*TAN(Calculs!DP48)))))) -> 1 | DQ51: αo [rad] | DR51: =90*2*PI()/360 -> 1.570796327 | EO51: λmin,0 | EP51: =IF(OR(Données!$AE$44="NON",Données!$AE$44="NEIN"),1,IF(EP48=0,1,IF(OR(Données!$AE$56="Verticale (U)",Données!$AE$56="Vertikal (U)"),EXP(-2*Données!$AE$52/Calculs!EP47*Calculs!EP46*TAN(Calculs!EP48)),IF(OR(Données!$AE$56="Talutée (V)",Données!$AE$56="Abgeböscht (V)"),1-Données!$AE$58/90+Données!$AE$58/90*EXP(-2*Données!$AE$52/Calculs!EP47*Calculs!EP46*TAN(Calculs!EP48)))))) -> 1 | EQ51: αo [rad] | ER51: =90*2*PI()/360 -> 1.570796327 | FO51: λmin,0 | FP51: =IF(OR(Données!$AE$44="NON",Données!$AE$44="NEIN"),1,IF(FP48=0,1,IF(OR(Données!$AE$56="Verticale (U)",Données!$AE$56="Vertikal (U)"),EXP(-2*Données!$AE$52/Calculs!FP47*Calculs!FP46*TAN(Calculs!FP48)),IF(OR(Données!$AE$56="Talutée (V)",Données!$AE$56="Abgeböscht (V)"),1-Données!$AE$58/90+Données!$AE$58/90*EXP(-2*Données!$AE$52/Calculs!FP47*Calculs!FP46*TAN(Calculs!FP48)))))) -> 1 | FQ51: αo [rad] | FR51: =90*2*PI()/360 -> 1.570796327 | GO51: λmin,0 | GP51: =IF(OR(Données!$AE$44="NON",Données!$AE$44="NEIN"),1,IF(GP48=0,1,IF(OR(Données!$AE$56="Verticale (U)",Données!$AE$56="Vertikal (U)"),EXP(-2*Données!$AE$52/Calculs!GP47*Calculs!GP46*TAN(Calculs!GP48)),IF(OR(Données!$AE$56="Talutée (V)",Données!$AE$56="Abgeböscht (V)"),1-Données!$AE$58/90+Données!$AE$58/90*EXP(-2*Données!$AE$52/Calculs!GP47*Calculs!GP46*TAN(Calculs!GP48)))))) -> 1 | GQ51: αo [rad] | GR51: =90*2*PI()/360 -> 1.570796327 | HO51: λmin,0 | HP51: =IF(OR(Données!$AE$44="NON",Données!$AE$44="NEIN"),1,IF(HP48=0,1,IF(OR(Données!$AE$56="Verticale (U)",Données!$AE$56="Vertikal (U)"),EXP(-2*Données!$AE$52/Calculs!HP47*Calculs!HP46*TAN(Calculs!HP48)),IF(OR(Données!$AE$56="Talutée (V)",Données!$AE$56="Abgeböscht (V)"),1-Données!$AE$58/90+Données!$AE$58/90*EXP(-2*Données!$AE$52/Calculs!HP47*Calculs!HP46*TAN(Calculs!HP48)))))) -> 1 | HQ51: αo [rad] | HR51: =90*2*PI()/360 -> 1.570796327 | IO51: λmin,0 | IP51: =IF(OR(Données!$AE$44="NON",Données!$AE$44="NEIN"),1,IF(IP48=0,1,IF(OR(Données!$AE$56="Verticale (U)",Données!$AE$56="Vertikal (U)"),EXP(-2*Données!$AE$52/Calculs!IP47*Calculs!IP46*TAN(Calculs!IP48)),IF(OR(Données!$AE$56="Talutée (V)",Données!$AE$56="Abgeböscht (V)"),1-Données!$AE$58/90+Données!$AE$58/90*EXP(-2*Données!$AE$52/Calculs!IP47*Calculs!IP46*TAN(Calculs!IP48)))))) -> 1 | IQ51: αo [rad] | IR51: =90*2*PI()/360 -> 1.570796327 | JO51: λmin,0 | JP51: =IF(OR(Données!$AE$44="NON",Données!$AE$44="NEIN"),1,IF(JP48=0,1,IF(OR(Données!$AE$56="Verticale (U)",Données!$AE$56="Vertikal (U)"),EXP(-2*Données!$AE$52/Calculs!JP47*Calculs!JP46*TAN(Calculs!JP48)),IF(OR(Données!$AE$56="Talutée (V)",Données!$AE$56="Abgeböscht (V)"),1-Données!$AE$58/90+Données!$AE$58/90*EXP(-2*Données!$AE$52/Calculs!JP47*Calculs!JP46*TAN(Calculs!JP48)))))) -> 1 | JQ51: αo [rad] | JR51: =90*2*PI()/360 -> 1.570796327 | KM51: αo [rad] | KN51: =90*2*PI()/360 -> 1.570796327 | KO51: =90*2*PI()/360 -> 1.570796327 | KP51: =90*2*PI()/360 -> 1.570796327 | KQ51: =60*2*PI()/360 -> 1.047197551 | KR51: =90*2*PI()/360 -> 1.570796327 | LM51: αo [rad] | LN51: =90*2*PI()/360 -> 1.570796327 | LO51: =90*2*PI()/360 -> 1.570796327 | LP51: =90*2*PI()/360 -> 1.570796327 | LQ51: =60*2*PI()/360 -> 1.047197551 | LR51: =90*2*PI()/360 -> 1.570796327 | MO51: 5. Profil d'enrobages | NO51: 5. Profil d'enrobages | OO51: 5. Profil d'enrobages | PO51: 5. Profil d'enrobages | QO51: 5. Profil d'enrobages | RO51: 5. Profil d'enrobages | SO51: λmin,0 | SP51: =IF(OR(Données!$AE$44="NON",Données!$AE$44="NEIN"),1,IF(SP48=0,1,IF(OR(Données!$AE$56="Verticale (U)",Données!$AE$56="Vertikal (U)"),EXP(-2*Données!$AE$52/Calculs!SP47*Calculs!SP46*TAN(Calculs!SP48)),IF(OR(Données!$AE$56="Talutée (V)",Données!$AE$56="Abgeböscht (V)"),1-Données!$AE$58/90+Données!$AE$58/90*EXP(-2*Données!$AE$52/Calculs!SP47*Calculs!SP46*TAN(Calculs!SP48)))))) -> 1 | SQ51: αo [rad] | SR51: =90*2*PI()/360 -> 1.570796327
A52: 2.5 | B52: 30.7144 | C52: 7.114444444 | D52: 23.59995556 | E52: 2.5 | F52: 23.2792 | G52: 7.114444444 | H52: 16.16475556 | O52: δ [rad] | P52: =150*2*PI()/360 -> 2.617993878 | Q52: =120*2*PI()/360 -> 2.094395102 | R52: =90*2*PI()/360 -> 1.570796327 | S52: =60*2*PI()/360 -> 1.047197551 | T52: 0 | AO52: λmin,F | AP52: =IF(OR(Données!$AE$44="NON",Données!$AE$44="NEIN"),1,IF(AP50=0,1,IF(OR(Données!$AE$56="Verticale (U)",Données!$AE$56="Vertikal (U)"),EXP(-2*(Données!$AE$52-Données!$AE$20)/Calculs!AP47*Calculs!AP46*TAN(Calculs!AP48)),IF(OR(Données!$AE$56="Talutée (V)",Données!$AE$56="Abgeböscht (V)"),1-Données!$AE$58/90+Données!$AE$58/90*EXP(-2*(Données!$AE$52-Données!$AE$20)/Calculs!AP47*Calculs!AP46*TAN(Calculs!AP48)))))) -> 1 | AQ52: δ [rad] | AR52: =180*2*PI()/360 -> 3.141592654 | BO52: λmin,F | BP52: =IF(OR(Données!$AE$44="NON",Données!$AE$44="NEIN"),1,IF(BP50=0,1,IF(OR(Données!$AE$56="Verticale (U)",Données!$AE$56="Vertikal (U)"),EXP(-2*(Données!$AE$52-Données!$AE$20)/Calculs!BP47*Calculs!BP46*TAN(Calculs!BP48)),IF(OR(Données!$AE$56="Talutée (V)",Données!$AE$56="Abgeböscht (V)"),1-Données!$AE$58/90+Données!$AE$58/90*EXP(-2*(Données!$AE$52-Données!$AE$20)/Calculs!BP47*Calculs!BP46*TAN(Calculs!BP48)))))) -> 1 | BQ52: δ [rad] | BR52: =180*2*PI()/360 -> 3.141592654 | CO52: λmin,F | CP52: =IF(OR(Données!$AE$44="NON",Données!$AE$44="NEIN"),1,IF(CP50=0,1,IF(OR(Données!$AE$56="Verticale (U)",Données!$AE$56="Vertikal (U)"),EXP(-2*(Données!$AE$52-Données!$AE$20)/Calculs!CP47*Calculs!CP46*TAN(Calculs!CP48)),IF(OR(Données!$AE$56="Talutée (V)",Données!$AE$56="Abgeböscht (V)"),1-Données!$AE$58/90+Données!$AE$58/90*EXP(-2*(Données!$AE$52-Données!$AE$20)/Calculs!CP47*Calculs!CP46*TAN(Calculs!CP48)))))) -> 1 | CQ52: δ [rad] | CR52: =180*2*PI()/360 -> 3.141592654 | DO52: λmin,F | DP52: =IF(OR(Données!$AE$44="NON",Données!$AE$44="NEIN"),1,IF(DP50=0,1,IF(OR(Données!$AE$56="Verticale (U)",Données!$AE$56="Vertikal (U)"),EXP(-2*(Données!$AE$52-Données!$AE$20)/Calculs!DP47*Calculs!DP46*TAN(Calculs!DP48)),IF(OR(Données!$AE$56="Talutée (V)",Données!$AE$56="Abgeböscht (V)"),1-Données!$AE$58/90+Données!$AE$58/90*EXP(-2*(Données!$AE$52-Données!$AE$20)/Calculs!DP47*Calculs!DP46*TAN(Calculs!DP48)))))) -> 1 | DQ52: δ [rad] | DR52: =180*2*PI()/360 -> 3.141592654 | EO52: λmin,F | EP52: =IF(OR(Données!$AE$44="NON",Données!$AE$44="NEIN"),1,IF(EP50=0,1,IF(OR(Données!$AE$56="Verticale (U)",Données!$AE$56="Vertikal (U)"),EXP(-2*(Données!$AE$52-Données!$AE$20)/Calculs!EP47*Calculs!EP46*TAN(Calculs!EP48)),IF(OR(Données!$AE$56="Talutée (V)",Données!$AE$56="Abgeböscht (V)"),1-Données!$AE$58/90+Données!$AE$58/90*EXP(-2*(Données!$AE$52-Données!$AE$20)/Calculs!EP47*Calculs!EP46*TAN(Calculs!EP48)))))) -> 1 | EQ52: δ [rad] | ER52: =180*2*PI()/360 -> 3.141592654 | FO52: λmin,F | FP52: =IF(OR(Données!$AE$44="NON",Données!$AE$44="NEIN"),1,IF(FP50=0,1,IF(OR(Données!$AE$56="Verticale (U)",Données!$AE$56="Vertikal (U)"),EXP(-2*(Données!$AE$52-Données!$AE$20)/Calculs!FP47*Calculs!FP46*TAN(Calculs!FP48)),IF(OR(Données!$AE$56="Talutée (V)",Données!$AE$56="Abgeböscht (V)"),1-Données!$AE$58/90+Données!$AE$58/90*EXP(-2*(Données!$AE$52-Données!$AE$20)/Calculs!FP47*Calculs!FP46*TAN(Calculs!FP48)))))) -> 1 | FQ52: δ [rad] | FR52: =180*2*PI()/360 -> 3.141592654 | GO52: λmin,F | GP52: =IF(OR(Données!$AE$44="NON",Données!$AE$44="NEIN"),1,IF(GP50=0,1,IF(OR(Données!$AE$56="Verticale (U)",Données!$AE$56="Vertikal (U)"),EXP(-2*(Données!$AE$52-Données!$AE$20)/Calculs!GP47*Calculs!GP46*TAN(Calculs!GP48)),IF(OR(Données!$AE$56="Talutée (V)",Données!$AE$56="Abgeböscht (V)"),1-Données!$AE$58/90+Données!$AE$58/90*EXP(-2*(Données!$AE$52-Données!$AE$20)/Calculs!GP47*Calculs!GP46*TAN(Calculs!GP48)))))) -> 1 | GQ52: δ [rad] | GR52: =180*2*PI()/360 -> 3.141592654 | HO52: λmin,F | HP52: =IF(OR(Données!$AE$44="NON",Données!$AE$44="NEIN"),1,IF(HP50=0,1,IF(OR(Données!$AE$56="Verticale (U)",Données!$AE$56="Vertikal (U)"),EXP(-2*(Données!$AE$52-Données!$AE$20)/Calculs!HP47*Calculs!HP46*TAN(Calculs!HP48)),IF(OR(Données!$AE$56="Talutée (V)",Données!$AE$56="Abgeböscht (V)"),1-Données!$AE$58/90+Données!$AE$58/90*EXP(-2*(Données!$AE$52-Données!$AE$20)/Calculs!HP47*Calculs!HP46*TAN(Calculs!HP48)))))) -> 1 | HQ52: δ [rad] | HR52: =180*2*PI()/360 -> 3.141592654 | IO52: λmin,F | IP52: =IF(OR(Données!$AE$44="NON",Données!$AE$44="NEIN"),1,IF(IP50=0,1,IF(OR(Données!$AE$56="Verticale (U)",Données!$AE$56="Vertikal (U)"),EXP(-2*(Données!$AE$52-Données!$AE$20)/Calculs!IP47*Calculs!IP46*TAN(Calculs!IP48)),IF(OR(Données!$AE$56="Talutée (V)",Données!$AE$56="Abgeböscht (V)"),1-Données!$AE$58/90+Données!$AE$58/90*EXP(-2*(Données!$AE$52-Données!$AE$20)/Calculs!IP47*Calculs!IP46*TAN(Calculs!IP48)))))) -> 1 | IQ52: δ [rad] | IR52: =180*2*PI()/360 -> 3.141592654 | JO52: λmin,F | JP52: =IF(OR(Données!$AE$44="NON",Données!$AE$44="NEIN"),1,IF(JP50=0,1,IF(OR(Données!$AE$56="Verticale (U)",Données!$AE$56="Vertikal (U)"),EXP(-2*(Données!$AE$52-Données!$AE$20)/Calculs!JP47*Calculs!JP46*TAN(Calculs!JP48)),IF(OR(Données!$AE$56="Talutée (V)",Données!$AE$56="Abgeböscht (V)"),1-Données!$AE$58/90+Données!$AE$58/90*EXP(-2*(Données!$AE$52-Données!$AE$20)/Calculs!JP47*Calculs!JP46*TAN(Calculs!JP48)))))) -> 1 | JQ52: δ [rad] | JR52: =180*2*PI()/360 -> 3.141592654 | KM52: δ [rad] | KN52: =150*2*PI()/360 -> 2.617993878 | KO52: =120*2*PI()/360 -> 2.094395102 | KP52: =90*2*PI()/360 -> 1.570796327 | KQ52: =60*2*PI()/360 -> 1.047197551 | KR52: 0 | LM52: δ [rad] | LN52: =150*2*PI()/360 -> 2.617993878 | LO52: =120*2*PI()/360 -> 2.094395102 | LP52: =90*2*PI()/360 -> 1.570796327 | LQ52: =60*2*PI()/360 -> 1.047197551 | LR52: 0 | MP52: 1 | MR52: 4 | NP52: 1 | NR52: 4 | OP52: 1 | OR52: 4 | PP52: 1 | PR52: 4 | QP52: 1 | QR52: 4 | RP52: 1 | RR52: 4 | SO52: λmin,F | SP52: =IF(OR(Données!$AE$44="NON",Données!$AE$44="NEIN"),1,IF(SP50=0,1,IF(OR(Données!$AE$56="Verticale (U)",Données!$AE$56="Vertikal (U)"),EXP(-2*(Données!$AE$52-Données!$AE$20)/Calculs!SP47*Calculs!SP46*TAN(Calculs!SP48)),IF(OR(Données!$AE$56="Talutée (V)",Données!$AE$56="Abgeböscht (V)"),1-Données!$AE$58/90+Données!$AE$58/90*EXP(-2*(Données!$AE$52-Données!$AE$20)/Calculs!SP47*Calculs!SP46*TAN(Calculs!SP48)))))) -> 1 | SQ52: δ [rad] | SR52: =180*2*PI()/360 -> 3.141592654
A53: 2.625 | B53: 28.9666 | C53: 6.4393 | D53: 22.5273 | E53: 2.625 | F53: 22.1303 | G53: 6.4393 | H53: 15.691 | O53: π-δ [rad] | P53: =30*2*PI()/360 -> 0.5235987756 | Q53: =60*2*PI()/360 -> 1.047197551 | R53: =90*2*PI()/360 -> 1.570796327 | S53: =120*2*PI()/360 -> 2.094395102 | T53: =180*2*PI()/360 -> 3.141592654 | AO53: αo [rad] | AP53: =90*2*PI()/360 -> 1.570796327 | AQ53: αu [rad] | AR53: =90*2*PI()/360 -> 1.570796327 | BO53: αo [rad] | BP53: =90*2*PI()/360 -> 1.570796327 | BQ53: αu [rad] | BR53: =90*2*PI()/360 -> 1.570796327 | CO53: αo [rad] | CP53: =90*2*PI()/360 -> 1.570796327 | CQ53: αu [rad] | CR53: =90*2*PI()/360 -> 1.570796327 | DO53: αo [rad] | DP53: =90*2*PI()/360 -> 1.570796327 | DQ53: αu [rad] | DR53: =90*2*PI()/360 -> 1.570796327 | EO53: αo [rad] | EP53: =90*2*PI()/360 -> 1.570796327 | EQ53: αu [rad] | ER53: =90*2*PI()/360 -> 1.570796327 | FO53: αo [rad] | FP53: =90*2*PI()/360 -> 1.570796327 | FQ53: αu [rad] | FR53: =90*2*PI()/360 -> 1.570796327 | GO53: αo [rad] | GP53: =90*2*PI()/360 -> 1.570796327 | GQ53: αu [rad] | GR53: =90*2*PI()/360 -> 1.570796327 | HO53: αo [rad] | HP53: =90*2*PI()/360 -> 1.570796327 | HQ53: αu [rad] | HR53: =90*2*PI()/360 -> 1.570796327 | IO53: αo [rad] | IP53: =90*2*PI()/360 -> 1.570796327 | IQ53: αu [rad] | IR53: =90*2*PI()/360 -> 1.570796327 | JO53: αo [rad] | JP53: =90*2*PI()/360 -> 1.570796327 | JQ53: αu [rad] | JR53: =90*2*PI()/360 -> 1.570796327 | KM53: π-δ [rad] | KN53: =30*2*PI()/360 -> 0.5235987756 | KO53: =60*2*PI()/360 -> 1.047197551 | KP53: =90*2*PI()/360 -> 1.570796327 | KQ53: =120*2*PI()/360 -> 2.094395102 | KR53: =180*2*PI()/360 -> 3.141592654 | LM53: π-δ [rad] | LN53: =30*2*PI()/360 -> 0.5235987756 | LO53: =60*2*PI()/360 -> 1.047197551 | LP53: =90*2*PI()/360 -> 1.570796327 | LQ53: =120*2*PI()/360 -> 2.094395102 | LR53: =180*2*PI()/360 -> 3.141592654 | MO53: K1 | MP53: =Données!$AE$48 -> 0.5 | MQ53: ZE | MR53: 7 | NO53: K1 | NP53: =Données!$AE$48 -> 0.5 | NQ53: ZE | NR53: 7 | OO53: K1 | OP53: =Données!$AE$48 -> 0.5 | OQ53: ZE | OR53: 7 | PO53: K1 | PP53: =Données!$AE$48 -> 0.5 | PQ53: ZE | PR53: 7 | QO53: K1 | QP53: =Données!$AE$48 -> 0.5 | QQ53: ZE | QR53: 7 | RO53: K1 | RP53: =Données!$AE$48 -> 0.5 | RQ53: ZE | RR53: 7 | SO53: αo [rad] | SP53: =90*2*PI()/360 -> 1.570796327 | SQ53: αu [rad] | SR53: =30*2*PI()/360 -> 0.5235987756
A54: 2.75 | B54: 27.3707 | C54: 5.8555 | D54: 21.5152 | E54: 2.75 | F54: 21.0776 | G54: 5.8555 | H54: 15.2221 | O54: αu [rad] | P54: =30*2*PI()/360 -> 0.5235987756 | Q54: =60*2*PI()/360 -> 1.047197551 | R54: =90*2*PI()/360 -> 1.570796327 | S54: =90*2*PI()/360 -> 1.570796327 | T54: =90*2*PI()/360 -> 1.570796327 | AO54: δ [rad] | AP54: =180*2*PI()/360 -> 3.141592654 | BO54: δ [rad] | BP54: =180*2*PI()/360 -> 3.141592654 | CO54: δ [rad] | CP54: =180*2*PI()/360 -> 3.141592654 | DO54: δ [rad] | DP54: =180*2*PI()/360 -> 3.141592654 | EO54: δ [rad] | EP54: =180*2*PI()/360 -> 3.141592654 | FO54: δ [rad] | FP54: =180*2*PI()/360 -> 3.141592654 | GO54: δ [rad] | GP54: =180*2*PI()/360 -> 3.141592654 | HO54: δ [rad] | HP54: =180*2*PI()/360 -> 3.141592654 | IO54: δ [rad] | IP54: =180*2*PI()/360 -> 3.141592654 | JO54: δ [rad] | JP54: =180*2*PI()/360 -> 3.141592654 | KM54: αu [rad] | KN54: =30*2*PI()/360 -> 0.5235987756 | KO54: =60*2*PI()/360 -> 1.047197551 | KP54: =90*2*PI()/360 -> 1.570796327 | KQ54: =90*2*PI()/360 -> 1.570796327 | KR54: =90*2*PI()/360 -> 1.570796327 | LM54: αu [rad] | LN54: =30*2*PI()/360 -> 0.5235987756 | LO54: =60*2*PI()/360 -> 1.047197551 | LP54: =90*2*PI()/360 -> 1.570796327 | LQ54: =90*2*PI()/360 -> 1.570796327 | LR54: =90*2*PI()/360 -> 1.570796327 | MO54: B | MP54: =Données!$AE$54 -> 1.5 | MQ54: KSt | MR54: 0 | NO54: B | NP54: =Données!$AE$54 -> 1.5 | NQ54: KSt | NR54: 0 | OO54: B | OP54: =Données!$AE$54 -> 1.5 | OQ54: KSt | OR54: 0 | PO54: B | PP54: =Données!$AE$54 -> 1.5 | PQ54: KSt | PR54: 0 | QO54: B | QP54: =Données!$AE$54 -> 1.5 | QQ54: KSt | QR54: 0 | RO54: B | RP54: =Données!$AE$54 -> 1.5 | RQ54: KSt | RR54: 0 | SO54: δ [rad] | SP54: =180*2*PI()/360 -> 3.141592654
A55: 2.875 | B55: 25.9077 | C55: 5.3473 | D55: 20.5604 | E55: 2.875 | F55: 20.1082 | G55: 5.3473 | H55: 14.7609 | AO55: αu [rad] | AP55: =AH31 -> 0 | BO55: αu [rad] | BP55: =90*2*PI()/360 -> 1.570796327 | CO55: αu [rad] | CP55: =90*2*PI()/360 -> 1.570796327 | DO55: αu [rad] | DP55: =90*2*PI()/360 -> 1.570796327 | EO55: αu [rad] | EP55: =90*2*PI()/360 -> 1.570796327 | FO55: αu [rad] | FP55: =90*2*PI()/360 -> 1.570796327 | GO55: αu [rad] | GP55: =90*2*PI()/360 -> 1.570796327 | HO55: αu [rad] | HP55: =90*2*PI()/360 -> 1.570796327 | IO55: αu [rad] | IP55: =90*2*PI()/360 -> 1.570796327 | JO55: αu [rad] | JP55: =90*2*PI()/360 -> 1.570796327 | MO55: δ | MP55: =IF(OR(Données!$AE$46="Compactage par couches sans vérifications",Données!$AE$46="Verdichtung gegen Boden ohne Nachweis"),2/3*Données!$AE$36*PI()/180,IF(OR(Données!$AE$46="Bon compactage par couches avec vérifications",Données!$AE$46="Verdichtung gegen Boden mit Nachweis"),Données!$AE$36*PI()/180,IF(OR(Données!$AE$46="Compactage faible ou inexistant",Données!$AE$46="Geringe bis keine Verdichtung"),0))) -> 0.3490658504 | MQ55: C3 | MR55: 1 | NO55: δ | NP55: =IF(OR(Données!$AE$46="Compactage par couches sans vérifications",Données!$AE$46="Verdichtung gegen Boden ohne Nachweis"),2/3*Données!$AE$36*PI()/180,IF(OR(Données!$AE$46="Bon compactage par couches avec vérifications",Données!$AE$46="Verdichtung gegen Boden mit Nachweis"),Données!$AE$36*PI()/180,IF(OR(Données!$AE$46="Compactage faible ou inexistant",Données!$AE$46="Geringe bis keine Verdichtung"),0))) -> 0.3490658504 | NQ55: C3 | NR55: 1 | OO55: δ | OP55: =IF(OR(Données!$AE$46="Compactage par couches sans vérifications",Données!$AE$46="Verdichtung gegen Boden ohne Nachweis"),2/3*Données!$AE$36*PI()/180,IF(OR(Données!$AE$46="Bon compactage par couches avec vérifications",Données!$AE$46="Verdichtung gegen Boden mit Nachweis"),Données!$AE$36*PI()/180,IF(OR(Données!$AE$46="Compactage faible ou inexistant",Données!$AE$46="Geringe bis keine Verdichtung"),0))) -> 0.3490658504 | OQ55: C3 | OR55: 1 | PO55: δ | PP55: =IF(OR(Données!$AE$46="Compactage par couches sans vérifications",Données!$AE$46="Verdichtung gegen Boden ohne Nachweis"),2/3*Données!$AE$36*PI()/180,IF(OR(Données!$AE$46="Bon compactage par couches avec vérifications",Données!$AE$46="Verdichtung gegen Boden mit Nachweis"),Données!$AE$36*PI()/180,IF(OR(Données!$AE$46="Compactage faible ou inexistant",Données!$AE$46="Geringe bis keine Verdichtung"),0))) -> 0.3490658504 | PQ55: C3 | PR55: 1 | QO55: δ | QP55: =IF(OR(Données!$AE$46="Compactage par couches sans vérifications",Données!$AE$46="Verdichtung gegen Boden ohne Nachweis"),2/3*Données!$AE$36*PI()/180,IF(OR(Données!$AE$46="Bon compactage par couches avec vérifications",Données!$AE$46="Verdichtung gegen Boden mit Nachweis"),Données!$AE$36*PI()/180,IF(OR(Données!$AE$46="Compactage faible ou inexistant",Données!$AE$46="Geringe bis keine Verdichtung"),0))) -> 0.3490658504 | QQ55: C3 | QR55: 1 | RO55: δ | RP55: =IF(OR(Données!$AE$46="Compactage par couches sans vérifications",Données!$AE$46="Verdichtung gegen Boden ohne Nachweis"),2/3*Données!$AE$36*PI()/180,IF(OR(Données!$AE$46="Bon compactage par couches avec vérifications",Données!$AE$46="Verdichtung gegen Boden mit Nachweis"),Données!$AE$36*PI()/180,IF(OR(Données!$AE$46="Compactage faible ou inexistant",Données!$AE$46="Geringe bis keine Verdichtung"),0))) -> 0.3490658504 | RQ55: C3 | RR55: 1 | SO55: αu [rad] | SP55: =30*2*PI()/360 -> 0.5235987756
A56: 3 | B56: 24.562 | C56: 4.9022 | D56: 19.6598 | E56: 3 | F56: 19.212 | G56: 4.9022 | H56: 14.3098 | AK56: 6. Coefficient de pression de recouvrement (μ) | BK56: 6. Coefficient de pression de recouvrement (μ) | CK56: 6. Coefficient de pression de recouvrement (μ) | DK56: 6. Coefficient de pression de recouvrement (μ) | EK56: 6. Coefficient de pression de recouvrement (μ) | FK56: 6. Coefficient de pression de recouvrement (μ) | GK56: 6. Coefficient de pression de recouvrement (μ) | HK56: 6. Coefficient de pression de recouvrement (μ) | IK56: 6. Coefficient de pression de recouvrement (μ) | JK56: 6. Coefficient de pression de recouvrement (μ) | MO56: λmax | MP56: =MR57 -> 1.554760151 | MQ56: C1 | MR56: =Données!$AE$42*Calculs!MR55 -> 0.5 | NO56: λmax | NP56: =NR57 -> 1.554760151 | NQ56: C1 | NR56: =Données!$AE$42*Calculs!NR55 -> 0.5 | OO56: λmax | OP56: =OR57 -> 1.554760151 | OQ56: C1 | OR56: =Données!$AE$42*Calculs!OR55 -> 0.5 | PO56: λmax | PP56: =PR57 -> 1.554760151 | PQ56: C1 | PR56: =Données!$AE$42*Calculs!PR55 -> 0.5 | QO56: λmax | QP56: =QR57 -> 1.554760151 | QQ56: C1 | QR56: =Données!$AE$42*Calculs!QR55 -> 0.5 | RO56: λmax | RP56: =RR57 -> 1.554760151 | RQ56: C1 | RR56: =Données!$AE$42*Calculs!RR55 -> 0.5 | SK56: 6. Coefficient de pression de recouvrement (μ)
A57: 3.125 | B57: 23.3205 | C57: 4.5102 | D57: 18.8103 | E57: 3.125 | F57: 18.3806 | G57: 4.5102 | H57: 13.8704 | O57: 6. Coeff. de pression de terrain (seulement trafic routier: Krad) | AK57: μcourt | AL57: =0.074/(AK37+0.06) -> 1.074487589 | AM57: [-] | AQ57: 6. Coeff. de pression de terrain (seulement trafic routier: Krad) | BK57: μcourt | BL57: =0.074/(BK37+0.06) -> 1.022235093 | BM57: [-] | BQ57: 6. Coeff. de pression de terrain (seulement trafic routier: Krad) | CK57: μcourt | CL57: =0.074/(CK37+0.06) -> 0.9551527503 | CM57: [-] | CQ57: 6. Coeff. de pression de terrain (seulement trafic routier: Krad) | DK57: μcourt | DL57: =0.074/(DK37+0.06) -> 0.8214123795 | DM57: [-] | DQ57: 6. Coeff. de pression de terrain (seulement trafic routier: Krad) | EK57: μcourt | EL57: =0.074/(EK37+0.06) -> 1.131571981 | EM57: [-] | EQ57: 6. Coeff. de pression de terrain (seulement trafic routier: Krad) | FK57: μcourt | FL57: =0.074/(FK37+0.06) -> 1.048591913 | FM57: [-] | FQ57: 6. Coeff. de pression de terrain (seulement trafic routier: Krad) | GK57: μcourt | GL57: =0.074/(GK37+0.06) -> 0.9447717115 | GM57: [-] | GQ57: 6. Coeff. de pression de terrain (seulement trafic routier: Krad) | HK57: μcourt | HL57: =0.074/(HK37+0.06) -> 1.103433692 | HM57: [-] | HQ57: 6. Coeff. de pression de terrain (seulement trafic routier: Krad) | IK57: μcourt | IL57: =0.074/(IK37+0.06) -> 0.9993521375 | IM57: [-] | IQ57: 6. Coeff. de pression de terrain (seulement trafic routier: Krad) | JK57: μcourt | JL57: =0.074/(JK37+0.06) -> 0.8432746918 | JM57: [-] | JQ57: 6. Coeff. de pression de terrain (seulement trafic routier: Krad) | KM57: 6. Coeff. de pression de terrain (seulement trafic routier: Krad) | LM57: 6. Coeff. de pression de terrain (seulement trafic routier: Krad) | MO57: λmin | MP57: =IF(OR(Données!$AE$44="NON",Données!$AE$44="NEIN"),1,IF(MP55=0,1,IF(OR(Données!$AE$56="Verticale (U)",Données!$AE$56="Vertikal (U)"),(1-EXP(-2*Données!$AE$52/Calculs!MP54*Calculs!MP53*TAN(Calculs!MP55)))/(2*Données!$AE$52/Calculs!MP54*Calculs!MP53*TAN(Calculs!MP55)),IF(OR(Données!$AE$56="Talutée (V)",Données!$AE$56="Abgeböscht (V)"),1-Données!$AE$58/90+Données!$AE$58/90*(1-EXP(-2*Données!$AE$52/Calculs!MP54*Calculs!MP53*TAN(Calculs!MP55)))/(2*Données!$AE$52/Calculs!MP54*Calculs!MP53*TAN(Calculs!MP55)))))) -> 1 | MQ57: λmax | MR57: =IF(0.4025*MR56^3-1.0202*MR56^2+0.8401*MR56+0.4809*(MR56)^(1/2)+0.9994>=1.025,0.4025*MR56^3-1.0202*MR56^2+0.8401*MR56+0.4809*(MR56)^(1/2)+0.9994,1) -> 1.554760151 | NO57: λmin | NP57: =IF(OR(Données!$AE$44="NON",Données!$AE$44="NEIN"),1,IF(NP55=0,1,IF(OR(Données!$AE$56="Verticale (U)",Données!$AE$56="Vertikal (U)"),(1-EXP(-2*Données!$AE$52/Calculs!NP54*Calculs!NP53*TAN(Calculs!NP55)))/(2*Données!$AE$52/Calculs!NP54*Calculs!NP53*TAN(Calculs!NP55)),IF(OR(Données!$AE$56="Talutée (V)",Données!$AE$56="Abgeböscht (V)"),1-Données!$AE$58/90+Données!$AE$58/90*(1-EXP(-2*Données!$AE$52/Calculs!NP54*Calculs!NP53*TAN(Calculs!NP55)))/(2*Données!$AE$52/Calculs!NP54*Calculs!NP53*TAN(Calculs!NP55)))))) -> 1 | NQ57: λmax | NR57: =IF(0.4025*NR56^3-1.0202*NR56^2+0.8401*NR56+0.4809*(NR56)^(1/2)+0.9994>=1.025,0.4025*NR56^3-1.0202*NR56^2+0.8401*NR56+0.4809*(NR56)^(1/2)+0.9994,1) -> 1.554760151 | OO57: λmin | OP57: =IF(OR(Données!$AE$44="NON",Données!$AE$44="NEIN"),1,IF(OP55=0,1,IF(OR(Données!$AE$56="Verticale (U)",Données!$AE$56="Vertikal (U)"),(1-EXP(-2*Données!$AE$52/Calculs!OP54*Calculs!OP53*TAN(Calculs!OP55)))/(2*Données!$AE$52/Calculs!OP54*Calculs!OP53*TAN(Calculs!OP55)),IF(OR(Données!$AE$56="Talutée (V)",Données!$AE$56="Abgeböscht (V)"),1-Données!$AE$58/90+Données!$AE$58/90*(1-EXP(-2*Données!$AE$52/Calculs!OP54*Calculs!OP53*TAN(Calculs!OP55)))/(2*Données!$AE$52/Calculs!OP54*Calculs!OP53*TAN(Calculs!OP55)))))) -> 1 | OQ57: λmax | OR57: =IF(0.4025*OR56^3-1.0202*OR56^2+0.8401*OR56+0.4809*(OR56)^(1/2)+0.9994>=1.025,0.4025*OR56^3-1.0202*OR56^2+0.8401*OR56+0.4809*(OR56)^(1/2)+0.9994,1) -> 1.554760151 | PO57: λmin | PP57: =IF(OR(Données!$AE$44="NON",Données!$AE$44="NEIN"),1,IF(PP55=0,1,IF(OR(Données!$AE$56="Verticale (U)",Données!$AE$56="Vertikal (U)"),(1-EXP(-2*Données!$AE$52/Calculs!PP54*Calculs!PP53*TAN(Calculs!PP55)))/(2*Données!$AE$52/Calculs!PP54*Calculs!PP53*TAN(Calculs!PP55)),IF(OR(Données!$AE$56="Talutée (V)",Données!$AE$56="Abgeböscht (V)"),1-Données!$AE$58/90+Données!$AE$58/90*(1-EXP(-2*Données!$AE$52/Calculs!PP54*Calculs!PP53*TAN(Calculs!PP55)))/(2*Données!$AE$52/Calculs!PP54*Calculs!PP53*TAN(Calculs!PP55)))))) -> 1 | PQ57: λmax | PR57: =IF(0.4025*PR56^3-1.0202*PR56^2+0.8401*PR56+0.4809*(PR56)^(1/2)+0.9994>=1.025,0.4025*PR56^3-1.0202*PR56^2+0.8401*PR56+0.4809*(PR56)^(1/2)+0.9994,1) -> 1.554760151 | QO57: λmin | QP57: =IF(OR(Données!$AE$44="NON",Données!$AE$44="NEIN"),1,IF(QP55=0,1,IF(OR(Données!$AE$56="Verticale (U)",Données!$AE$56="Vertikal (U)"),(1-EXP(-2*Données!$AE$52/Calculs!QP54*Calculs!QP53*TAN(Calculs!QP55)))/(2*Données!$AE$52/Calculs!QP54*Calculs!QP53*TAN(Calculs!QP55)),IF(OR(Données!$AE$56="Talutée (V)",Données!$AE$56="Abgeböscht (V)"),1-Données!$AE$58/90+Données!$AE$58/90*(1-EXP(-2*Données!$AE$52/Calculs!QP54*Calculs!QP53*TAN(Calculs!QP55)))/(2*Données!$AE$52/Calculs!QP54*Calculs!QP53*TAN(Calculs!QP55)))))) -> 1 | QQ57: λmax | QR57: =IF(0.4025*QR56^3-1.0202*QR56^2+0.8401*QR56+0.4809*(QR56)^(1/2)+0.9994>=1.025,0.4025*QR56^3-1.0202*QR56^2+0.8401*QR56+0.4809*(QR56)^(1/2)+0.9994,1) -> 1.554760151 | RO57: λmin | RP57: =IF(OR(Données!$AE$44="NON",Données!$AE$44="NEIN"),1,IF(RP55=0,1,IF(OR(Données!$AE$56="Verticale (U)",Données!$AE$56="Vertikal (U)"),(1-EXP(-2*Données!$AE$52/Calculs!RP54*Calculs!RP53*TAN(Calculs!RP55)))/(2*Données!$AE$52/Calculs!RP54*Calculs!RP53*TAN(Calculs!RP55)),IF(OR(Données!$AE$56="Talutée (V)",Données!$AE$56="Abgeböscht (V)"),1-Données!$AE$58/90+Données!$AE$58/90*(1-EXP(-2*Données!$AE$52/Calculs!RP54*Calculs!RP53*TAN(Calculs!RP55)))/(2*Données!$AE$52/Calculs!RP54*Calculs!RP53*TAN(Calculs!RP55)))))) -> 1 | RQ57: λmax | RR57: =IF(0.4025*RR56^3-1.0202*RR56^2+0.8401*RR56+0.4809*(RR56)^(1/2)+0.9994>=1.025,0.4025*RR56^3-1.0202*RR56^2+0.8401*RR56+0.4809*(RR56)^(1/2)+0.9994,1) -> 1.554760151 | SK57: μcourt | SL57: =0.074/(SK37+0.06) -> 0.2827579615 | SM57: [-]
A58: 3.25 | B58: 22.172 | C58: 4.163333333 | D58: 18.00866667 | E58: 3.25 | F58: 17.6068 | G58: 4.163333333 | H58: 13.44346667 | O58: K | P58: H+a/da | Q58: Krad (≤1) | R58: Krad (>2) | S58: Krad (1<x≤2) | AK58: μlong | AL58: =0.074/(AM37+0.06) -> 1.191073857 | AM58: [-] | AQ58: K | AR58: H+a/da | AS58: Krad (≤1) | AT58: Krad (>2) | AU58: Krad (1<x≤2) | AV58: Krad (utilisé) | BK58: μlong | BL58: =0.074/(BM37+0.06) -> 1.175093836 | BM58: [-] | BQ58: K | BR58: H+a/da | BS58: Krad (≤1) | BT58: Krad (>2) | BU58: Krad (1<x≤2) | BV58: Krad (utilisé) | CK58: μlong | CL58: =0.074/(CM37+0.06) -> 1.152757782 | CM58: [-] | CQ58: K | CR58: H+a/da | CS58: Krad (≤1) | CT58: Krad (>2) | CU58: Krad (1<x≤2) | CV58: Krad (utilisé) | DK58: μlong | DL58: =0.074/(DM37+0.06) -> 1.100841618 | DM58: [-] | DQ58: K | DR58: H+a/da | DS58: Krad (≤1) | DT58: Krad (>2) | DU58: Krad (1<x≤2) | DV58: Krad (utilisé) | EK58: μlong | EL58: =0.074/(EM37+0.06) -> 1.180263273 | EM58: [-] | EQ58: K | ER58: H+a/da | ES58: Krad (≤1) | ET58: Krad (>2) | EU58: Krad (1<x≤2) | EV58: Krad (utilisé) | FK58: μlong | FL58: =0.074/(FM37+0.06) -> 1.133484422 | FM58: [-] | FQ58: K | FR58: H+a/da | FS58: Krad (≤1) | FT58: Krad (>2) | FU58: Krad (1<x≤2) | FV58: Krad (utilisé) | GK58: μlong | GL58: =0.074/(GM37+0.06) -> 1.069937786 | GM58: [-] | GQ58: K | GR58: H+a/da | GS58: Krad (≤1) | GT58: Krad (>2) | GU58: Krad (1<x≤2) | GV58: Krad (utilisé) | HK58: μlong | HL58: =0.074/(HM37+0.06) -> 1.198073111 | HM58: [-] | HQ58: K | HR58: H+a/da | HS58: Krad (≤1) | HT58: Krad (>2) | HU58: Krad (1<x≤2) | HV58: Krad (utilisé) | IK58: μlong | IL58: =0.074/(IM37+0.06) -> 1.165134272 | IM58: [-] | IQ58: K | IR58: H+a/da | IS58: Krad (≤1) | IT58: Krad (>2) | IU58: Krad (1<x≤2) | IV58: Krad (utilisé) | JK58: μlong | JL58: =0.074/(JM37+0.06) -> 1.105495916 | JM58: [-] | JQ58: K | JR58: H+a/da | JS58: Krad (≤1) | JT58: Krad (>2) | JU58: Krad (1<x≤2) | JV58: Krad (utilisé) | KM58: K | KN58: H+a/da | KO58: Krad (≤1) | KP58: Krad (>2) | KQ58: Krad (1<x≤2) | LM58: K | LN58: H+a/da | LO58: Krad (≤1) | LP58: Krad (>2) | LQ58: Krad (1<x≤2) | MO58: λmin,0 | MP58: =IF(OR(Données!$AE$44="NON",Données!$AE$44="NEIN"),1,IF(MP55=0,1,IF(OR(Données!$AE$56="Verticale (U)",Données!$AE$56="Vertikal (U)"),EXP(-2*Données!$AE$52/Calculs!MP54*Calculs!MP53*TAN(Calculs!MP55)),IF(OR(Données!$AE$56="Talutée (V)",Données!$AE$56="Abgeböscht (V)"),1-Données!$AE$58/90+Données!$AE$58/90*EXP(-2*Données!$AE$52/Calculs!MP54*Calculs!MP53*TAN(Calculs!MP55)))))) -> 1 | MQ58: αo [rad] | MR58: =90*2*PI()/360 -> 1.570796327 | NO58: λmin,0 | NP58: =IF(OR(Données!$AE$44="NON",Données!$AE$44="NEIN"),1,IF(NP55=0,1,IF(OR(Données!$AE$56="Verticale (U)",Données!$AE$56="Vertikal (U)"),EXP(-2*Données!$AE$52/Calculs!NP54*Calculs!NP53*TAN(Calculs!NP55)),IF(OR(Données!$AE$56="Talutée (V)",Données!$AE$56="Abgeböscht (V)"),1-Données!$AE$58/90+Données!$AE$58/90*EXP(-2*Données!$AE$52/Calculs!NP54*Calculs!NP53*TAN(Calculs!NP55)))))) -> 1 | NQ58: αo [rad] | NR58: =90*2*PI()/360 -> 1.570796327 | OO58: λmin,0 | OP58: =IF(OR(Données!$AE$44="NON",Données!$AE$44="NEIN"),1,IF(OP55=0,1,IF(OR(Données!$AE$56="Verticale (U)",Données!$AE$56="Vertikal (U)"),EXP(-2*Données!$AE$52/Calculs!OP54*Calculs!OP53*TAN(Calculs!OP55)),IF(OR(Données!$AE$56="Talutée (V)",Données!$AE$56="Abgeböscht (V)"),1-Données!$AE$58/90+Données!$AE$58/90*EXP(-2*Données!$AE$52/Calculs!OP54*Calculs!OP53*TAN(Calculs!OP55)))))) -> 1 | OQ58: αo [rad] | OR58: =90*2*PI()/360 -> 1.570796327 | PO58: λmin,0 | PP58: =IF(OR(Données!$AE$44="NON",Données!$AE$44="NEIN"),1,IF(PP55=0,1,IF(OR(Données!$AE$56="Verticale (U)",Données!$AE$56="Vertikal (U)"),EXP(-2*Données!$AE$52/Calculs!PP54*Calculs!PP53*TAN(Calculs!PP55)),IF(OR(Données!$AE$56="Talutée (V)",Données!$AE$56="Abgeböscht (V)"),1-Données!$AE$58/90+Données!$AE$58/90*EXP(-2*Données!$AE$52/Calculs!PP54*Calculs!PP53*TAN(Calculs!PP55)))))) -> 1 | PQ58: αo [rad] | PR58: =90*2*PI()/360 -> 1.570796327 | QO58: λmin,0 | QP58: =IF(OR(Données!$AE$44="NON",Données!$AE$44="NEIN"),1,IF(QP55=0,1,IF(OR(Données!$AE$56="Verticale (U)",Données!$AE$56="Vertikal (U)"),EXP(-2*Données!$AE$52/Calculs!QP54*Calculs!QP53*TAN(Calculs!QP55)),IF(OR(Données!$AE$56="Talutée (V)",Données!$AE$56="Abgeböscht (V)"),1-Données!$AE$58/90+Données!$AE$58/90*EXP(-2*Données!$AE$52/Calculs!QP54*Calculs!QP53*TAN(Calculs!QP55)))))) -> 1 | QQ58: αo [rad] | QR58: =90*2*PI()/360 -> 1.570796327 | RO58: λmin,0 | RP58: =IF(OR(Données!$AE$44="NON",Données!$AE$44="NEIN"),1,IF(RP55=0,1,IF(OR(Données!$AE$56="Verticale (U)",Données!$AE$56="Vertikal (U)"),EXP(-2*Données!$AE$52/Calculs!RP54*Calculs!RP53*TAN(Calculs!RP55)),IF(OR(Données!$AE$56="Talutée (V)",Données!$AE$56="Abgeböscht (V)"),1-Données!$AE$58/90+Données!$AE$58/90*EXP(-2*Données!$AE$52/Calculs!RP54*Calculs!RP53*TAN(Calculs!RP55)))))) -> 1 | RQ58: αo [rad] | RR58: =90*2*PI()/360 -> 1.570796327 | SK58: μlong | SL58: =0.074/(SM37+0.06) -> 0.2827579615 | SM58: [-]
A59: 3.375 | B59: 21.1071 | C59: 3.8548 | D59: 17.2523 | E59: 3.375 | F59: 16.8849 | G59: 3.8548 | H59: 13.0301 | O59: =Données!AE40 -> 0.5 | P59: =(Données!AE52+0.4)*1000/Calculs!Q32 -> 8.947368421 | Q59: =0 -> 0 | R59: =O59 -> 0.5 | S59: =IF(AND(P59>1,P59<=2),(P59-1)*O59,0) -> 0 | AQ59: =Données!$AE$40 -> 0.5 | AR59: =(Données!$AE$52-AT31/1000+0.4)*1000/Calculs!AS31 -> 4.431506849 | AS59: =0 -> 0 | AT59: =IF(AR59>2,AQ59,0) -> 0.5 | AU59: =IF(AND(AR59>1,AR59<=2),(AR59-1)*AQ59,0) -> 0 | AV59: =SUM(AS59:AU59) -> 0.5 | BQ59: =Données!$AE$40 -> 0.5 | BR59: =(Données!$AE$52-BT31/1000+0.4)*1000/Calculs!BS31 -> 4.431506849 | BS59: =0 -> 0 | BT59: =IF(BR59>2,BQ59,0) -> 0.5 | BU59: =IF(AND(BR59>1,BR59<=2),(BR59-1)*BQ59,0) -> 0 | BV59: =SUM(BS59:BU59) -> 0.5 | CQ59: =Données!$AE$40 -> 0.5 | CR59: =(Données!$AE$52-CT31/1000+0.4)*1000/Calculs!CS31 -> 4.431506849 | CS59: =0 -> 0 | CT59: =IF(CR59>2,CQ59,0) -> 0.5 | CU59: =IF(AND(CR59>1,CR59<=2),(CR59-1)*CQ59,0) -> 0 | CV59: =SUM(CS59:CU59) -> 0.5 | DQ59: =Données!$AE$40 -> 0.5 | DR59: =(Données!$AE$52-DT31/1000+0.4)*1000/Calculs!DS31 -> 4.431506849 | DS59: =0 -> 0 | DT59: =IF(DR59>2,DQ59,0) -> 0.5 | DU59: =IF(AND(DR59>1,DR59<=2),(DR59-1)*DQ59,0) -> 0 | DV59: =SUM(DS59:DU59) -> 0.5 | EQ59: =Données!$AE$40 -> 0.5 | ER59: =(Données!$AE$52-ET31/1000+0.4)*1000/Calculs!ES31 -> 5.284552846 | ES59: =0 -> 0 | ET59: =IF(ER59>2,EQ59,0) -> 0.5 | EU59: =IF(AND(ER59>1,ER59<=2),(ER59-1)*EQ59,0) -> 0 | EV59: =SUM(ES59:EU59) -> 0.5 | FQ59: =Données!$AE$40 -> 0.5 | FR59: =(Données!$AE$52-FT31/1000+0.4)*1000/Calculs!FS31 -> 4.961832061 | FS59: =0 -> 0 | FT59: =IF(FR59>2,FQ59,0) -> 0.5 | FU59: =IF(AND(FR59>1,FR59<=2),(FR59-1)*FQ59,0) -> 0 | FV59: =SUM(FS59:FU59) -> 0.5 | GQ59: =Données!$AE$40 -> 0.5 | GR59: =(Données!$AE$52-GT31/1000+0.4)*1000/Calculs!GS31 -> 4.961832061 | GS59: =0 -> 0 | GT59: =IF(GR59>2,GQ59,0) -> 0.5 | GU59: =IF(AND(GR59>1,GR59<=2),(GR59-1)*GQ59,0) -> 0 | GV59: =SUM(GS59:GU59) -> 0.5 | HQ59: =Données!$AE$40 -> 0.5 | HR59: =(Données!$AE$52-HT31/1000+0.4)*1000/Calculs!HS31 -> 4.961832061 | HS59: =0 -> 0 | HT59: =IF(HR59>2,HQ59,0) -> 0.5 | HU59: =IF(AND(HR59>1,HR59<=2),(HR59-1)*HQ59,0) -> 0 | HV59: =SUM(HS59:HU59) -> 0.5 | IQ59: =Données!$AE$40 -> 0.5 | IR59: =(Données!$AE$52-IT31/1000+0.4)*1000/Calculs!IS31 -> 4.961832061 | IS59: =0 -> 0 | IT59: =IF(IR59>2,IQ59,0) -> 0.5 | IU59: =IF(AND(IR59>1,IR59<=2),(IR59-1)*IQ59,0) -> 0 | IV59: =SUM(IS59:IU59) -> 0.5 | JQ59: =Données!$AE$40 -> 0.5 | JR59: =(Données!$AE$52-JT31/1000+0.4)*1000/Calculs!JS31 -> 4.961832061 | JS59: =0 -> 0 | JT59: =IF(JR59>2,JQ59,0) -> 0.5 | JU59: =IF(AND(JR59>1,JR59<=2),(JR59-1)*JQ59,0) -> 0 | JV59: =SUM(JS59:JU59) -> 0.5 | KM59: =Données!$AE$40 -> 0.5 | KN59: =(Données!$AE$52+0.4)*1000/Calculs!KO32 -> 9.577464789 | KO59: =0 -> 0 | KP59: =KM59 -> 0.5 | KQ59: =IF(AND(KN59>1,KN59<=2),(KN59-1)*KM59,0) -> 0 | LM59: =Données!$AE$40 -> 0.5 | LN59: =(Données!$AE$52+0.4)*1000/Calculs!LO32 -> 9.042553191 | LO59: =0 -> 0 | LP59: =LM59 -> 0.5 | LQ59: =IF(AND(LN59>1,LN59<=2),(LN59-1)*LM59,0) -> 0 | MO59: λmin,F | MP59: =IF(OR(Données!$AE$44="NON",Données!$AE$44="NEIN"),1,IF(MP57=0,1,IF(OR(Données!$AE$56="Verticale (U)",Données!$AE$56="Vertikal (U)"),EXP(-2*(Données!$AE$52-Données!$AE$20)/Calculs!MP54*Calculs!MP53*TAN(Calculs!MP55)),IF(OR(Données!$AE$56="Talutée (V)",Données!$AE$56="Abgeböscht (V)"),1-Données!$AE$58/90+Données!$AE$58/90*EXP(-2*(Données!$AE$52-Données!$AE$20)/Calculs!MP54*Calculs!MP53*TAN(Calculs!MP55)))))) -> 1 | MQ59: δ [rad] | MR59: =180*2*PI()/360 -> 3.141592654 | NO59: λmin,F | NP59: =IF(OR(Données!$AE$44="NON",Données!$AE$44="NEIN"),1,IF(NP57=0,1,IF(OR(Données!$AE$56="Verticale (U)",Données!$AE$56="Vertikal (U)"),EXP(-2*(Données!$AE$52-Données!$AE$20)/Calculs!NP54*Calculs!NP53*TAN(Calculs!NP55)),IF(OR(Données!$AE$56="Talutée (V)",Données!$AE$56="Abgeböscht (V)"),1-Données!$AE$58/90+Données!$AE$58/90*EXP(-2*(Données!$AE$52-Données!$AE$20)/Calculs!NP54*Calculs!NP53*TAN(Calculs!NP55)))))) -> 1 | NQ59: δ [rad] | NR59: =180*2*PI()/360 -> 3.141592654 | OO59: λmin,F | OP59: =IF(OR(Données!$AE$44="NON",Données!$AE$44="NEIN"),1,IF(OP57=0,1,IF(OR(Données!$AE$56="Verticale (U)",Données!$AE$56="Vertikal (U)"),EXP(-2*(Données!$AE$52-Données!$AE$20)/Calculs!OP54*Calculs!OP53*TAN(Calculs!OP55)),IF(OR(Données!$AE$56="Talutée (V)",Données!$AE$56="Abgeböscht (V)"),1-Données!$AE$58/90+Données!$AE$58/90*EXP(-2*(Données!$AE$52-Données!$AE$20)/Calculs!OP54*Calculs!OP53*TAN(Calculs!OP55)))))) -> 1 | OQ59: δ [rad] | OR59: =180*2*PI()/360 -> 3.141592654 | PO59: λmin,F | PP59: =IF(OR(Données!$AE$44="NON",Données!$AE$44="NEIN"),1,IF(PP57=0,1,IF(OR(Données!$AE$56="Verticale (U)",Données!$AE$56="Vertikal (U)"),EXP(-2*(Données!$AE$52-Données!$AE$20)/Calculs!PP54*Calculs!PP53*TAN(Calculs!PP55)),IF(OR(Données!$AE$56="Talutée (V)",Données!$AE$56="Abgeböscht (V)"),1-Données!$AE$58/90+Données!$AE$58/90*EXP(-2*(Données!$AE$52-Données!$AE$20)/Calculs!PP54*Calculs!PP53*TAN(Calculs!PP55)))))) -> 1 | PQ59: δ [rad] | PR59: =180*2*PI()/360 -> 3.141592654 | QO59: λmin,F | QP59: =IF(OR(Données!$AE$44="NON",Données!$AE$44="NEIN"),1,IF(QP57=0,1,IF(OR(Données!$AE$56="Verticale (U)",Données!$AE$56="Vertikal (U)"),EXP(-2*(Données!$AE$52-Données!$AE$20)/Calculs!QP54*Calculs!QP53*TAN(Calculs!QP55)),IF(OR(Données!$AE$56="Talutée (V)",Données!$AE$56="Abgeböscht (V)"),1-Données!$AE$58/90+Données!$AE$58/90*EXP(-2*(Données!$AE$52-Données!$AE$20)/Calculs!QP54*Calculs!QP53*TAN(Calculs!QP55)))))) -> 1 | QQ59: δ [rad] | QR59: =180*2*PI()/360 -> 3.141592654 | RO59: λmin,F | RP59: =IF(OR(Données!$AE$44="NON",Données!$AE$44="NEIN"),1,IF(RP57=0,1,IF(OR(Données!$AE$56="Verticale (U)",Données!$AE$56="Vertikal (U)"),EXP(-2*(Données!$AE$52-Données!$AE$20)/Calculs!RP54*Calculs!RP53*TAN(Calculs!RP55)),IF(OR(Données!$AE$56="Talutée (V)",Données!$AE$56="Abgeböscht (V)"),1-Données!$AE$58/90+Données!$AE$58/90*EXP(-2*(Données!$AE$52-Données!$AE$20)/Calculs!RP54*Calculs!RP53*TAN(Calculs!RP55)))))) -> 1 | RQ59: δ [rad] | RR59: =180*2*PI()/360 -> 3.141592654
A60: 3.5 | B60: 20.1176 | C60: 3.579222222 | D60: 16.53837778 | E60: 3.5 | F60: 16.2096 | G60: 3.579222222 | H60: 12.63037778 | MO60: αo [rad] | MP60: =90*2*PI()/360 -> 1.570796327 | MQ60: αu [rad] | MR60: =90*2*PI()/360 -> 1.570796327 | NO60: αo [rad] | NP60: =90*2*PI()/360 -> 1.570796327 | NQ60: αu [rad] | NR60: =90*2*PI()/360 -> 1.570796327 | OO60: αo [rad] | OP60: =90*2*PI()/360 -> 1.570796327 | OQ60: αu [rad] | OR60: =90*2*PI()/360 -> 1.570796327 | PO60: αo [rad] | PP60: =90*2*PI()/360 -> 1.570796327 | PQ60: αu [rad] | PR60: =90*2*PI()/360 -> 1.570796327 | QO60: αo [rad] | QP60: =90*2*PI()/360 -> 1.570796327 | QQ60: αu [rad] | QR60: =90*2*PI()/360 -> 1.570796327 | RO60: αo [rad] | RP60: =90*2*PI()/360 -> 1.570796327 | RQ60: αu [rad] | RR60: =90*2*PI()/360 -> 1.570796327
A61: 3.625 | B61: 19.1965 | C61: 3.3321 | D61: 15.8644 | E61: 3.625 | F61: 15.5768 | G61: 3.3321 | H61: 12.2447 | AI61: 7. Coeff. de pression de terrain (seulement trafic routier: Krad) | BI61: 7. Coeff. de pression de terrain (seulement trafic routier: Krad) | CI61: 7. Coeff. de pression de terrain (seulement trafic routier: Krad) | DI61: 7. Coeff. de pression de terrain (seulement trafic routier: Krad) | EI61: 7. Coeff. de pression de terrain (seulement trafic routier: Krad) | FI61: 7. Coeff. de pression de terrain (seulement trafic routier: Krad) | GI61: 7. Coeff. de pression de terrain (seulement trafic routier: Krad) | HI61: 7. Coeff. de pression de terrain (seulement trafic routier: Krad) | II61: 7. Coeff. de pression de terrain (seulement trafic routier: Krad) | JI61: 7. Coeff. de pression de terrain (seulement trafic routier: Krad) | MO61: δ [rad] | MP61: =180*2*PI()/360 -> 3.141592654 | NO61: δ [rad] | NP61: =180*2*PI()/360 -> 3.141592654 | OO61: δ [rad] | OP61: =180*2*PI()/360 -> 3.141592654 | PO61: δ [rad] | PP61: =180*2*PI()/360 -> 3.141592654 | QO61: δ [rad] | QP61: =180*2*PI()/360 -> 3.141592654 | RO61: δ [rad] | RP61: =180*2*PI()/360 -> 3.141592654 | SI61: 7. Coeff. de pression de terrain (seulement trafic routier: Krad)
A62: 3.75 | B62: 18.3375 | C62: 3.1097 | D62: 15.2278 | E62: 3.75 | F62: 14.9825 | G62: 3.1097 | H62: 11.8728 | O62: 7. Eau souterraine | AI62: K | AJ62: H+a/da | AK62: Krad (≤1) | AL62: Krad (>2) | AM62: Krad (1<x≤2) | AN62: Krad utilisé | BI62: K | BJ62: H+a/da | BK62: Krad (≤1) | BL62: Krad (>2) | BM62: Krad (1<x≤2) | BN62: Krad utilisé | CI62: K | CJ62: H+a/da | CK62: Krad (≤1) | CL62: Krad (>2) | CM62: Krad (1<x≤2) | CN62: Krad utilisé | DI62: K | DJ62: H+a/da | DK62: Krad (≤1) | DL62: Krad (>2) | DM62: Krad (1<x≤2) | DN62: Krad utilisé | EI62: K | EJ62: H+a/da | EK62: Krad (≤1) | EL62: Krad (>2) | EM62: Krad (1<x≤2) | EN62: Krad utilisé | FI62: K | FJ62: H+a/da | FK62: Krad (≤1) | FL62: Krad (>2) | FM62: Krad (1<x≤2) | FN62: Krad utilisé | GI62: K | GJ62: H+a/da | GK62: Krad (≤1) | GL62: Krad (>2) | GM62: Krad (1<x≤2) | GN62: Krad utilisé | HI62: K | HJ62: H+a/da | HK62: Krad (≤1) | HL62: Krad (>2) | HM62: Krad (1<x≤2) | HN62: Krad utilisé | II62: K | IJ62: H+a/da | IK62: Krad (≤1) | IL62: Krad (>2) | IM62: Krad (1<x≤2) | IN62: Krad utilisé | JI62: K | JJ62: H+a/da | JK62: Krad (≤1) | JL62: Krad (>2) | JM62: Krad (1<x≤2) | JN62: Krad utilisé | KM62: 7. Eau souterraine | LM62: 7. Eau souterraine | MO62: αu [rad] | MP62: =90*2*PI()/360 -> 1.570796327 | NO62: αu [rad] | NP62: =90*2*PI()/360 -> 1.570796327 | OO62: αu [rad] | OP62: =90*2*PI()/360 -> 1.570796327 | PO62: αu [rad] | PP62: =90*2*PI()/360 -> 1.570796327 | QO62: αu [rad] | QP62: =90*2*PI()/360 -> 1.570796327 | RO62: αu [rad] | RP62: =90*2*PI()/360 -> 1.570796327 | SI62: K | SJ62: H+a/da | SK62: Krad (≤1) | SL62: Krad (>2) | SM62: Krad (1<x≤2) | SN62: Krad utilisé
... 70 more rows

Sheet Béton
B2: Projet: | C2: =Accueil!P15 -> VSA 2026 | F2: Ingénieur/e: | H2: =Accueil!AI15 -> 0
B4: =Accueil!$L$17 -> N°: | C4: =Accueil!P17 -> 0 | F4: Responsable: | H4: =Accueil!AI17 -> 0
B6: Lieu: | C6: =Accueil!P21 -> 0 | F6: Maître d'ouvrage: | H6: =Accueil!AI19 -> 0
C7: =Accueil!P23 -> 0
A10: Données
B12: Tuyau
B14: Diamètre intérieur | E14: di | F14: =Calculs!O32/1000 -> 0.3 | G14: m
B15: Rayon moyen | E15: rm | F15: =Calculs!S32/1000 -> 0.17 | G15: m
B16: Épaisseur de paroi | E16: e | F16: =Calculs!R32/1000 -> 0.04 | G16: m
B17: Section | E17: A | F17: =Calculs!R455 -> 0.04 | G17: m2
B18: Module de flexion | E18: W | F18: =Calculs!R456 -> 0.0002666666667 | G18: m3
B19: Classe de résistance | E19: FK | F19: =Calculs!T32 -> 90
B20: Module d'élasticité | E20: ER,court | F20: =Calculs!B7 -> 30000 | G20: N/mm2
B22: Rigidité du système | E22: SFcourt | F22: =Calculs!O37 -> 10.85555329 | G22: =Calculs!P37 -> rigide
B23: Facteur de majoration de charge | E23: f | F23: =Calculs!Q41 -> 1.117647059
B24: Effet de courbure: | E24: αka | F24: =Calculs!O456 -> 0.9215686275
E25: αki | F25: =Calculs!O455 -> 1.078431373
B27: Terrain
B29: Qualité du sol | F29: =Données!AE30 -> Sol stable
B30: Poids volumique apparent humide | E30: γ | F30: =Données!AE32 -> 20 | G30: kN/m3
B31: Poids volumique déjaugé | E31: γ' | F31: =Données!AE34 -> 11 | G31: kN/m3
B32: Module de déformation du sol | E32: EB | F32: =Données!AE38 -> 5 | G32: N/mm2
B33: Coefficient de pression du terrain | E33: K | F33: =Données!AE40 -> 0.5
B34: Coefficient de flexion au tassement | E34: C2 | F34: =Données!AE42 -> 0.5
B35: Type de béton d'enrobage | F35: =Données!AE50 -> C16/20
B37: Fouille
B39: Hauteur de couverture | E39: H | F39: =Données!AE52 -> 3 | G39: m
B40: Type de fouille | F40: =Données!AE56 -> Verticale (U)
B42: Eau
B44: Eau souterraine | F44: =Données!AE60 -> Sans eau souterraine
B45: Niveau d'eau souterraine | E45: hw | F45: =Données!AE62 -> 1.3 | G45: m
B46: Eau à l'intérieur du tuyau | F46: =Données!AE64 -> Tuyau vide
B47: Pression | E47: pEi | F47: =Données!AE66 -> 10 | G47: kN/m2
B56: Actions
B58: Charge surfacique | F58: =Données!AE8 -> Pas de charge
E59: qs | F59: =Calculs!R123 -> 0 | G59: kN/m2
B60: Trafic | F60: =Données!AE22 -> Trafic routier | H60: =IF(AND(Accueil!AZ15="Français",AND(OR(F60="Voie unique (ferroviaire)",F60="Voies multiples (ferroviaire)",F60="Voie étroite (ferroviaire)",F60="Eingleisig (Bahnverkehr)",F60="Mehrgleisig (Bahnverkehr)",F60="Schmalspur (Bahnverkehr)"),F39<2)),"H trop faible!","") -> 
B61: Coefficient de charge | E61: α | F61: =Calculs!P93 -> 0.9
B62: Coefficient dynamique | E62: Ψ | F62: =Calculs!Q93 -> 1
B63: Trafic routier et route d'importance | E63: pvtotale | F63: =Calculs!M109 -> 24.562 | G63: kN/m2
B64: secondaire | E64: pvroue | F64: =Calculs!N109 -> 4.9022 | G64: kN/m2
E65: ∆pv | F65: =Calculs!O109 -> 19.6598 | G65: kN/m2
B66: Bord de route | E66: pvtotale | F66: =Calculs!P109 -> 0 | G66: kN/m2
E67: pvroue | F67: =Calculs!Q109 -> 0 | G67: kN/m2
E68: ∆pv | F68: =Calculs!R109 -> 0 | G68: kN/m2
B69: Trafic ferroviaire voie unique | E69: punique | F69: =Calculs!T109 -> 0 | G69: kN/m2
B70: Trafic ferroviaire voies multiples | E70: pmultiples | F70: =Calculs!U109 -> 0 | G70: kN/m2
B71: Trafic ferroviaire voie étroite | E71: pétroite | F71: =Calculs!V109 -> 0 | G71: kN/m2
A75: Résultats
B106: Sollicitations
C108: Sollicitations en [kN/m2]
D109: U1/V1 | E109: U2/V2 | F109: U2A/V2A | G109: U3/V3 | H109: U4/V4
A110: Charge perm. au sommet | C110: qs1 | D110: =Calculs!X194 -> 104.2603866 | E110: =Calculs!Y194 -> 99.69550567 | F110: =Calculs!Z194 -> 93.37281066 | G110: =Calculs!AA194 -> 84.44595824 | H110: =Calculs!AB194 -> 84.44595824
A111: Charge variable au sommet | C111: qs2 | D111: =Calculs!X195 -> 24.70648235 | E111: =Calculs!Y195 -> 24.70648235 | F111: =Calculs!Z195 -> 24.70648235 | G111: =Calculs!AA195 -> 24.70648235 | H111: =Calculs!AB195 -> 24.70648235
A112: Charge effective au sommet | C112: qser | D112: =Calculs!X196 -> 128.966869 | E112: =Calculs!Y196 -> 124.401988 | F112: =Calculs!Z196 -> 118.079293 | G112: =Calculs!AA196 -> 109.1524406 | H112: =Calculs!AB196 -> 109.1524406
A113: Pression du terrain | C113: qh | D113: =Calculs!X197 -> 64.48343448 | E113: =Calculs!Y197 -> 62.20099401 | F113: =Calculs!Z197 -> 59.03964651 | G113: =Calculs!AA197 -> 54.57622029 | H113: =Calculs!AB197 -> 0
A114: Pression d'appui | C114: qSt | D114: =Calculs!X198 -> 32.24171724 | E114: =Calculs!Y198 -> 37.32059641 | F114: =Calculs!Z198 -> 59.03964651 | G114: =Calculs!AA198 -> 81.86433044 | H114: =Calculs!AB198 -> 87.32195247
A115: Charge de dim. au sommet | C115: qds | D115: =Calculs!X199 -> 177.8112454 | E115: =Calculs!Y199 -> 171.6486562 | F115: =Calculs!Z199 -> 163.1130179 | G115: =Calculs!AA199 -> 151.0617671 | H115: =Calculs!AB199 -> 151.0617671
B118: Vérifications
B120: Poussée d'Archimède
B121: Actions stabilisant | D121: G + G' + Gsp | E121: =Calculs!Y172 -> 23.10988505 | F121: [kN/m]
D122: GR | E122: =Calculs!Y173 -> 1.025415842 | F122: [kN/m]
D123: Somme | E123: =Calculs!Y174 -> 24.13530089 | F123: [kN/m] | G123: Facteur | H123: 0.9
B124: Actions déstabilisantes | D124: FA | E124: =Calculs!Y175 -> 0 | F124: [kN/m] | G124: Facteur | H124: 1.05
B126: Contôle: | D126: 1.05*FA | E126: =Calculs!Y177 -> 0 | F126: [kN/m] | G126: =IF(E126<E127,"OK","KO!") -> OK
D127: 0.9*Somme | E127: =Calculs!Y178 -> 21.7217708 | F127: [kN/m]
B130: Sécurité structurale
B132: Sécurité structurale
C133: U1/V1 | D133: U2/V2 | E133: U2A/V2A | F133: U3/V3 | G133: U4/V4
B134: qds | C134: =Calculs!W202 -> 177.8112454 | D134: =Calculs!X202 -> 171.6486562 | E134: =Calculs!Y202 -> 163.1130179 | F134: =Calculs!Z202 -> 151.0617671 | G134: =Calculs!AA202 -> 151.0617671 | H134: [kN/m2]
B135: q*ds | C135: =Calculs!W203 -> 67.56827327 | D135: =Calculs!X203 -> 65.22648935 | E135: =Calculs!Y203 -> 61.98294681 | F135: =Calculs!Z203 -> 57.40347152 | G135: =Calculs!AA203 -> 57.40347152 | H135: [kN/m]
B136: qBr | C136: =Calculs!W204 -> 27 | D136: =Calculs!X204 -> 27 | E136: =Calculs!Y204 -> 27 | F136: =Calculs!Z204 -> 27 | G136: =Calculs!AA204 -> 27 | H136: [kN/m]
B137: ZE | C137: =Calculs!W205 -> 1.5 | D137: =Calculs!X205 -> 2.5 | E137: =Calculs!Y205 -> 3 | F137: =Calculs!Z205 -> 6 | G137: =Calculs!AA205 -> 7 | H137: [-]
B138: ZE*qBr/1.2 | C138: =Calculs!W206 -> 33.75 | D138: =Calculs!X206 -> 56.25 | E138: =Calculs!Y206 -> 67.5 | F138: =Calculs!Z206 -> 135 | G138: =Calculs!AA206 -> 157.5 | H138: [kN/m]
B140: Résultat | C140: =IF(C135<=C138,"OK","KO!") -> KO! | D140: =IF(D135<=D138,"OK","KO!") -> KO! | E140: OK | F140: OK | G140: OK
B143: Aptitude au service
D145: σRbz,adm | E145: =Calculs!L464 -> -4 | F145: N/mm2
D147: Convention des contraintes:
D148: Traction négative -
D149: Compression positive +
B161: Contraintes Profil d'enrobage U1/V1
B162: Contraintes en [N/mm2] | D162: 0° | E162: 45° | F162: 90° | G162: 135° | H162: 180°
B163: Due à l'effort normal | D163: =Calculs!O461 -> 0.2285616228 | E163: =Calculs!P461 -> 0.3811917448 | F163: =Calculs!Q461 -> 0.5545180571 | G163: =Calculs!R461 -> 0.5635487706 | H163: =Calculs!S461 -> 0.3011859123
B164: Due au moment extérieur | D164: =Calculs!O462 -> 2.125523665 | E164: =Calculs!P462 -> 0.1742549248 | F164: =Calculs!Q462 -> -2.221067388 | G164: =Calculs!R462 -> -0.7554216545 | H164: =Calculs!S462 -> 3.350296349
B165: Due au moment intérieur | D165: =Calculs!O463 -> -2.487314927 | E165: =Calculs!P463 -> -0.2039153375 | F165: =Calculs!Q463 -> 2.599121412 | G165: =Calculs!R463 -> 0.8840040637 | H165: =Calculs!S463 -> -3.920559557
B167: Contraintes extérieures | D167: =Calculs!O465 -> 2.354085288 | E167: =Calculs!P465 -> 0.5554466696 | F167: =Calculs!Q465 -> -1.666549331 | G167: =Calculs!R465 -> -0.1918728838 | H167: =Calculs!S465 -> 3.651482261
B168: Conraintes intérieures | D168: =Calculs!O466 -> -2.258753304 | E168: =Calculs!P466 -> 0.1772764073 | F168: =Calculs!Q466 -> 3.153639469 | G168: =Calculs!R466 -> 1.447552834 | H168: =Calculs!S466 -> -3.619373645
B170: Contraintes extérieures | D170: =Calculs!O468 -> OK | E170: =Calculs!P468 -> OK | F170: =Calculs!Q468 -> OK | G170: =Calculs!R468 -> OK | H170: =Calculs!S468 -> OK
B171: Conraintes intérieures | D171: =Calculs!O469 -> OK | E171: =Calculs!P469 -> OK | F171: =Calculs!Q469 -> OK | G171: =Calculs!R469 -> OK | H171: =Calculs!S469 -> OK
B175: Contraintes Profil d'enrobage U2/V2
B176: Contraintes en [N/mm2] | D176: 0° | E176: 45° | F176: 90° | G176: 135° | H176: 180°
B177: Due à l'effort normal | D177: =Calculs!O474 -> 0.2450612231 | E177: =Calculs!P474 -> 0.3851611933 | F177: =Calculs!Q474 -> 0.5351173131 | G177: =Calculs!R474 -> 0.4406959488 | H177: =Calculs!S474 -> 0.2307763811
B178: Due au moment extérieur | D178: =Calculs!O475 -> 1.7773188 | E178: =Calculs!P475 -> 0.06613382133 | F178: =Calculs!Q475 -> -1.836957177 | G178: =Calculs!R475 -> -0.1446138292 | H178: =Calculs!S475 -> 2.076256726
B179: Due au moment intérieur | D179: =Calculs!O476 -> -2.079841149 | E179: =Calculs!P476 -> -0.07739064199 | F179: =Calculs!Q476 -> 2.149630738 | G179: =Calculs!R476 -> 0.169228949 | H179: =Calculs!S476 -> -2.429662127
B181: Contraintes extérieures | D181: =Calculs!O478 -> 2.022380023 | E181: =Calculs!P478 -> 0.4512950146 | F181: =Calculs!Q478 -> -1.301839863 | G181: =Calculs!R478 -> 0.2960821196 | H181: =Calculs!S478 -> 2.307033107
B182: Conraintes intérieures | D182: =Calculs!O479 -> -1.834779926 | E182: =Calculs!P479 -> 0.3077705513 | F182: =Calculs!Q479 -> 2.684748052 | G182: =Calculs!R479 -> 0.6099248978 | H182: =Calculs!S479 -> -2.198885746
B184: Contraintes extérieures | D184: =Calculs!O481 -> OK | E184: =Calculs!P481 -> OK | F184: =Calculs!Q481 -> OK | G184: =Calculs!R481 -> OK | H184: =Calculs!S481 -> OK
B185: Conraintes intérieures | D185: =Calculs!O482 -> OK | E185: =Calculs!P482 -> OK | F185: =Calculs!Q482 -> OK | G185: =Calculs!R482 -> OK | H185: =Calculs!S482 -> OK
B189: Contraintes Profil d'enrobage U2A/V2A
B190: Contraintes en [N/mm2] | D190: 0° | E190: 45° | F190: 90° | G190: 135° | H190: 180°
B191: Due à l'effort normal | D191: =Calculs!O487 -> 0.2502384554 | E191: =Calculs!P487 -> 0.3781624178 | F191: =Calculs!Q487 -> 0.5082458593 | G191: =Calculs!R487 -> 0.3810018419 | H191: =Calculs!S487 -> 0.2515985399
B192: Due au moment extérieur | D192: =Calculs!O488 -> 1.507206108 | E192: =Calculs!P488 -> 0.003222416964 | F192: =Calculs!Q488 -> -1.511795536 | G192: =Calculs!R488 -> -0.003214527758 | H192: =Calculs!S488 -> 1.516396171
B193: Due au moment intérieur | D193: =Calculs!O489 -> -1.763751829 | E193: =Calculs!P489 -> -0.003770913468 | F193: =Calculs!Q489 -> 1.769122436 | G193: =Calculs!R489 -> 0.003761681419 | H193: =Calculs!S489 -> -1.774506158
B195: Contraintes extérieures | D195: =Calculs!O491 -> 1.757444564 | E195: =Calculs!P491 -> 0.3813848348 | F195: =Calculs!Q491 -> -1.003549677 | G195: =Calculs!R491 -> 0.3777873141 | H195: =Calculs!S491 -> 1.767994711
B196: Conraintes intérieures | D196: =Calculs!O492 -> -1.513513373 | E196: =Calculs!P492 -> 0.3743915044 | F196: =Calculs!Q492 -> 2.277368295 | G196: =Calculs!R492 -> 0.3847635233 | H196: =Calculs!S492 -> -1.522907618
B198: Contraintes extérieures | D198: =Calculs!O494 -> OK | E198: =Calculs!P494 -> OK | F198: =Calculs!Q494 -> OK | G198: =Calculs!R494 -> OK | H198: =Calculs!S494 -> OK
B199: Conraintes intérieures | D199: =Calculs!O495 -> OK | E199: =Calculs!P495 -> OK | F199: =Calculs!Q495 -> OK | G199: =Calculs!R495 -> OK | H199: =Calculs!S495 -> OK
B208: Contraintes Profil d'enrobage U3/V3
B209: Contraintes en [N/mm2] | D209: 0° | E209: 45° | F209: 90° | G209: 135° | H209: 180°
B210: Due à l'effort normal | D210: =Calculs!O500 -> 0.3045695339 | E210: =Calculs!P500 -> 0.4015379494 | F210: =Calculs!Q500 -> 0.4081444216 | G210: =Calculs!R500 -> 0.3686536784 | H210: =Calculs!S500 -> 0.3332900408
B211: Due au moment extérieur | D211: =Calculs!O501 -> 0.761759345 | E211: =Calculs!P501 -> -0.1262151676 | F211: =Calculs!Q501 -> -0.5554356763 | G211: =Calculs!R501 -> 0.04996408598 | H211: =Calculs!S501 -> 0.5175732083
B212: Due au moment intérieur | D212: =Calculs!O502 -> -0.8914205102 | E212: =Calculs!P502 -> 0.1476986004 | F212: =Calculs!Q502 -> 0.6499779191 | G212: =Calculs!R502 -> -0.05846861125 | H212: =Calculs!S502 -> -0.6056707757
B214: Contraintes extérieures | D214: =Calculs!O504 -> 1.066328879 | E214: =Calculs!P504 -> 0.2753227818 | F214: =Calculs!Q504 -> -0.1472912547 | G214: =Calculs!R504 -> 0.4186177643 | H214: =Calculs!S504 -> 0.8508632492
B215: Conraintes intérieures | D215: =Calculs!O505 -> -0.5868509763 | E215: =Calculs!P505 -> 0.5492365498 | F215: =Calculs!Q505 -> 1.058122341 | G215: =Calculs!R505 -> 0.3101850671 | H215: =Calculs!S505 -> -0.2723807349
B217: Contraintes extérieures | D217: =Calculs!O507 -> OK | E217: =Calculs!P507 -> OK | F217: =Calculs!Q507 -> OK | G217: =Calculs!R507 -> OK | H217: =Calculs!S507 -> OK
B218: Conraintes intérieures | D218: =Calculs!O508 -> OK | E218: =Calculs!P508 -> OK | F218: =Calculs!Q508 -> OK | G218: =Calculs!R508 -> OK | H218: =Calculs!S508 -> OK
B222: Contraintes Profil d'enrobage U4/V4
B223: Contraintes en [N/mm2] | D223: 0° | E223: 45° | F223: 90° | G223: 135° | H223: 180°
B224: Due à l'effort normal | D224: =Calculs!O513 -> 0.3704382558 | E224: =Calculs!P513 -> 0.4192927566 | F224: =Calculs!Q513 -> 0.4703067365 | G224: =Calculs!R513 -> 0.4221321806 | H224: =Calculs!S513 -> 0.3717983402
B225: Due au moment extérieur | D225: =Calculs!O514 -> 0.5781399346 | E225: =Calculs!P514 -> 0.003222416964 | F225: =Calculs!Q514 -> -0.5827293625 | G225: =Calculs!R514 -> -0.003214527758 | H225: =Calculs!S514 -> 0.5873299975
B226: Due au moment intérieur | D226: =Calculs!O515 -> -0.6765467319 | E226: =Calculs!P515 -> -0.003770913468 | F226: =Calculs!Q515 -> 0.681917339 | G226: =Calculs!R515 -> 0.003761681419 | H226: =Calculs!S515 -> -0.6873010609
B228: Contraintes extérieures | D228: =Calculs!O517 -> 0.9485781903 | E228: =Calculs!P517 -> 0.4225151736 | F228: =Calculs!Q517 -> -0.112422626 | G228: =Calculs!R517 -> 0.4189176529 | H228: =Calculs!S517 -> 0.9591283377
B229: Conraintes intérieures | D229: =Calculs!O518 -> -0.3061084762 | E229: =Calculs!P518 -> 0.4155218431 | F229: =Calculs!Q518 -> 1.152224076 | G229: =Calculs!R518 -> 0.4258938621 | H229: =Calculs!S518 -> -0.3155027206
B231: Contraintes extérieures | D231: =Calculs!O520 -> OK | E231: =Calculs!P520 -> OK | F231: =Calculs!Q520 -> OK | G231: =Calculs!R520 -> OK | H231: =Calculs!S520 -> OK
B232: Conraintes intérieures | D232: =Calculs!O521 -> OK | E232: =Calculs!P521 -> OK | F232: =Calculs!Q521 -> OK | G232: =Calculs!R521 -> OK | H232: =Calculs!S521 -> OK
B235: Traction dans le béton d'enrobage
B237: Profil d'enrobage | D237: U1/V1 | E237: U2/V2 | F237: U2A/V2A | G237: U3/V3 | H237: U4/V4
B238: anéc. en [m] | D238: =Calculs!O547 -> 0 | E238: =Calculs!P547 -> 0.15 | F238: =Calculs!Q547 -> 0.15 | G238: =Calculs!R547 -> 0.15 | H238: =Calculs!S547 -> 0.15
B240: Profil d'enrobage | D240: U4/V4
B241: cnéc. en [m] | D241: =Calculs!S561 -> 0.15

Sheet Béton (D)
B2: Projekt: | C2: =Accueil!P15 -> VSA 2026 | F2: Ingenieur/in: | H2: =Accueil!AI15 -> 0
B4: N°: | C4: =Accueil!P17 -> 0 | F4: Verantwortlicher: | H4: =Accueil!AI17 -> 0
B6: Ort: | C6: =Accueil!P21 -> 0 | F6: Bauherr: | H6: =Accueil!AI19 -> 0
C7: =Accueil!P23 -> 0
A10: Daten
B12: Rohr
B14: Innendurchmesser | E14: di | F14: =Calculs!O32/1000 -> 0.3 | G14: m
B15: Radius | E15: rm | F15: =Calculs!S32/1000 -> 0.17 | G15: m
B16: Wanddicke | E16: e | F16: =Calculs!R32/1000 -> 0.04 | G16: m
B17: Querschnittsfläche | E17: A | F17: =Calculs!R455 -> 0.04 | G17: m2
B18: Widerstandsmoment | E18: W | F18: =Calculs!R456 -> 0.0002666666667 | G18: m3
B19: Festigkeitsklasse | E19: FK | F19: =Calculs!T32 -> 90
B20: E-Modul | E20: ER,kurz | F20: =Calculs!B7 -> 30000 | G20: N/mm2
B22: Systemsteifigkeit | E22: SFkurz | F22: =Calculs!O37 -> 10.85555329 | G22: =Calculs!P37 -> rigide
B23: Lastvergrösserungsfaktor | E23: f | F23: =Calculs!Q41 -> 1.117647059
B24: Krümmungseinfluss | E24: αka | F24: =Calculs!O456 -> 0.9215686275
E25: αki | F25: =Calculs!O455 -> 1.078431373
B27: Terrain
B29: Bodenqualität | F29: =Données!AE30 -> Sol stable
B30: Feuchtraumgewicht des Baugrunds | E30: γ | F30: =Données!AE32 -> 20 | G30: kN/m3
B31: Raumgewicht unter Auftrieb | E31: γ' | F31: =Données!AE34 -> 11 | G31: kN/m3
B32: Verformungsmodul des Bodens | E32: EB | F32: =Données!AE38 -> 5 | G32: N/mm2
B33: Erddruckbeiwert | E33: K | F33: =Données!AE40 -> 0.5
B34: Setzungs-Durchbiegungsziffer | E34: C2 | F34: =Données!AE42 -> 0.5
B35: Hüllbeton | F35: =Données!AE50 -> C16/20
B37: Graben
B39: Überdeckungshöhe | E39: H | F39: =Données!AE52 -> 3 | G39: m
B40: Grabentyp | F40: =Données!AE56 -> Verticale (U)
B42: Wasser
B44: Grundwasser | F44: =Données!AE60 -> Sans eau souterraine
B45: Grundwasserspiegel | E45: hw | F45: =Données!AE62 -> 1.3 | G45: m
B46: Wasser im Rohr | F46: =Données!AE64 -> Tuyau vide
B47: Druck | E47: pEi | F47: =Données!AE66 -> 10 | G47: kN/m2
B56: Einwirkungen
B58: Flächenlast | F58: =Données!AE8 -> Pas de charge
E59: qs | F59: =Calculs!R123 -> 0 | G59: kN/m2
B60: Verkehr | F60: =Données!AE22 -> Trafic routier | H60: =IF(AND(Accueil!AZ15="Deutsch",AND(OR(F60="Voie unique (ferroviaire)",F60="Voies multiples (ferroviaire)",F60="Voie étroite (ferroviaire)",F60="Eingleisig (Bahnverkehr)",F60="Mehrgleisig (Bahnverkehr)",F60="Schmalspur (Bahnverkehr)"),F39<2)),"H zu klein!","") -> 
B61: Beiwert Strass- und Bahnvekehrslasten | E61: α | F61: =Calculs!P93 -> 0.9
B62: Dynamischer Beiwert | E62: Ψ | F62: =Calculs!Q93 -> 1
B63: Strassenverkehr und untergeordnete | E63: pvtotal | F63: =Calculs!M109 -> 24.562 | G63: kN/m2
B64: Strassen | E64: pvRad | F64: =Calculs!N109 -> 4.9022 | G64: kN/m2
E65: ∆pv | F65: =Calculs!O109 -> 19.6598 | G65: kN/m2
B66: Strassenrand | E66: pvtotal | F66: =Calculs!P109 -> 0 | G66: kN/m2
E67: pvRad | F67: =Calculs!Q109 -> 0 | G67: kN/m2
E68: ∆pv | F68: =Calculs!R109 -> 0 | G68: kN/m2
B69: Bahnverkehr eingleisig | E69: peingleisig | F69: =Calculs!T109 -> 0 | G69: kN/m2
B70: Bahnverkehr mehrgleisig | E70: pmehrgleisig | F70: =Calculs!U109 -> 0 | G70: kN/m2
B71: Bahnverkehr schmalspur | E71: pschmal | F71: =Calculs!V109 -> 0 | G71: kN/m2
A75: Resultate
B107: Beanspruchungen
C109: Beanspruchungen in [kN/m2]
D110: U1/V1 | E110: U2/V2 | F110: U2A/V2A | G110: U3/V3 | H110: U4/V4
A111: Perm. Last auf Scheitel | C111: qs1 | D111: =Calculs!X194 -> 104.2603866 | E111: =Calculs!Y194 -> 99.69550567 | F111: =Calculs!Z194 -> 93.37281066 | G111: =Calculs!AA194 -> 84.44595824 | H111: =Calculs!AB194 -> 84.44595824
A112: Var. Last auf Scheitel | C112: qs2 | D112: =Calculs!X195 -> 24.70648235 | E112: =Calculs!Y195 -> 24.70648235 | F112: =Calculs!Z195 -> 24.70648235 | G112: =Calculs!AA195 -> 24.70648235 | H112: =Calculs!AB195 -> 24.70648235
A113: Effektive Last auf Scheitel | C113: qser | D113: =Calculs!X196 -> 128.966869 | E113: =Calculs!Y196 -> 124.401988 | F113: =Calculs!Z196 -> 118.079293 | G113: =Calculs!AA196 -> 109.1524406 | H113: =Calculs!AB196 -> 109.1524406
A114: Erd- und Bettungsdruck | C114: qh | D114: =Calculs!X197 -> 64.48343448 | E114: =Calculs!Y197 -> 62.20099401 | F114: =Calculs!Z197 -> 59.03964651 | G114: =Calculs!AA197 -> 54.57622029 | H114: =Calculs!AB197 -> 0
A115: Stützdruck | C115: qSt | D115: =Calculs!X198 -> 32.24171724 | E115: =Calculs!Y198 -> 37.32059641 | F115: =Calculs!Z198 -> 59.03964651 | G115: =Calculs!AA198 -> 81.86433044 | H115: =Calculs!AB198 -> 87.32195247
A116: Bemessungswert | C116: qds | D116: =Calculs!X199 -> 177.8112454 | E116: =Calculs!Y199 -> 171.6486562 | F116: =Calculs!Z199 -> 163.1130179 | G116: =Calculs!AA199 -> 151.0617671 | H116: =Calculs!AB199 -> 151.0617671
B119: Nachweise
B121: Auftrieb
B122: Stabilisierend | D122: G + G' + Gsp | E122: =Calculs!Y172 -> 23.10988505 | F122: [kN/m]
D123: GR | E123: =Calculs!Y173 -> 1.025415842 | F123: [kN/m]
D124: Summe | E124: =Calculs!Y174 -> 24.13530089 | F124: [kN/m] | G124: Faktor | H124: 0.9
B125: Destabilisierend | D125: FA | E125: =Calculs!Y175 -> 0 | F125: [kN/m] | G125: Faktor | H125: 1.05
B127: Kontrolle: | D127: 1.05*FA | E127: =Calculs!Y177 -> 0 | F127: [kN/m] | G127: =IF(E127<E128,"OK","KO!") -> OK
D128: 0.9*Summe | E128: =Calculs!Y178 -> 21.7217708 | F128: [kN/m]
B131: Tragfähigkeit
B133: Tragfähigkeit
C134: U1/V1 | D134: U2/V2 | E134: U2A/V2A | F134: U3/V3 | G134: U4/V4
B135: qds | C135: =Calculs!W202 -> 177.8112454 | D135: =Calculs!X202 -> 171.6486562 | E135: =Calculs!Y202 -> 163.1130179 | F135: =Calculs!Z202 -> 151.0617671 | G135: =Calculs!AA202 -> 151.0617671 | H135: [kN/m2]
B136: q*ds | C136: =Calculs!W203 -> 67.56827327 | D136: =Calculs!X203 -> 65.22648935 | E136: =Calculs!Y203 -> 61.98294681 | F136: =Calculs!Z203 -> 57.40347152 | G136: =Calculs!AA203 -> 57.40347152 | H136: [kN/m]
B137: qBr | C137: =Calculs!W204 -> 27 | D137: =Calculs!X204 -> 27 | E137: =Calculs!Y204 -> 27 | F137: =Calculs!Z204 -> 27 | G137: =Calculs!AA204 -> 27 | H137: [kN/m]
B138: ZE | C138: =Calculs!W205 -> 1.5 | D138: =Calculs!X205 -> 2.5 | E138: =Calculs!Y205 -> 3 | F138: =Calculs!Z205 -> 6 | G138: =Calculs!AA205 -> 7 | H138: [-]
B139: ZE*qBr/1.2 | C139: =Calculs!W206 -> 33.75 | D139: =Calculs!X206 -> 56.25 | E139: =Calculs!Y206 -> 67.5 | F139: =Calculs!Z206 -> 135 | G139: =Calculs!AA206 -> 157.5 | H139: [kN/m]
B141: Resultat | C141: =IF(C136<=C139,"OK","KO!") -> KO! | D141: =IF(D136<=D139,"OK","KO!") -> KO! | E141: OK | F141: OK | G141: OK
B144: Gebrauchstauglichkeit
D146: σRbz,adm | E146: =Calculs!L464 -> -4 | F146: N/mm2
D148: Spannungskonventionen:
D149: Zug negatif -
D150: Druck positif +
B160: Spannungen Verlegeprofil U1/V1
B161: Spannungen in [N/mm2] | D161: 0° | E161: 45° | F161: 90° | G161: 135° | H161: 180°
B162: Durch die Normalkraft | D162: =Calculs!O461 -> 0.2285616228 | E162: =Calculs!P461 -> 0.3811917448 | F162: =Calculs!Q461 -> 0.5545180571 | G162: =Calculs!R461 -> 0.5635487706 | H162: =Calculs!S461 -> 0.3011859123
B163: Durch das Moment aussen | D163: =Calculs!O462 -> 2.125523665 | E163: =Calculs!P462 -> 0.1742549248 | F163: =Calculs!Q462 -> -2.221067388 | G163: =Calculs!R462 -> -0.7554216545 | H163: =Calculs!S462 -> 3.350296349
B164: Durch das Moment innen | D164: =Calculs!O463 -> -2.487314927 | E164: =Calculs!P463 -> -0.2039153375 | F164: =Calculs!Q463 -> 2.599121412 | G164: =Calculs!R463 -> 0.8840040637 | H164: =Calculs!S463 -> -3.920559557
B166: Spannungen aussen | D166: =Calculs!O465 -> 2.354085288 | E166: =Calculs!P465 -> 0.5554466696 | F166: =Calculs!Q465 -> -1.666549331 | G166: =Calculs!R465 -> -0.1918728838 | H166: =Calculs!S465 -> 3.651482261
B167: Spannungen innen | D167: =Calculs!O466 -> -2.258753304 | E167: =Calculs!P466 -> 0.1772764073 | F167: =Calculs!Q466 -> 3.153639469 | G167: =Calculs!R466 -> 1.447552834 | H167: =Calculs!S466 -> -3.619373645
B169: Spannungen aussen | D169: =Calculs!O468 -> OK | E169: =Calculs!P468 -> OK | F169: =Calculs!Q468 -> OK | G169: =Calculs!R468 -> OK | H169: =Calculs!S468 -> OK
B170: Spannungen innen | D170: =Calculs!O469 -> OK | E170: =Calculs!P469 -> OK | F170: =Calculs!Q469 -> OK | G170: =Calculs!R469 -> OK | H170: =Calculs!S469 -> OK
B174: Spannungen Verlegeprofil U2/V2
B175: Spannungen in [N/mm2] | D175: 0° | E175: 45° | F175: 90° | G175: 135° | H175: 180°
B176: Durch die Normalkraft | D176: =Calculs!O474 -> 0.2450612231 | E176: =Calculs!P474 -> 0.3851611933 | F176: =Calculs!Q474 -> 0.5351173131 | G176: =Calculs!R474 -> 0.4406959488 | H176: =Calculs!S474 -> 0.2307763811
B177: Durch das Moment aussen | D177: =Calculs!O475 -> 1.7773188 | E177: =Calculs!P475 -> 0.06613382133 | F177: =Calculs!Q475 -> -1.836957177 | G177: =Calculs!R475 -> -0.1446138292 | H177: =Calculs!S475 -> 2.076256726
B178: Durch das Moment innen | D178: =Calculs!O476 -> -2.079841149 | E178: =Calculs!P476 -> -0.07739064199 | F178: =Calculs!Q476 -> 2.149630738 | G178: =Calculs!R476 -> 0.169228949 | H178: =Calculs!S476 -> -2.429662127
B180: Spannungen aussen | D180: =Calculs!O478 -> 2.022380023 | E180: =Calculs!P478 -> 0.4512950146 | F180: =Calculs!Q478 -> -1.301839863 | G180: =Calculs!R478 -> 0.2960821196 | H180: =Calculs!S478 -> 2.307033107
B181: Spannungen innen | D181: =Calculs!O479 -> -1.834779926 | E181: =Calculs!P479 -> 0.3077705513 | F181: =Calculs!Q479 -> 2.684748052 | G181: =Calculs!R479 -> 0.6099248978 | H181: =Calculs!S479 -> -2.198885746
B183: Spannungen aussen | D183: =Calculs!O481 -> OK | E183: =Calculs!P481 -> OK | F183: =Calculs!Q481 -> OK | G183: =Calculs!R481 -> OK | H183: =Calculs!S481 -> OK
B184: Spannungen innen | D184: =Calculs!O482 -> OK | E184: =Calculs!P482 -> OK | F184: =Calculs!Q482 -> OK | G184: =Calculs!R482 -> OK | H184: =Calculs!S482 -> OK
B188: Spannungen Verlegeprofil U2A/V2A
B189: Spannungen in [N/mm2] | D189: 0° | E189: 45° | F189: 90° | G189: 135° | H189: 180°
B190: Durch die Normalkraft | D190: =Calculs!O487 -> 0.2502384554 | E190: =Calculs!P487 -> 0.3781624178 | F190: =Calculs!Q487 -> 0.5082458593 | G190: =Calculs!R487 -> 0.3810018419 | H190: =Calculs!S487 -> 0.2515985399
B191: Durch das Moment aussen | D191: =Calculs!O488 -> 1.507206108 | E191: =Calculs!P488 -> 0.003222416964 | F191: =Calculs!Q488 -> -1.511795536 | G191: =Calculs!R488 -> -0.003214527758 | H191: =Calculs!S488 -> 1.516396171
B192: Durch das Moment innen | D192: =Calculs!O489 -> -1.763751829 | E192: =Calculs!P489 -> -0.003770913468 | F192: =Calculs!Q489 -> 1.769122436 | G192: =Calculs!R489 -> 0.003761681419 | H192: =Calculs!S489 -> -1.774506158
B194: Spannungen aussen | D194: =Calculs!O491 -> 1.757444564 | E194: =Calculs!P491 -> 0.3813848348 | F194: =Calculs!Q491 -> -1.003549677 | G194: =Calculs!R491 -> 0.3777873141 | H194: =Calculs!S491 -> 1.767994711
B195: Spannungen innen | D195: =Calculs!O492 -> -1.513513373 | E195: =Calculs!P492 -> 0.3743915044 | F195: =Calculs!Q492 -> 2.277368295 | G195: =Calculs!R492 -> 0.3847635233 | H195: =Calculs!S492 -> -1.522907618
B197: Spannungen aussen | D197: =Calculs!O494 -> OK | E197: =Calculs!P494 -> OK | F197: =Calculs!Q494 -> OK | G197: =Calculs!R494 -> OK | H197: =Calculs!S494 -> OK
B198: Spannungen innen | D198: =Calculs!O495 -> OK | E198: =Calculs!P495 -> OK | F198: =Calculs!Q495 -> OK | G198: =Calculs!R495 -> OK | H198: =Calculs!S495 -> OK
B207: Spannungen Verlegeprofil U3/V3
B208: Spannungen in [N/mm2] | D208: 0° | E208: 45° | F208: 90° | G208: 135° | H208: 180°
B209: Durch die Normalkraft | D209: =Calculs!O500 -> 0.3045695339 | E209: =Calculs!P500 -> 0.4015379494 | F209: =Calculs!Q500 -> 0.4081444216 | G209: =Calculs!R500 -> 0.3686536784 | H209: =Calculs!S500 -> 0.3332900408
B210: Durch das Moment aussen | D210: =Calculs!O501 -> 0.761759345 | E210: =Calculs!P501 -> -0.1262151676 | F210: =Calculs!Q501 -> -0.5554356763 | G210: =Calculs!R501 -> 0.04996408598 | H210: =Calculs!S501 -> 0.5175732083
B211: Durch das Moment innen | D211: =Calculs!O502 -> -0.8914205102 | E211: =Calculs!P502 -> 0.1476986004 | F211: =Calculs!Q502 -> 0.6499779191 | G211: =Calculs!R502 -> -0.05846861125 | H211: =Calculs!S502 -> -0.6056707757
B213: Spannungen aussen | D213: =Calculs!O504 -> 1.066328879 | E213: =Calculs!P504 -> 0.2753227818 | F213: =Calculs!Q504 -> -0.1472912547 | G213: =Calculs!R504 -> 0.4186177643 | H213: =Calculs!S504 -> 0.8508632492
B214: Spannungen innen | D214: =Calculs!O505 -> -0.5868509763 | E214: =Calculs!P505 -> 0.5492365498 | F214: =Calculs!Q505 -> 1.058122341 | G214: =Calculs!R505 -> 0.3101850671 | H214: =Calculs!S505 -> -0.2723807349
B216: Spannungen aussen | D216: =Calculs!O507 -> OK | E216: =Calculs!P507 -> OK | F216: =Calculs!Q507 -> OK | G216: =Calculs!R507 -> OK | H216: =Calculs!S507 -> OK
B217: Spannungen innen | D217: =Calculs!O508 -> OK | E217: =Calculs!P508 -> OK | F217: =Calculs!Q508 -> OK | G217: =Calculs!R508 -> OK | H217: =Calculs!S508 -> OK
B221: Spannungen Verlegeprofil U4/V4
B222: Spannungen in [N/mm2] | D222: 0° | E222: 45° | F222: 90° | G222: 135° | H222: 180°
B223: Durch die Normalkraft | D223: =Calculs!O513 -> 0.3704382558 | E223: =Calculs!P513 -> 0.4192927566 | F223: =Calculs!Q513 -> 0.4703067365 | G223: =Calculs!R513 -> 0.4221321806 | H223: =Calculs!S513 -> 0.3717983402
B224: Durch das Moment aussen | D224: =Calculs!O514 -> 0.5781399346 | E224: =Calculs!P514 -> 0.003222416964 | F224: =Calculs!Q514 -> -0.5827293625 | G224: =Calculs!R514 -> -0.003214527758 | H224: =Calculs!S514 -> 0.5873299975
B225: Durch das Moment innen | D225: =Calculs!O515 -> -0.6765467319 | E225: =Calculs!P515 -> -0.003770913468 | F225: =Calculs!Q515 -> 0.681917339 | G225: =Calculs!R515 -> 0.003761681419 | H225: =Calculs!S515 -> -0.6873010609
B227: Spannungen aussen | D227: =Calculs!O517 -> 0.9485781903 | E227: =Calculs!P517 -> 0.4225151736 | F227: =Calculs!Q517 -> -0.112422626 | G227: =Calculs!R517 -> 0.4189176529 | H227: =Calculs!S517 -> 0.9591283377
B228: Spannungen innen | D228: =Calculs!O518 -> -0.3061084762 | E228: =Calculs!P518 -> 0.4155218431 | F228: =Calculs!Q518 -> 1.152224076 | G228: =Calculs!R518 -> 0.4258938621 | H228: =Calculs!S518 -> -0.3155027206
B230: Spannungen aussen | D230: =Calculs!O520 -> OK | E230: =Calculs!P520 -> OK | F230: =Calculs!Q520 -> OK | G230: =Calculs!R520 -> OK | H230: =Calculs!S520 -> OK
B231: Spannungen innen | D231: =Calculs!O521 -> OK | E231: =Calculs!P521 -> OK | F231: =Calculs!Q521 -> OK | G231: =Calculs!R521 -> OK | H231: =Calculs!S521 -> OK
B234: Zugkraft im Sohlenbeton
B236: Verlegeprofil | D236: U1/V1 | E236: U2/V2 | F236: U2A/V2A | G236: U3/V3 | H236: U4/V4
B237: anötig in [m] | D237: =Calculs!O547 -> 0 | E237: =Calculs!P547 -> 0.15 | F237: =Calculs!Q547 -> 0.15 | G237: =Calculs!R547 -> 0.15 | H237: =Calculs!S547 -> 0.15
B239: Verlegeprofil | D239: U4/V4
B240: cnötig in [m] | D240: =Calculs!S561 -> 0.15

Sheet Grès vitrifié n.
B2: Projet: | C2: =Accueil!P15 -> VSA 2026 | F2: Ingénieur/e: | H2: =Accueil!AI15 -> 0
B4: =Accueil!$L$17 -> N°: | C4: =Accueil!P17 -> 0 | F4: Responsable: | H4: =Accueil!AI17 -> 0
B6: Lieu: | C6: =Accueil!P21 -> 0 | F6: Maître d'ouvrage: | H6: =Accueil!AI19 -> 0
C7: =Accueil!P23 -> 0
A10: Données
B12: Tuyau en grès | E12: =IF(Données!$AE$6/1000>F14,"di max.< di introduit!","") -> 
B14: Diamètre intérieur | E14: di | F14: =Calculs!KM32/1000 -> 0.3 | G14: m
B15: Rayon moyen | E15: rm | F15: =Calculs!KQ32/1000 -> 0.16375 | G15: m
B16: Épaisseur de paroi | E16: e | F16: =Calculs!KP32/1000 -> 0.0275 | G16: m
B17: Section | E17: A | F17: =Calculs!KP455 -> 0.0275 | G17: m2
B18: Module de flexion | E18: W | F18: =Calculs!KP456 -> 0.0001260416667 | G18: m3
B19: Classe de résistance | E19: FK | F19: =Calculs!KR32 -> 160
B20: Module d'élasticité | E20: ER,court | F20: =Calculs!B8 -> 50000 | G20: N/mm2
B22: Rigidité du système | E22: SFcourt | F22: =Calculs!KM37 -> 6.578420931 | G22: =Calculs!KN37 -> rigide
B23: Facteur de majoration de charge | E23: f | F23: =Calculs!KO41 -> 1.083969466
B24: Effet de courbure: | E24: αka | F24: =Calculs!KM456 -> 0.9440203562
E25: αki | F25: =Calculs!KM455 -> 1.055979644
B27: Terrain
B29: Qualité du sol | F29: =Données!AE30 -> Sol stable
B30: Poids volumique apparent humide | E30: γ | F30: =Données!AE32 -> 20 | G30: kN/m3
B31: Poids volumique déjaugé | E31: γ' | F31: =Données!AE34 -> 11 | G31: kN/m3
B32: Module de déformation du sol | E32: EB | F32: =Données!AE38 -> 5 | G32: N/mm2
B33: Coefficient de pression du terrain | E33: K | F33: =Données!AE40 -> 0.5
B34: Coefficient de flexion au tassement | E34: C2 | F34: =Données!AE42 -> 0.5
B35: Type de béton d'enrobage | F35: =Données!AE50 -> C16/20
B37: Fouille
B39: Hauteur de couverture | E39: H | F39: =Données!AE52 -> 3 | G39: m
B40: Type de fouille | F40: =Données!AE56 -> Verticale (U)
B42: Eau
B44: Eau souterraine | F44: =Données!AE60 -> Sans eau souterraine
B45: Niveau d'eau souterraine | E45: hw | F45: =Données!AE62 -> 1.3 | G45: m
B46: Eau à l'intérieur du tuyau | F46: =Données!AE64 -> Tuyau vide
B47: Pression | E47: pEi | F47: =Données!AE66 -> 10 | G47: kN/m2
B56: Actions
B58: Charge surfacique | F58: =Données!AE8 -> Pas de charge
E59: qs | F59: =Calculs!KP123 -> 0 | G59: kN/m2
B60: Trafic | F60: =Données!AE22 -> Trafic routier | H60: =IF(AND(Accueil!AZ15="Français",AND(OR(F60="Voie unique (ferroviaire)",F60="Voies multiples (ferroviaire)",F60="Voie étroite (ferroviaire)",F60="Eingleisig (Bahnverkehr)",F60="Mehrgleisig (Bahnverkehr)",F60="Schmalspur (Bahnverkehr)"),F39<2)),"H trop faible!","") -> 
B61: Coefficient de charge | E61: α | F61: =Calculs!KN93 -> 0.9
B62: Coefficient dynamique | E62: Ψ | F62: =Calculs!KO93 -> 1
B63: Trafic routier et route d'importance | E63: pvtotale | F63: =Calculs!KK109 -> 24.562 | G63: kN/m2
B64: secondaire | E64: pvroue | F64: =Calculs!KL109 -> 4.9022 | G64: kN/m2
E65: ∆pv | F65: =Calculs!KM109 -> 19.6598 | G65: kN/m2
B66: Bord de route | E66: pvtotale | F66: =Calculs!KN109 -> 0 | G66: kN/m2
E67: pvroue | F67: =Calculs!KO109 -> 0 | G67: kN/m2
E68: ∆pv | F68: =Calculs!KP109 -> 0 | G68: kN/m2
B69: Trafic ferroviaire voie unique | E69: punique | F69: =Calculs!KR109 -> 0 | G69: kN/m2
B70: Trafic ferroviaire voies multiples | E70: pmultiples | F70: =Calculs!KS109 -> 0 | G70: kN/m2
B71: Trafic ferroviaire voie étroite | E71: pétroite | F71: =Calculs!KT109 -> 0 | G71: kN/m2
A75: Résultats
B107: Sollicitations
C109: Sollicitations en [kN/m2]
D110: U1/V1 | E110: U2/V2 | F110: U2A/V2A | G110: U3/V3 | H110: U4/V4
A111: Charge perm. au sommet | C111: qs1 | D111: =Calculs!KV194 -> 101.1187518 | E111: =Calculs!KW194 -> 96.69142253 | F111: =Calculs!KX194 -> 90.55924666 | G111: =Calculs!KY194 -> 81.90138336 | H111: =Calculs!KZ194 -> 81.90138336
A112: Charge variable au sommet | C112: qs2 | D112: =Calculs!KV195 -> 23.96201221 | E112: =Calculs!KW195 -> 23.96201221 | F112: =Calculs!KX195 -> 23.96201221 | G112: =Calculs!KY195 -> 23.96201221 | H112: =Calculs!KZ195 -> 23.96201221
A113: Charge effective au sommet | C113: qser | D113: =Calculs!KV196 -> 125.080764 | E113: =Calculs!KW196 -> 120.6534347 | F113: =Calculs!KX196 -> 114.5212589 | G113: =Calculs!KY196 -> 105.8633956 | H113: =Calculs!KZ196 -> 105.8633956
A114: Pression du terrain | C114: qh | D114: =Calculs!KV197 -> 62.54038201 | E114: =Calculs!KW197 -> 60.32671737 | F114: =Calculs!KX197 -> 57.26062944 | G114: =Calculs!KY197 -> 52.93169779 | H114: =Calculs!KZ197 -> 0
A115: Pression d'appui | C115: qSt | D115: =Calculs!KV198 -> 31.27019101 | E115: =Calculs!KW198 -> 36.19603042 | F115: =Calculs!KX198 -> 57.26062944 | G115: =Calculs!KY198 -> 79.39754668 | H115: =Calculs!KZ198 -> 84.69071646
A116: Charge de dim. au sommet | C116: qds | D116: =Calculs!KV199 -> 172.4533333 | E116: =Calculs!KW199 -> 166.4764387 | F116: =Calculs!KX199 -> 158.1980013 | G116: =Calculs!KY199 -> 146.5098859 | H116: =Calculs!KZ199 -> 146.5098859
B119: Vérifications
B121: Poussée d'Archimède
B122: Actions stabilisant | D122: G + G' + Gsp | E122: =Calculs!KW172 -> 21.57045196 | F122: [kN/m]
D123: GR | E123: =Calculs!KW173 -> 0.6224673144 | F123: [kN/m]
D124: Somme | E124: =Calculs!KW174 -> 22.19291928 | F124: [kN/m] | G124: Facteur | H124: 0.9
B125: Actions déstabilisantes | D125: FA | E125: =Calculs!KW175 -> 0 | F125: [kN/m] | G125: Facteur | H125: 1.05
B127: Contôle: | D127: 1.05*FA | E127: =Calculs!KW177 -> 0 | F127: [kN/m] | G127: =IF(E127<E128,"OK","KO!") -> OK
D128: 0.9*Somme | E128: =Calculs!KW178 -> 19.97362735 | F128: [kN/m]
B131: Sécurité structurale
B133: Sécurité structurale
C134: U1/V1 | D134: U2/V2 | E134: U2A/V2A | F134: U3/V3 | G134: U4/V4
B135: qds | C135: =Calculs!KU202 -> 172.4533333 | D135: =Calculs!KV202 -> 166.4764387 | E135: =Calculs!KW202 -> 158.1980013 | F135: =Calculs!KX202 -> 146.5098859 | G135: =Calculs!KY202 -> 146.5098859 | H135: [kN/m2]
B136: q*ds | C136: =Calculs!KU203 -> 61.22093331 | D136: =Calculs!KV203 -> 59.09913575 | E136: =Calculs!KW203 -> 56.16029047 | F136: =Calculs!KX203 -> 52.01100948 | G136: =Calculs!KY203 -> 52.01100948 | H136: [kN/m]
B137: qBr | C137: =Calculs!KU204 -> 48 | D137: =Calculs!KV204 -> 48 | E137: =Calculs!KW204 -> 48 | F137: =Calculs!KX204 -> 48 | G137: =Calculs!KY204 -> 48 | H137: [kN/m]
B138: ZE | C138: =Calculs!KU205 -> 1.5 | D138: =Calculs!KV205 -> 2.5 | E138: =Calculs!KW205 -> 3 | F138: =Calculs!KX205 -> 6 | G138: =Calculs!KY205 -> 7 | H138: [-]
B139: ZE*qBr/1.2 | C139: =Calculs!KU206 -> 60 | D139: =Calculs!KV206 -> 100 | E139: =Calculs!KW206 -> 120 | F139: =Calculs!KX206 -> 240 | G139: =Calculs!KY206 -> 280 | H139: [kN/m]
B141: Résultat | C141: =Calculs!KU208 -> KO! | D141: =Calculs!KV208 -> OK | E141: =Calculs!KW208 -> OK | F141: =Calculs!KX208 -> OK | G141: =Calculs!KY208 -> OK
B144: Aptitude au service
D146: σRbz,adm | E146: =Calculs!KJ464 -> -6 | F146: N/mm2
D148: Convention des contraintes:
D149: Traction négative -
D150: Compression positive +
B160: Contraintes Profil d'enrobage U1/V1
B161: Contraintes en [N/mm2] | D161: 0° | E161: 45° | F161: 90° | G161: 135° | H161: 180°
B162: Due à l'effort normal | D162: =Calculs!KM461 -> 0.3113898976 | E162: =Calculs!KN461 -> 0.5174765474 | F162: =Calculs!KO461 -> 0.7504579019 | G162: =Calculs!KP461 -> 0.7619725809 | H162: =Calculs!KQ461 -> 0.4084584276
B163: Due au moment extérieur | D163: =Calculs!KM462 -> 4.115187822 | E163: =Calculs!KN462 -> 0.3349820716 | F163: =Calculs!KO462 -> -4.296965805 | G163: =Calculs!KP462 -> -1.459404834 | H163: =Calculs!KQ462 -> 6.478817077
B164: Due au moment intérieur | D164: =Calculs!KM463 -> -4.603242442 | E164: =Calculs!KN463 -> -0.3747104036 | F164: =Calculs!KO463 -> 4.806579001 | G164: =Calculs!KP463 -> 1.632487887 | H164: =Calculs!KQ463 -> -7.247194304
B166: Contraintes extérieures | D166: =Calculs!KM465 -> 4.426577719 | E166: =Calculs!KN465 -> 0.852458619 | F166: =Calculs!KO465 -> -3.546507904 | G166: =Calculs!KP465 -> -0.697432253 | H166: =Calculs!KQ465 -> 6.887275504
B167: Conraintes intérieures | D167: =Calculs!KM466 -> -4.291852545 | E167: =Calculs!KN466 -> 0.1427661439 | F167: =Calculs!KO466 -> 5.557036903 | G167: =Calculs!KP466 -> 2.394460468 | H167: =Calculs!KQ466 -> -6.838735876
B169: Contraintes extérieures | D169: =Calculs!KM468 -> OK | E169: =Calculs!KN468 -> OK | F169: =Calculs!KO468 -> OK | G169: =Calculs!KP468 -> OK | H169: =Calculs!KQ468 -> OK
B170: Conraintes intérieures | D170: =Calculs!KM469 -> OK | E170: =Calculs!KN469 -> OK | F170: =Calculs!KO469 -> OK | G170: =Calculs!KP469 -> OK | H170: =Calculs!KQ469 -> KO!
B174: Contraintes Profil d'enrobage U2/V2
B175: Contraintes en [N/mm2] | D175: 0° | E175: 45° | F175: 90° | G175: 135° | H175: 180°
B176: Due à l'effort normal | D176: =Calculs!KM474 -> 0.3334873706 | E176: =Calculs!KN474 -> 0.5226421011 | F176: =Calculs!KO474 -> 0.7240951685 | G176: =Calculs!KP474 -> 0.5960538344 | H176: =Calculs!KQ474 -> 0.3131053547
B177: Due au moment extérieur | D177: =Calculs!KM475 -> 3.441249979 | E177: =Calculs!KN475 -> 0.1260272653 | F177: =Calculs!KO475 -> -3.553658474 | G177: =Calculs!KP475 -> -0.2786934691 | H177: =Calculs!KQ475 -> 4.015085968
B178: Due au moment intérieur | D178: =Calculs!KM476 -> -3.849376661 | E178: =Calculs!KN476 -> -0.1409738951 | F178: =Calculs!KO476 -> 3.975116622 | G178: =Calculs!KP476 -> 0.3117460638 | H178: =Calculs!KQ476 -> -4.49126867
B180: Contraintes extérieures | D180: =Calculs!KM478 -> 3.77473735 | E180: =Calculs!KN478 -> 0.6486693664 | F180: =Calculs!KO478 -> -2.829563305 | G180: =Calculs!KP478 -> 0.3173603653 | H180: =Calculs!KQ478 -> 4.328191323
B181: Conraintes intérieures | D181: =Calculs!KM479 -> -3.515889291 | E181: =Calculs!KN479 -> 0.381668206 | F181: =Calculs!KO479 -> 4.69921179 | G181: =Calculs!KP479 -> 0.9077998982 | H181: =Calculs!KQ479 -> -4.178163316
B183: Contraintes extérieures | D183: =Calculs!KM481 -> OK | E183: =Calculs!KN481 -> OK | F183: =Calculs!KO481 -> OK | G183: =Calculs!KP481 -> OK | H183: =Calculs!KQ481 -> OK
B184: Conraintes intérieures | D184: =Calculs!KM482 -> OK | E184: =Calculs!KN482 -> OK | F184: =Calculs!KO482 -> OK | G184: =Calculs!KP482 -> OK | H184: =Calculs!KQ482 -> OK
B188: Contraintes Profil d'enrobage U2A/V2A
B189: Contraintes en [N/mm2] | D189: 0° | E189: 45° | F189: 90° | G189: 135° | H189: 180°
B190: Due à l'effort normal | D190: =Calculs!KM487 -> 0.3403605668 | E190: =Calculs!KN487 -> 0.5130173347 | F190: =Calculs!KO487 -> 0.6875808485 | G190: =Calculs!KP487 -> 0.5155244487 | H190: =Calculs!KQ487 -> 0.3415614747
B191: Due au moment extérieur | D191: =Calculs!KM488 -> 2.916816043 | E191: =Calculs!KN488 -> 0.004083559837 | F191: =Calculs!KO488 -> -2.922631927 | G191: =Calculs!KP488 -> -0.004073562358 | H191: =Calculs!KQ488 -> 2.928462013
B192: Due au moment intérieur | D192: =Calculs!KM489 -> -3.262745708 | E192: =Calculs!KN489 -> -0.004567863429 | F192: =Calculs!KO489 -> 3.269251347 | G192: =Calculs!KP489 -> 0.004556680266 | H192: =Calculs!KQ489 -> -3.275772872
B194: Contraintes extérieures | D194: =Calculs!KM491 -> 3.257176609 | E194: =Calculs!KN491 -> 0.5171008945 | F194: =Calculs!KO491 -> -2.235051078 | G194: =Calculs!KP491 -> 0.5114508863 | H194: =Calculs!KQ491 -> 3.270023488
B195: Conraintes intérieures | D195: =Calculs!KM492 -> -2.922385141 | E195: =Calculs!KN492 -> 0.5084494712 | F195: =Calculs!KO492 -> 3.956832195 | G195: =Calculs!KP492 -> 0.5200811289 | H195: =Calculs!KQ492 -> -2.934211397
B197: Contraintes extérieures | D197: =Calculs!KM494 -> OK | E197: =Calculs!KN494 -> OK | F197: =Calculs!KO494 -> OK | G197: =Calculs!KP494 -> OK | H197: =Calculs!KQ494 -> OK
B198: Conraintes intérieures | D198: =Calculs!KM495 -> OK | E198: =Calculs!KN495 -> OK | F198: =Calculs!KO495 -> OK | G198: =Calculs!KP495 -> OK | H198: =Calculs!KQ495 -> OK
B207: Contraintes Profil d'enrobage U3/V3
B208: Contraintes en [N/mm2] | D208: 0° | E208: 45° | F208: 90° | G208: 135° | H208: 180°
B209: Due à l'effort normal | D209: =Calculs!KM500 -> 0.4141884437 | E209: =Calculs!KN500 -> 0.5447812149 | F209: =Calculs!KO500 -> 0.5515578422 | G209: =Calculs!KP500 -> 0.498745126 | H209: =Calculs!KQ500 -> 0.4525681076
B210: Due au moment extérieur | D210: =Calculs!KM501 -> 1.463024797 | E210: =Calculs!KN501 -> -0.2483492585 | F210: =Calculs!KO501 -> -1.057512027 | G210: =Calculs!KP501 -> 0.09963686601 | H210: =Calculs!KQ501 -> 0.9805293754
B211: Due au moment intérieur | D211: =Calculs!KM502 -> -1.636537172 | E211: =Calculs!KN502 -> 0.2778030789 | F211: =Calculs!KO502 -> 1.182931243 | G211: =Calculs!KP502 -> -0.1114536372 | H211: =Calculs!KQ502 -> -1.096818574
B213: Contraintes extérieures | D213: =Calculs!KM504 -> 1.877213241 | E213: =Calculs!KN504 -> 0.2964319564 | F213: =Calculs!KO504 -> -0.505954185 | G213: =Calculs!KP504 -> 0.598381992 | H213: =Calculs!KQ504 -> 1.433097483
B214: Conraintes intérieures | D214: =Calculs!KM505 -> -1.222348728 | E214: =Calculs!KN505 -> 0.8225842938 | F214: =Calculs!KO505 -> 1.734489086 | G214: =Calculs!KP505 -> 0.3872914888 | H214: =Calculs!KQ505 -> -0.644250466
B216: Contraintes extérieures | D216: =Calculs!KM507 -> OK | E216: =Calculs!KN507 -> OK | F216: =Calculs!KO507 -> OK | G216: =Calculs!KP507 -> OK | H216: =Calculs!KQ507 -> OK
B217: Conraintes intérieures | D217: =Calculs!KM508 -> OK | E217: =Calculs!KN508 -> OK | F217: =Calculs!KO508 -> OK | G217: =Calculs!KP508 -> OK | H217: =Calculs!KQ508 -> OK
B221: Contraintes Profil d'enrobage U4/V4
B222: Contraintes en [N/mm2] | D222: 0° | E222: 45° | F222: 90° | G222: 135° | H222: 180°
B223: Due à l'effort normal | D223: =Calculs!KM513 -> 0.5036942668 | E223: =Calculs!KN513 -> 0.5689073644 | F223: =Calculs!KO513 -> 0.6360272079 | G223: =Calculs!KP513 -> 0.5714144784 | H223: =Calculs!KQ513 -> 0.5048951747
B224: Due au moment extérieur | D224: =Calculs!KM514 -> 1.104925058 | E224: =Calculs!KN514 -> 0.004083559837 | F224: =Calculs!KO514 -> -1.110740942 | G224: =Calculs!KP514 -> -0.004073562358 | H224: =Calculs!KQ514 -> 1.116571028
B225: Due au moment intérieur | D225: =Calculs!KM515 -> -1.235967382 | E225: =Calculs!KN515 -> -0.004567863429 | F225: =Calculs!KO515 -> 1.242473021 | G225: =Calculs!KP515 -> 0.004556680266 | H225: =Calculs!KQ515 -> -1.248994546
B227: Contraintes extérieures | D227: =Calculs!KM517 -> 1.608619324 | E227: =Calculs!KN517 -> 0.5729909242 | F227: =Calculs!KO517 -> -0.4747137337 | G227: =Calculs!KP517 -> 0.567340916 | H227: =Calculs!KQ517 -> 1.621466202
B228: Conraintes intérieures | D228: =Calculs!KM518 -> -0.7322731157 | E228: =Calculs!KN518 -> 0.564339501 | F228: =Calculs!KO518 -> 1.878500229 | G228: =Calculs!KP518 -> 0.5759711586 | H228: =Calculs!KQ518 -> -0.7440993712
B230: Contraintes extérieures | D230: =Calculs!KM520 -> OK | E230: =Calculs!KN520 -> OK | F230: =Calculs!KO520 -> OK | G230: =Calculs!KP520 -> OK | H230: =Calculs!KQ520 -> OK
B231: Conraintes intérieures | D231: =Calculs!KM521 -> OK | E231: =Calculs!KN521 -> OK | F231: =Calculs!KO521 -> OK | G231: =Calculs!KP521 -> OK | H231: =Calculs!KQ521 -> OK
B234: Traction dans le béton d'enrobage
B236: Profil d'enrobage | D236: U1/V1 | E236: U2/V2 | F236: U2A/V2A | G236: U3/V3 | H236: U4/V4
B237: anéc. en [m] | D237: =Calculs!KM547 -> 0 | E237: =Calculs!KN547 -> 0.15 | F237: =Calculs!KO547 -> 0.15 | G237: =Calculs!KP547 -> 0.15 | H237: =Calculs!KQ547 -> 0.15
B239: Profil d'enrobage | D239: U4/V4
B240: cnéc. en [m] | D240: =Calculs!KQ561 -> 0.15

Sheet Grès vitrifié n. (D)
B2: Projekt: | C2: =Accueil!P15 -> VSA 2026 | F2: Ingenieur/in: | H2: =Accueil!AI15 -> 0
B4: N°: | C4: =Accueil!P17 -> 0 | F4: Verantwortlicher: | H4: =Accueil!AI17 -> 0
B6: Ort: | C6: =Accueil!P21 -> 0 | F6: Bauherr: | H6: =Accueil!AI19 -> 0
C7: =Accueil!P23 -> 0
A10: Daten
B12: Steinzeugrohr | E12: =IF(Données!$AE$6/1000>F14,"di max.< di Eingabe!","") -> 
B14: Innendurchmesser | E14: di | F14: =Calculs!KM32/1000 -> 0.3 | G14: m
B15: Radius | E15: rm | F15: =Calculs!KQ32/1000 -> 0.16375 | G15: m
B16: Wanddicke | E16: e | F16: =Calculs!KP32/1000 -> 0.0275 | G16: m
B17: Querschnittsfläche | E17: A | F17: =Calculs!KP455 -> 0.0275 | G17: m2
B18: Widerstandsmoment | E18: W | F18: =Calculs!KP456 -> 0.0001260416667 | G18: m3
B19: Festigkeitsklasse | E19: FK | F19: =Calculs!KR32 -> 160
B20: E-Modul | E20: ER,kurz | F20: =Calculs!B8 -> 50000 | G20: N/mm2
B22: Systemsteifigkeit | E22: SFkurz | F22: =Calculs!KM37 -> 6.578420931 | G22: =Calculs!KN37 -> rigide
B23: Lastvergrösserungsfaktor | E23: f | F23: =Calculs!KO41 -> 1.083969466
B24: Krümmungseinfluss | E24: αka | F24: =Calculs!KM456 -> 0.9440203562
E25: αki | F25: =Calculs!KM455 -> 1.055979644
B27: Terrain
B29: Bodenqualität | F29: =Données!AE30 -> Sol stable
B30: Feuchtraumgewicht des Baugrunds | E30: γ | F30: =Données!AE32 -> 20 | G30: kN/m3
B31: Raumgewicht unter Auftrieb | E31: γ' | F31: =Données!AE34 -> 11 | G31: kN/m3
B32: Verformungsmodul des Bodens | E32: EB | F32: =Données!AE38 -> 5 | G32: N/mm2
B33: Erddruckbeiwert | E33: K | F33: =Données!AE40 -> 0.5
B34: Setzungs-Durchbiegungsziffer | E34: C2 | F34: =Données!AE42 -> 0.5
B35: Hüllbeton | F35: =Données!AE50 -> C16/20
B37: Graben
B39: Überdeckungshöhe | E39: H | F39: =Données!AE52 -> 3 | G39: m
B40: Grabentyp | F40: =Données!AE56 -> Verticale (U)
B42: Wasser
B44: Grundwasser | F44: =Données!AE60 -> Sans eau souterraine
B45: Grwundwasserspiegel | E45: hw | F45: =Données!AE62 -> 1.3 | G45: m
B46: Wasser im Rohr | F46: =Données!AE64 -> Tuyau vide
B47: Druck | E47: pEi | F47: =Données!AE66 -> 10 | G47: kN/m2
B56: Einwirkungen
B58: Flächenlast | F58: =Données!AE8 -> Pas de charge
E59: qs | F59: =Calculs!KP123 -> 0 | G59: kN/m2
B60: Verkehr | F60: =Données!AE22 -> Trafic routier | H60: =IF(AND(Accueil!AZ15="Deutsch",AND(OR(F60="Voie unique (ferroviaire)",F60="Voies multiples (ferroviaire)",F60="Voie étroite (ferroviaire)",F60="Eingleisig (Bahnverkehr)",F60="Mehrgleisig (Bahnverkehr)",F60="Schmalspur (Bahnverkehr)"),F39<2)),"H zu klein!","") -> 
B61: Beiwert Strass- und Bahnvekehrslasten | E61: α | F61: =Calculs!KN93 -> 0.9
B62: Dynamischer Beiwert | E62: Ψ | F62: =Calculs!KO93 -> 1
B63: Strassenverkehr und untergeordnete | E63: pvtotal | F63: =Calculs!KK109 -> 24.562 | G63: kN/m2
B64: Strassen | E64: pvRad | F64: =Calculs!KL109 -> 4.9022 | G64: kN/m2
E65: ∆pv | F65: =Calculs!KM109 -> 19.6598 | G65: kN/m2
B66: Strassenrand | E66: pvtotal | F66: =Calculs!KN109 -> 0 | G66: kN/m2
E67: pvRad | F67: =Calculs!KO109 -> 0 | G67: kN/m2
E68: ∆pv | F68: =Calculs!KP109 -> 0 | G68: kN/m2
B69: Bahnverkehr eingleisig | E69: peingleisig | F69: =Calculs!KR109 -> 0 | G69: kN/m2
B70: Bahnverkehr mehrgleisig | E70: pmehrgleisig | F70: =Calculs!KS109 -> 0 | G70: kN/m2
B71: Bahnverkehr schmalspur | E71: pschmal | F71: =Calculs!KT109 -> 0 | G71: kN/m2
A75: Resultate
B107: Beanspruchungen
C109: Beanspruchungen in [kN/m2]
D110: U1/V1 | E110: U2/V2 | F110: U2A/V2A | G110: U3/V3 | H110: U4/V4
A111: Perm. Last auf Scheitel | C111: qs1 | D111: =Calculs!KV194 -> 101.1187518 | E111: =Calculs!KW194 -> 96.69142253 | F111: =Calculs!KX194 -> 90.55924666 | G111: =Calculs!KY194 -> 81.90138336 | H111: =Calculs!KZ194 -> 81.90138336
A112: Var. Last auf Scheitel | C112: qs2 | D112: =Calculs!KV195 -> 23.96201221 | E112: =Calculs!KW195 -> 23.96201221 | F112: =Calculs!KX195 -> 23.96201221 | G112: =Calculs!KY195 -> 23.96201221 | H112: =Calculs!KZ195 -> 23.96201221
A113: Effektive Last auf Scheitel | C113: qser | D113: =Calculs!KV196 -> 125.080764 | E113: =Calculs!KW196 -> 120.6534347 | F113: =Calculs!KX196 -> 114.5212589 | G113: =Calculs!KY196 -> 105.8633956 | H113: =Calculs!KZ196 -> 105.8633956
A114: Erd- und Bettungsdruck | C114: qh | D114: =Calculs!KV197 -> 62.54038201 | E114: =Calculs!KW197 -> 60.32671737 | F114: =Calculs!KX197 -> 57.26062944 | G114: =Calculs!KY197 -> 52.93169779 | H114: =Calculs!KZ197 -> 0
A115: Stützdruck | C115: qSt | D115: =Calculs!KV198 -> 31.27019101 | E115: =Calculs!KW198 -> 36.19603042 | F115: =Calculs!KX198 -> 57.26062944 | G115: =Calculs!KY198 -> 79.39754668 | H115: =Calculs!KZ198 -> 84.69071646
A116: Bemessungswert | C116: qds | D116: =Calculs!KV199 -> 172.4533333 | E116: =Calculs!KW199 -> 166.4764387 | F116: =Calculs!KX199 -> 158.1980013 | G116: =Calculs!KY199 -> 146.5098859 | H116: =Calculs!KZ199 -> 146.5098859
B119: Nachweise
B121: Auftrieb
B122: Stabilisierend | D122: G + G' + Gsp | E122: =Calculs!KW172 -> 21.57045196 | F122: [kN/m]
D123: GR | E123: =Calculs!KW173 -> 0.6224673144 | F123: [kN/m]
D124: Summe | E124: =Calculs!KW174 -> 22.19291928 | F124: [kN/m] | G124: Faktor | H124: 0.9
B125: Destabilisierend | D125: FA | E125: =Calculs!KW175 -> 0 | F125: [kN/m] | G125: Faktor | H125: 1.05
B127: Kontrolle: | D127: 1.05*FA | E127: =Calculs!KW177 -> 0 | F127: [kN/m] | G127: =IF(E127<E128,"OK","KO!") -> OK
D128: 0.9*Summe | E128: =Calculs!KW178 -> 19.97362735 | F128: [kN/m]
B131: Tragfähigkeit
B133: Tragfähigkeit
C134: U1/V1 | D134: U2/V2 | E134: U2A/V2A | F134: U3/V3 | G134: U4/V4
B135: qds | C135: =Calculs!KU202 -> 172.4533333 | D135: =Calculs!KV202 -> 166.4764387 | E135: =Calculs!KW202 -> 158.1980013 | F135: =Calculs!KX202 -> 146.5098859 | G135: =Calculs!KY202 -> 146.5098859 | H135: [kN/m2]
B136: q*ds | C136: =Calculs!KU203 -> 61.22093331 | D136: =Calculs!KV203 -> 59.09913575 | E136: =Calculs!KW203 -> 56.16029047 | F136: =Calculs!KX203 -> 52.01100948 | G136: =Calculs!KY203 -> 52.01100948 | H136: [kN/m]
B137: qBr | C137: =Calculs!KU204 -> 48 | D137: =Calculs!KV204 -> 48 | E137: =Calculs!KW204 -> 48 | F137: =Calculs!KX204 -> 48 | G137: =Calculs!KY204 -> 48 | H137: [kN/m]
B138: ZE | C138: =Calculs!KU205 -> 1.5 | D138: =Calculs!KV205 -> 2.5 | E138: =Calculs!KW205 -> 3 | F138: =Calculs!KX205 -> 6 | G138: =Calculs!KY205 -> 7 | H138: [-]
B139: ZE*qBr/1.2 | C139: =Calculs!KU206 -> 60 | D139: =Calculs!KV206 -> 100 | E139: =Calculs!KW206 -> 120 | F139: =Calculs!KX206 -> 240 | G139: =Calculs!KY206 -> 280 | H139: [kN/m]
B141: Resultat | C141: =Calculs!KU208 -> KO! | D141: =Calculs!KV208 -> OK | E141: =Calculs!KW208 -> OK | F141: =Calculs!KX208 -> OK | G141: =Calculs!KY208 -> OK
B144: Gebrauchstauglichkeit
D146: σRbz,adm | E146: =Calculs!KJ464 -> -6 | F146: N/mm2
D148: Spannungskonventionen:
D149: Zug negatif -
D150: Druck positif +
B160: Spannungen Verlegeprofil U1/V1
B161: Spannungen in [N/mm2] | D161: 0° | E161: 45° | F161: 90° | G161: 135° | H161: 180°
B162: Durch die Normalkraft | D162: =Calculs!KM461 -> 0.3113898976 | E162: =Calculs!KN461 -> 0.5174765474 | F162: =Calculs!KO461 -> 0.7504579019 | G162: =Calculs!KP461 -> 0.7619725809 | H162: =Calculs!KQ461 -> 0.4084584276
B163: Durch das Moment aussen | D163: =Calculs!KM462 -> 4.115187822 | E163: =Calculs!KN462 -> 0.3349820716 | F163: =Calculs!KO462 -> -4.296965805 | G163: =Calculs!KP462 -> -1.459404834 | H163: =Calculs!KQ462 -> 6.478817077
B164: Durch das Moment innen | D164: =Calculs!KM463 -> -4.603242442 | E164: =Calculs!KN463 -> -0.3747104036 | F164: =Calculs!KO463 -> 4.806579001 | G164: =Calculs!KP463 -> 1.632487887 | H164: =Calculs!KQ463 -> -7.247194304
B166: Spannungen aussen | D166: =Calculs!KM465 -> 4.426577719 | E166: =Calculs!KN465 -> 0.852458619 | F166: =Calculs!KO465 -> -3.546507904 | G166: =Calculs!KP465 -> -0.697432253 | H166: =Calculs!KQ465 -> 6.887275504
B167: Spannungen innen | D167: =Calculs!KM466 -> -4.291852545 | E167: =Calculs!KN466 -> 0.1427661439 | F167: =Calculs!KO466 -> 5.557036903 | G167: =Calculs!KP466 -> 2.394460468 | H167: =Calculs!KQ466 -> -6.838735876
B169: Spannungen aussen | D169: =Calculs!KM468 -> OK | E169: =Calculs!KN468 -> OK | F169: =Calculs!KO468 -> OK | G169: =Calculs!KP468 -> OK | H169: =Calculs!KQ468 -> OK
B170: Spannungen innen | D170: =Calculs!KM469 -> OK | E170: =Calculs!KN469 -> OK | F170: =Calculs!KO469 -> OK | G170: =Calculs!KP469 -> OK | H170: =Calculs!KQ469 -> KO!
B174: Spannungen Verlegeprofil U2/V2
B175: Spannungen in [N/mm2] | D175: 0° | E175: 45° | F175: 90° | G175: 135° | H175: 180°
B176: Durch die Normalkraft | D176: =Calculs!KM474 -> 0.3334873706 | E176: =Calculs!KN474 -> 0.5226421011 | F176: =Calculs!KO474 -> 0.7240951685 | G176: =Calculs!KP474 -> 0.5960538344 | H176: =Calculs!KQ474 -> 0.3131053547
B177: Durch das Moment aussen | D177: =Calculs!KM475 -> 3.441249979 | E177: =Calculs!KN475 -> 0.1260272653 | F177: =Calculs!KO475 -> -3.553658474 | G177: =Calculs!KP475 -> -0.2786934691 | H177: =Calculs!KQ475 -> 4.015085968
B178: Durch das Moment innen | D178: =Calculs!KM476 -> -3.849376661 | E178: =Calculs!KN476 -> -0.1409738951 | F178: =Calculs!KO476 -> 3.975116622 | G178: =Calculs!KP476 -> 0.3117460638 | H178: =Calculs!KQ476 -> -4.49126867
B180: Spannungen aussen | D180: =Calculs!KM478 -> 3.77473735 | E180: =Calculs!KN478 -> 0.6486693664 | F180: =Calculs!KO478 -> -2.829563305 | G180: =Calculs!KP478 -> 0.3173603653 | H180: =Calculs!KQ478 -> 4.328191323
B181: Spannungen innen | D181: =Calculs!KM479 -> -3.515889291 | E181: =Calculs!KN479 -> 0.381668206 | F181: =Calculs!KO479 -> 4.69921179 | G181: =Calculs!KP479 -> 0.9077998982 | H181: =Calculs!KQ479 -> -4.178163316
B183: Spannungen aussen | D183: =Calculs!KM481 -> OK | E183: =Calculs!KN481 -> OK | F183: =Calculs!KO481 -> OK | G183: =Calculs!KP481 -> OK | H183: =Calculs!KQ481 -> OK
B184: Spannungen innen | D184: =Calculs!KM482 -> OK | E184: =Calculs!KN482 -> OK | F184: =Calculs!KO482 -> OK | G184: =Calculs!KP482 -> OK | H184: =Calculs!KQ482 -> OK
B188: Spannungen Verlegeprofil U2A/V2A
B189: Spannungen in [N/mm2] | D189: 0° | E189: 45° | F189: 90° | G189: 135° | H189: 180°
B190: Durch die Normalkraft | D190: =Calculs!KM487 -> 0.3403605668 | E190: =Calculs!KN487 -> 0.5130173347 | F190: =Calculs!KO487 -> 0.6875808485 | G190: =Calculs!KP487 -> 0.5155244487 | H190: =Calculs!KQ487 -> 0.3415614747
B191: Durch das Moment aussen | D191: =Calculs!KM488 -> 2.916816043 | E191: =Calculs!KN488 -> 0.004083559837 | F191: =Calculs!KO488 -> -2.922631927 | G191: =Calculs!KP488 -> -0.004073562358 | H191: =Calculs!KQ488 -> 2.928462013
B192: Durch das Moment innen | D192: =Calculs!KM489 -> -3.262745708 | E192: =Calculs!KN489 -> -0.004567863429 | F192: =Calculs!KO489 -> 3.269251347 | G192: =Calculs!KP489 -> 0.004556680266 | H192: =Calculs!KQ489 -> -3.275772872
B194: Spannungen aussen | D194: =Calculs!KM491 -> 3.257176609 | E194: =Calculs!KN491 -> 0.5171008945 | F194: =Calculs!KO491 -> -2.235051078 | G194: =Calculs!KP491 -> 0.5114508863 | H194: =Calculs!KQ491 -> 3.270023488
B195: Spannungen innen | D195: =Calculs!KM492 -> -2.922385141 | E195: =Calculs!KN492 -> 0.5084494712 | F195: =Calculs!KO492 -> 3.956832195 | G195: =Calculs!KP492 -> 0.5200811289 | H195: =Calculs!KQ492 -> -2.934211397
B197: Spannungen aussen | D197: =Calculs!KM494 -> OK | E197: =Calculs!KN494 -> OK | F197: =Calculs!KO494 -> OK | G197: =Calculs!KP494 -> OK | H197: =Calculs!KQ494 -> OK
B198: Spannungen innen | D198: =Calculs!KM495 -> OK | E198: =Calculs!KN495 -> OK | F198: =Calculs!KO495 -> OK | G198: =Calculs!KP495 -> OK | H198: =Calculs!KQ495 -> OK
B207: Spannungen Verlegeprofil U3/V3
B208: Spannungen in [N/mm2] | D208: 0° | E208: 45° | F208: 90° | G208: 135° | H208: 180°
B209: Durch die Normalkraft | D209: =Calculs!KM500 -> 0.4141884437 | E209: =Calculs!KN500 -> 0.5447812149 | F209: =Calculs!KO500 -> 0.5515578422 | G209: =Calculs!KP500 -> 0.498745126 | H209: =Calculs!KQ500 -> 0.4525681076
B210: Durch das Moment aussen | D210: =Calculs!KM501 -> 1.463024797 | E210: =Calculs!KN501 -> -0.2483492585 | F210: =Calculs!KO501 -> -1.057512027 | G210: =Calculs!KP501 -> 0.09963686601 | H210: =Calculs!KQ501 -> 0.9805293754
B211: Durch das Moment innen | D211: =Calculs!KM502 -> -1.636537172 | E211: =Calculs!KN502 -> 0.2778030789 | F211: =Calculs!KO502 -> 1.182931243 | G211: =Calculs!KP502 -> -0.1114536372 | H211: =Calculs!KQ502 -> -1.096818574
B213: Spannungen aussen | D213: =Calculs!KM504 -> 1.877213241 | E213: =Calculs!KN504 -> 0.2964319564 | F213: =Calculs!KO504 -> -0.505954185 | G213: =Calculs!KP504 -> 0.598381992 | H213: =Calculs!KQ504 -> 1.433097483
B214: Spannungen innen | D214: =Calculs!KM505 -> -1.222348728 | E214: =Calculs!KN505 -> 0.8225842938 | F214: =Calculs!KO505 -> 1.734489086 | G214: =Calculs!KP505 -> 0.3872914888 | H214: =Calculs!KQ505 -> -0.644250466
B216: Spannungen aussen | D216: =Calculs!KM507 -> OK | E216: =Calculs!KN507 -> OK | F216: =Calculs!KO507 -> OK | G216: =Calculs!KP507 -> OK | H216: =Calculs!KQ507 -> OK
B217: Spannungen innen | D217: =Calculs!KM508 -> OK | E217: =Calculs!KN508 -> OK | F217: =Calculs!KO508 -> OK | G217: =Calculs!KP508 -> OK | H217: =Calculs!KQ508 -> OK
B221: Spannungen Verlegeprofil U4/V4
B222: Spannungen in [N/mm2] | D222: 0° | E222: 45° | F222: 90° | G222: 135° | H222: 180°
B223: Durch die Normalkraft | D223: =Calculs!KM513 -> 0.5036942668 | E223: =Calculs!KN513 -> 0.5689073644 | F223: =Calculs!KO513 -> 0.6360272079 | G223: =Calculs!KP513 -> 0.5714144784 | H223: =Calculs!KQ513 -> 0.5048951747
B224: Durch das Moment aussen | D224: =Calculs!KM514 -> 1.104925058 | E224: =Calculs!KN514 -> 0.004083559837 | F224: =Calculs!KO514 -> -1.110740942 | G224: =Calculs!KP514 -> -0.004073562358 | H224: =Calculs!KQ514 -> 1.116571028
B225: Durch das Moment innen | D225: =Calculs!KM515 -> -1.235967382 | E225: =Calculs!KN515 -> -0.004567863429 | F225: =Calculs!KO515 -> 1.242473021 | G225: =Calculs!KP515 -> 0.004556680266 | H225: =Calculs!KQ515 -> -1.248994546
B227: Spannungen aussen | D227: =Calculs!KM517 -> 1.608619324 | E227: =Calculs!KN517 -> 0.5729909242 | F227: =Calculs!KO517 -> -0.4747137337 | G227: =Calculs!KP517 -> 0.567340916 | H227: =Calculs!KQ517 -> 1.621466202
B228: Spannungen innen | D228: =Calculs!KM518 -> -0.7322731157 | E228: =Calculs!KN518 -> 0.564339501 | F228: =Calculs!KO518 -> 1.878500229 | G228: =Calculs!KP518 -> 0.5759711586 | H228: =Calculs!KQ518 -> -0.7440993712
B230: Spannungen aussen | D230: =Calculs!KM520 -> OK | E230: =Calculs!KN520 -> OK | F230: =Calculs!KO520 -> OK | G230: =Calculs!KP520 -> OK | H230: =Calculs!KQ520 -> OK
B231: Spannungen innen | D231: =Calculs!KM521 -> OK | E231: =Calculs!KN521 -> OK | F231: =Calculs!KO521 -> OK | G231: =Calculs!KP521 -> OK | H231: =Calculs!KQ521 -> OK
B234: Zugkraft im Sohlenbeton
B236: Verlegeprofil | D236: U1/V1 | E236: U2/V2 | F236: U2A/V2A | G236: U3/V3 | H236: U4/V4
B237: anötig in [m] | D237: =Calculs!KM547 -> 0 | E237: =Calculs!KN547 -> 0.15 | F237: =Calculs!KO547 -> 0.15 | G237: =Calculs!KP547 -> 0.15 | H237: =Calculs!KQ547 -> 0.15
B239: Verlegeprofil | D239: U4/V4
B240: cnötig in [m] | D240: =Calculs!KQ561 -> 0.15

Sheet Grès vitrifié s.
B2: Projet: | C2: =Accueil!P15 -> VSA 2026 | F2: Ingénieur/e: | H2: =Accueil!AI15 -> 0
B4: =Accueil!$L$17 -> N°: | C4: =Accueil!P17 -> 0 | F4: Responsable: | H4: =Accueil!AI17 -> 0
B6: Lieu: | C6: =Accueil!P21 -> 0 | F6: Maître d'ouvrage: | H6: =Accueil!AI19 -> 0
C7: =Accueil!P23 -> 0
A10: Données
B12: Tuyau en grès | E12: =IF(Données!$AE$6/1000>F14,"di max.< di introduit!","") -> 
B14: Diamètre intérieur | E14: di | F14: =Calculs!LM32/1000 -> 0.3 | G14: m
B15: Rayon moyen | E15: rm | F15: =Calculs!L32/1000 -> 0 | G15: m
B16: Épaisseur de paroi | E16: e | F16: =Calculs!LP32/1000 -> 0.038 | G16: m
B17: Section | E17: A | F17: =Calculs!LP455 -> 0.038 | G17: m2
B18: Module de flexion | E18: W | F18: =Calculs!LP456 -> 0.0002406666667 | G18: m3
B19: Classe de résistance | E19: FK | F19: =Calculs!LR32 -> 240
B20: Module d'élasticité | E20: ER,court | F20: =Calculs!B8 -> 50000 | G20: N/mm2
B22: Rigidité du système | E22: SFcourt | F22: =Calculs!LM37 -> 15.78912924 | G22: =Calculs!KN37 -> rigide
B23: Facteur de majoration de charge | E23: f | F23: =Calculs!LO41 -> 1.112426036
B24: Effet de courbure: | E24: αka | F24: =Calculs!LM456 -> 0.9250493097
E25: αki | F25: =Calculs!LM455 -> 1.07495069
B27: Terrain
B29: Qualité du sol | F29: =Données!AE30 -> Sol stable
B30: Poids volumique apparent humide | E30: γ | F30: =Données!AE32 -> 20 | G30: kN/m3
B31: Poids volumique déjaugé | E31: γ' | F31: =Données!AE34 -> 11 | G31: kN/m3
B32: Module de déformation du sol | E32: EB | F32: =Données!AE38 -> 5 | G32: N/mm2
B33: Coefficient de pression du terrain | E33: K | F33: =Données!AE40 -> 0.5
B34: Coefficient de flexion au tassement | E34: C2 | F34: =Données!AE42 -> 0.5
B35: Type de béton d'enrobage | F35: =Données!AE50 -> C16/20
B37: Fouille
B39: Hauteur de couverture | E39: H | F39: =Données!AE52 -> 3 | G39: m
B40: Type de fouille | F40: =Données!AE56 -> Verticale (U)
B42: Eau
B44: Eau souterraine | F44: =Données!AE60 -> Sans eau souterraine
B45: Niveau d'eau souterraine | E45: hw | F45: =Données!AE62 -> 1.3 | G45: m
B46: Eau à l'intérieur du tuyau | F46: =Données!AE64 -> Tuyau vide
B47: Pression | E47: pEi | F47: =Données!AE66 -> 10 | G47: kN/m2
B56: Actions
B58: Charge surfacique | F58: =Données!AE8 -> Pas de charge
E59: qs | F59: =Calculs!LP123 -> 0 | G59: kN/m2
B60: Trafic | F60: =Données!AE22 -> Trafic routier | H60: =IF(AND(Accueil!AZ15="Français",AND(OR(F60="Voie unique (ferroviaire)",F60="Voies multiples (ferroviaire)",F60="Voie étroite (ferroviaire)",F60="Eingleisig (Bahnverkehr)",F60="Mehrgleisig (Bahnverkehr)",F60="Schmalspur (Bahnverkehr)"),F39<2)),"H trop faible!","") -> 
B61: Coefficient de charge | E61: α | F61: =Calculs!LN93 -> 0.9
B62: Coefficient dynamique | E62: Ψ | F62: =Calculs!LO93 -> 1
B63: Trafic routier et route d'importance | E63: pvtotale | F63: =Calculs!LK109 -> 24.562 | G63: kN/m2
B64: secondaire | E64: pvroue | F64: =Calculs!LL109 -> 4.9022 | G64: kN/m2
E65: ∆pv | F65: =Calculs!LM109 -> 19.6598 | G65: kN/m2
B66: Bord de route | E66: pvtotale | F66: =Calculs!LN109 -> 0 | G66: kN/m2
E67: pvroue | F67: =Calculs!LO109 -> 0 | G67: kN/m2
E68: ∆pv | F68: =Calculs!LP109 -> 0 | G68: kN/m2
B69: Trafic ferroviaire voie unique | E69: punique | F69: =Calculs!LR109 -> 0 | G69: kN/m2
B70: Trafic ferroviaire voies multiples | E70: pmultiples | F70: =Calculs!LS109 -> 0 | G70: kN/m2
B71: Trafic ferroviaire voie étroite | E71: pétroite | F71: =Calculs!LT109 -> 0 | G71: kN/m2
A75: Résultats
B107: Sollicitations
C109: Sollicitations en [kN/m2]
D110: U1/V1 | E110: U2/V2 | F110: U2A/V2A | G110: U3/V3 | H110: U4/V4
A111: Charge perm. au sommet | C111: qs1 | D111: =Calculs!LV194 -> 103.7733403 | E111: =Calculs!LW194 -> 99.22978391 | F111: =Calculs!LX194 -> 92.936625 | G111: =Calculs!LY194 -> 84.05147385 | H111: =Calculs!LZ194 -> 84.05147385
A112: Charge variable au sommet | C112: qs2 | D112: =Calculs!LV195 -> 24.59106746 | E112: =Calculs!LW195 -> 24.59106746 | F112: =Calculs!LX195 -> 24.59106746 | G112: =Calculs!LY195 -> 24.59106746 | H112: =Calculs!LZ195 -> 24.59106746
A113: Charge effective au sommet | C113: qser | D113: =Calculs!LV196 -> 128.3644077 | E113: =Calculs!LW196 -> 123.8208514 | F113: =Calculs!LX196 -> 117.5276925 | G113: =Calculs!LY196 -> 108.6425413 | H113: =Calculs!LZ196 -> 108.6425413
A114: Pression du terrain | C114: qh | D114: =Calculs!LV197 -> 64.18220386 | E114: =Calculs!LW197 -> 61.91042568 | F114: =Calculs!LX197 -> 58.76384623 | G114: =Calculs!LY197 -> 54.32127065 | H114: =Calculs!LZ197 -> 0
A115: Pression d'appui | C115: qSt | D115: =Calculs!LV198 -> 32.09110193 | E115: =Calculs!LW198 -> 37.14625541 | F115: =Calculs!LX198 -> 58.76384623 | G115: =Calculs!LY198 -> 81.48190598 | H115: =Calculs!LZ198 -> 86.91403304
A116: Charge de dim. au sommet | C116: qds | D116: =Calculs!LV199 -> 176.9806105 | E116: =Calculs!LW199 -> 170.8468095 | F116: =Calculs!LX199 -> 162.3510449 | G116: =Calculs!LY199 -> 150.3560909 | H116: =Calculs!LZ199 -> 150.3560909
B119: Vérifications
B121: Poussée d'Archimède
B122: Actions stabilisant | D122: G + G' + Gsp | E122: =Calculs!LW172 -> 22.86339549 | F122: [kN/m]
D123: GR | E123: =Calculs!LW173 -> 0.8877135529 | F123: [kN/m]
D124: Somme | E124: =Calculs!LW174 -> 23.75110905 | F124: [kN/m] | G124: Facteur | H124: 0.9
B125: Actions déstabilisantes | D125: FA | E125: =Calculs!LW175 -> 0 | F125: [kN/m] | G125: Facteur | H125: 1.05
B127: Contôle: | D127: 1.05*FA | E127: =Calculs!LW177 -> 0 | F127: [kN/m] | G127: =IF(E127<E128,"OK","KO!") -> OK
D128: 0.9*Somme | E128: =Calculs!LW178 -> 21.37599814 | F128: [kN/m]
B131: Sécurité structurale
B133: Sécurité structurale
C134: U1/V1 | D134: U2/V2 | E134: U2A/V2A | F134: U3/V3 | G134: U4/V4
B135: qds | C135: =Calculs!LU202 -> 176.9806105 | D135: =Calculs!LV202 -> 170.8468095 | E135: =Calculs!LW202 -> 162.3510449 | F135: =Calculs!LX202 -> 150.3560909 | G135: =Calculs!LY202 -> 150.3560909 | H135: [kN/m2]
B136: q*ds | C136: =Calculs!LU203 -> 66.54470956 | D136: =Calculs!LV203 -> 64.23840036 | E136: =Calculs!LW203 -> 61.04399289 | F136: =Calculs!LX203 -> 56.53389017 | G136: =Calculs!LY203 -> 56.53389017 | H136: [kN/m]
B137: qBr | C137: =Calculs!LU204 -> 72 | D137: =Calculs!LV204 -> 72 | E137: =Calculs!LW204 -> 72 | F137: =Calculs!LX204 -> 72 | G137: =Calculs!LY204 -> 72 | H137: [kN/m]
B138: ZE | C138: =Calculs!LU205 -> 1.5 | D138: =Calculs!LV205 -> 2.5 | E138: =Calculs!LW205 -> 3 | F138: =Calculs!LX205 -> 6 | G138: =Calculs!LY205 -> 7 | H138: [-]
B139: ZE*qBr/1.2 | C139: =Calculs!LU206 -> 90 | D139: =Calculs!LV206 -> 150 | E139: =Calculs!LW206 -> 180 | F139: =Calculs!LX206 -> 360 | G139: =Calculs!LY206 -> 420 | H139: [kN/m]
B141: Résultat | C141: =Calculs!LU208 -> OK | D141: =Calculs!LV208 -> OK | E141: =Calculs!LW208 -> OK | F141: =Calculs!LX208 -> OK | G141: =Calculs!LY208 -> OK
B144: Aptitude au service
D146: σRbz,adm | E146: =Calculs!LJ464 -> -6 | F146: N/mm2
D148: Convention des contraintes:
D149: Traction négative -
D150: Compression positive +
B160: Contraintes Profil d'enrobage U1/V1
B161: Contraintes en [N/mm2] | D161: 0° | E161: 45° | F161: 90° | G161: 135° | H161: 180°
B162: Due à l'effort normal | D162: =Calculs!LM461 -> 0.2382799897 | E162: =Calculs!LN461 -> 0.3968920813 | F162: =Calculs!LO461 -> 0.5767240477 | G162: =Calculs!LP461 -> 0.5859228415 | H162: =Calculs!LQ461 -> 0.3134792158
B163: Due au moment extérieur | D163: =Calculs!LM462 -> 2.319377258 | E163: =Calculs!LN462 -> 0.1896686564 | F163: =Calculs!LO462 -> -2.422993195 | G163: =Calculs!LP462 -> -0.8236863948 | H163: =Calculs!LQ462 -> 3.654323673
B164: Due au moment intérieur | D164: =Calculs!LM463 -> -2.695225172 | E164: =Calculs!LN463 -> -0.2204038757 | F164: =Calculs!LO463 -> 2.815631751 | G164: =Calculs!LP463 -> 0.9571622285 | H164: =Calculs!LQ463 -> -4.246495526
B166: Contraintes extérieures | D166: =Calculs!LM465 -> 2.557657248 | E166: =Calculs!LN465 -> 0.5865607377 | F166: =Calculs!LO465 -> -1.846269147 | G166: =Calculs!LP465 -> -0.2377635533 | H166: =Calculs!LQ465 -> 3.967802889
B167: Conraintes intérieures | D167: =Calculs!LM466 -> -2.456945183 | E167: =Calculs!LN466 -> 0.1764882056 | F167: =Calculs!LO466 -> 3.392355798 | G167: =Calculs!LP466 -> 1.54308507 | H167: =Calculs!LQ466 -> -3.93301631
B169: Contraintes extérieures | D169: =Calculs!LM468 -> OK | E169: =Calculs!LN468 -> OK | F169: =Calculs!LO468 -> OK | G169: =Calculs!LP468 -> OK | H169: =Calculs!LQ468 -> OK
B170: Conraintes intérieures | D170: =Calculs!LM469 -> OK | E170: =Calculs!LN469 -> OK | F170: =Calculs!LO469 -> OK | G170: =Calculs!LP469 -> OK | H170: =Calculs!LQ469 -> OK
B174: Contraintes Profil d'enrobage U2/V2
B175: Contraintes en [N/mm2] | D175: 0° | E175: 45° | F175: 90° | G175: 135° | H175: 180°
B176: Due à l'effort normal | D176: =Calculs!LM474 -> 0.2553767357 | E176: =Calculs!LN474 -> 0.4009639564 | F176: =Calculs!LO474 -> 0.5565171786 | G176: =Calculs!LP474 -> 0.4582445675 | H176: =Calculs!LQ474 -> 0.2402325141
B177: Due au moment extérieur | D177: =Calculs!LM475 -> 1.939458287 | E177: =Calculs!LN475 -> 0.07176204567 | F177: =Calculs!LO475 -> -2.003923503 | G177: =Calculs!LP475 -> -0.1575443995 | H177: =Calculs!LQ475 -> 2.264671956
B178: Due au moment intérieur | D178: =Calculs!LM476 -> -2.253741506 | E178: =Calculs!LN476 -> -0.0833908633 | F178: =Calculs!LO476 -> 2.328653111 | G178: =Calculs!LP476 -> 0.1830739824 | H178: =Calculs!LQ476 -> -2.631655045
B180: Contraintes extérieures | D180: =Calculs!LM478 -> 2.194835022 | E180: =Calculs!LN478 -> 0.472726002 | F180: =Calculs!LO478 -> -1.447406324 | G180: =Calculs!LP478 -> 0.300700168 | H180: =Calculs!LQ478 -> 2.50490447
B181: Conraintes intérieures | D181: =Calculs!LM479 -> -1.99836477 | E181: =Calculs!LN479 -> 0.317573093 | F181: =Calculs!LO479 -> 2.885170289 | G181: =Calculs!LP479 -> 0.6413185499 | H181: =Calculs!LQ479 -> -2.391422531
B183: Contraintes extérieures | D183: =Calculs!LM481 -> OK | E183: =Calculs!LN481 -> OK | F183: =Calculs!LO481 -> OK | G183: =Calculs!LP481 -> OK | H183: =Calculs!LQ481 -> OK
B184: Conraintes intérieures | D184: =Calculs!LM482 -> OK | E184: =Calculs!LN482 -> OK | F184: =Calculs!LO482 -> OK | G184: =Calculs!LP482 -> OK | H184: =Calculs!LQ482 -> OK
B188: Contraintes Profil d'enrobage U2A/V2A
B189: Contraintes en [N/mm2] | D189: 0° | E189: 45° | F189: 90° | G189: 135° | H189: 180°
B190: Due à l'effort normal | D190: =Calculs!LM487 -> 0.2607247689 | E190: =Calculs!LN487 -> 0.3936430365 | F190: =Calculs!LO487 -> 0.5285291824 | G190: =Calculs!LP487 -> 0.3962305313 | H190: =Calculs!LQ487 -> 0.2619641792
B191: Due au moment extérieur | D191: =Calculs!LM488 -> 1.644415321 | E191: =Calculs!LN488 -> 0.003084482687 | F191: =Calculs!LO488 -> -1.6488083 | G191: =Calculs!LP488 -> -0.003076931176 | H191: =Calculs!LQ488 -> 1.653212007
B192: Due au moment intérieur | D192: =Calculs!LM489 -> -1.91088774 | E192: =Calculs!LN489 -> -0.00358431357 | F192: =Calculs!LO489 -> 1.915992588 | G192: =Calculs!LP489 -> 0.00357553836 | H192: =Calculs!LQ489 -> -1.921109902
B194: Contraintes extérieures | D194: =Calculs!LM491 -> 1.90514009 | E194: =Calculs!LN491 -> 0.3967275192 | F194: =Calculs!LO491 -> -1.120279118 | G194: =Calculs!LP491 -> 0.3931536001 | H194: =Calculs!LQ491 -> 1.915176186
B195: Conraintes intérieures | D195: =Calculs!LM492 -> -1.650162971 | E195: =Calculs!LN492 -> 0.390058723 | F195: =Calculs!LO492 -> 2.44452177 | G195: =Calculs!LP492 -> 0.3998060696 | H195: =Calculs!LQ492 -> -1.659145722
B197: Contraintes extérieures | D197: =Calculs!LM494 -> OK | E197: =Calculs!LN494 -> OK | F197: =Calculs!LO494 -> OK | G197: =Calculs!LP494 -> OK | H197: =Calculs!LQ494 -> OK
B198: Conraintes intérieures | D198: =Calculs!LM495 -> OK | E198: =Calculs!LN495 -> OK | F198: =Calculs!LO495 -> OK | G198: =Calculs!LP495 -> OK | H198: =Calculs!LQ495 -> OK
B207: Contraintes Profil d'enrobage U3/V3
B208: Contraintes en [N/mm2] | D208: 0° | E208: 45° | F208: 90° | G208: 135° | H208: 180°
B209: Due à l'effort normal | D209: =Calculs!LM500 -> 0.3173133713 | E209: =Calculs!LN500 -> 0.4179898506 | F209: =Calculs!LO500 -> 0.4242684052 | G209: =Calculs!LP500 -> 0.3833692862 | H209: =Calculs!LQ500 -> 0.3470500638
B210: Due au moment extérieur | D210: =Calculs!LM501 -> 0.8288689572 | E210: =Calculs!LN501 -> -0.1385250281 | F210: =Calculs!LO501 -> -0.6025151983 | G210: =Calculs!LP501 -> 0.05510244155 | H210: =Calculs!LQ501 -> 0.5604626978
B211: Due au moment intérieur | D211: =Calculs!LM502 -> -0.9631846092 | E211: =Calculs!LN502 -> 0.1609725806 | F211: =Calculs!LO502 -> 0.7001509234 | G211: =Calculs!LP502 -> -0.06403162184 | H211: =Calculs!LQ502 -> -0.6512839453
B213: Contraintes extérieures | D213: =Calculs!LM504 -> 1.146182329 | E213: =Calculs!LN504 -> 0.2794648225 | F213: =Calculs!LO504 -> -0.1782467932 | G213: =Calculs!LP504 -> 0.4384717277 | H213: =Calculs!LQ504 -> 0.9075127617
B214: Conraintes intérieures | D214: =Calculs!LM505 -> -0.6458712378 | E214: =Calculs!LN505 -> 0.5789624312 | F214: =Calculs!LO505 -> 1.124419329 | G214: =Calculs!LP505 -> 0.3193376643 | H214: =Calculs!LQ505 -> -0.3042338814
B216: Contraintes extérieures | D216: =Calculs!LM507 -> OK | E216: =Calculs!LN507 -> OK | F216: =Calculs!LO507 -> OK | G216: =Calculs!LP507 -> OK | H216: =Calculs!LQ507 -> OK
B217: Conraintes intérieures | D217: =Calculs!LM508 -> OK | E217: =Calculs!LN508 -> OK | F217: =Calculs!LO508 -> OK | G217: =Calculs!LP508 -> OK | H217: =Calculs!LQ508 -> OK
B221: Contraintes Profil d'enrobage U4/V4
B222: Contraintes en [N/mm2] | D222: 0° | E222: 45° | F222: 90° | G222: 135° | H222: 180°
B223: Due à l'effort normal | D223: =Calculs!LM513 -> 0.3859190207 | E223: =Calculs!LN513 -> 0.4364823921 | F223: =Calculs!LO513 -> 0.4890136418 | G223: =Calculs!LP513 -> 0.4390698869 | H223: =Calculs!LQ513 -> 0.3871584311
B224: Due au moment extérieur | D224: =Calculs!LM514 -> 0.6279825224 | E224: =Calculs!LN514 -> 0.003084482687 | F224: =Calculs!LO514 -> -0.6323755017 | G224: =Calculs!LP514 -> -0.003076931176 | H224: =Calculs!LQ514 -> 0.6367792084
B225: Due au moment intérieur | D225: =Calculs!LM515 -> -0.7297451487 | E225: =Calculs!LN515 -> -0.00358431357 | F225: =Calculs!LO515 -> 0.7348499966 | G225: =Calculs!LP515 -> 0.00357553836 | H225: =Calculs!LQ515 -> -0.7399673104
B227: Contraintes extérieures | D227: =Calculs!LM517 -> 1.013901543 | E227: =Calculs!LN517 -> 0.4395668748 | F227: =Calculs!LO517 -> -0.1433618599 | G227: =Calculs!LP517 -> 0.4359929557 | H227: =Calculs!LQ517 -> 1.023937639
B228: Conraintes intérieures | D228: =Calculs!LM518 -> -0.3438261279 | E228: =Calculs!LN518 -> 0.4328980786 | F228: =Calculs!LO518 -> 1.223863638 | G228: =Calculs!LP518 -> 0.4426454253 | H228: =Calculs!LQ518 -> -0.3528088793
B230: Contraintes extérieures | D230: =Calculs!LM520 -> OK | E230: =Calculs!LN520 -> OK | F230: =Calculs!LO520 -> OK | G230: =Calculs!LP520 -> OK | H230: =Calculs!LQ520 -> OK
B231: Conraintes intérieures | D231: =Calculs!LM521 -> OK | E231: =Calculs!LN521 -> OK | F231: =Calculs!LO521 -> OK | G231: =Calculs!LP521 -> OK | H231: =Calculs!LQ521 -> OK
B234: Traction dans le béton d'enrobage
B236: Profil d'enrobage | D236: U1/V1 | E236: U2/V2 | F236: U2A/V2A | G236: U3/V3 | H236: U4/V4
B237: anéc. en [m] | D237: =Calculs!LM547 -> 0 | E237: =Calculs!LN547 -> 0.15 | F237: =Calculs!LO547 -> 0.15 | G237: =Calculs!LP547 -> 0.15 | H237: =Calculs!LQ547 -> 0.15
B239: Profil d'enrobage | D239: U4/V4
B240: cnéc. en [m] | D240: =Calculs!LQ561 -> 0.15

Sheet Grès vitrifié s. (D)
B2: Projekt: | C2: =Accueil!P15 -> VSA 2026 | F2: Ingenieur/in: | H2: =Accueil!AI15 -> 0
B4: N°: | C4: =Accueil!P17 -> 0 | F4: Verantwortlicher: | H4: =Accueil!AI17 -> 0
B6: Ort: | C6: =Accueil!P21 -> 0 | F6: Bauherr: | H6: =Accueil!AI19 -> 0
C7: =Accueil!P23 -> 0
A10: Daten
B12: Steinzeugrohr | E12: =IF(Données!$AE$6/1000>F14,"di max.< di Eingabe!","") -> 
B14: Innendurchmesser | E14: di | F14: =Calculs!LM32/1000 -> 0.3 | G14: m
B15: Radius | E15: rm | F15: =Calculs!L32/1000 -> 0 | G15: m
B16: Wanddicke | E16: e | F16: =Calculs!LP32/1000 -> 0.038 | G16: m
B17: Querschnittsfläche | E17: A | F17: =Calculs!LP455 -> 0.038 | G17: m2
B18: Widerstandsmoment | E18: W | F18: =Calculs!LP456 -> 0.0002406666667 | G18: m3
B19: Festigkeitsklasse | E19: FK | F19: =Calculs!LR32 -> 240
B20: E-Modul | E20: ER,kurz | F20: =Calculs!B8 -> 50000 | G20: N/mm2
B22: Systemsteifigkeit | E22: SFkurz | F22: =Calculs!LM37 -> 15.78912924 | G22: =Calculs!KN37 -> rigide
B23: Lastvergrösserungsfaktor | E23: f | F23: =Calculs!LO41 -> 1.112426036
B24: Krümmungseinfluss | E24: αka | F24: =Calculs!LM456 -> 0.9250493097
E25: αki | F25: =Calculs!LM455 -> 1.07495069
B27: Terrain
B29: Bodenqualität | F29: =Données!AE30 -> Sol stable
B30: Feuchtraumgewicht des Baugrunds | E30: γ | F30: =Données!AE32 -> 20 | G30: kN/m3
B31: Raumgewicht unter Auftrieb | E31: γ' | F31: =Données!AE34 -> 11 | G31: kN/m3
B32: Verformungsmodul des Bodens | E32: EB | F32: =Données!AE38 -> 5 | G32: N/mm2
B33: Erddruckbeiwert | E33: K | F33: =Données!AE40 -> 0.5
B34: Setzungs-Durchbiegungsziffer | E34: C2 | F34: =Données!AE42 -> 0.5
B35: Hüllbeton | F35: =Données!AE50 -> C16/20
B37: Graben
B39: Überdeckungshöhe | E39: H | F39: =Données!AE52 -> 3 | G39: m
B40: Grabentyp | F40: =Données!AE56 -> Verticale (U)
B42: Wasser
B44: Grundwasser | F44: =Données!AE60 -> Sans eau souterraine
B45: Grwundwasserspiegel | E45: hw | F45: =Données!AE62 -> 1.3 | G45: m
B46: Wasser im Rohr | F46: =Données!AE64 -> Tuyau vide
B47: Druck | E47: pEi | F47: =Données!AE66 -> 10 | G47: kN/m2
B56: Einwirkungen
B58: Flächenlast | F58: =Données!AE8 -> Pas de charge
E59: qs | F59: =Calculs!LP123 -> 0 | G59: kN/m2
B60: Verkehr | F60: =Données!AE22 -> Trafic routier | H60: =IF(AND(Accueil!AZ15="Deutsch",AND(OR(F60="Voie unique (ferroviaire)",F60="Voies multiples (ferroviaire)",F60="Voie étroite (ferroviaire)",F60="Eingleisig (Bahnverkehr)",F60="Mehrgleisig (Bahnverkehr)",F60="Schmalspur (Bahnverkehr)"),F39<2)),"H zu klein!","") -> 
B61: Beiwert Strass- und Bahnvekehrslasten | E61: α | F61: =Calculs!LN93 -> 0.9
B62: Dynamischer Beiwert | E62: Ψ | F62: =Calculs!LO93 -> 1
B63: Strassenverkehr und untergeordnete | E63: pvtotal | F63: =Calculs!LK109 -> 24.562 | G63: kN/m2
B64: Strassen | E64: pvRad | F64: =Calculs!LL109 -> 4.9022 | G64: kN/m2
E65: ∆pv | F65: =Calculs!LM109 -> 19.6598 | G65: kN/m2
B66: Strassenrand | E66: pvtotal | F66: =Calculs!LN109 -> 0 | G66: kN/m2
E67: pvRad | F67: =Calculs!LO109 -> 0 | G67: kN/m2
E68: ∆pv | F68: =Calculs!LP109 -> 0 | G68: kN/m2
B69: Bahnverkehr eingleisig | E69: peingleisig | F69: =Calculs!LR109 -> 0 | G69: kN/m2
B70: Bahnverkehr mehrgleisig | E70: pmehrgleisig | F70: =Calculs!LS109 -> 0 | G70: kN/m2
B71: Bahnverkehr schmalspur | E71: pschmal | F71: =Calculs!LT109 -> 0 | G71: kN/m2
A75: Resultate
B107: Beanspruchungen
C109: Beanspruchungen in [kN/m2]
D110: U1/V1 | E110: U2/V2 | F110: U2A/V2A | G110: U3/V3 | H110: U4/V4
A111: Perm. Last auf Scheitel | C111: qs1 | D111: =Calculs!LV194 -> 103.7733403 | E111: =Calculs!LW194 -> 99.22978391 | F111: =Calculs!LX194 -> 92.936625 | G111: =Calculs!LY194 -> 84.05147385 | H111: =Calculs!LZ194 -> 84.05147385
A112: Var. Last auf Scheitel | C112: qs2 | D112: =Calculs!LV195 -> 24.59106746 | E112: =Calculs!LW195 -> 24.59106746 | F112: =Calculs!LX195 -> 24.59106746 | G112: =Calculs!LY195 -> 24.59106746 | H112: =Calculs!LZ195 -> 24.59106746
A113: Effektive Last auf Scheitel | C113: qser | D113: =Calculs!LV196 -> 128.3644077 | E113: =Calculs!LW196 -> 123.8208514 | F113: =Calculs!LX196 -> 117.5276925 | G113: =Calculs!LY196 -> 108.6425413 | H113: =Calculs!LZ196 -> 108.6425413
A114: Erd- und Bettungsdruck | C114: qh | D114: =Calculs!LV197 -> 64.18220386 | E114: =Calculs!LW197 -> 61.91042568 | F114: =Calculs!LX197 -> 58.76384623 | G114: =Calculs!LY197 -> 54.32127065 | H114: =Calculs!LZ197 -> 0
A115: Stützdruck | C115: qSt | D115: =Calculs!LV198 -> 32.09110193 | E115: =Calculs!LW198 -> 37.14625541 | F115: =Calculs!LX198 -> 58.76384623 | G115: =Calculs!LY198 -> 81.48190598 | H115: =Calculs!LZ198 -> 86.91403304
A116: Bemessungswert | C116: qds | D116: =Calculs!LV199 -> 176.9806105 | E116: =Calculs!LW199 -> 170.8468095 | F116: =Calculs!LX199 -> 162.3510449 | G116: =Calculs!LY199 -> 150.3560909 | H116: =Calculs!LZ199 -> 150.3560909
B119: Nachweise
B121: Auftrieb
B122: Stabilisierend | D122: G + G' + Gsp | E122: =Calculs!LW172 -> 22.86339549 | F122: [kN/m]
D123: GR | E123: =Calculs!LW173 -> 0.8877135529 | F123: [kN/m]
D124: Summe | E124: =Calculs!LW174 -> 23.75110905 | F124: [kN/m] | G124: Faktor | H124: 0.9
B125: Destabilisierend | D125: FA | E125: =Calculs!LW175 -> 0 | F125: [kN/m] | G125: Faktor | H125: 1.05
B127: Kontrolle: | D127: 1.05*FA | E127: =Calculs!LW177 -> 0 | F127: [kN/m] | G127: =IF(E127<E128,"OK","KO!") -> OK
D128: 0.9*Summe | E128: =Calculs!LW178 -> 21.37599814 | F128: [kN/m]
B131: Tragfähigkeit
B133: Tragfähigkeit
C134: U1/V1 | D134: U2/V2 | E134: U2A/V2A | F134: U3/V3 | G134: U4/V4
B135: qds | C135: =Calculs!LU202 -> 176.9806105 | D135: =Calculs!LV202 -> 170.8468095 | E135: =Calculs!LW202 -> 162.3510449 | F135: =Calculs!LX202 -> 150.3560909 | G135: =Calculs!LY202 -> 150.3560909 | H135: [kN/m2]
B136: q*ds | C136: =Calculs!LU203 -> 66.54470956 | D136: =Calculs!LV203 -> 64.23840036 | E136: =Calculs!LW203 -> 61.04399289 | F136: =Calculs!LX203 -> 56.53389017 | G136: =Calculs!LY203 -> 56.53389017 | H136: [kN/m]
B137: qBr | C137: =Calculs!LU204 -> 72 | D137: =Calculs!LV204 -> 72 | E137: =Calculs!LW204 -> 72 | F137: =Calculs!LX204 -> 72 | G137: =Calculs!LY204 -> 72 | H137: [kN/m]
B138: ZE | C138: =Calculs!LU205 -> 1.5 | D138: =Calculs!LV205 -> 2.5 | E138: =Calculs!LW205 -> 3 | F138: =Calculs!LX205 -> 6 | G138: =Calculs!LY205 -> 7 | H138: [-]
B139: ZE*qBr/1.2 | C139: =Calculs!LU206 -> 90 | D139: =Calculs!LV206 -> 150 | E139: =Calculs!LW206 -> 180 | F139: =Calculs!LX206 -> 360 | G139: =Calculs!LY206 -> 420 | H139: [kN/m]
B141: Resultat | C141: =Calculs!LU208 -> OK | D141: =Calculs!LV208 -> OK | E141: =Calculs!LW208 -> OK | F141: =Calculs!LX208 -> OK | G141: =Calculs!LY208 -> OK
B144: Gebrauchstauglichkeit
D146: σRbz,adm | E146: =Calculs!LJ464 -> -6 | F146: N/mm2
D148: Spannungskonventionen:
D149: Zug negatif -
D150: Druck positif +
B160: Spannungen Verlegeprofil U1/V1
B161: Spannungen in [N/mm2] | D161: 0° | E161: 45° | F161: 90° | G161: 135° | H161: 180°
B162: Durch die Normalkraft | D162: =Calculs!LM461 -> 0.2382799897 | E162: =Calculs!LN461 -> 0.3968920813 | F162: =Calculs!LO461 -> 0.5767240477 | G162: =Calculs!LP461 -> 0.5859228415 | H162: =Calculs!LQ461 -> 0.3134792158
B163: Durch das Moment aussen | D163: =Calculs!LM462 -> 2.319377258 | E163: =Calculs!LN462 -> 0.1896686564 | F163: =Calculs!LO462 -> -2.422993195 | G163: =Calculs!LP462 -> -0.8236863948 | H163: =Calculs!LQ462 -> 3.654323673
B164: Durch das Moment innen | D164: =Calculs!LM463 -> -2.695225172 | E164: =Calculs!LN463 -> -0.2204038757 | F164: =Calculs!LO463 -> 2.815631751 | G164: =Calculs!LP463 -> 0.9571622285 | H164: =Calculs!LQ463 -> -4.246495526
B166: Spannungen aussen | D166: =Calculs!LM465 -> 2.557657248 | E166: =Calculs!LN465 -> 0.5865607377 | F166: =Calculs!LO465 -> -1.846269147 | G166: =Calculs!LP465 -> -0.2377635533 | H166: =Calculs!LQ465 -> 3.967802889
B167: Spannungen innen | D167: =Calculs!LM466 -> -2.456945183 | E167: =Calculs!LN466 -> 0.1764882056 | F167: =Calculs!LO466 -> 3.392355798 | G167: =Calculs!LP466 -> 1.54308507 | H167: =Calculs!LQ466 -> -3.93301631
B169: Spannungen aussen | D169: =Calculs!LM468 -> OK | E169: =Calculs!LN468 -> OK | F169: =Calculs!LO468 -> OK | G169: =Calculs!LP468 -> OK | H169: =Calculs!LQ468 -> OK
B170: Spannungen innen | D170: =Calculs!LM469 -> OK | E170: =Calculs!LN469 -> OK | F170: =Calculs!LO469 -> OK | G170: =Calculs!LP469 -> OK | H170: =Calculs!LQ469 -> OK
B174: Spannungen Verlegeprofil U2/V2
B175: Spannungen in [N/mm2] | D175: 0° | E175: 45° | F175: 90° | G175: 135° | H175: 180°
B176: Durch die Normalkraft | D176: =Calculs!LM474 -> 0.2553767357 | E176: =Calculs!LN474 -> 0.4009639564 | F176: =Calculs!LO474 -> 0.5565171786 | G176: =Calculs!LP474 -> 0.4582445675 | H176: =Calculs!LQ474 -> 0.2402325141
B177: Durch das Moment aussen | D177: =Calculs!LM475 -> 1.939458287 | E177: =Calculs!LN475 -> 0.07176204567 | F177: =Calculs!LO475 -> -2.003923503 | G177: =Calculs!LP475 -> -0.1575443995 | H177: =Calculs!LQ475 -> 2.264671956
B178: Durch das Moment innen | D178: =Calculs!LM476 -> -2.253741506 | E178: =Calculs!LN476 -> -0.0833908633 | F178: =Calculs!LO476 -> 2.328653111 | G178: =Calculs!LP476 -> 0.1830739824 | H178: =Calculs!LQ476 -> -2.631655045
B180: Spannungen aussen | D180: =Calculs!LM478 -> 2.194835022 | E180: =Calculs!LN478 -> 0.472726002 | F180: =Calculs!LO478 -> -1.447406324 | G180: =Calculs!LP478 -> 0.300700168 | H180: =Calculs!LQ478 -> 2.50490447
B181: Spannungen innen | D181: =Calculs!LM479 -> -1.99836477 | E181: =Calculs!LN479 -> 0.317573093 | F181: =Calculs!LO479 -> 2.885170289 | G181: =Calculs!LP479 -> 0.6413185499 | H181: =Calculs!LQ479 -> -2.391422531
B183: Spannungen aussen | D183: =Calculs!LM481 -> OK | E183: =Calculs!LN481 -> OK | F183: =Calculs!LO481 -> OK | G183: =Calculs!LP481 -> OK | H183: =Calculs!LQ481 -> OK
B184: Spannungen innen | D184: =Calculs!LM482 -> OK | E184: =Calculs!LN482 -> OK | F184: =Calculs!LO482 -> OK | G184: =Calculs!LP482 -> OK | H184: =Calculs!LQ482 -> OK
B188: Spannungen Verlegeprofil U2A/V2A
B189: Spannungen in [N/mm2] | D189: 0° | E189: 45° | F189: 90° | G189: 135° | H189: 180°
B190: Durch die Normalkraft | D190: =Calculs!LM487 -> 0.2607247689 | E190: =Calculs!LN487 -> 0.3936430365 | F190: =Calculs!LO487 -> 0.5285291824 | G190: =Calculs!LP487 -> 0.3962305313 | H190: =Calculs!LQ487 -> 0.2619641792
B191: Durch das Moment aussen | D191: =Calculs!LM488 -> 1.644415321 | E191: =Calculs!LN488 -> 0.003084482687 | F191: =Calculs!LO488 -> -1.6488083 | G191: =Calculs!LP488 -> -0.003076931176 | H191: =Calculs!LQ488 -> 1.653212007
B192: Durch das Moment innen | D192: =Calculs!LM489 -> -1.91088774 | E192: =Calculs!LN489 -> -0.00358431357 | F192: =Calculs!LO489 -> 1.915992588 | G192: =Calculs!LP489 -> 0.00357553836 | H192: =Calculs!LQ489 -> -1.921109902
B194: Spannungen aussen | D194: =Calculs!LM491 -> 1.90514009 | E194: =Calculs!LN491 -> 0.3967275192 | F194: =Calculs!LO491 -> -1.120279118 | G194: =Calculs!LP491 -> 0.3931536001 | H194: =Calculs!LQ491 -> 1.915176186
B195: Spannungen innen | D195: =Calculs!LM492 -> -1.650162971 | E195: =Calculs!LN492 -> 0.390058723 | F195: =Calculs!LO492 -> 2.44452177 | G195: =Calculs!LP492 -> 0.3998060696 | H195: =Calculs!LQ492 -> -1.659145722
B197: Spannungen aussen | D197: =Calculs!LM494 -> OK | E197: =Calculs!LN494 -> OK | F197: =Calculs!LO494 -> OK | G197: =Calculs!LP494 -> OK | H197: =Calculs!LQ494 -> OK
B198: Spannungen innen | D198: =Calculs!LM495 -> OK | E198: =Calculs!LN495 -> OK | F198: =Calculs!LO495 -> OK | G198: =Calculs!LP495 -> OK | H198: =Calculs!LQ495 -> OK
B207: Spannungen Verlegeprofil U3/V3
B208: Spannungen in [N/mm2] | D208: 0° | E208: 45° | F208: 90° | G208: 135° | H208: 180°
B209: Durch die Normalkraft | D209: =Calculs!LM500 -> 0.3173133713 | E209: =Calculs!LN500 -> 0.4179898506 | F209: =Calculs!LO500 -> 0.4242684052 | G209: =Calculs!LP500 -> 0.3833692862 | H209: =Calculs!LQ500 -> 0.3470500638
B210: Durch das Moment aussen | D210: =Calculs!LM501 -> 0.8288689572 | E210: =Calculs!LN501 -> -0.1385250281 | F210: =Calculs!LO501 -> -0.6025151983 | G210: =Calculs!LP501 -> 0.05510244155 | H210: =Calculs!LQ501 -> 0.5604626978
B211: Durch das Moment innen | D211: =Calculs!LM502 -> -0.9631846092 | E211: =Calculs!LN502 -> 0.1609725806 | F211: =Calculs!LO502 -> 0.7001509234 | G211: =Calculs!LP502 -> -0.06403162184 | H211: =Calculs!LQ502 -> -0.6512839453
B213: Spannungen aussen | D213: =Calculs!LM504 -> 1.146182329 | E213: =Calculs!LN504 -> 0.2794648225 | F213: =Calculs!LO504 -> -0.1782467932 | G213: =Calculs!LP504 -> 0.4384717277 | H213: =Calculs!LQ504 -> 0.9075127617
B214: Spannungen innen | D214: =Calculs!LM505 -> -0.6458712378 | E214: =Calculs!LN505 -> 0.5789624312 | F214: =Calculs!LO505 -> 1.124419329 | G214: =Calculs!LP505 -> 0.3193376643 | H214: =Calculs!LQ505 -> -0.3042338814
B216: Spannungen aussen | D216: =Calculs!LM507 -> OK | E216: =Calculs!LN507 -> OK | F216: =Calculs!LO507 -> OK | G216: =Calculs!LP507 -> OK | H216: =Calculs!LQ507 -> OK
B217: Spannungen innen | D217: =Calculs!LM508 -> OK | E217: =Calculs!LN508 -> OK | F217: =Calculs!LO508 -> OK | G217: =Calculs!LP508 -> OK | H217: =Calculs!LQ508 -> OK
B221: Spannungen Verlegeprofil U4/V4
B222: Spannungen in [N/mm2] | D222: 0° | E222: 45° | F222: 90° | G222: 135° | H222: 180°
B223: Durch die Normalkraft | D223: =Calculs!LM513 -> 0.3859190207 | E223: =Calculs!LN513 -> 0.4364823921 | F223: =Calculs!LO513 -> 0.4890136418 | G223: =Calculs!LP513 -> 0.4390698869 | H223: =Calculs!LQ513 -> 0.3871584311
B224: Durch das Moment aussen | D224: =Calculs!LM514 -> 0.6279825224 | E224: =Calculs!LN514 -> 0.003084482687 | F224: =Calculs!LO514 -> -0.6323755017 | G224: =Calculs!LP514 -> -0.003076931176 | H224: =Calculs!LQ514 -> 0.6367792084
B225: Durch das Moment innen | D225: =Calculs!LM515 -> -0.7297451487 | E225: =Calculs!LN515 -> -0.00358431357 | F225: =Calculs!LO515 -> 0.7348499966 | G225: =Calculs!LP515 -> 0.00357553836 | H225: =Calculs!LQ515 -> -0.7399673104
B227: Spannungen aussen | D227: =Calculs!LM517 -> 1.013901543 | E227: =Calculs!LN517 -> 0.4395668748 | F227: =Calculs!LO517 -> -0.1433618599 | G227: =Calculs!LP517 -> 0.4359929557 | H227: =Calculs!LQ517 -> 1.023937639
B228: Spannungen innen | D228: =Calculs!LM518 -> -0.3438261279 | E228: =Calculs!LN518 -> 0.4328980786 | F228: =Calculs!LO518 -> 1.223863638 | G228: =Calculs!LP518 -> 0.4426454253 | H228: =Calculs!LQ518 -> -0.3528088793
B230: Spannungen aussen | D230: =Calculs!LM520 -> OK | E230: =Calculs!LN520 -> OK | F230: =Calculs!LO520 -> OK | G230: =Calculs!LP520 -> OK | H230: =Calculs!LQ520 -> OK
B231: Spannungen innen | D231: =Calculs!LM521 -> OK | E231: =Calculs!LN521 -> OK | F231: =Calculs!LO521 -> OK | G231: =Calculs!LP521 -> OK | H231: =Calculs!LQ521 -> OK
B234: Zugkraft im Sohlenbeton
B236: Verlegeprofil | D236: U1/V1 | E236: U2/V2 | F236: U2A/V2A | G236: U3/V3 | H236: U4/V4
B237: anötig in [m] | D237: =Calculs!LM547 -> 0 | E237: =Calculs!LN547 -> 0.15 | F237: =Calculs!LO547 -> 0.15 | G237: =Calculs!LP547 -> 0.15 | H237: =Calculs!LQ547 -> 0.15
B239: Verlegeprofil | D239: U4/V4
B240: cnötig in [m] | D240: =Calculs!LQ561 -> 0.15

Sheet Fonte
B2: Projet: | C2: =Accueil!P15 -> VSA 2026 | F2: Ingénieur/e: | H2: =Accueil!AI15 -> 0
B4: =Accueil!$L$17 -> N°: | C4: =Accueil!P17 -> 0 | F4: Responsable: | H4: =Accueil!AI17 -> 0
B6: Lieu: | C6: =Accueil!P21 -> 0 | F6: Maître d'ouvrage: | H6: =Accueil!AI19 -> 0
C7: =Accueil!P23 -> 0
A10: Données
B12: Tuyau en fonte | E12: =IF(Données!$AE$6>F14,"di max.< di introduit!","") -> 
B14: Diamètre intérieur | E14: di | F14: =Calculs!SK32 -> 314.8 | G14: mm
B15: Rayon moyen | E15: rm | F15: =Calculs!SO32 -> 160.2 | G15: mm
B16: Épaisseur de paroi | E16: e | F16: =Calculs!SN32 -> 5.6 | G16: mm
B17: Section | E17: A | F17: =Calculs!SJ328 -> 0.0056 | G17: m2
B18: Module de flexion | E18: W | F18: =Calculs!SJ329 -> 5.226666667e-06 | G18: m3
B19: Module d'élasticité | E19: ER,court | F19: =Calculs!B9 -> 170000 | G19: N/mm2
B21: Rigidité du système | E21: SFcourt | F21: =Calculs!SK37 -> 0.2017079272 | G21: =Calculs!SL37 -> rigide
B22: Facteur de majoration de charge | E22: f | F22: =Calculs!SM41 -> 1
B23: Effet de courbure: | E23: αka | F23: =Calculs!SG329 -> 1
E24: αki | F24: =Calculs!SG328 -> 1
B26: Terrain
B28: Qualité du sol | F28: =Données!AE30 -> Sol stable
B29: Poids volumique apparent hum. | E29: γ | F29: =Données!AE32 -> 20
B30: Poids volumique déjaugé | E30: γ' | F30: =Données!AE34 -> 11 | G30: kN/m3
B31: Module de déformation du sol | E31: EB | F31: =Données!AE38 -> 5 | G31: kN/m3
B32: Coefficient de pression du terrain | E32: K | F32: =Données!AE40 -> 0.5 | G32: N/mm2
B33: Coefficient de flexion au tassement | E33: C2 | F33: =Données!AE42 -> 0.5
B34: Réduction de charge | E34: λmin | F34: =Données!AE44 -> NON
B36: Eau
B38: Eau souterraine | F38: =Données!AE60 -> Sans eau souterraine
B39: Niveau d'eau souterraine | E39: hw | F39: =Données!AE62 -> 1.3 | G39: m
B40: Eau à l'intérieur du tuyau | F40: =Données!AE64 -> Tuyau vide
B41: Pression | E41: pEi | F41: =Données!AE66 -> 10 | G41: kN/m2
B43: Fouille
B45: Hauteur de couverture | E45: H | F45: =Données!AE52 -> 3
B46: Type de fouille | F46: =Données!AE56 -> Verticale (U)
B47: Largeur de fouille | E47: B | F47: =Données!AE54 -> 1.5
B48: Angle de talus | E48: β | F48: =Données!AE58 -> 30
B55: Actions
B57: Charge surfacique | F57: =Données!AE8 -> Pas de charge
E58: qs | F58: =Calculs!SL128 -> 0 | G58: kN/m2
B59: Trafic | F59: =Données!AE22 -> Trafic routier | H59: =IF(AND(Accueil!AZ15="Français",AND(OR(F59="Voie unique (ferroviaire)",F59="Voies multiples (ferroviaire)",F59="Voie étroite (ferroviaire)",F59="Eingleisig (Bahnverkehr)",F59="Mehrgleisig (Bahnverkehr)",F59="Schmalspur (Bahnverkehr)"),F45<2)),"H trop faible!","") -> 
B60: Coefficient de charge | E60: α | F60: =Calculs!SH98 -> 0.9
B61: Coefficient dynamique | E61: Ψ | F61: =Calculs!SI98 -> 1
B62: Trafic routier et route d'importance | E62: pvtotale | F62: =Calculs!SG114 -> 24.562 | G62: kN/m2
B63: secondaire | E63: pvroue | F63: =Calculs!SH114 -> 4.9022 | G63: kN/m2
E64: ∆pv | F64: =Calculs!SI114 -> 19.6598 | G64: kN/m2
B65: Bord de route | E65: pvtotale | F65: =Calculs!SJ114 -> 0 | G65: kN/m2
E66: pvroue | F66: =Calculs!SK114 -> 0 | G66: kN/m2
E67: ∆pv | F67: =Calculs!SL114 -> 0 | G67: kN/m2
B68: Trafic ferroviaire voie unique | E68: punique | F68: =Calculs!SN114 -> 0 | G68: kN/m2
B69: Trafic ferroviaire voies multiples | E69: pmultiples | F69: =Calculs!SO114 -> 0 | G69: kN/m2
B70: Trafic ferroviaire voie étroite | E70: pétroite | F70: =Calculs!SP114 -> 0 | G70: kN/m2
A72: Résultats
B74: Sollicitations
C76: Sollicitations
C77: U1/V1
C78: À long terme | E78: qs1 | F78: =Calculs!SK198 -> 93.28560906 | G78: [kN/m2]
C79: À court terme | E79: qs2 | F79: =Calculs!SK199 -> 22.1058 | G79: [kN/m2]
C80: Charge eff. au sommet | E80: qser | F80: =Calculs!SK200 -> 115.3914091 | G80: [kN/m2]
C81: Pression du terrain | E81: qh | F81: =Calculs!SG202 -> 57.69570453 | G81: [kN/m2]
C82: Charge de dim. au sommet | E82: qds | F82: =Calculs!SK203 -> 159.0942722 | G82: [kN/m2]
B85: Vérifications
D87: Vérification de la déformation (IOWA)
E88: 1 | G88: =IF(Calculs!SK37<0.1,"","Tuyau rigide. Pas nécessaire de vérifier la déformation!") -> Tuyau rigide. Pas nécessaire de vérifier la déformation!
D89: x/d court | E89: =IF(Calculs!SK37<0.1,Calculs!SJ207,"") -> 
D90: x/d long | E90: =IF(Calculs!SK37<0.1,Calculs!SJ208,"") -> 
D91: Somme | E91: =IF(Calculs!SK37<0.1,Calculs!SJ209,"") ->  | F91: =IF(Calculs!SK37<0.1,Calculs!SK209,"") -> 
D92: Admissible | E92: =IF(Calculs!SK37<0.1,Calculs!SJ210,"") -> 
B104: Poussée d'Archimède
B105: Actions stabilisant | D105: G + G' + Gsp | E105: =Calculs!SI177 -> 19.78807025 | F105: [kN/m]
D106: GR | E106: =Calculs!SI178 -> 0.3973923698 | F106: [kN/m]
D107: Somme | E107: =Calculs!SI179 -> 20.18546262 | F107: [kN/m] | G107: Facteur | H107: 0.9
B108: Actions déstabilisantes | D108: FA | E108: =Calculs!SI180 -> 0 | F108: [kN/m] | G108: Facteur | H108: 1.05
B110: Contôle: | D110: 1.05*FA | E110: =Calculs!SI182 -> 0 | F110: [kN/m] | G110: =IF(E110<E111,"OK","KO!") -> OK
D111: 0.9*Somme | E111: =Calculs!SI183 -> 18.16691636 | F111: [kN/m]
B114: Sécurité structurale
C116: Sécurité structurale
C117: U1/V1
C118: =IF(Calculs!SK37<0.1,Calculs!SF214,Calculs!SF225) -> qds | E118: =IF(Calculs!SK37<0.1,Calculs!SJ214,Calculs!SJ225) -> 159.0942722 | F118: [kN/m2]
C119: =IF(Calculs!SK37<0.1,Calculs!SF215,Calculs!SF226) -> q*ds | E119: =IF(Calculs!SK37<0.1,Calculs!SJ215,Calculs!SJ226) -> 51.86473275 | F119: [kN/m2]
C120: =IF(Calculs!SK37<0.1,Calculs!SF216,Calculs!SF227) -> qBr | E120: =IF(Calculs!SK37<0.1,Calculs!SJ216,Calculs!SJ227) -> 157.4055822 | F120: [kN/m2]
C121: =IF(Calculs!SK37<0.1,Calculs!SF217,Calculs!SF228) -> ZE | E121: =IF(Calculs!SK37<0.1,Calculs!SJ217,Calculs!SJ228) -> 1.5 | F121: [kN/m2]
C122: =IF(Calculs!SK37<0.1,Calculs!SF219,Calculs!SF229) -> ZE*qBr/1.2 | E122: =IF(Calculs!SK37<0.1,Calculs!SJ219,Calculs!SJ229) -> 196.7569778 | F122: [kN/m2]
C124: Résultat | E124: =IF(Calculs!SK37<0.1,Calculs!SJ221,Calculs!SJ231) -> OK
B127: Aptitude au service
D129: σRbz,adm | E129: =Calculs!SN327 -> 330 | F129: N/mm2
D131: Convention des contraintes:
D132: Traction négative -
D133: Compression positive +
B135: Contraintes Profil d'enrobage U1/V1
B136: Contraintes en [N/mm2] | D136: 0° | E136: 45° | F136: 90° | G136: 135° | H136: 180°
B137: Due à l'effort normal | D137: =Calculs!SG334 -> 1.383375046 | E137: =Calculs!SH334 -> 2.293192853 | F137: =Calculs!SI334 -> 3.318759296 | G137: =Calculs!SJ334 -> 3.367064583 | H137: =Calculs!SK334 -> 1.917643478
B138: Due au moment extérieur | D138: =Calculs!SG335 -> 92.33873887 | E138: =Calculs!SH335 -> 7.452806933 | F138: =Calculs!SI335 -> -96.3830664 | G138: =Calculs!SJ335 -> -32.47904268 | H138: =Calculs!SK335 -> 144.5244726
B139: Due au moment intérieur | D139: =Calculs!SG336 -> -92.33873887 | E139: =Calculs!SH336 -> -7.452806933 | F139: =Calculs!SI336 -> 96.3830664 | G139: =Calculs!SJ336 -> 32.47904268 | H139: =Calculs!SK336 -> -144.5244726
B141: Contraintes extérieures | D141: =Calculs!SG338 -> 93.72211392 | E141: =Calculs!SH338 -> 9.745999786 | F141: =Calculs!SI338 -> -93.06430711 | G141: =Calculs!SJ338 -> -29.1119781 | H141: =Calculs!SK338 -> 146.4421161
B142: Conraintes intérieures | D142: =Calculs!SG339 -> -90.95536383 | E142: =Calculs!SH339 -> -5.159614081 | F142: =Calculs!SI339 -> 99.7018257 | G142: =Calculs!SJ339 -> 35.84610726 | H142: =Calculs!SK339 -> -142.6068291
B144: Contraintes extérieures | D144: =Calculs!SG341 -> OK | E144: =Calculs!SH341 -> OK | F144: =Calculs!SI341 -> OK | G144: =Calculs!SJ341 -> OK | H144: =Calculs!SK341 -> OK
B145: Conraintes intérieures | D145: =Calculs!SG342 -> OK | E145: =Calculs!SH342 -> OK | F145: =Calculs!SI342 -> OK | G145: =Calculs!SJ342 -> OK | H145: =Calculs!SK342 -> OK

Sheet Fonte (D)
B2: Projekt: | C2: =Accueil!P15 -> VSA 2026 | F2: Ingenieur/in: | H2: =Accueil!AI15 -> 0
B4: N°: | C4: =Accueil!P17 -> 0 | F4: Verantwortlicher: | H4: =Accueil!AI17 -> 0
B6: Ort: | C6: =Accueil!P21 -> 0 | F6: Bauherr: | H6: =Accueil!AI19 -> 0
C7: =Accueil!P23 -> 0
A10: Daten
B12: Gusseisenrohr | E12: =IF(Données!$AE$6>F14,"di max.< di Eingabe!","") -> 
B14: Innendurchmesser | E14: di | F14: =Calculs!SK32 -> 314.8 | G14: mm
B15: Radius | E15: rm | F15: =Calculs!SO32 -> 160.2 | G15: mm
B16: Wanddicke | E16: e | F16: =Calculs!SN32 -> 5.6 | G16: mm
B17: Querschnittsfläche | E17: A | F17: =Calculs!SJ328 -> 0.0056 | G17: m2
B18: Widerstandsmoment | E18: W | F18: =Calculs!SJ329 -> 5.226666667e-06 | G18: m3
B19: E-Modul | E19: ER,kurz | F19: =Calculs!B9 -> 170000 | G19: N/mm2
B21: Systemsteifigkeit | E21: SFkurz | F21: =Calculs!SK37 -> 0.2017079272 | G21: =Calculs!SL37 -> rigide
B22: Lastvergrösserungsfaktor | E22: f | F22: =Calculs!SM41 -> 1
B23: Krümmungseinfluss | E23: αka | F23: =Calculs!SG329 -> 1
E24: αki | F24: =Calculs!SG328 -> 1
B26: Terrain
B28: Bodenqualität | F28: =Données!AE30 -> Sol stable
B29: Feuchtraumgewicht des Baugrunds | E29: γ | F29: =Données!AE32 -> 20
B30: Raumgewicht unter Auftrieb | E30: γ' | F30: =Données!AE34 -> 11 | G30: kN/m3
